Workbook

Sheet Texts (hidden)
C1: English | D1: Français | E1: Deutsch | F1: Netherlander | G1: Italiano | H1: Español | I1: Português | J1: Polak | K1: Chinese | L1: Japanese | M1: Hindi | N1: Русский
A2: =Language -> English | B2: =IF(VLOOKUP(A2,A2:N2,VLOOKUP(A2,Text_Choice,2,FALSE)+2,0)=0,C2,VLOOKUP(A2,A2:R2,VLOOKUP(A2,Text_Choice,2,FALSE)+2,0)) -> Facility | C2: Facility | D2: Site | E2: Lage | F2: Site | H2: Sitio | I2: Instalação | J2: Zakład | N2: Предприятие
A3: English | B3: Reported period | C3: Reported period | D3: Période de rapport | E3: Period | F3: Lopend jaar | H3: Año de reporte | I3: Ano reportado | J3: Okres raportowania | N3: Отчетный период
A4: English | B4: from | C4: from | D4: de | E4: von | F4: uit | H4: de | I4: de | J4: od | N4: от
A5: English | B5: to | C5: to | D5: à | E5: bis | F5: naar | H5: a | I5: a | J5: do | N5: до
A6: English | B6: Country | C6: Country | D6: Pays | E6: Land | F6: Land | H6: País | I6: País | J6: Kraj | N6: Страна
A7: English | B7: Language | C7: Language | D7: Langue | E7: Sprache | F7: Taal | H7: Idioma | I7: Idioma | J7: Język | N7: Язык
A8: English | B8: To display data forms click above | C8: To display data forms click above | D8: Cliquer ci-dessus pour afficher les formulaires de données | E8: Klicken Sie oben für die Vordrucke von Daten | F8: Klik hierboven om de vormen van gegevens | H8: Al pulsar supra para mostrar los formularios de datos | I8: Clique acima para visualizar os formulários de dados | J8: Do kliknij powyżej aby wyświetlić w postaci danych
A9: English | B9: Select existing plants | C9: Select existing plants | D9: Sélection des ateliers | E9: Wählen Sie existierende Betriebe aus | F9: Selecteer bestaande installaties | H9: Seleccione plantas existentes | I9: Selecione plantas existentes | J9: Wybierz dostępne zakłady | N9: Выбор существующих цехов
A10: English | B10: Coke plant | C10: Coke plant | D10: Cokerie | E10: Kokerei | F10: Cokesfabriek | H10: Batería de coque | I10: Coqueria | J10: Koksownia | N10: КХП
A11: English | B11: Sinter plant | C11: Sinter plant | D11: Agglomération sur grille | E11: Sinteranlage | F11: Sinterfabriek | H11: Sinterización | I11: Sinterização | J11: Spiekalnia | N11: АГП
A12: English | B12: Pellet plant | C12: Pellet plant | D12: Agglomération en boulettes | E12: Pelletanlage | F12: Pelletfabriek | H12: Planta de pélets | I12: Usina de pelotização
A13: English | B13: Gas based DRI plant | C13: Gas based DRI plant | D13: Réduction directe au gaz | E13: Direktreduktion Gas | F13: Directe reductie met gas | H13: Reducción directa con gas | I13: Redução direta com gás | J13: Bezpośrednia redukcja gazu | N13: Прямое сокращение с газом
A14: English | B14: Coal based DRI plant | C14: Coal based DRI plant | D14: Réduction directe au charbon | E14: Direktreduktion Kohle | F14: Directe reductie met steenkool | H14: Reducción directa con carbón | I14: Redução direta com carvão | J14: Bezpośrednia redukcja z węgla | N14: Прямого сокращения с угля
A15: English | B15: Blast Furnace plant | C15: Blast Furnace plant | D15: Haut fourneau | E15: Hochofen | F15: Hoogoven | H15: Horno Alto | I15: Alto-Forno | J15: Wielki Piec | K15: 鼓风炉 | L15: 溶鉱炉 | M15: ब्लास्ट फर्नेंस | N15: ДП
A16: English | B16: Smelting Reduction plant | C16: Smelting Reduction plant | D16: Réduction Fusion | E16: Schmelzreduktion | F16: Smeltreductie | H16: Fusión reductora | I16: Fusão redutora | J16: Wytapianie redukcyjne | N16: Восстановительная плавка
A17: English | B17: BOF shop | C17: BOF shop | D17: Aciérie à l'oxygène | E17: LD Stahlanlage | F17: LD-staalfabriek | H17: Acería LD | I17: Aciaria LD | J17: StalowniaLD | N17: Кислородный стальной завод
A18: English | B18: BOF converter | C18: BOF converter | D18: Convertisseur à Oxygène | E18: LD-Konverter | F18: Converter LD | H18: Convertidor LD | I18: Conversor LD | J18: LD Konwerter | N18: Конвертерный цех
A19: English | B19: EAF shop | C19: EAF shop | D19: Aciérie électrique | E19: Electrostahlanlage | F19: Electrische-staalfabriek | H19: Acería eléctrica | I19: Aciaria Elétrica | J19: Stalownia Elektrycznych | N19: Электрический стальной-работает
A20: English | B20: Electric arc furnace | C20: Electric arc furnace | D20: Four à arc | E20: Elektrooffen | F20: Electrische ovens | H20: Horno eléctrico | I20: Forno Elétrica | J20: Zakład elektrycznych pieców łukowych | N20: Электрические дуговые печи
A21: English | B21: Secondary metallurgy plant | C21: Secondary metallurgy plant | D21: Métallurgie secondaire | E21: Pfannenmetallurgie | F21: Panmetallurgie | H21: Metalurgia Secundaria | I21: Metalurgia Secundária | J21: Obróbka pozapiecowa | N21: Вторичная металлургия
A22: English | B22: Ingot Casting plant | C22: Ingot Casting plant | D22: Coulée en lingots | E22: Blockguß | F22: Blokgieterij | H22: Colada en lingotes | I22: Lingotamento Convencional | J22: Odlewanie do wlewnic | N22: разливка слитков
A23: English | B23: Continuous casting plant | C23: Continuous casting plant | D23: Coulée continue | E23: Stranggießanlage | F23: Kontinu gieterij | H23: Colada Continua | I23: Lingotamento Contínuo | J23: Ciągłe odlewanie | N23: непрерывная разливка сляб
A24: English | B24: Cogging mill | C24: Cogging mill | D24: Train dégrossisseur | E24: Blooming-Slabbing | F24: Blooming-Slabbing | H24: Laminador de desbaste | I24: Laminador de desbaste | J24: Walcarka wstępna | N24: прокатка слитка в блюмы
A25: English | B25: Billet Mill | C25: Billet Mill | D25: Train à billettes | E25: Billetwalzwerk | F25: Billetwalserij | H25: Laminador de palanquillqs | I25: Laminador de tarugos | J25: Walcowni kęsów | N25: разливка заготовок
A26: English | B26: Hot Strip Mill | C26: Hot Strip Mill | D26: Train à bandes | E26: Warmwalzwerk | F26: Warmwalserij | H26: Laminador de chapas en caliente | I26: Laminador de tiras a quente | J26: Walcownia gorąca | N26: Цех горячего проката
A27: English | B27: Compact Strip Mill | C27: Compact Strip Mill | D27: Train compact (CSP, ISP) | E27: Compaktewalzwerk | F27: Compactwalserij | H27: Laminador compacto | I27: Laminador compacto | J27: CSP (walcownia blach cienkich) | N27: Цех проката штрипса (полосы)
A28: English | B28: Plate Mill | C28: Plate Mill | D28: Train à plaques | E28: Blechwalzwerk | F28: Platenwalserij | H28: Laminador de placas | I28: Laminador de chapas grossas | J28: Walcownia Blach Grubych | N28: Толстолистовой прокатный стан
A29: English | B29: Bar & Rod Mill | C29: Bar & Rod Mill | D29: Train à barres et ronds | E29: Barwalzwerk | F29: Barwalseril | H29: Laminador de barras | I29: Laminador de barras | J29: Walcownia Prętów | N29: Сортопрокатное производство
A30: English | B30: Section Mill | C30: Section Mill | D30: Train à profilés | E30: Profilewalzwerk | F30: Structurelwalserij | H30: Laminador de perfiles | I30: Laminador de perfiles | J30: Walcownia kształtowników | N30: Сортовой прокатный стан
A31: English | B31: Wire Mill | C31: Wire Mill | D31: Train à fil | E31: Walzdraht | F31: Draadwalserij | H31: Laminador de alambrón | I31: Laminador de fio máquina | J31: Walcownia Walcówki | N31: Стан проката проволоки
A32: English | B32: Tube Mill | C32: Tube Mill | D32: Train à tubes | E32: Rohrenwalzwerk | F32: Buiswalserij | H32: Laminador de tubos | I32: Laminador de tubos | J32: Walcownia Rur | N32: Трубный цех
A33: English | B33: Pickling plant | C33: Pickling plant | D33: Lignes de décapage | E33: Beize | F33: Beitserij | H33: Líneas de decapado | I33: Linhas de decapagem | J33: Wytrawialnia | N33: Травильное отделение
A34: English | B34: Cold rolling Mill | C34: Cold rolling Mill | D34: Laminoir à froid | E34: Kaltwalzwerk | F34: Koudwalserij | H34: Laminación en frío | I34: Laminação a Frio | J34: Walcownia zimna | N34: Стан холодного проката
A35: English | B35: Continuous Annealing plant | C35: Continuous Annealing plant | D35: Recuit continu | E35: Güherei | F35: Gloeierij | H35: Recocido continuo | I35: Recozimento continuo | J35: Ciągłe wyżarzanie | N35: Отделеление постоянного отжига
A36: English | B36: Batch Annealing plant | C36: Batch Annealing plant | D36: Recuit base | E36: Güherei | F36: Gloeierij | H36: Recocido discontinuo | I36: Recozimento discontinuo | J36: Wyżarzanie wsadu | N36: Отделение периодического отжига
A37: English | B37: Hot dip galvanising plant | C37: Hot dip galvanising plant | D37: Galvanisation | E37: Galvanisierung | F37: Galvanisatielijnen | H37: Galvanizado por inmersión | I37: Galvanização por imersão a quente | J37: Ocynkowanie ogniowe | N37: Стан горячего погружного цинкования
A38: English | B38: Electro galvanising plant | C38: Electro galvanising plant | D38: Electrozingage | E38: Elektrogalvanisierung | F38: Electro galvanisatie | H38: Electrocincado | I38: Eletro galvanização | J38: Ocynkowanie elektrolityczne | N38: Стан электро цинкования
A39: English | B39: Tinplating plant | C39: Tinplating plant | D39: Etamage | E39: Verzinnung | F39: Vertinnerij | H39: Hojalata | I39: Estanhagem por eletrodeposição | J39: Cynowanie | N39: Отделение лужения
A40: English | B40: Tin free plating plant | C40: Tin free plating plant | D40: Chromage | E40: Verchromen | F40: Chromaterij | H40: Chapa cromada | I40: Folha cromada | J40: Elektrolitycznie tlenkiem chromu | N40: Электролитический хром покрытие
A41: English | B41: =IF(VLOOKUP(A41,A41:N41,VLOOKUP(A41,Text_Choice,2,FALSE)+2,0)=0,C41,VLOOKUP(A41,A41:R41,VLOOKUP(A41,Text_Choice,2,FALSE)+2,0)) -> Other metal coating plant | C41: Other metal coating plant | D41: Autres revêtements métalliques | E41: Andere Metalbeschichtung | F41: Overige metaalbekledingen | H41: Otro revestimiento metálico | I41: Otro revestimento de metais | J41: Inne metalowa powłoka | N41: Другие Металлическое покрытие
A42: English | B42: Organic coating plant | C42: Organic coating plant | D42: Revêtements organiques | E42: Gebrauchte Entfettungsbäder | F42: Lakkerij | H42: Recubrimiento orgánico | I42: Revestimento orgânico | J42: Powlekanie organiczne | N42: Стан органического покрытия
A43: English | B43: Dust Treatment plant | C43: Dust Treatment plant | D43: Traitement de poussières | E43: Behandlung von Staub | F43: Behandeling van stof | H43: Tratamiento de polvas | I43: Tratamento de pó | J43: Odpylnia | N43: Цех обеспыливания
A44: English | B44: Lime plant | C44: Lime plant | D44: Fours à chaux | E44: Kalhkhütten | F44: Kalkoven | H44: Hornos de cal | I44: Fornos de cal | J44: Wapnialnia | N44: ЦОИ
A45: English | B45: Heat treatment plant | C45: Heat treatment plant | D45: Traitement thermique | E45: Wärmebehandlung | F45: Warmtebehandeling | H45: Tratamiento térmico | I45: Tratamento térmico | J45: Obróbka cieplna | N45: Нагрев
A46: English | B46: Boilers | C46: Boilers | D46: Chaudières | E46: Heizkessel | F46: Stoomkettel | H46: Calderas | I46: Caldeiras | J46: Kotłownia | N46: котлы
A47: English | B47: Power plant | C47: Power plant | D47: Centrale | E47: Kraftwerk | F47: Electriciteitscentrale | H47: Planta generadoras de potencia | I47: Plantas de geração de energia | J47: Elektrownia | N47: ТЭЦ
A48: English | B48: Air separation unit | C48: Air separation unit | D48: Usine à O2 | E48: Sauerstoffwerk | F48: Zuurstoffabriek | H48: Planta de oxígeno | I48: Planta de oxigênio | J48: Tlenownia | N48: Кислородное производство
A49: English | B49: Compressed Air plant | C49: Compressed Air plant | D49: Air comprimé | E49: Druckluft | F49: Perst lucht | H49: Compresión de aire | I49: Compressâo de ar | J49: Stacja sprężonego powietrza | N49: Цех сжатого воздуха
A50: English | B50: Others | C50: Others | D50: Autres | E50: Andere | F50: Ander | H50: Otros | I50: Outros | J50: Pozostałe | N50: Прочее
A51: English | B51: Flares | C51: Flares | D51: Torchères | E51: Fackels | F51: Fakkels | H51: Antorchas | I51: Queimador | J51: Pochodnie gazowe | N51: Свечи
A52: English | B52: Select existing categories | C52: Select existing categories | D52: Sélection des catégories | E52: Auswahl der Kategorien | F52: Selectie van de categorieën | H52: Selección de las categorías | I52: Selecção das categorias | J52: Wybierz dostępne kategorie | N52: Выбор существующий категорий
A53: English | B53: Products | C53: Products | D53: Produits | E53: Produkten | F53: Producten | H53: Productos | I53: Produtos | J53: Wyroby | N53: Продукция
A54: English | B54: Merchant Sinter | C54: Merchant Sinter | D54: Aggloméré marchand | E54: Sinter | F54: Sinter | H54: Sinter | I54: Sinter | J54: Spiek handlowy | N54: Товарный агломерат
A55: English | B55: Bell Sinter | C55: Bell Sinter | D55: Aggloméré criblé | E55: Gesiebtsinter | F55: Gezeefdsinter | H55: Sinter acribillado | I55: Sinter peneirado | J55: Spiek przesianej | N55: Сортный агломерат
A56: English | B56: Pellets | C56: Pellets | D56: Boulettes | E56: Pellets | F56: Pellets | H56: Pélets | I56: Pelotas | J56: Pellety | N56: окатыши
A57: English | B57: Gas based DRI | C57: Gas based DRI | D57: Minerai réduit au gaz | E57: Gas basierte DRI | F57: Gas gebaseerde DRI | H57: DRI basada en gas | I57: DRI gás baseado | J57: Opartego na DRI | N57: Газ на основе ткань DRI
A58: English | B58: Coal based DRI | C58: Coal based DRI | D58: Minerai réduit au charbon | E58: Kohle basierte DRI | F58: Steenkool gebaseerde DRI | H58: DRI basada en carbón | I58: DRI do carvão baseado | J58: Węgla w oparciu DRI | N58: На базе угля из ткани DRI
A59: English | B59: Hot metal (BF & SR) | C59: Hot metal (BF & SR) | D59: Fonte (HF & SR) | E59: Roheisen (HO & SR) | F59: Roheisen (HO & SR) | H59: Arrabio (AH & FR) | I59: Gusa (AF & FR) | J59: Surówka (W & WR) | N59: Чугун (ДП & восстановительной плавки)
A60: English | B60: Blast furnace Hot metal | C60: Blast furnace Hot metal | D60: Fonte de Haut fourneau | E60: Hochofengiesseisen | F60: Roheisen van hoogoven | H60: Arrabio de alto horno | I60: Gusa de Alto forno | J60: Surówka wielkopiecowa w gąskach | N60: Чугун с ДП
A61: English | B61: Smelting reduction Hot metal | C61: Smelting reduction Hot metal | D61: Fonte de Fusion réduction | E61: Schmelzgiesseisen | F61: Roheison van smeltreductie | H61: Arrabio de fusión reductora | I61: Gusa de fusão redutora | J61: Surówka w gąskach z wytapiania redukcyjnego | N61: Чугун с восстановительной плавки
A62: English | B62: =IF(VLOOKUP(A62,A62:N62,VLOOKUP(A62,Text_Choice,2,FALSE)+2,0)=0,C62,VLOOKUP(A62,A62:R62,VLOOKUP(A62,Text_Choice,2,FALSE)+2,0)) -> Cold iron | C62: Cold iron | D62: Fonte solide
A63: English | B63: BOF Liquid Steel | C63: BOF Liquid Steel | D63: Acier liquide convertisseur | E63: Konvertor flüssigestahl | F63: Gesmolten staal van converter | H63: Acero liquido de convertedor | I63: Aço liquido de convertedor | J63: Stal płynna z konwertorów | N63: жидкая сталь конвертера
A64: English | B64: EAF Liquid Steel | C64: EAF Liquid Steel | D64: Acier liquide four électrique | E64: Electrohofen flüssigestahl | F64: Gesmolten staal van electrooven | H64: Acero liquido de horno electrico | I64: Aço liquido de FEA | J64: Stal płynna z elektrycznych pieców łukowych | N64: жидкая сталь с электрических печей
A65: English | B65: Ready to cast BOF steel | C65: Ready to cast BOF steel | D65: Acier de CV prêt à couler | E65: Flüssigestahl | F65: Geraffineerd gesmolten staal | H65: Acero liquido para colada | I65: Aço liquido para lingotamento | J65: Stal przygotowana do odlewania | N65: Сталь готовая к разливке
A66: English | B66: =IF(VLOOKUP(A66,A66:N66,VLOOKUP(A66,Text_Choice,2,FALSE)+2,0)=0,C66,VLOOKUP(A66,A66:R66,VLOOKUP(A66,Text_Choice,2,FALSE)+2,0)) -> Ready to cast EAF steel | C66: Ready to cast EAF steel | D66: Acier de FEA prêt à couler | E66: Flüssigestahl | F66: Geraffineerd gesmolten staal | H66: Acero liquido para colada | I66: Aço liquido para lingotamento | J66: Stal przygotowana do odlewania | N66: Сталь готовая к разливке
A67: English | B67: BOF Ingots | C67: BOF Ingots | D67: Lingots de convertiseur | E67: Konverterblocks | F67: Ingots van converter | H67: Lingotes de convertedor | I67: Lingotes de convertedor
A68: English | B68: EAF Ingots | C68: EAF Ingots | D68: Lingots de four électrique | E68: Electrohofenblocks | F68: Ingots van electrooven | H68: Lingotes de horne electrico | I68: Lingotes de FEA
A69: English | B69: =IF(VLOOKUP(A69,A69:N69,VLOOKUP(A69,Text_Choice,2,FALSE)+2,0)=0,C69,VLOOKUP(A69,A69:R69,VLOOKUP(A69,Text_Choice,2,FALSE)+2,0)) -> Continuous casting BOF steel | C69: Continuous casting BOF steel | D69: Acier de CC de convertisseur | E69: Stranggiess stahl von Konverter | F69: Kontinu gieterij staal van converter | H69: Acero de CC de convertedor | I69: Aço de CC de convertedor
A70: English | B70: =IF(VLOOKUP(A70,A70:N70,VLOOKUP(A70,Text_Choice,2,FALSE)+2,0)=0,C70,VLOOKUP(A70,A70:R70,VLOOKUP(A70,Text_Choice,2,FALSE)+2,0)) -> Continuous casting EAF steel | C70: Continuous casting EAF steel | D70: Acier de CC de four électrique | E70: Stranggiess stahl von Electrohofen | F70: Kontinu gieterij staal van electrooven | H70: Acero de CC de horno electrico | I70: Aço de CC de FEA
A71: English | B71: =IF(VLOOKUP(A71,A71:N71,VLOOKUP(A71,Text_Choice,2,FALSE)+2,0)=0,C71,VLOOKUP(A71,A71:R71,VLOOKUP(A71,Text_Choice,2,FALSE)+2,0)) -> BOF Crude steel (Flat) | C71: BOF Crude steel (Flat) | D71: Acier brut O2 (Plats) | E71: Rohstahl O2 (Flach) | F71: Ruwstaal O2 (Schaal) | H71: Acero bruto O2 (Planos) | I71: Aço bruto O2 (Planos) | J71: Stali surowej O2 (Plaskie) | N71: Сырой стали O2 (Кухни)
A72: English | B72: EAF Crude steel (Long) | C72: EAF Crude steel (Long) | D72: Acier brut EAF (Longs) | E72: Rohstahl EAF (Lange) | F72: Ruwstaal EAF (Lange) | H72: Acero bruto horno electrico (Largos) | I72: Aço bruto de FEA (Longos) | J72: Stali surowej Elek (Długie) | N72: Сырой стали Электрический (Длина)
A73: English | B73: =IF(VLOOKUP(A73,A73:N73,VLOOKUP(A73,Text_Choice,2,FALSE)+2,0)=0,C73,VLOOKUP(A73,A73:R73,VLOOKUP(A73,Text_Choice,2,FALSE)+2,0)) -> Crude steel for hot rolling | C73: Crude steel for hot rolling | D73: Acier brut pour laminage | E73: Rohstahl für Walzen | F73: Ruwstaal voor rollen | H73: Acero bruto para laminado | I73: Aço Bruto para laminagem | J73: Stali surowej na tabor | N73: Сырой стали для подвижного состава
A74: English | B74: =IF(VLOOKUP(A74,A74:N74,VLOOKUP(A74,Text_Choice,2,FALSE)+2,0)=0,C74,VLOOKUP(A74,A74:R74,VLOOKUP(A74,Text_Choice,2,FALSE)+2,0)) -> EAF Steel allocation | C74: EAF Steel allocation | D74: Allocation acier FEA
A75: English | B75: Roughed BOF ingots | C75: Roughed BOF ingots | D75: Lingots de CV dégrossis
A76: English | B76: =IF(VLOOKUP(A76,A76:N76,VLOOKUP(A76,Text_Choice,2,FALSE)+2,0)=0,C76,VLOOKUP(A76,A76:R76,VLOOKUP(A76,Text_Choice,2,FALSE)+2,0)) -> Roughed EAF ingots | C76: Roughed EAF ingots | D76: Lingots de FEA dégrossis
A77: English | B77: Rolled billets | C77: Rolled billets | D77: Billettes | E77: Knüppel | F77: Knuppels | H77: Palanquillas | I77: Biletes | J77: Walcowane kęsy | N77: Прокатанные блюмы
A78: English | B78: Hot rolled coils | C78: Hot rolled coils | D78: Bobines à chaud | E78: Warm gewalzte Spulen | F78: Warm gewalste coils | H78: Bobinas en caliente | I78: Bobinas a quente | J78: Kręgi gorącowalcowane | N78: Горячекатанные рулоны
A79: English | B79: Heavy Plates | C79: Heavy Plates | D79: Plaques | E79: Grobbleche | F79: Zware platen | H79: Chapas | I79: Chapas | J79: Blachy ciężkie | N79: Тяжелый лист
A80: =Language -> English | B80: Bars & Rods | C80: Bars & Rods | D80: Barres & Ronds | E80: Stäbe | F80: Balken | H80: Barras | I80: Barras | J80: Pręty | N80: Сортовой прокат (стержень, прут)
A81: English | B81: Sections | C81: Sections | D81: Profilés | E81: Profile | F81: Profielen | H81: Perfiles | I81: Perfis | J81: Kształtowniki | N81: сортовой прокат (профиль)
A82: English | B82: Wire Rod | C82: Wire Rod | D82: Fil machine | E82: Walzdraht | F82: Walsdraad | H82: Alambrón | I82: Fio Maquina | J82: Walcówka | N82: катанка
A83: English | B83: Seamless Tubes | C83: Seamless Tubes | D83: Tubes sans soudure | E83: Nahtlose Rohre | F83: Naadloze stalen buizen | H83: Tubos sin soldadura | I83: Tubos sem costura | J83: Rury bez spawu | N83: безшовная труба
A84: English | B84: Pickled coils | C84: Pickled coils | D84: Bobines décapées | E84: Gebeiztes Spulen | F84: Gebeitste reels | H84: Bobinas decapadas | I84: Bobinas decapadas | J84: Kręgi wytrawiane | N84: протравленные рулоны
A85: English | B85: Cold Rolled Coils | C85: Cold Rolled Coils | D85: Bobines à froid | E85: Kaltgewalzte Spulen | F85: Koud gewalste reels | H85: Bobinas en frío | I85: Bobinas a frio | J85: Kręgi zimnowalcowane | N85: холоднокатанные рулоны
A86: English | B86: Annealed Coils | C86: Annealed Coils | D86: Bobines recuites | E86: Spulen Brüchigwerden | F86: Verwarmd reels | H86: Bobinas recocidas | I86: Bobinas recozidas | J86: Kręgi wytrawiane | N86: отоженнве рулоны
A87: English | B87: Hot Dip Galvanised Coils | C87: Hot Dip Galvanised Coils | D87: Bobines galvanisées | E87: Verzinkte Spulen | F87: Gegalvaniseerde reels | H87: Bobinas galvanizadas | I87: Bobinas galvanizadas | J87: Kręgi ocynkowane ogniowo | N87: оцинкованные рулоны (горячее погружение)
A88: English | B88: Electrogalvanised Coils | C88: Electrogalvanised Coils | D88: Bobines électrozinguées | E88: Spulen elektrolytisch verzinkten | F88: Electrogalvaniseerde reels | H88: Bobinas electrogalvanizadas | I88: Bobinas eletrogalvanizadas | J88: Kręgi ocynkowane elektrolitycznie | N88: електро оцинкованные рулоны
A89: English | B89: Tin Plated Coils | C89: Tin Plated Coils | D89: Bobines étamées | E89: Verzinnten Spulen | F89: Vertinde reels | H89: Bobinas de hojalata | I89: Bobinas estanhadas | J89: Kręgi ocynowane | N89: Рулоны белой жести
A90: English | B90: Tin Free Plated Coils | C90: Tin Free Plated Coils | D90: Bobines chromées | E90: Verchromen Spulen | F90: Verchroomde reels | H90: Bobinas cromadas | I90: Bobinas cromadas | J90: Blachy bezcynowe | N90: Рулоны черной жести
A91: English | B91: Other metal coated Coils | C91: Other metal coated Coils | D91: Bobines métallisées autres | E91: Andere Einseitig Spulen | F91: Andere gemetalliseerde reels | H91: Otras bobinas metalizadas | I91: Outras bobinas metalizadas
A92: English | B92: Painted coils | C92: Painted coils | D92: Bobines prélaquées | E92: Bemalte rollen | F92: Beschilderd reels | H92: Bobinas pintadas | I92: Bobinas pintadas | J92: Kręgi lakierowane | N92: Окрашенные рулоны
A93: English | B93: Treated Dust DRI/HM | C93: Treated Dust DRI/HM | D93: DRI/Fonte de traitement de poussières | E93: DRI/Giesseisen von Behandlung von Staub | F93: DRI/roheissen van behandeling van stof | H93: Esponja/arrabio de tratamiento de polve | I93: Esponja/Gusa de tratamento de pó | J93: Żelazo gąbczaste/ surówka - pył gąbczasty | N93: обезпылеливание чугун/железо прямого восстановления
A94: English | B94: Heat treated products | C94: Heat treated products | D94: Produits de traitement thermique | E94: Wärmebehandlungsprodukte | F94: Producten van warmtebehandeling | H94: Productos de tratamiento térmico | I94: Produtos de tratamento de calor | N94: Продукты обработки высокой температуры
A95: English | B95: Condensed Fuels | C95: Condensed Fuels | D95: Combustibles condensés | E95: Zerkleinerten Brennstoffe | F95: Verdichte brandstoffen | H95: Combustibles condensados | I95: Combustiveis condensados | J95: Paliwo skondensowane | N95: Нефте продукты
A96: English | B96: Home Coke | C96: Home Coke | D96: Coke interne | E96: Internkoks | F96: Interne cokes | H96: Coque interna | I96: Coque interna | J96: Koks własny | N96: Собственный кокс
A97: English | B97: Purchased coke | C97: Purchased coke | D97: Coke externe | E97: Commerzkoks | F97: Externe cokes | H97: Coque externa | I97: Coque externo | J97: Koks ze źródeł zewnętrznych | N97: покупной кокс
A98: English | B98: Purchased nut coke | C98: Purchased nut coke | D98: Petit coke externe | E98: Nusskoks | F98: Moer cokes | H98: Coque pequeño externa | I98: Coque pequeno externo | J98: Miał koksowy ze źródeł zewnętrznych | N98: покупной мелкий кокс
A99: English | B99: Coke breeze | C99: Coke breeze | D99: Poussier de coke | E99: Kokstaub | F99: Cokesbries | H99: Coque breeze | I99: Coque breeze | J99: Koksik | N99: коксовая мелочь
A100: English | B100: Coking coal | C100: Coking coal | D100: Charbon à coke | E100: Kokskohle | F100: Cokeskool | H100: Carbón para coque | I100: Carvão para coque | J100: Węgiel koksujący | N100: коксующийся уголь
A101: English | B101: Anthracite | C101: Anthracite | D101: Anthracite | E101: Anthrazit | F101: Antraciet | H101: Antracito | I101: Antracito | J101: Antracyt | N101: антрацит
A102: English | B102: DRI coal | C102: DRI coal | D102: Charbon de réduction directe | E102: Direktreduktionkohle | F102: Steenkool voor directe reductie | H102: Carbón para reducción directa | I102: Carvão para redução direta | N102: Уголь для прямого сокращения
A103: English | B103: BF injection Coal | C103: BF injection Coal | D103: Charbon d'injection HF | E103: Hochofeneinblasekohle | F103: Steenkool voor hoogoven | H103: Carbón para injección en AH | I103: Carvão para PCI | J103: Węgiel do wdmuchiwania do WP | N103: уголь для пылеугольного вдувания в ДП
A104: English | B104: Smelting reduction Coal | C104: Smelting reduction Coal | D104: Charbon de fusion réduction | E104: Schmelzreduktionkohle | F104: Steenkool voor smeltreductie | H104: Carbón para fusión reductora | I104: Carvão para fusâo redutora | J104: Wytapianie redukcyjne/ Węgiel energetyczny | N104: Восстановительная плавка/газовый уголь
A105: English | B105: EAF Coal | C105: EAF Coal | D105: Charbon de four électrique | E105: Elektrischeofenkohle | F105: Steenkool voor Electrische oven | H105: Carbón para horno electrico | I105: Carvão para FEA | J105: Węgiel do elektrycznych pieców łukowych | N105: Уголь для электро дуговых печей
A106: English | B106: Steam coal | C106: Steam coal | D106: Charbon vapeur | E106: Kesselkohle | F106: Stoomkolen | H106: Carbón de Vapor | I106: Carvão vapor | J106: Węgiel | N106: паровичный уголь
A107: English | B107: Petroleum Coke | C107: Petroleum Coke | D107: Coke de pétrole | E107: Petroleumkoks | F107: Petroleumcokes | H107: Coque de petróleo | I107: Coque de petroleo | J107: Koks naftowy | N107: Петрококс
A108: English | B108: Heavy oil | C108: Heavy oil | D108: Fuel lourd | E108: Heizöl | F108: Zware stookolie | H108: Petróleo pesado | I108: Oleo pesado | J108: Olej ciężki | N108: мазут
A109: English | B109: Light domestic oil | C109: Light domestic oil | D109: Fuel domestique | E109: Lichtöl | F109: Stookolie | H109: Aceite liviano | I109: Oleo leve | J109: Olej lekki | N109: легкие масла
A110: English | B110: Diesel oil | C110: Diesel oil | D110: Gas oil | E110: Dieselöl | F110: Dieselolie | H110: Oleo diesel | I110: Oleo diesel | J110: Olej napędowy | N110: дизельное топливо
A111: English | B111: LPG | C111: LPG | D111: GPL | E111: LPG | F111: LPG | H111: GLP | I111: GLP | J111: LPG | N111: сжиженный нефте газ (пропан/бутан)
A112: English | B112: Charcoal | C112: Charcoal | D112: Charbon de bois | E112: Holzkohle | F112: Houtskool | H112: Carbón vegetal | I112: Carvão vegetal | J112: Węgiel drzewny | N112: древесный уголь
A113: English | B113: Used Plastics | C113: Used Plastics | D113: Plastiques usagés | E113: Abfal Plastik | F113: Kunststofafval | H113: Plasticos usados | I113: Plasticos usados | J113: Zużyte tworzywa sztuczne | N113: использованный пластик
A114: English | B114: Used Tires | C114: Used Tires | D114: Pneus usés | E114: Altreifen | F114: Versleten banden | H114: Neumáticos usados | I114: Pneus usados | J114: Zużyte opony | N114: использованные шины
A115: English | B115: Other condensed fuel 1 | C115: Other condensed fuel 1 | D115: Autre combustible condensé 1 | E115: Andere Brennstoff 1 | F115: Andere brandstof 1 | H115: Otro combustible 1 | I115: Outro combustível 1 | J115: Inne paliwo 1 | N115: Другое топливо 1
A116: English | B116: Other condensed fuel 2 | C116: Other condensed fuel 2 | D116: Autre combustible condensé 2 | E116: Andere Brennstoff 2 | F116: Andere brandstof 2 | H116: Otro combustible 2 | I116: Outro combustível 2 | J116: Inne paliwo 2 | N116: Другое топливо 2
A117: English | B117: Gazeous Fuels | C117: Gazeous Fuels | D117: Combustibles gazeux | E117: Gasförmige Brennstoffe | F117: Gasvormige brandstoffen | H117: Combustibles gaseosos | I117: Combustiveis gasosos | J117: Paliwa gazowe | N117: газообразное топливо
A118: English | B118: Coke Oven Gas | C118: Coke Oven Gas | D118: Gaz de cokerie | E118: Kokereigas | F118: Coke oven gas | H118: Gas de coqueria | I118: Gás de coqueria | J118: Gaz koksowniczy | N118: коксовый газ
A119: English | B119: Blast Furnace Gas | C119: Blast Furnace Gas | D119: Gaz de haut fourneau | E119: Hochofengas | F119: Hoogoven gas | H119: Gas de alto horno | I119: Gás de alto forno | J119: Gaz wielkopiecowy | N119: доменный газ
A120: English | B120: Smelting Reduction Gas | C120: Smelting Reduction Gas | D120: Gaz de fusion réduction | E120: Schmelzreduktiongas | F120: Smeltreductie gas | H120: Gas de convertedor | I120: Gás de convertedor | J120: Gaz do wytapiania redukcyjnego | N120: газ с установки восстановительной плавки
A121: English | B121: BOF Gas | C121: BOF Gas | D121: Gaz d'aciérie | E121: Stahlwerkgas | F121: Staalbedrijven gas | H121: Gas de fusión reductora | I121: Gás de fusâo redutora | J121: Gaz konwertorowy | N121: конвертерный газ
A122: English | B122: Natural Gas | C122: Natural Gas | D122: Gaz naturel | E122: Erdgas | F122: Aardgas | H122: Gas natural | I122: Gás natural | J122: Gaz ziemny | N122: природный газ
A123: English | B123: Other Gas 1 | C123: Other Gas 1 | D123: Autre gaz 1 | E123: Andere Gas 1 | F123: Andere gas 1 | H123: Otro gas 1 | I123: Outro gas 1 | J123: Inny gaz 1 | N123: Другой газ 1
A124: English | B124: Other Gas 2 | C124: Other Gas 2 | D124: Autre gaz 2 | E124: Andere Gas 2 | F124: Andere gas 2 | H124: Otro gas 2 | I124: Outro gas 2 | J124: Inny gaz 2 | N124: Другой газ 2
A125: English | B125: Utilities | C125: Utilities | D125: Utilités | E125: Utilites | F125: Utilities | H125: Utilidades | I125: Utilidades | J125: Media | N125: энергоносители
A126: English | B126: Electricity | C126: Electricity | D126: Electricité | E126: Elektrizität | F126: Elektriciteit | H126: Electricidad | I126: Eletricidade | J126: Elektryczność | N126: электрическая энергия
A127: English | B127: High Pressure Steam | C127: High Pressure Steam | D127: Vapeur haute pression | E127: Hochdruckdampf | F127: Hoge druk stoom | H127: Vapor de alta presión | I127: Vapor de alta pressão | J127: Para wysokoprężna | N127: пар высокого давления
A128: English | B128: Low Pressure Steam | C128: Low Pressure Steam | D128: Vapeur basse pression | E128: Niederdruckdampf | F128: Lage druk stoom | H128: Vapor de baja presión | I128: Vapor de baixa pressão | J128: Para niskoprężna | N128: пар низкого давления
A129: English | B129: Hot water | C129: Hot water | D129: Eau chaude | E129: Heizwasser | F129: Heet water | H129: Agua caliente | I129: Agua quente | J129: Woda gorąca | N129: горячая вода
A130: English | B130: High Pressure Oxygen | C130: High Pressure Oxygen | D130: Oxygène haute pression | E130: Hochdrücksauerstoff | F130: Hoge druk zuurstof | H130: Oxígeno de alta pureza | I130: Oxigênio de alta pureza | J130: Tlen 99,5% | N130: кислород высокой концентрации
A131: English | B131: Low Pressure Oxygen | C131: Low Pressure Oxygen | D131: Oxygène basse pression | E131: Niederdrüksauerstoff | F131: Lage druk zuurstof | H131: Oxígeno de baja pureza | I131: Oxigênio de baixa pureza | J131: Tlen 95% | N131: кислород низкой концентрации
A132: English | B132: Nitrogen | C132: Nitrogen | D132: Azote | E132: Stickstoff | F132: Stickstof | H132: Nitrógeno | I132: Nitrogênio | J132: Azot | N132: азот
A133: English | B133: Argon | C133: Argon | D133: Argon | E133: Argon | F133: Argon | H133: Argón | I133: Argônio | J133: Argon | N133: аргон
A134: English | B134: Compressed air | C134: Compressed air | D134: Air comprimé | E134: Druckluft | F134: Geperste lucht | H134: Aire comprimido | I134: Ar comprimido | J134: Sprężone powietrze | N134: сжатый воздух
A135: English | B135: Hydrogen | C135: Hydrogen | D135: Hydrogène | E135: Wasserstof | F135: Waterstof | H135: Hidrógeno | I135: Hidrogênio | J135: Wodór | N135: водород
A136: English | B136: Miscellaneous materials | C136: Miscellaneous materials | D136: Matières diverses | E136: Verschiedene Materialien | F136: Diverse materialen | H136: Materiales diversos | I136: Materiais varios | J136: Inne materiały | N136: прочие вспомогательные материалы
A137: English | B137: EAF Electrodes | C137: EAF Electrodes | D137: Electrodes de four à arc | E137: Elektrischeofenelektroden | F137: Elektroden van elektrische oven | H137: Electrodos de horno electrico | I137: Eletrodo de FEA | J137: Elektrody do elektrycznego pieca łukowego | N137: Электроды для электрических дуговых печей
A138: English | B138: Ferro Chromium | C138: Ferro Chromium | D138: Ferro Chrome | E138: Ferrochrom | F138: Ferrochroom | H138: Ferrocromo | I138: Ferro Cromo | J138: Żelazochrom | N138: ферро хром
A139: English | B139: =IF(VLOOKUP(A139,A139:N139,VLOOKUP(A139,Text_Choice,2,FALSE)+2,0)=0,C139,VLOOKUP(A139,A139:R139,VLOOKUP(A139,Text_Choice,2,FALSE)+2,0)) -> Ferro Manganese | C139: Ferro Manganese | D139: Ferro Manganèse | E139: Ferromangan | F139: Ferromangaan | H139: Ferromanganeso | I139: Ferro Manganes | J139: Żelazomangan | N139: ферромарганец
A140: English | B140: Pre-consumer scrap | C140: Pre-consumer scrap | D140: Ferrailles neuves externes | E140: Commerzneueschrott | F140: Externe nieuw schroot | H140: Chatarra nueva external | I140: Sucata nova externe | J140: Złom poprodukcyjny ze źródeł zewnętrznych | N140: покупной новый металлом
A141: English | B141: Post-consumer scrap | C141: Post-consumer scrap | D141: Ferrailles de collecte | E141: Commerzaltschrott | F141: Aankoopschroot | H141: Chatarra nueva external | I141: Sucata nova externe | J141: Złom poprodukcyjny ze źródeł zewnętrznych | N141: покупной новый металлом
A142: English | B142: Limestone | C142: Limestone | D142: Castine | E142: Kalkstein | F142: Kalksteen | H142: Caliza | I142: Calcario | J142: Kamień wapienny | N142: известняк
A143: English | B143: Burnt Lime | C143: Burnt Lime | D143: Chaux vive | E143: Kalk | F143: Kalk | H143: Cal | I143: Cal | J143: Wapno palone | N143: обоженная известь
A144: English | B144: Dolomite | C144: Dolomite | D144: Dolomie | E144: Dolomit | F144: Dolomiet | H144: Dolomita bruta | I144: Dolomita bruta | J144: Dolomit surowy | N144: необоженный доломит
A145: English | B145: Dolime | C145: Dolime | D145: Dolomie calcinée | E145: Kalk Dolomit | F145: Dolomitic kalk | H145: Caliza dolomítica | I145: Cal dolomitica | J145: Dolomit palony | N145: обоженный доломит
A146: English | B146: Fine Iron Ore | C146: Fine Iron Ore | D146: Minerai fin | E146: Feinerz | F146: Fijnerts | H146: Finos de mineral | I146: Finos de minério | J146: Miał rudy żelaza | N146: мелкая железная руда
A147: English | B147: Ground pellet feed | C147: Ground pellet feed | D147: Pellet feed broyé | E147: Kugelzufuhr | F147: Pellet voeding | H147: Pellet feed | I147: Pellet feed | J147: Podawania pastylek | N147: Пелле подача
A148: =Language -> English | B148: Lump Ore | C148: Lump Ore | D148: Minerai calibré | E148: Stuckerz | F148: Rockerts | H148: Mineral calibrado | I148: Minério de calibragem | J148: Ruda kawałkowa | N148: крупнокусковая руда
A149: English | B149: Other material 1 | C149: Other material 1 | D149: Autre matière 1 | E149: Anderes Material 1 | F149: Andere amteriaal 1 | H149: Otros materiales 1 | I149: Outro material 1 | J149: Inne materiały 1 | N149: Другие материалы 1
A150: English | B150: Other material 2 | C150: Other material 2 | D150: Autre matière 2 | E150: Anderes Material 2 | F150: Andere amteriaal 2 | H150: Otros materiales 2 | I150: Outro material 2 | J150: Inne materiały 2 | N150: Другие материалы 2
A151: English | B151: Residues | C151: Residues | D151: Résidus | E151: Reststoffe | F151: Afval | H151: Residuos | I151: Residuos | J151: Odpady | N151: остаточная продукция
A152: English | B152: Tar | C152: Tar | D152: Goudron | E152: Teer | F152: Teer | H152: Alquitrán | I152: Alcatrão | J152: Smoła | N152: смола
A153: English | B153: Benzole | C153: Benzole | D153: Benzol | E153: Benzol | F153: Benzol | H153: Benzol | I153: Benzol | J153: Benzol | N153: бензол
A154: English | B154: Naphtalenic oil | C154: Naphtalenic oil | D154: Fuel naphtaliné | E154: Nafta | F154: Naftaline | H154: Aceite naftalinado | I154: Óleo Naftalenico | J154: Olej naftalenowy | N154: нафталиновое масло
A155: English | B155: CDQ Dust | C155: CDQ Dust | D155: Poussières d'extinction à sec | E155: CDQ Staub | F155: CDQ Stof | H155: Polvo de CDQ | I155: Pó de CDQ | J155: Pył koksowy CDQ (z gaszenia na sucho) | N155: пыль CDQ
A156: English | B156: Coke quenching breeze | C156: Coke quenching breeze | D156: Poussier d'extinction | E156: Kokslöschgrus | F156: bluswaterkooksgruis | H156: Polvo de coque de apagado | I156: Finos da Extinção de Coque | J156: Koksik z gaszenia koksu | N156: потушенная коксовая мелочь
A157: English | B157: DRI screening fines | C157: DRI screening fines | D157: Fines de criblage de minerai réduit | E157: DRIsiebfein | F157: Fijne zeven DRI | H157: Finas de cribado de mineral reducido | I157: Finas de peneiramento de minério reduzido | J157: Frakcja drobna z przesiewania żelaza z redukcji bezpośredniej | N157: отсеянная мелочь железа прямого восстановления
A158: English | B158: BF gas dust | C158: BF gas dust | D158: Poussières de gaz HF | E158: Hochofengichtstaub | F158: Hoogoven gietvloerstof | H158: Polvo de botellón Horno-Alto | I158: Pó de Limpeza de gás de Alto-Forno | J158: Pył z oczyszczania gazu wielkopiecowego | N158: пыль после очистки доменного газа
A159: English | B159: BF gas sludge | C159: BF gas sludge | D159: Boues de gaz HF | E159: Hochofengichtschlamm | F159: Slib hoogovengasbehandeling | H159: Lodos de Horno Alto | I159: Lama de Alto-Forno | J159: Szlam z oczyszczania gazu wielkopiecowego | N159: шлам после очистки доменного газа
A160: English | B160: SR gas dust | C160: SR gas dust | D160: Poussières de gaz SR | E160: Schmelzreduktiongichtstaub | F160: Smelting gietvloerstof | H160: Polvo de botellón fusión reductora | I160: Pó de Limpeza de gás de fusâo redutora | J160: Pył z oczyszczania gazu przy wytapianiu redukcyjnym | N160: пыль после очистки доменного газа с установки восстановительной плавки
A161: English | B161: SR gas sludge | C161: SR gas sludge | D161: Boues de gaz SR | E161: Schmelzreduktiongichtschlamm | F161: Smelting gietvloerstof | H161: Polvo de botellón fusión reductora | I161: Pó de Limpeza de gás de fusâo redutora | J161: Pył z oczyszczania gazu przy wytapianiu redukcyjnym | N161: пыль после очистки доменного газа с установки восстановительной плавки
A162: English | B162: =IF(VLOOKUP(A162,A162:N162,VLOOKUP(A162,Text_Choice,2,FALSE)+2,0)=0,C162,VLOOKUP(A162,A162:R162,VLOOKUP(A162,Text_Choice,2,FALSE)+2,0)) -> Ironmaking slag | C162: Ironmaking slag | D162: Laitier de HF/SR | E162: Sclacke von HO/SR | F162: Slak van HO/SR | H162: Escoria de HA/SR | I162: escória de AF/SR | J162: Żużel WP/SR | N162: Утюг окалины
A163: English | B163: Granulated slag | C163: Granulated slag | D163: Laitier granulé | E163: Hüttensand | F163: Hoogoven zand | H163: Escoria de horno alto granulada | I163: Escória de Alto-Forno granulada | J163: Żużel granulowany wielkopiecowy | N163: доменный гранулированный шлак
A164: English | B164: =IF(VLOOKUP(A164,A164:N164,VLOOKUP(A164,Text_Choice,2,FALSE)+2,0)=0,C164,VLOOKUP(A164,A164:R164,VLOOKUP(A164,Text_Choice,2,FALSE)+2,0)) -> Scrap | C164: Scrap | D164: Ferraille | E164: Schrott | F164: Schroot | H164: Chatarra | I164: Sucata | J164: Złom | N164: лом
A165: English | B165: Home scrap | C165: Home scrap | D165: Ferrailles internes | E165: Internschrott | F165: Home schroot | H165: Chatarra metálica interna | I165: Sucata metálica interna | J165: Złom własny | N165: собственный лом
A166: English | B166: Pig iron scrap | C166: Pig iron scrap | D166: Vieilles fontes | E166: Giesseisenschrott | F166: Roheisen schroot | H166: Chatarra de arrabio | I166: Sucata de guza | J166: Złom własny | N166: собственный лом
A167: English | B167: Other residue 1 | C167: Other residue 1 | D167: Autre résidu 1 | E167: Andere Reststoffe 1 | F167: Andere afval 1 | H167: Otros residuos 1 | I167: Outros residuos 1 | J167: Inne odpady 1 | N167: Другие отходы 1
A168: English | B168: Other residue 2 | C168: Other residue 2 | D168: Autre résidu 2 | E168: Andere Reststoffe 2 | F168: Andere afval 2 | H168: Otros residuos 2 | I168: Outros residuos 2 | J168: Inne odpady 2 | N168: Другие отходы 2
A169: English | B169: =IF(VLOOKUP(A169,A169:N169,VLOOKUP(A169,Text_Choice,2,FALSE)+2,0)=0,C169,VLOOKUP(A169,A169:R169,VLOOKUP(A169,Text_Choice,2,FALSE)+2,0)) -> DRI at blast furnace | C169: DRI at blast furnace | D169: DRI au haut fourneau
A170: English | B170: Scrap at blast furnace | C170: Scrap at blast furnace | D170: Ferraille au haut fourneau
A171: English | B171: =IF(VLOOKUP(A171,A171:N171,VLOOKUP(A171,Text_Choice,2,FALSE)+2,0)=0,C171,VLOOKUP(A171,A171:R171,VLOOKUP(A171,Text_Choice,2,FALSE)+2,0)) -> Scrap ratio at BOF | C171: Scrap ratio at BOF | D171: Taux de ferraille au BOF
A172: English | B172: =IF(VLOOKUP(A172,A172:N172,VLOOKUP(A172,Text_Choice,2,FALSE)+2,0)=0,C172,VLOOKUP(A172,A172:R172,VLOOKUP(A172,Text_Choice,2,FALSE)+2,0)) -> Hot metal ratio at EAF | C172: Hot metal ratio at EAF | D172: Taux de fonte liquide au FEA
A173: English | B173: DRI ratio at EAF | C173: DRI ratio at EAF | D173: Taux de DRI au FEA
A174: English | B174: =IF(VLOOKUP(A174,A174:N174,VLOOKUP(A174,Text_Choice,2,FALSE)+2,0)=0,C174,VLOOKUP(A174,A174:R174,VLOOKUP(A174,Text_Choice,2,FALSE)+2,0)) -> Scrap ratio | C174: Scrap ratio | D174: Taux de ferraille
A175: English | B175: =IF(VLOOKUP(A175,A175:N175,VLOOKUP(A175,Text_Choice,2,FALSE)+2,0)=0,C175,VLOOKUP(A175,A175:R175,VLOOKUP(A175,Text_Choice,2,FALSE)+2,0)) -> BF hot metal ratio | C175: BF hot metal ratio | D175: Taux de fonte HF
A176: English | B176: SR hot metal ratio | C176: SR hot metal ratio | D176: Taux de fonte SR
A177: English | B177: =IF(VLOOKUP(A177,A177:N177,VLOOKUP(A177,Text_Choice,2,FALSE)+2,0)=0,C177,VLOOKUP(A177,A177:R177,VLOOKUP(A177,Text_Choice,2,FALSE)+2,0)) -> Cold iron ratio | C177: Cold iron ratio | D177: Taux de fonte solide
A178: English | B178: Gas DRI ratio | C178: Gas DRI ratio | D178: Taux de DRI gaz
A179: English | B179: Coal DRI ratio | C179: Coal DRI ratio | D179: Taux de DRI charbon
A180: English | B180: Code | C180: Code | D180: Code | E180: Geheimzahl | F180: Code | H180: Code | I180: Code | J180: Kod | N180: код
A181: English | B181: Category | C181: Category | D181: Catégorie | E181: Kategorie | F181: Klassificatie | H181: Categoría | I181: Code | J181: Kod | N181: код
A182: English | B182: Name | C182: Name | D182: Nom | E182: Name | F182: Naam | H182: Nombre | I182: Nome | J182: Nazwa | N182: имя
A183: English | B183: Unit | C183: Unit | D183: Unité | E183: Einheit | F183: Ennheid | H183: Unidad | I183: Unidad | J183: Jednostka | N183: ед.изм
A184: English | B184: Emission Factor | C184: Emission Factor | D184: Facteur d'émission | E184: Emissionsfaktor | F184: Emissiefactor | H184: Factor de emisión | I184: Factor de emissão | J184: Współczynnik emisji | N184: коэффициент выбросов
A185: English | B185: Conversion Factor | C185: Conversion Factor | D185: Facteur de conversion | E185: Umrechnungsfaktor | F185: Conversiefactor | H185: Factor de conversión | I185: Factor de conversão | J185: Współczynnik konwersji | N185: переводной коэффициент
A186: English | B186: GJ ncv | C186: GJ ncv | D186: GJ PCI | E186: GJ | F186: GJ | H186: GJ PCI | I186: GJ PCI | J186: GJ LCV (paliwo niskokaloryczne) | N186: GJ LCV
A187: English | B187: =IF(VLOOKUP(A187,A187:N187,VLOOKUP(A187,Text_Choice,2,FALSE)+2,0)=0,C187,VLOOKUP(A187,A187:R187,VLOOKUP(A187,Text_Choice,2,FALSE)+2,0)) -> MJ ncv | C187: MJ ncv | D187: MJ PCI | E187: MJ | F187: MJ | H187: GJ PCI | I187: GJ PCI | J187: GJ LCV (paliwo niskokaloryczne) | N187: GJ LCV
A188: English | B188: Material Characteristics | C188: Material Characteristics | D188: Caractéristiques des matières | E188: Materielle Eigenschaften | F188: Materiaaleigenschappen | H188: Caracteristicas de materiales | I188: Caracteristicas dos materiais | J188: Charakterystyka materiałowa | N188: Характеристики материала
A189: English | B189: ncv | C189: ncv | D189: PCI | E189: nhw | F189: ncw | H189: PCI | I189: PCI | J189: Niskokaloryczne | N189: выход летучих
A190: English | B190: Ash | C190: Ash | D190: Cendres | E190: Asche | F190: Asbak | H190: Cenizas | I190: Cinzas | J190: Prochy | N190: пепла
A191: English | B191: Volatiles | C191: Volatiles | D191: Matières volatiles | E191: Flüchtige Stoffe | F191: Vluchtige zaken | H191: Materias volátiles | I191: Matérias voláteis | J191: Lotne spraw | N191: летучих веществ
A192: English | B192: Energy equivalent | C192: Energy equivalent | D192: Equivalent énergie | E192: Energieäquivalent | F192: Energie equivalent | H192: Energia equivalente | I192: Energia equivalente | J192: Równoważne energii | N192: Энерго эквивалент
A193: English | B193: CO2 Emission factor | C193: CO2 Emission factor | D193: Facteur d'émission CO2 | E193: CO2 Emissionsfaktor | F193: CO2-emissiefactor | H193: Factor de emisión de CO2 | I193: Factor de emissão de CO2 | J193: Współczynnik emisji CO2 | N193: эвкивалент СО2
A194: English | B194: Upstream CO2 | C194: Upstream CO2 | D194: CO2 amont | E194: Vorfeld CO2 | F194: Opwaarts CO2 | H194: Upstream CO2 | I194: Upstream CO2 | J194: Dwutlenek węgla w części surowcowej | N194: СО2 верхнего передела
A195: English | B195: Procurements | C195: Procurements | D195: Approvisionnements | E195: Beschaffungen | F195: Aankopen | H195: Compras | J195: Zaopatrzenie | N195: Закупки / снабжение
A196: English | B196: External Procurements | C196: External Procurements | D196: Achats externes | E196: Import von anderen Industrien | F196: Andere industrietakken | H196: De otras industrias | I196: De outras Indústrias | J196: Z innych branży | N196: С другой промышленности
A197: English | B197: Reclaimed from stocks | C197: Reclaimed from stocks | D197: Reprise sur stock | E197: Zurücknahme von Lagerung | F197: Overbrenging naar stock | H197: Recuperación de almacén | I197: Recuperado de estoques | J197: Odzyskane z zapasów | N197: Использование со склада
A198: English | B198: Destinations | C198: Destinations | D198: Destinations | E198: Versand | F198: BestimmungenBestemmingen | H198: Destinos | I198: Destinos | J198: Dostawy | N198: Отгрузка
A199: English | B199: External power plants | C199: External power plants | D199: Centrales externes | E199: Externekraftwerk | F199: Externe electriciteitscentrale | H199: Plantas generadoras de potencia externa | I199: Plantas de geração de energia externa | J199: Elektrownie zewnętrzne | N199: Внешний ТЭЦ
A200: English | B200: Other deliveries | C200: Other deliveries | D200: Autres ventes | E200: Anderen Industrien | F200: Andere industrietakken | H200: Otras industrias | I200: Outras Indústrias | J200: Do innych branż | N200: Прочие промышленности
... 152 more rows

Sheet Assumptions (hidden)
A1: Albania | B1: Languages | E1: Gas Units | G1: Max material yield
A2: Algeria | B2: English | C2: 1 | E2: 103.m3N | G2: Secondary metallurgy | H2: 1
A3: Angola | B3: Français | C3: 2 | E3: =Texts!B186 -> GJ ncv | G3: Ingot casting | H3: 1
A4: Argentina | B4: Deutcsh | C4: 3 | G4: Continuous casting | H4: 0.995
A5: Australia | B5: Netherlander | C5: 4
A6: Austria | B6: Italiano | C6: 5 | G6: DRI | H6: =OR('Facility Structure'!E9,'Facility Structure'!E10) -> TRUE
A7: Azerbaijan | B7: Español | C7: 6
A8: Bangladesh | B8: Português | C8: 7
A9: Belarus | B9: Polak | C9: 8
A10: Belgium | B10: Chinese | C10: 9
A11: Bosnia Herzegovina | B11: Japanese | C11: 10
A12: Brazil | B12: Hindi | C12: 11
A13: Bulgaria | B13: Русский | C13: 12
A14: Canada | G14: Primary Processes | H14: =COUNTIF('Facility Structure'!A7:A13,TRUE) -> 3 | I14: =H14>1 -> TRUE
A15: Chile | G15: Steel processes | H15: =COUNTIF('Facility Structure'!A14:A15,TRUE) -> 1 | I15: =OR((H15>1),(H15*H14>0)) -> TRUE
A16: China | G16: Hot rolling mills | H16: =COUNTIF('Facility Structure'!A20:A27,TRUE) -> 1 | I16: =(H15*H16>0) -> TRUE
A17: Colombia
A18: Croatia
A19: Cuba
A20: Czech Republic
A21: Denmark
A22: Dominican Republic
A23: Ecuador
A24: Egypt
A25: El Salvador
A26: Estonia
A27: Finland
A28: France
A29: Georgia
A30: Germany
A31: Ghana
A32: Greece
A33: Guatemala
A34: Honduras
A35: Hong Kong
A36: Hungary
A37: India
A38: Indonesia
A39: Iran
A40: Ireland
A41: Israel
A42: Italy
A43: Japan
A44: Jordan
A45: Kazakhstan
A46: Kenya
A47: Korea
A48: Latvia
A49: Libya
A50: Lithuania
A51: Luxembourg
A52: Macedonia
A53: Malaysia
A54: Mauritania
A55: Mexico
A56: Moldova
A57: Mongolia
A58: Montenegro
A59: Morocco
A60: Myanmar
A61: Netherlands
A62: New Zealand
A63: Nigeria
A64: North Korea
A65: Norway
A66: Pakistan
A67: Paraguay
A68: Peru
A69: Philippines
A70: Poland
A71: Portugal
A72: Qatar
A73: Romania
A74: Russia
A75: Saudi Arabia
A76: Serbia
A77: Singapore
A78: Slovakia
A79: Slovenia
A80: South Africa
A81: Spain
A82: Sri Lanka
A83: Sweden
A84: Switzerland
A85: Syria
A86: Taiwan (China)
A87: Thailand
A88: Trinidad & Tobago
A89: Tunisia
A90: Turkey
A91: Uganda
A92: Ukraine
A93: United Arab Emirates
A94: United Kingdom
A95: United States
A96: Uruguay
A97: Uzbekistan
A98: Venezuela
A99: Vietnam
A100: Zaire
A101: Zimbabwe

Sheet Reference plants
A1: =Texts!B10 -> Coke plant | G1: =Texts!B11 -> Sinter plant | M1: =Texts!B13 -> Gas based DRI plant | S1: =Texts!B14 -> Coal based DRI plant | Y1: =Texts!B15 -> Blast Furnace plant | AE1: =Texts!B16 -> Smelting Reduction plant | AK1: =Texts!B17&" & "&Texts!B24 -> BOF shop & Cogging mill | AQ1: =Texts!B19&" & "&Texts!B24 -> EAF shop & Cogging mill | AW1: =Texts!B25 -> Billet Mill | BC1: =Texts!B26 -> Hot Strip Mill | BI1: =Texts!B27 -> Compact Strip Mill | BO1: =Texts!B28 -> Plate Mill | BU1: =Texts!B29 -> Bar & Rod Mill | CA1: =Texts!B30 -> Section Mill | CG1: =Texts!B31 -> Wire Mill | CM1: =Texts!B32 -> Tube Mill
D3: =Texts!$B$327 -> Energy | E3: CO2 | J3: =Texts!B327 -> Energy | K3: CO2 | P3: =Texts!$B$327 -> Energy | Q3: CO2 | V3: =Texts!$B$327 -> Energy | W3: CO2 | AB3: =Texts!$B$327 -> Energy | AC3: CO2 | AH3: =Texts!$B$327 -> Energy | AI3: CO2 | AN3: =Texts!$B$327 -> Energy | AO3: CO2 | AT3: =Texts!$B$327 -> Energy | AU3: CO2 | AZ3: =Texts!$B$327 -> Energy | BA3: CO2 | BF3: =Texts!$B$327 -> Energy | BG3: CO2 | BL3: =Texts!$B$327 -> Energy | BM3: CO2 | BR3: =Texts!$B$327 -> Energy | BS3: CO2 | BX3: =Texts!$B$327 -> Energy | BY3: CO2 | CD3: =Texts!$B$327 -> Energy | CE3: CO2 | CJ3: =Texts!$B$327 -> Energy | CK3: CO2 | CP3: =Texts!$B$327 -> Energy | CQ3: CO2
B4: Unit | C4: Flow | D4: MJ/t | E4: kg/t | H4: Unit | I4: Flow | J4: MJ/t | K4: kg/t | N4: Unit | O4: Flow | P4: MJ/t | Q4: kg/t | T4: Unit | U4: Flow | V4: MJ/t | W4: kg/t | Z4: Unit | AA4: Flow | AB4: MJ/t | AC4: kg/t | AF4: Unit | AG4: Flow | AH4: MJ/t | AI4: kg/t | AL4: Unit | AM4: Flow | AN4: MJ/t | AO4: kg/t | AR4: Unit | AS4: Flow | AT4: MJ/t | AU4: kg/t | AX4: Unit | AY4: Flow | AZ4: MJ/t | BA4: kg/t | BD4: Unit | BE4: Flow | BF4: MJ/t | BG4: kg/t | BJ4: Unit | BK4: Flow | BL4: MJ/t | BM4: kg/t | BP4: Unit | BQ4: Flow | BR4: MJ/t | BS4: kg/t | BV4: Unit | BW4: Flow | BX4: MJ/t | BY4: kg/t | CB4: Unit | CC4: Flow | CD4: MJ/t | CE4: kg/t | CH4: Unit | CI4: Flow | CJ4: MJ/t | CK4: kg/t | CN4: Unit | CO4: Flow | CP4: MJ/t | CQ4: kg/t
A5: =Texts!B100 -> Coking coal | B5: kg/t | C5: 1267.494364 | D5: 40724.59392 | E5: 3807.673723 | G5: =Texts!$B$286 -> Coke | H5: kg/t | I5: 27.21964816 | J5: 800.9946481 | K5: 86.66414777 | M5: =Texts!B56 -> Pellets | N5: kg/t | O5: 1376.026831 | Q5: 0.5041956608 | S5: =Texts!B148 -> Lump Ore | T5: kg/t | U5: 1548.332292 | W5: 5.673308149 | Y5: =Texts!B55 -> Bell Sinter | Z5: kg/t | AA5: 1314.165277 | AE5: =Texts!B56 -> Pellets | AF5: kg/t | AG5: 1359.791468 | AI5: 0 | AK5: =Texts!B329 -> Pig iron | AL5: kg/t | AM5: 926.5935213 | AQ5: =Texts!B174 -> Scrap ratio | AR5: kg/t | AS5: 1114.78438 | AU5: 3.940119341 | AW5: =Texts!$B$231 -> Crude steel | AX5: kg/t | AY5: 1027.628071 | BC5: =Texts!$B$231 -> Crude steel | BD5: kg/t | BE5: 1033.543642 | BI5: =Texts!$B$231 -> Crude steel | BJ5: kg/t | BK5: 1023.657748 | BO5: =Texts!$B$231 -> Crude steel | BP5: kg/t | BQ5: 1140.38752 | BU5: =Texts!$B$231 -> Crude steel | BV5: kg/t | BW5: 1037.727978 | CA5: =Texts!$B$231 -> Crude steel | CB5: kg/t | CC5: 1071.82949 | CG5: =Texts!$B$231 -> Crude steel | CH5: kg/t | CI5: 1039.661734 | CM5: =Texts!$B$231 -> Crude steel | CN5: kg/t | CO5: 1152.91715
A6: =Texts!B109 -> Light domestic oil | B6: l/t | C6: 2.551140385 | D6: 91.03744464 | E6: 6.697654708 | G6: =Texts!B101 -> Anthracite | H6: kg/t | I6: 28.24435872 | J6: 808.071103 | K6: 83.60028714 | M6: =Texts!$B$122 -> Natural Gas | N6: MJ/t | O6: 10067.28714 | P6: 10067.28714 | Q6: 564.8212387 | S6: =Texts!$B$144 -> Dolomite | T6: kg/t | U6: 47.02269106 | W6: 22.47362345 | Y6: =Texts!B56 -> Pellets | Z6: kg/t | AA6: 169.2060943 | AE6: =Texts!$B$148 -> Lump Ore | AF6: kg/t | AG6: 0 | AI6: 0 | AK6: =Texts!B330 -> DRI | AL6: kg/t | AM6: 0 | AQ6: =Texts!B333 -> Ferro-alloys | AR6: kg/t | AS6: 1.314187426 | AU6: 0.3611526224 | AW6: =Texts!$B$118 -> Coke Oven Gas | AY6: 1207.125333 | AZ6: =AY6 -> 1207.125333 | BA6: 50.84621648 | BC6: =Texts!$B$118 -> Coke Oven Gas | BE6: 819.6146442 | BF6: =BE6 -> 819.6146442 | BG6: 39.73794094 | BI6: =Texts!$B$122 -> Natural Gas | BJ6: MJ/t | BK6: 816.9181611 | BL6: =BK6 -> 816.9181611 | BM6: 45.8038723 | BO6: =Texts!$B$111 -> LPG | BP6: MJ/t | BQ6: 46.1314147 | BR6: =BQ6 -> 46.1314147 | BS6: 2.961440945 | BU6: =Texts!$B$122 -> Natural Gas | BV6: MJ/t | BW6: 1235.278973 | BX6: =BW6 -> 1235.278973 | BY6: 66.36297601 | CA6: =Texts!$B$122 -> Natural Gas | CB6: MJ/t | CC6: 2004.857126 | CD6: =CC6 -> 2004.857126 | CE6: 112.41055 | CG6: =Texts!$B$111 -> LPG | CH6: MJ/t | CI6: 0.0422832981 | CJ6: 0 | CK6: 0.1110087599 | CM6: =Texts!$B$122 -> Natural Gas | CN6: MJ/t | CO6: 3300.829509 | CP6: =CO6 -> 3300.829509 | CQ6: 184.0212451
A7: =Texts!$B$118 -> Coke Oven Gas | B7: MJ/t | C7: 489.5579141 | D7: 489.5579141 | E7: 23.73557332 | G7: =Texts!B158 -> BF gas dust | H7: kg/t | I7: 8.216637206 | J7: 121.4418979 | K7: 12.04276758 | M7: =Texts!$B$126 -> Electricity | N7: kWh/t | O7: 887.2047473 | P7: 887.2047473 | Q7: 52.56416535 | S7: =Texts!$B$102 -> DRI coal | T7: kg/t | U7: 696.7264318 | V7: 18114.88723 | W7: 1894.254788 | Y7: =Texts!$B$148 -> Lump Ore | Z7: kg/t | AA7: 116.9867121 | AC7: 0.214327916 | AE7: =Texts!$B$142 -> Limestone | AF7: kg/t | AG7: 120.0182295 | AI7: 52.80802099 | AK7: =Texts!B331 -> Scrap | AL7: kg/t | AM7: 171.6675094 | AO7: 0.2516055978 | AQ7: =Texts!$B$143&"+"&Texts!$B$145 -> Burnt Lime+Dolime | AR7: kg/t | AS7: 30.25916549 | AT7: 124.0625785 | AU7: 32.49280382 | AW7: =Texts!$B$122 -> Natural Gas | AX7: MJ/t | AY7: 211.6743692 | AZ7: =AY7 -> 211.6743692 | BA7: 10.48081357 | BC7: =Texts!$B$119 -> Blast Furnace Gas | BD7: MJ/t | BE7: 92.87933867 | BF7: =BE7 -> 92.87933867 | BG7: 24.90100802 | BI7: =Texts!$B$126 -> Electricity | BJ7: kWh/t | BK7: 76.57604404 | BL7: 750.4452316 | BM7: 44.46158269 | BO7: =Texts!$B$118 -> Coke Oven Gas | BQ7: 2347.737972 | BR7: =BQ7 -> 2347.737972 | BS7: 101.8480053 | BU7: =Texts!$B$126 -> Electricity | BV7: kWh/t | BW7: 65.51772498 | BX7: 642.0737048 | BY7: 38.04090148 | CA7: =Texts!$B$126 -> Electricity | CB7: kWh/t | CC7: 58.78769418 | CD7: 576.119403 | CE7: 34.133311 | CG7: =Texts!$B$122 -> Natural Gas | CH7: MJ/t | CI7: 1391.41649 | CJ7: =CI7 -> 1391.41649 | CK7: 78.01548096 | CM7: =Texts!$B$126 -> Electricity | CN7: kWh/t | CO7: 290.8451414 | CP7: 2850.282386 | CQ7: 168.870506
A8: =Texts!B119 -> Blast Furnace Gas | B8: MJ/t | C8: 2224.854515 | D8: 2224.854515 | E8: 596.4848685 | G8: =Texts!B146 -> Fine Iron Ore | H8: kg/t | I8: 1167.451099 | K8: 2.138852837 | M8: =Texts!$B$130 -> High Pressure Oxygen | N8: m3N/t | O8: 17.95342423 | P8: 124.9199258 | Q8: 7.405967031 | S8: =Texts!$B$297 -> Heating fuels | T8: MJ/t | U8: 99.72751404 | V8: =U8 -> 99.72751404 | W8: 5.590086957 | Y8: =Texts!$B$286 -> Coke | Z8: kg/t | AA8: 324.927259 | AB8: 9791.682949 | AC8: 1039.208698 | AE8: =Texts!$B$144 -> Dolomite | AF8: kg/t | AG8: 194.4564292 | AI8: 110.8401646 | AK8: =Texts!B283 -> Ores & Pellets | AL8: kg/t | AM8: 0 | AQ8: =Texts!$B$101 -> Anthracite | AR8: kg/t | AS8: 9.909992217 | AT8: 296.3087673 | AU8: 30.69783578 | AW8: =Texts!$B$126 -> Electricity | AX8: kWh/t | AY8: 31.53869996 | AZ8: 309.0792596 | BA8: 18.31199997 | BC8: =Texts!$B$121 -> BOF Gas | BD8: MJ/t | BE8: 316.492077 | BF8: =BE8 -> 316.492077 | BG8: 57.70112068 | BI8: =Texts!B78 -> Hot rolled coils | BJ8: kg/t | BK8: 1000 | BO8: =Texts!$B$119 -> Blast Furnace Gas | BP8: MJ/t | BQ8: 725.2798704 | BR8: =BQ8 -> 725.2798704 | BS8: 194.0757501 | BU8: =Texts!$B$130 -> High Pressure Oxygen | BV8: m3N/t | BW8: 0.09478581059 | BX8: 0.6595196701 | BY8: 0.03910009473 | CA8: =Texts!B81 -> Sections | CB8: kg/t | CC8: 1000 | CG8: =Texts!$B$126 -> Electricity | CH8: kWh/t | CI8: 140.494186 | CJ8: 1376.843023 | CK8: 81.5737343 | CM8: =Texts!$B$130 -> High Pressure Oxygen | CN8: m3N/t | CO8: 0.9707024356 | CP8: 6.754147547 | CQ8: 0.4004244617
A9: =Texts!$B$121 -> BOF Gas | B9: MJ/t | C9: 550.7016798 | D9: 550.7016798 | E9: 100.4009465 | G9: =Texts!B142 -> Limestone | H9: kg/t | I9: 151.3056531 | K9: 66.52863335 | M9: =Texts!$B$132 -> Nitrogen | N9: m3N/t | O9: 4.965840745 | P9: 9.733047861 | Q9: 0.5770306946 | S9: =Texts!$B$126 -> Electricity | T9: kWh/t | U9: 84.95837455 | V9: =9.8*U9 -> 832.5920706 | W9: 49.32853143 | Y9: =Texts!B103 -> BF injection Coal | Z9: kg/t | AA9: 163.3994339 | AB9: 5102.964322 | AC9: 497.714771 | AE9: =Texts!$B$286 -> Coke | AF9: kg/t | AG9: 0 | AH9: 0 | AI9: 0 | AK9: =Texts!$B$143&"+"&Texts!$B$145 -> Burnt Lime+Dolime | AL9: kg/t | AM9: 49.11440999 | AN9: 201.369081 | AO9: 52.73988436 | AQ9: =Texts!B105 -> EAF Coal | AR9: kg/t | AS9: 21.50576363 | AT9: 683.8832833 | AU9: 67.73661291 | AW9: =Texts!$B$130 -> High Pressure Oxygen | AX9: m3N/t | AY9: 1.357000658 | AZ9: 9.442010582 | BA9: 0.5597763416 | BC9: =Texts!$B$122 -> Natural Gas | BD9: MJ/t | BE9: 25.17594473 | BF9: =BE9 -> 25.17594473 | BG9: 1.411592755 | BO9: =Texts!$B$126 -> Electricity | BP9: kWh/t | BQ9: 103.8197303 | BR9: 1017.433357 | BS9: 60.2798118 | BU9: =Texts!$B$134 -> Compressed air | BV9: m3N/t | BW9: 27.45998309 | BX9: 29.60186177 | BY9: 1.754967519 | CG9: =Texts!B82 -> Wire Rod | CH9: kg/t | CI9: 1000 | CM9: =Texts!$B$132 -> Nitrogen | CN9: m3N/t | CO9: 8.68589582 | CP9: 17.02435581 | CQ9: 1.009301094
A10: =Texts!$B$126 -> Electricity | B10: kWh/t | C10: 38.3122636 | D10: 375.4601833 | E10: 22.24486649 | G10: =Texts!B143 -> Burnt Lime | H10: kg/t | I10: 3.648272838 | J10: 14.95791864 | K10: 3.917577095 | M10: =Texts!$B$134 -> Compressed air | N10: m3N/t | O10: 0.1432454061 | P10: 0.1544185478 | Q10: 0.009154813905 | S10: =Texts!$B$130 -> High Pressure Oxygen | T10: m3N/t | U10: 3.849425863 | V10: =0.71*9.8*U10 -> 26.78430516 | W10: 1.587926663 | Y10: =Texts!$B$118 -> Coke Oven Gas | AA10: 220.5298462 | AB10: =AA10 -> 220.5298462 | AC10: 10.69210032 | AE10: =Texts!B104 -> Smelting reduction Coal | AF10: kg/t | AG10: 769.3993771 | AH10: 22235.642 | AI10: 2104.307296 | AK10: =Texts!$B$142&"+"&Texts!$B$144 -> Limestone+Dolomite | AL10: kg/t | AM10: 2.429005826 | AO10: 1.014400548 | AQ10: =Texts!$B$122 -> Natural Gas | AR10: MJ/t | AS10: 565.220971 | AT10: =AS10 -> 565.220971 | AU10: 31.0871534 | AW10: =Texts!$B$132 -> Nitrogen | AX10: m3N/t | AY10: 1.62840079 | AZ10: 3.191665549 | BA10: 0.1892201718 | BC10: =Texts!$B$126 -> Electricity | BD10: kWh/t | BE10: 84.10528447 | BF10: 824.2317878 | BG10: 48.83321027 | BO10: =Texts!$B$127 -> High Pressure Steam | BP10: kg/t | BQ10: 24.44838861 | BR10: 92.90387674 | BS10: 5.207597468 | BU10: =Texts!B80 -> Bars & Rods | BV10: kg/t | BW10: 1000 | CM10: =Texts!$B$134 -> Compressed air | CN10: m3N/t | CO10: 83.94685089 | CP10: 90.49470526 | CQ10: 5.36504324
A11: =Texts!B127 -> High Pressure Steam | B11: kg/t | C11: 81.66522602 | D11: 310.3278589 | E11: 17.39499608 | G11: =Texts!$B$118 -> Coke Oven Gas | I11: 49.27707997 | J11: 49.27707997 | K11: 2.136442454 | M11: =S11 -> Screened DRI | N11: kg/t | O11: 983.0015451 | S11: =Texts!B323 -> Screened DRI | T11: kg/t | U11: 896.2751193 | Y11: =Texts!$B$119 -> Blast Furnace Gas | Z11: MJ/t | AA11: 1622.063233 | AB11: =AA11 -> 1622.063233 | AC11: 434.8761537 | AE11: =Texts!$B$111 -> LPG | AF11: MJ/t | AG11: 0 | AH11: =AG11 -> 0 | AI11: 0 | AK11: =Texts!$B$118 -> Coke Oven Gas | AM11: 49.43117837 | AN11: =AM11 -> 49.43117837 | AO11: 1.940083239 | AQ11: =Texts!B137 -> EAF Electrodes | AR11: kg/t | AS11: 1.956511465 | AT11: 64.09531559 | AU11: 7.168862585 | AW11: =Texts!$B$134 -> Compressed air | AX11: m3N/t | AY11: 5.986223359 | AZ11: 6.453148781 | BA11: 0.3825795349 | BC11: =Texts!$B$132 -> Nitrogen | BD11: m3N/t | BE11: 0.1210608552 | BF11: 0.2372792763 | BG11: 0.01406727138 | BO11: =Texts!$B$130 -> High Pressure Oxygen | BP11: m3N/t | BQ11: 2.410793219 | BR11: 16.77429922 | BS11: 0.9944763108 | CM11: =Texts!B83 -> Seamless Tubes | CN11: kg/t | CO11: 1000
A12: =Texts!B130 -> High Pressure Oxygen | B12: m3N/t | C12: 1.101337338 | D12: 7.663105199 | E12: 0.4543126654 | G12: =Texts!$B$126 -> Electricity | H12: kWh/t | I12: 49.54848296 | J12: 485.575133 | K12: 28.76884018 | M12: =Texts!B157 -> DRI screening fines | N12: kg/t | O12: 16.99845486 | S12: =Texts!B157 -> DRI screening fines | T12: kg/t | U12: 103.7248807 | Y12: =Texts!$B$122 -> Natural Gas | Z12: MJ/t | AA12: 7.802973674 | AB12: =AA12 -> 7.802973674 | AC12: 0 | AE12: =Texts!$B$126 -> Electricity | AF12: kWh/t | AG12: 98.49737803 | AH12: =9.8*AG12 -> 965.2743047 | AI12: 57.18954763 | AK12: =Texts!$B$122 -> Natural Gas | AL12: MJ/t | AM12: 71.48021104 | AN12: =AM12 -> 71.48021104 | AO12: 4.010039839 | AQ12: =Texts!$B$126 -> Electricity | AR12: kWh/t | AS12: 474.7644214 | AT12: 4652.691329 | AU12: 275.6577183 | AW12: =Texts!B77 -> Rolled billets | AX12: kg/t | AY12: 1000 | BC12: =Texts!$B$134 -> Compressed air | BD12: m3N/t | BE12: 17.08039102 | BF12: 18.41266152 | BG12: 1.09160779 | BO12: =Texts!$B$132 -> Nitrogen | BP12: m3N/t | BQ12: 0.4471428176 | BR12: 0.8763999225 | BS12: 0.0519579954
A13: =Texts!B132 -> Nitrogen | B13: m3N/t | C13: 5.423697324 | D13: 10.63044676 | E13: 0.6302336291 | G13: =Texts!B128 -> Low Pressure Steam | H13: kg/t | I13: 2.336491699 | J13: 8.08426128 | K13: 0.453152011 | S13: =Texts!B324 -> Steam recovery | T13: kg/t | U13: 1086.208936 | V13: 3758.282919 | W13: 210.6653167 | Y13: =Texts!$B$126 -> Electricity | Z13: kWh/t | AA13: 97.15617509 | AB13: =9.8*AA13 -> 952.1305159 | AC13: 56.41081838 | AE13: =Texts!$B$131 -> Low Pressure Oxygen | AF13: m3N/t | AG13: 526 | AH13: =0.5*9.8*AG13 -> 2577.4 | AI13: 152.803 | AK13: =Texts!$B$126 -> Electricity | AL13: kWh/t | AM13: 38.02614638 | AN13: =9.8*AM13 -> 372.6562345 | AO13: 22.07874111 | AQ13: =Texts!$B$130 -> High Pressure Oxygen | AR13: m3N/t | AS13: 44.11927481 | AT13: =0.71*9.8*AS13 -> 306.9819141 | AU13: 18.19964205 | BC13: =Texts!B78 -> Hot rolled coils | BD13: kg/t | BE13: 1000 | BO13: =Texts!$B$134 -> Compressed air | BP13: m3N/t | BQ13: 74.31970267 | BR13: 80.11663948 | BS13: 4.749772198
A14: =Texts!B134 -> Compressed air | B14: m3N/t | C14: 7.316853854 | D14: 7.887568455 | E14: 0.4676201298 | G14: =Texts!$B$134 -> Compressed air | I14: 7.244236161 | J14: 7.809286582 | K14: 0.4629791331 | Y14: =Texts!$B$130 -> High Pressure Oxygen | Z14: m3N/t | AA14: 0.1976241232 | AB14: =0.71*9.8*AA14 -> 1.37506865 | AC14: 0.08152192708 | AE14: =Texts!$B$132 -> Nitrogen | AF14: m3N/t | AG14: 117 | AH14: =0.2*9.8*AG14 -> 229.32 | AI14: 13.5954 | AK14: =Texts!$B$128 -> Low Pressure Steam | AL14: kg/t | AM14: 21.21349756 | AN14: 73.39870156 | AO14: 4.114262029 | AQ14: =Texts!$B$132 -> Nitrogen | AR14: m3N/t | AS14: 1.867621971 | AT14: =0.2*9.8*AS14 -> 3.660539063 | AU14: 0.217017673 | BO14: =Texts!B79 -> Heavy Plates | BP14: kg/t | BQ14: 1000
A15: =Texts!$B$286 -> Coke | B15: kg/t | C15: 1000 | D15: 30135 | E15: 3224.444259 | G15: =Texts!B54 -> Merchant Sinter | H15: kg/t | I15: 1165.858312 | Y15: =Texts!$B$131 -> Low Pressure Oxygen | Z15: m3N/t | AA15: 34.02063409 | AB15: =0.5*9.8*AA15 -> 166.701107 | AC15: 9.882994203 | AE15: =Texts!B61 -> Smelting reduction Hot metal | AF15: kg/t | AG15: 1000 | AK15: =Texts!$B$130 -> High Pressure Oxygen | AL15: m3N/t | AM15: 54.75629771 | AN15: =0.71*9.8*AM15 -> 380.9943194 | AO15: 22.58752037 | AQ15: =Texts!B230 -> EAF Crude steel | AR15: kg/t | AS15: 1000
A16: =Texts!B118 -> Coke Oven Gas | B16: MJ/t | C16: 7652.189661 | D16: 7652.189661 | E16: 371.0063784 | G16: =Texts!B55 -> Bell Sinter | H16: kg/t | I16: 1000 | Y16: =Texts!$B$132 -> Nitrogen | Z16: m3N/t | AA16: 19.9531768 | AB16: =0.2*9.8*AA16 -> 39.10822653 | AC16: 2.318559144 | AE16: =Texts!B120 -> Smelting Reduction Gas | AF16: MJ/t | AG16: 13998.53933 | AH16: =AG16 -> 13998.53933 | AI16: 2659.722473 | AK16: =Texts!$B$132 -> Nitrogen | AL16: m3N/t | AM16: 7.307919528 | AN16: =0.2*9.8*AM16 -> 14.32352227 | AO16: 0.8491802491
A17: =Texts!B152 -> Tar | B17: kg/t | C17: 34.53351975 | D17: 1286.408144 | E17: 115.274016 | Y17: =Texts!B134 -> Compressed air | Z17: m3N/t | AA17: 22.8750701 | AB17: =0.11*9.8*AA17 -> 24.65932557 | AC17: 1.46194573 | AE17: =Texts!B284 -> Dust & Sludge | AF17: kg/t | AG17: 0.04088204635 | AH17: 0.1103815251 | AI17: 0 | AK17: =Texts!B133 -> Argon | AL17: m3N/t | AM17: 0.9260141351 | AN17: =0.2*9.8*AM17 -> 1.814987705 | AO17: 0.1076028425
Y18: =Texts!B60 -> Blast furnace Hot metal | Z18: kg/t | AA18: 1000 | AE18: =Texts!$B$162 -> Ironmaking slag | AF18: kg/t | AG18: 434.4821978 | AK18: =Texts!$B$134 -> Compressed air | AL18: m3N/t | AM18: 11.18287779 | AN18: =0.11*9.8*AM18 -> 12.05514225 | AO18: 0.7146977194
Y19: =Texts!$B$119 -> Blast Furnace Gas | Z19: MJ/t | AA19: 4608.668759 | AB19: =AA19 -> 4608.668759 | AC19: 1235.586938 | AE19: =Texts!$B$163 -> Granulated slag | AF19: kg/t | AG19: 434.4821978 | AK19: =Texts!B229 -> BOF Crude steel | AL19: kg/t | AM19: 1000
Y20: =Texts!B284 -> Dust & Sludge | Z20: kg/t | AA20: 15.83572976 | AB20: 237.742536 | AC20: 23.20973996 | AK20: =Texts!$B$121 -> BOF Gas | AL20: MJ/t | AM20: 0 | AN20: =AM20 -> 0 | AO20: 0
Y21: =Texts!$B$162 -> Ironmaking slag | Z21: kg/t | AA21: 285.9444047 | AC21: 0 | AK21: =Texts!$B$128 -> Low Pressure Steam | AL21: kg/t | AM21: 53.97114941 | AN21: 186.740177 | AO21: 10.46746064
Y22: =Texts!$B$163 -> Granulated slag | Z22: kg/t | AA22: 248.8553511 | AC22: 0 | AK22: =Texts!B174 -> Scrap ratio | AM22: =AM7/SUM(AM5:AM7) -> 0.1563084773
Y23: =Texts!$B$126 -> Electricity | Z23: kWh/t | AA23: 17.10633714 | AB23: =9.8*AA23 -> 167.642104 | AC23: 9.932281472
D25: =Texts!$B$327 -> Energy | E25: CO2 | J25: =Texts!$B$327 -> Energy | K25: CO2 | P25: =Texts!$B$327 -> Energy | Q25: CO2 | V25: =Texts!$B$327 -> Energy | W25: CO2 | AB25: =Texts!$B$327 -> Energy | AC25: CO2 | AH25: =Texts!$B$327 -> Energy | AI25: CO2 | AN25: =Texts!$B$327 -> Energy | AO25: CO2 | AT25: =Texts!$B$327 -> Energy | AU25: CO2 | AZ25: =Texts!$B$327 -> Energy | BA25: CO2 | BF25: =Texts!$B$327 -> Energy | BG25: CO2 | BL25: =Texts!$B$327 -> Energy | BM25: CO2 | BR25: =Texts!$B$327 -> Energy | BS25: CO2 | BX25: =Texts!$B$327 -> Energy | BY25: CO2 | CD25: =Texts!$B$327 -> Energy | CE25: CO2 | CJ25: =Texts!$B$327 -> Energy | CK25: CO2 | CP25: =Texts!$B$327 -> Energy | CQ25: CO2
D26: MJ/t | E26: kg/t | J26: MJ/t | K26: kg/t | P26: MJ/t | Q26: kg/t | V26: MJ/t | W26: kg/t | AB26: MJ/t | AC26: kg/t | AH26: MJ/t | AI26: kg/t | AN26: MJ/t | AO26: kg/t | AT26: MJ/t | AU26: kg/t | AZ26: MJ/t | BA26: kg/t | BF26: MJ/t | BG26: kg/t | BL26: MJ/t | BM26: kg/t | BR26: MJ/t | BS26: kg/t | BX26: MJ/t | BY26: kg/t | CD26: MJ/t | CE26: kg/t | CJ26: MJ/t | CK26: kg/t | CP26: MJ/t | CQ26: kg/t
B27: =Texts!$B$297 -> Heating fuels | D27: =SUM(D7:D9) -> 3265.114109 | E27: 183.0214256 | H27: =Texts!$B$281 -> Solid fuels | J27: =SUM(J5:J7) -> 1730.507649 | K27: =SUM(K5:K7) -> 182.3072025 | N27: =Texts!B300 -> Reductants | P27: =P6 -> 10067.28714 | Q27: 564.8212387 | T27: =Texts!$B$300 -> Reductants | V27: =V7 -> 18114.88723 | W27: =W7 -> 1894.254788 | Z27: =Texts!$B$300 -> Reductants | AB27: 14894.64727 | AC27: 1536.923469 | AF27: =Texts!$B$300 -> Reductants | AH27: 28593.38786 | AI27: 2784.799973 | AL27: =Texts!B332 -> Coke & coal | AR27: =Texts!B338 -> Carbon fuels | AT27: =SUM(AT8:AT9) -> 980.1920506 | AU27: =SUM(AU8:AU9) -> 98.43444869 | AX27: =Texts!$B$297 -> Heating fuels | AZ27: =SUM(AZ6:AZ7) -> 1418.799702 | BA27: 78.14454353 | BD27: =Texts!$B$297 -> Heating fuels | BF27: =SUM(BF6:BF9) -> 1254.162005 | BG27: 70.30069533 | BJ27: =Texts!$B$297 -> Heating fuels | BL27: =SUM(BL6:BL6) -> 816.9181611 | BM27: 45.8038723 | BP27: =Texts!$B$297 -> Heating fuels | BR27: =SUM(BR6:BR8) -> 3119.149257 | BS27: 175.2151778 | BV27: =Texts!$B$297 -> Heating fuels | BX27: =SUM(BX6:BX6) -> 1235.278973 | BY27: 66.36297601 | CB27: =Texts!$B$297 -> Heating fuels | CD27: =SUM(CD6:CD6) -> 2004.857126 | CE27: 112.41055 | CH27: =Texts!$B$297 -> Heating fuels | CJ27: =SUM(CJ6:CJ7) -> 1391.41649 | CK27: =SUM(CK6:CK7) -> 78.12648972 | CN27: =Texts!$B$297 -> Heating fuels | CP27: =SUM(CP6:CP6) -> 3300.829509 | CQ27: 184.0212451
B28: =Texts!$B$126 -> Electricity | D28: =D10 -> 375.4601833 | E28: =E10 -> 22.24486649 | H28: =Texts!$B$126 -> Electricity | J28: =J12 -> 485.575133 | K28: =K12 -> 28.76884018 | N28: =Texts!$B$126 -> Electricity | P28: =P7 -> 887.2047473 | Q28: =Q7 -> 52.56416535 | T28: =Texts!$B$126 -> Electricity | V28: =V9 -> 832.5920706 | W28: =W9 -> 49.32853143 | Z28: =Texts!$B$297 -> Heating fuels | AB28: 1850.396052 | AC28: 103.7214955 | AF28: =Texts!$B$297 -> Heating fuels | AH28: 0 | AI28: 0 | AL28: =Texts!$B$126 -> Electricity | AN28: =AN13 -> 372.6562345 | AO28: =AO13 -> 22.07874111 | AR28: =Texts!$B$297 -> Heating fuels | AT28: =AT10 -> 565.220971 | AU28: 31.0871534 | AX28: =Texts!$B$126 -> Electricity | AZ28: =AZ8 -> 309.0792596 | BA28: 18.31199997 | BD28: =Texts!$B$126 -> Electricity | BF28: =BF10 -> 824.2317878 | BG28: 48.83321027 | BJ28: =Texts!$B$126 -> Electricity | BL28: =BL7 -> 750.4452316 | BM28: =BM7 -> 44.46158269 | BP28: =Texts!$B$126 -> Electricity | BR28: =BR9 -> 1017.433357 | BS28: =BS9 -> 60.2798118 | BV28: =Texts!$B$126 -> Electricity | BX28: =BX7 -> 642.0737048 | BY28: =BY7 -> 38.04090148 | CB28: =Texts!$B$126 -> Electricity | CD28: =CD7 -> 576.119403 | CE28: =CE7 -> 34.133311 | CH28: =Texts!$B$126 -> Electricity | CJ28: =CJ8 -> 1376.843023 | CK28: =CK8 -> 81.5737343 | CN28: =Texts!$B$126 -> Electricity | CP28: =CP7 -> 2850.282386 | CQ28: 168.870506
B29: =Texts!$B$301 -> Other utilities | D29: =SUM(D11:D14) -> 336.5089793 | E29: =SUM(E11:E14) -> 18.94716251 | H29: =Texts!$B$298 -> Ignition fuels | J29: =J11 -> 49.27707997 | K29: 2.762158113 | N29: =Texts!$B$301 -> Other utilities | P29: =SUM(P8:P10) -> 134.8073922 | Q29: =SUM(Q8:Q10) -> 7.992152539 | T29: =Texts!$B$297 -> Heating fuels | V29: =V8 -> 99.72751404 | W29: 5.590086957 | Z29: =Texts!$B$290 -> Electricity & Steam | AB29: 952.1305159 | AC29: 56.41081838 | AF29: =Texts!$B$126 -> Electricity | AH29: 965.2743047 | AI29: 57.18954763 | AL29: =Texts!$B$301 -> Other utilities | AN29: =SUM(AN14:AN18) -> 482.5866732 | AO29: =SUM(AO14:AO18) -> 28.37326321 | AR29: =Texts!$B$126 -> Electricity | AT29: =AT12 -> 4652.691329 | AU29: =AU12 -> 275.6577183 | AX29: =Texts!$B$301 -> Other utilities | AZ29: =SUM(AZ9:AZ11) -> 19.08682491 | BA29: 1.131576048 | BD29: =Texts!$B$301 -> Other utilities | BF29: =SUM(BF11:BF12) -> 18.6499408 | BG29: 1.10817528 | BJ29: =Texts!$B$325 -> Processing | BL29: =SUM(BL27:BL28) -> 1567.363393 | BM29: =SUM(BM27:BM28) -> 90.26545499 | BP29: =Texts!$B$301 -> Other utilities | BR29: =SUM(BR10:BR13) -> 190.6712154 | BS29: =SUM(BS10:BS13) -> 11.00380397 | BV29: =Texts!$B$301 -> Other utilities | BX29: =SUM(BX8:BX9) -> 30.26138144 | BY29: =SUM(BY8:BY9) -> 1.794067614 | CB29: =Texts!$B$325 -> Processing | CD29: =SUM(CD27:CD28) -> 2580.976529 | CE29: =SUM(CE27:CE28) -> 146.543861 | CH29: =Texts!$B$325 -> Processing | CJ29: =SUM(CJ27:CJ28) -> 2768.259514 | CK29: =SUM(CK27:CK28) -> 159.700224 | CN29: =Texts!$B$301 -> Other utilities | CP29: =SUM(CP8:CP10) -> 114.2732086 | CQ29: =SUM(CQ8:CQ10) -> 6.774768796
B30: =Texts!B303 -> Coking blend | D30: =SUM(D5:D6) -> 40815.63136 | E30: =SUM(E5:E6) -> 3814.371378 | H30: =Texts!$B$301 -> Other utilities | J30: =SUM(J13:J14) -> 15.89354786 | K30: =SUM(K13:K14) -> 0.916131144 | N30: =Texts!B326 -> Others | P30: =P5 -> 0 | Q30: =Q5 -> 0.5041956608 | T30: =Texts!$B$328 -> Oxygen | V30: =V10 -> 26.78430516 | W30: =W10 -> 1.587926663 | Z30: =Texts!$B$301 -> Other utilities | AB30: 231.8437278 | AC30: 13.745021 | AF30: =Texts!$B$301 -> Other utilities | AH30: 2806.72 | AI30: 166.3984 | AL30: =Texts!$B$297 -> Heating fuels | AN30: =SUM(AN11:AN12) -> 120.9113894 | AO30: 6.780835724 | AR30: =Texts!B301 -> Other utilities | AT30: =SUM(AT13:AT14) -> 310.6424532 | AU30: =SUM(AU13:AU14) -> 18.41665972 | AX30: =Texts!$B$325 -> Processing | AZ30: =SUM(AZ27:AZ29) -> 1746.965787 | BA30: =SUM(BA27:BA29) -> 97.58811955 | BD30: =Texts!$B$325 -> Processing | BF30: =SUM(BF27:BF29) -> 2097.043733 | BG30: =SUM(BG27:BG29) -> 120.2420809 | BJ30: =Texts!$B$334 -> BOF crude steel upstream | BL30: 18356.00316 | BM30: 1918.731362 | BP30: =Texts!$B$325 -> Processing | BR30: =SUM(BR27:BR29) -> 4327.25383 | BS30: =SUM(BS27:BS29) -> 246.4987936 | BV30: =Texts!$B$325 -> Processing | BX30: =SUM(BX27:BX29) -> 1907.61406 | BY30: =SUM(BY27:BY29) -> 106.1979451 | CB30: =Texts!$B$334 -> BOF crude steel upstream | CD30: 19219.80813 | CE30: 2009.023877 | CH30: =Texts!$B$334 -> BOF crude steel upstream | CJ30: 18642.98307 | CK30: 1948.729034 | CN30: =Texts!$B$325 -> Processing | CP30: =SUM(CP27:CP29) -> 6265.385104 | CQ30: =SUM(CQ27:CQ29) -> 359.66652
B31: =Texts!$B$53 -> Products | D31: =SUM(D15,D17) -> 31421.40814 | E31: =SUM(E15,E17) -> 3339.718275 | H31: =Texts!$B$305 -> Others (ore, fluxes…) | J31: =SUM(J8:J10) -> 14.95791864 | K31: =SUM(K8:K10) -> 72.58506328 | N31: =Texts!$B$304 -> Recoveries | T31: =Texts!$B$302 -> Burden | W31: =SUM(W5:W6) -> 28.1469316 | Z31: =Texts!$B$308 -> Burden upstream | AB31: 0 | AC31: 0.214327916 | AF31: =Texts!$B$302 -> Burden | AI31: 164.6416783 | AL31: =Texts!$B$307 -> Others | AN31: 201.369081 | AO31: =SUM(AO7:AO10) -> 54.00589051 | AR31: =Texts!$B$302 -> Burden | AT31: =SUM(AT5:AT7,AT11) -> 188.1578941 | AU31: =SUM(AU5:AU7,AU11) -> 43.96293837 | AX31: =Texts!$B$334 -> BOF crude steel upstream | AZ31: 18427.1981 | BA31: 1926.173286 | BD31: =Texts!$B$334 -> BOF crude steel upstream | BF31: 18533.27481 | BG31: 1937.261359 | BJ31: =Texts!$B$253&" "&Texts!$B$335 -> Total BOF | BL31: =SUM(BL29:BL30) -> 19923.36655 | BM31: =SUM(BM29:BM30) -> 2008.996817 | BP31: =Texts!$B$334 -> BOF crude steel upstream | BR31: 20449.17548 | BS31: 2137.528196 | BV31: =Texts!$B$334 -> BOF crude steel upstream | BX31: 18608.3074 | BY31: 1945.104427 | CB31: =Texts!$B$253&" "&Texts!$B$335 -> Total BOF | CD31: =SUM(CD29:CD30) -> 21800.78466 | CE31: =SUM(CE29:CE30) -> 2155.567738 | CH31: =Texts!$B$253&" "&Texts!$B$335 -> Total BOF | CJ31: =SUM(CJ29:CJ30) -> 21411.24258 | CK31: =SUM(CK29:CK30) -> 2108.429258 | CN31: =Texts!$B$334 -> BOF crude steel upstream | CP31: 20673.85402 | CQ31: 2161.013579
B32: =Texts!$B$118 -> Coke Oven Gas | D32: =D16 -> 7652.189661 | E32: 428.9328379 | H32: =Texts!$B$325 -> Processing | J32: =SUM(J27:J31) -> 2296.211329 | K32: =SUM(K27:K31) -> 287.3393952 | N32: =Texts!$B$325 -> Processing | P32: =SUM(P27:P30)-P31 -> 11089.29928 | Q32: =SUM(Q27:Q30)-Q31 -> 625.8817523 | T32: =Texts!$B$304 -> Recoveries | V32: =V13 -> 3758.282919 | W32: =W13 -> 210.6653167 | Z32: =Texts!$B$119 -> Blast Furnace Gas | AB32: 4608.668759 | AC32: 258.332511 | AF32: =Texts!B120 -> Smelting Reduction Gas | AH32: 13998.53933 | AI32: 784.6686333 | AL32: =Texts!B121 -> BOF Gas | AR32: =Texts!$B$325 -> Processing | AT32: =SUM(AT27:AT31) -> 6696.904698 | AU32: =SUM(AU27:AU31) -> 467.5589185 | AX32: =Texts!$B$253&" "&Texts!$B$335 -> Total BOF | AZ32: =SUM(AZ30:AZ31) -> 20174.16389 | BA32: =SUM(BA30:BA31) -> 2023.761406 | BD32: =Texts!$B$253&" "&Texts!$B$335 -> Total BOF | BF32: =SUM(BF30:BF31) -> 20630.31854 | BG32: =SUM(BG30:BG31) -> 2057.503439 | BJ32: =Texts!$B$336 -> EAF crude steel upstream | BL32: 6981.242116 | BM32: 484.622104 | BP32: =Texts!$B$253&" "&Texts!$B$335 -> Total BOF | BR32: =SUM(BR30:BR31) -> 24776.42931 | BS32: =SUM(BS30:BS31) -> 2384.02699 | BV32: =Texts!$B$253&" "&Texts!$B$335 -> Total BOF | BX32: =SUM(BX30:BX31) -> 20515.92146 | BY32: =SUM(BY30:BY31) -> 2051.302372 | CB32: =Texts!$B$336 -> EAF crude steel upstream | CD32: 7309.768518 | CE32: 507.4276669 | CH32: =Texts!$B$336 -> EAF crude steel upstream | CJ32: 7090.387677 | CK32: 492.198743 | CN32: =Texts!$B$253&" "&Texts!$B$335 -> Total BOF | CP32: =SUM(CP30:CP31) -> 26939.23912 | CQ32: =SUM(CQ30:CQ31) -> 2520.680099
B33: =Texts!$B$304 -> Recoveries | E33: 0 | H33: =Texts!$B$306 -> Coke upstream | J33: =D34*I5/1000 -> 155.6723479 | K33: 7.347500856 | N33: =Texts!$B$308 -> Burden upstream | P33: 2339.245612 | Q33: 158.2430855 | T33: =Texts!$B$253 -> Total | V33: =SUM(V27:V31)-V32 -> 15315.7082 | W33: =SUM(W27:W31)-W32 -> 1768.242948 | Z33: =Texts!B284 -> Dust & Sludge | AB33: 237.742536 | AC33: 23.20973996 | AF33: =Texts!B284 -> Dust & Sludge | AH33: 0.1103815251 | AI33: 0 | AL33: =Texts!$B$304 -> Recoveries | AN33: =AN21 -> 186.740177 | AO33: =AO21 -> 10.46746064 | AR33: =Texts!$B$309 -> Other burden upstream | AT33: 122.9939747 | AU33: 5.805130754 | AX33: =Texts!$B$336 -> EAF crude steel upstream | AZ33: 7008.319316 | BA33: 486.5017422 | BD33: =Texts!$B$336 -> EAF crude steel upstream | BF33: 7048.66291 | BG33: 489.3023037 | BJ33: =Texts!$B$253&" "&Texts!$B$337 -> Total EAF | BL33: =BL29+BL32 -> 8548.605509 | BM33: =BM29+BM32 -> 574.887559 | BP33: =Texts!$B$336 -> EAF crude steel upstream | BR33: 7777.327333 | BS33: 539.8845468 | BV33: =Texts!$B$336 -> EAF crude steel upstream | BX33: 7077.199662 | BY33: 491.2832607 | CB33: =Texts!$B$253&" "&Texts!$B$337 -> Total EAF | CD33: =CD29+CD32 -> 9890.745047 | CE33: =CE29+CE32 -> 653.9715278 | CH33: =Texts!$B$253&" "&Texts!$B$337 -> Total EAF | CJ33: =CJ29+CJ32 -> 9858.647191 | CK33: =CK29+CK32 -> 651.8989671 | CN33: =Texts!$B$336 -> EAF crude steel upstream | CP33: 7862.778141 | CQ33: 545.8163494
B34: =Texts!B253 -> Total | D34: =SUM(D27:D30)-SUM(D31:D33) -> 5719.116828 | E34: =SUM(E27:E30)-SUM(E31:E33) -> 269.9337189 | H34: =Texts!$B$253 -> Total | J34: =SUM(J32:J33) -> 2451.883676 | K34: =SUM(K32:K33) -> 294.6868961 | N34: =Texts!$B$253 -> Total | P34: =SUM(P32:P33) -> 13428.54489 | Q34: =SUM(Q32:Q33) -> 784.1248378 | Z34: =Texts!$B$304 -> Recoveries | AB34: 167.642104 | AC34: 9.932281472 | AF34: =Texts!$B$304 -> Recoveries | AL34: =Texts!$B$325 -> Processing | AN34: =SUM(AN27:AN31)-SUM(AN32:AN33) -> 990.7832012 | AO34: =SUM(AO27:AO31)-SUM(AO32:AO33) -> 100.7712699 | AR34: =Texts!$B$253 -> Total | AT34: =SUM(AT32:AT33) -> 6819.898673 | AU34: =SUM(AU32:AU33) -> 473.3640493 | AX34: =Texts!$B$253&" "&Texts!$B$337 -> Total EAF | AZ34: =AZ30+AZ33 -> 8755.285103 | BA34: =BA30+BA33 -> 584.0898618 | BD34: =Texts!$B$253&" "&Texts!$B$337 -> Total EAF | BF34: =BF30+BF33 -> 9145.706644 | BG34: =BG30+BG33 -> 609.5443846 | BP34: =Texts!$B$253&" "&Texts!$B$337 -> Total EAF | BR34: =BR30+BR33 -> 12104.58116 | BS34: =BS30+BS33 -> 786.3833403 | BV34: =Texts!$B$253&" "&Texts!$B$337 -> Total EAF | BX34: =BX30+BX33 -> 8984.813722 | BY34: =BY30+BY33 -> 597.4812058 | CN34: =Texts!$B$253&" "&Texts!$B$337 -> Total EAF | CP34: =CP30+CP33 -> 14128.16324 | CQ34: =CQ30+CQ33 -> 905.4828693
B35: =Texts!B325 -> Processing | D35: =SUM(D27:D29)-D33 -> 3977.083271 | E35: =SUM(E27:E29)-E33 -> 224.2134546 | Z35: =Texts!$B$325 -> Processing | AB35: 12914.96417 | AC35: 1419.5406 | AF35: =Texts!$B$325 -> Processing | AH35: =SUM(AH27:AH31)-SUM(AH32:AH34) -> 18366.73245 | AI35: 2388.360965 | AL35: =Texts!B339 -> Hot metal upstream | AN35: 16940.99448 | AO35: 1773.616304
Z36: =Texts!$B$306 -> Coke upstream | AB36: 1858.296955 | AC36: 87.70882339 | AF36: =Texts!$B$306 -> Coke upstream | AH36: 1235.497497 | AI36: 58.31362501 | AL36: =Texts!B309 -> Other burden upstream | AN36: 0 | AO36: 0
B37: =Texts!B279 -> Reaction heat | D37: 1742.033557 | Z37: =Texts!$B$308 -> Burden upstream | AB37: 3509.830752 | AC37: 406.7259873 | AF37: =Texts!$B$308 -> Burden upstream | AH37: 2694.163028 | AI37: 193.3500989 | AL37: =Texts!$B$253 -> Total | AN37: =SUM(AN34:AN36) -> 17931.77768 | AO37: =SUM(AO34:AO36) -> 1874.387573
B38: =Texts!B233 -> C Balance | E38: 1.027931667 | Z38: =Texts!$B$253 -> Total | AB38: 18283.09187 | AC38: 1913.97541 | AF38: =Texts!$B$253 -> Total | AH38: =SUM(AH35:AH37) -> 22296.39297 | AI38: 2640.024689 | AL38: =Texts!B312 -> Scrap impact | AN38: =(AN37-AT34)/(1-AM22) -> 13170.54718 | AO38: =(AO37-AU34)/(1-AM22) -> 1660.587414

Sheet Default Values-Units
W1: CO2 | X1: ARP Energy | Z1: ARP CO2
B2: C content, CO2 EF and ncv's | F2: Default Values | L2: Electricity: CO2 equivalent | Q2: Unit conversion US-SI | W2: Process Alloc | X2: Processing | Y2: =AA2 -> Total | Z2: Processing | AA2: =Texts!B253 -> Total
W3: t/t | X3: GJ/t | Y3: GJ/t | Z3: t/t | AA3: t/t
B4: Product code | D4: Stream | F4: C content | G4: Emission Factor | H4: Calorific value | I4: Upstream CO2 | J4: Upstream Energy | L4: Average 2001-2010 | Q4: US Units | R4: SI Units | V4: =Texts!B96 -> Home Coke | W4: 0.39 | X4: 3.977083271 | Y4: 5.719116828 | Z4: 0.2242134546 | AA4: 0.2699337189
V5: =Texts!B54 -> Merchant Sinter | W5: 0.215 | Y5: 0 | Z5: 0 | AA5: 0
M6: Country | N6: g CO2/kWh | V6: =Texts!B55 -> Bell Sinter | W6: 0 | X6: 2.296211329 | Y6: 2.451883676 | Z6: 0.2873393952 | AA6: 0.2946868961
D7: Products | F7: C [t/t] | G7: CO2 [t/t] | M7: European Union | N7: 388.3848905 | Q7: Volume (US) | R7: Volume (SI) | V7: =Texts!B56 -> Pellets | W7: 0.05 | X7: 1.7 | Y7: 1.7 | Z7: 0.115 | AA7: 0.115
C8: Pr-01 | E8: =Texts!B54 -> Merchant Sinter | F8: 0 | G8: =44.01*F8/12.011 -> 0 | M8: Austria | N8: 200.5995625 | Q8: 1 ft3 | R8: 0.02831684659 | S8: m3 | V8: =Texts!B57 -> Gas based DRI | W8: 0.56 | X8: 11.08929928 | Y8: 13.42854489 | Z8: 0.6258817523 | AA8: 0.7841248378
E9: =Texts!B55 -> Bell Sinter | F9: =Sinter_DefC -> 0 | G9: =Sinter_DefEF -> 0 | M9: Belgium | N9: 258.6799805 | Q9: 1 scf | R9: 0.02686162803 | S9: m3N | V9: =Texts!B58 -> Coal based DRI | W9: =(CDRI_PARP_CO2)/1000 -> 0.001768242948 | X9: 15.3157082 | Y9: 15.3157082 | Z9: 1.768242948 | AA9: 1.768242948
C10: Pr-02 | E10: =Texts!B56 -> Pellets | F10: 0 | G10: 0 | M10: Bulgaria | N10: 587.6862872 | Q10: 1 gal | R10: 0.003785412 | S10: m3 | V10: =Texts!B60 -> Blast furnace Hot metal | W10: 1.54 | X10: 12.91496417 | Y10: 18.28309187 | Z10: 1.4195406 | AA10: 1.914125518
C11: Pr-03 | E11: =Texts!B57 -> Gas based DRI | F11: 0.025 | G11: 0.0916035301 | M11: Denmark | N11: 418.8800902 | V11: =Texts!B61 -> Smelting reduction Hot metal | W11: 2.97 | X11: 18.36673245 | Y11: 22.29639297 | Z11: 2.388360965 | AA11: 2.640024689
C12: Pr-04 | E12: =Texts!B58 -> Coal based DRI | F12: 0.002 | G12: 0.007328282408 | M12: Czech Republic | N12: 626.8505829 | Q12: Weight (US) | R12: Weight (SI) | V12: =Texts!B229 -> BOF Crude steel | W12: 0 | X12: 0.9907832012 | Y12: 17.93177768 | Z12: 0.1007712699 | AA12: 1.874387573
C13: Pr-05 | E13: =Texts!B60 -> Blast furnace Hot metal | F13: 0.047 | G13: 0.1722146366 | M13: Estonia | N13: 1033.016175 | Q13: 1 lb | R13: 0.453592 | S13: kg | V13: =Texts!B230 -> EAF Crude steel | W13: 0.065 | X13: 6.696904698 | Y13: 6.819898673 | Z13: 0.4676168748 | AA13: 0.4734220056
C14: Pr-06 | E14: =Texts!B61 -> Smelting reduction Hot metal | F14: 0.047 | G14: =44.01*F14/12.011 -> 0.1722146366 | M14: Finland | N14: 230.1359849 | Q14: 1 nt | R14: 0.907184 | S14: t | V14: =Texts!B74 -> EAF Steel allocation | Y14: =EAF_ARP_En+(Z50*BFHM_ARP_En+Z51*SRHM_ARP_En+Z52*EnEq_CIron+Z53*GDRI_ARP_En+Z54*CDRI_ARP_En)/1000 -> 6.819898673 | AA14: =EAF_ARP_CO2+(Z50*BFHM_ARP_CO2+Z51*SRHM_ARP_CO2+Z52*up_CIron+Z53*GDRI_ARP_CO2+Z54*CDRI_ARP_CO2)/1000 -> 0.4734220056
C15: Pr-07/27 | E15: =Texts!B71 -> BOF Crude steel (Flat) | F15: 0.0004 | G15: 0.001465656482 | M15: France | N15: 72.02865479 | Q15: 1 oz | R15: 28.3495 | S15: g | U15: =Texts!B228 -> ARP values | V15: =Texts!B77 -> Rolled billets | W15: =HR_Alloc -> 0.075 | X15: 1.746965787 | Y15: =IFERROR(('CO2 Indicator'!$BJ14*Y23+'CO2 Indicator'!$BJ15*Y31)/SUM('CO2 Indicator'!$BJ14:$BJ15),0) -> 0 | Z15: 0.09758811955 | AA15: =IFERROR(('CO2 Indicator'!$BJ14*AA23+'CO2 Indicator'!$BJ15*AA31)/SUM('CO2 Indicator'!$BJ14:$BJ15),0) -> 0
C16: Pr-07/27 | E16: =Texts!B72 -> EAF Crude steel (Long) | F16: 0.001 | G16: 0.003664141204 | M16: Germany | N16: 497.4936357 | Q16: 1 grain | R16: 0.06299888889 | S16: g | V16: ="HSM "&Texts!B78 -> HSM Hot rolled coils | W16: 0.075 | X16: 2.097085906 | Y16: =IFERROR(('CO2 Indicator'!$BP14*Y24+'CO2 Indicator'!$BP15*Y32)/SUM('CO2 Indicator'!$BP14:$BP15),0) -> 20.63036071 | Z16: 0.1202420809 | AA16: =IFERROR(('CO2 Indicator'!$BP14*AA24+'CO2 Indicator'!$BP15*AA32)/SUM('CO2 Indicator'!$BP14:$BP15),0) -> 2.057503439
M17: Greece | N17: 765.0560972 | Q17: 1 grain/scf | R17: 2.34531164 | S17: g/m3N | V17: ="CSP "&Texts!B78 -> CSP Hot rolled coils | W17: 0.075 | X17: 1.567363393 | Y17: =IFERROR(('CO2 Indicator'!$BV14*Y25+'CO2 Indicator'!$BV15*Y33)/SUM('CO2 Indicator'!$BV14:$BV15),0) -> 0 | Z17: 0.09026545499 | AA17: =IFERROR(('CO2 Indicator'!$BV14*AA25+'CO2 Indicator'!$BV15*AA33)/SUM('CO2 Indicator'!$BV14:$BV15),0) -> 0
D18: Cond Fuels | F18: C [t/t] | G18: CO2 [t/t] | H18: ncv [GJ/t] | I18: up CO2 [t/t] | J18: up En [MJ/t] | M18: Hungary | N18: 393.6837034 | Q18: 1 lb/scf | R18: 16.88624381 | S18: kg/m3N | V18: =Texts!B79 -> Heavy Plates | W18: 0.075 | X18: 4.32725383 | Y18: =IFERROR(('CO2 Indicator'!$CB$14*Y26+'CO2 Indicator'!$CB$15*Y34)/SUM('CO2 Indicator'!$CB$14:$CB$15),0) -> 0 | Z18: 0.2464987936 | AA18: =IFERROR(('CO2 Indicator'!$CB$14*AA26+'CO2 Indicator'!$CB$15*AA34)/SUM('CO2 Indicator'!$CB$14:$CB$15),0) -> 0
C19: CF-01/03 | E19: Coke | F19: 0.88 | G19: =44.01*F19/12.011 -> 3.224444259 | H19: 30.135 | I19: =Coke_ARP_CO2 -> 0.2699337189 | J19: =Coke_ARP_En -> 5.719116828 | M19: Ireland | N19: 544.5763356 | V19: =Texts!B80 -> Bars & Rods | W19: 0.075 | X19: 1.90761406 | Y19: =IFERROR(('CO2 Indicator'!$CH$14*Y27+'CO2 Indicator'!$CH$15*Y35)/SUM('CO2 Indicator'!$CH$14:$CH$15),0) -> 0 | Z19: 0.1061979451 | AA19: =IFERROR(('CO2 Indicator'!$CH$14*AA27+'CO2 Indicator'!$CH$15*AA35)/SUM('CO2 Indicator'!$CH$14:$CH$15),0) -> 0
C20: CF-02 | E20: =Texts!B99 -> Coke breeze | F20: 0.85 | G20: 3.114520023 | H20: 29.925 | I20: =Coke_ARP_CO2 -> 0.2699337189 | J20: =Coke_ARP_En -> 5.719116828 | M20: Italy | N20: 472.9123055 | Q20: Energy (US) | R20: Energy (SI) | V20: =Texts!B81 -> Sections | W20: 0.075 | X20: 2.580976529 | Y20: =IFERROR(('CO2 Indicator'!$CN$14*Y28+'CO2 Indicator'!$CN$15*Y36)/SUM('CO2 Indicator'!$CN$14:$CN$15),0) -> 0 | Z20: 0.146543861 | AA20: =IFERROR(('CO2 Indicator'!$CN$14*AA28+'CO2 Indicator'!$CN$15*AA36)/SUM('CO2 Indicator'!$CN$14:$CN$15),0) -> 0
C21: CF-03 | E21: =Texts!B100 -> Coking coal | F21: 0.82 | G21: 3.004595787 | H21: 32.23 | M21: Latvia | N21: 204.1883318 | Q21: 1 mmBTU | R21: 1.054349404 | S21: GJ | V21: =Texts!B82 -> Wire Rod | W21: 0.075 | X21: 2.768259514 | Y21: =IFERROR(('CO2 Indicator'!$CT$14*Y29+'CO2 Indicator'!$CT$15*Y37)/SUM('CO2 Indicator'!$CT$14:$CT$15),0) -> 0 | Z21: 0.1595892153 | AA21: =IFERROR(('CO2 Indicator'!$CT$14*AA29+'CO2 Indicator'!$CT$15*AA37)/SUM('CO2 Indicator'!$CT$14:$CT$15),0) -> 0
C22: CF-04 | E22: =Texts!B101 -> Anthracite | F22: 0.79 | G22: 2.894671551 | H22: 29.3 | M22: Lithuania | N22: 206.2198644 | Q22: 1 mBTU/scf | R22: =R21/R9 -> 39.25113561 | S22: MJ/m3N | V22: =Texts!B83 -> Seamless Tubes | W22: 0.075 | X22: 6.265385104 | Y22: =IFERROR(('CO2 Indicator'!$CZ$14*Y30+'CO2 Indicator'!$CZ$15*Y38)/SUM('CO2 Indicator'!$CZ$14:$CZ$15),0) -> 0 | Z22: 0.35966652 | AA22: =IFERROR(('CO2 Indicator'!$CZ$14*AA30+'CO2 Indicator'!$CZ$15*AA38)/SUM('CO2 Indicator'!$CZ$14:$CZ$15),0) -> 0
C23: CF-05 | E23: =Texts!B102 -> DRI coal | F23: 0.79 | G23: 2.894671551 | H23: 29.3 | M23: Luxembourg | N23: 393.4622729 | Q23: 1 mBTU/nt | R23: =R21/R14 -> 1.162222222 | S23: MJ/mt | U23: =Texts!B229 -> BOF Crude steel | V23: =V15 -> Rolled billets | W23: 0.075 | X23: =X15 -> 1.746965787 | Y23: 20.17416389 | Z23: =Z15 -> 0.09758811955 | AA23: 2.023761406
C24: CF-06 | E24: =Texts!B103 -> BF injection Coal | F24: 0.8 | G24: 2.931312963 | H24: 31.14 | M24: Netherlands | N24: 454.4278862 | Q24: 1 BTU/gal | R24: =R21/R10/1000 -> 0.2785296302 | S24: MJ/m3 | V24: =V16 -> HSM Hot rolled coils | W24: 0.075 | X24: =X16 -> 2.097085906 | Y24: 20.63036071 | Z24: 0.1202420809 | AA24: 2.057503439
C25: CF-07 | E25: =Texts!B104 -> Smelting reduction Coal | F25: 0.8 | G25: 2.931312963 | H25: 31.14 | M25: Poland | N25: 823.6497998 | V25: CSP Hot rolled coils | W25: 0.075 | X25: 1.567363393 | Y25: 19.92336655 | Z25: 0.09026545499 | AA25: 2.008996817
C26: CF-08 | E26: =Texts!B105 -> EAF Coal | F26: 0.92 | G26: 3.371009908 | H26: 31.5 | I26: =Coke_ARP_CO2 -> 0.2699337189 | J26: =Coke_ARP_En -> 5.719116828 | M26: Portugal | N26: 420.6597757 | V26: Heavy Plates | W26: 0.075 | X26: 4.32725383 | Y26: 24.77642931 | Z26: 0.2464987936 | AA26: 2.38402699
C27: CF-09 | E27: =Texts!B106 -> Steam coal | F27: 0.65 | G27: 2.381691783 | H27: 25.3 | M27: Romania | N27: 650.0638181 | V27: Bars & Rods | W27: 0.075 | X27: 1.90761406 | Y27: 20.51592146 | Z27: 0.1061979451 | AA27: 2.051302372
C28: CF-10 | E28: =Texts!B107 -> Petroleum Coke | F28: 0.85 | G28: 3.114520023 | H28: 31.935 | M28: Slovakia | N28: 219.7217535 | V28: Sections | W28: 0.075 | X28: 2.580976529 | Y28: 21.80078466 | Z28: 0.146543861 | AA28: 2.155567738
C29: CF-11 | E29: =Texts!B108 -> Heavy oil | F29: 0.865 | G29: 3.169482141 | H29: 39.845 | M29: Slovenia | N29: 351.2564394 | V29: Wire Rod | W29: 0.075 | X29: 2.768259514 | Y29: 18.64298307 | Z29: 0.1595892153 | AA29: 2.108318249
C30: CF-12/13 | E30: =Texts!B109&"/"&Texts!B110 -> Light domestic oil/Diesel oil | F30: 0.845 | G30: 3.096199317 | H30: 42 | M30: Spain | N30: 356.3244128 | V30: Seamless Tubes | W30: 0.075 | X30: 6.265385104 | Y30: 26.93923912 | Z30: 0.35966652 | AA30: 2.520680099
C31: CF-12 | E31: =Texts!B111 -> LPG | F31: 0.8218 | G31: 3.011191241 | H31: 46.03 | M31: Sweden | N31: 23.54909208 | U31: =Texts!B230 -> EAF Crude steel | V31: Rolled billets | W31: 0.075 | X31: 1.746965787 | Y31: 8.755285103 | Z31: 0.09758811955 | AA31: =Z31+EAFCS_ARP_CO2*'Reference plants'!AY5/1000 -> 0.5840898618
C32: CF-13 | E32: =Texts!B112 -> Charcoal | F32: 0.72 | G32: 2.638181667 | H32: 18.8 | M32: United Kingdom | N32: 485.7022523 | V32: HSM Hot rolled coils | W32: 0.075 | X32: 2.097085906 | Y32: 9.145748816 | Z32: 0.1202420809 | AA32: =Z32+EAFCS_ARP_CO2*'Reference plants'!BE5/1000 -> 0.6095443846
C33: CF-16 | E33: =Texts!B113 -> Used Plastics | F33: 0.72 | G33: 2.638181667 | H33: 46 | L33: Other Europe | M33: Other Europe | N33: 320.0836509 | V33: CSP Hot rolled coils | W33: 0.075 | X33: 1.567363393 | Y33: 8.548605509 | Z33: 0.09026545499 | AA33: =Z33+EAFCS_ARP_CO2*'Reference plants'!BK5/1000 -> 0.574887559
C34: CF-17 | E34: =Texts!B114 -> Used Tires | F34: 0.6 | G34: 2.198484722 | H34: 35 | M34: Albania | N34: 22.73168511 | V34: Heavy Plates | W34: 0.075 | X34: 4.32725383 | Y34: 12.10458116 | Z34: 0.2464987936 | AA34: =Z34+EAFCS_ARP_CO2*'Reference plants'!BQ5/1000 -> 0.7863833403
M35: Bosnia Herzegovina | N35: 827.9747876 | V35: Bars & Rods | W35: 0.075 | X35: 1.90761406 | Y35: 8.984813722 | Z35: 0.1061979451 | AA35: =Z35+EAFCS_ARP_CO2*'Reference plants'!BW5/1000 -> 0.5974812058
D36: Gas Fuels | F36: C [kg/m3N] | G36: CO2 [k/m3N] | H36: ncv [MJ/m3N] | I36: CO2 [t/GJ] | M36: Croatia | N36: 410.7520789 | V36: Sections | W36: 0.075 | X36: 2.580976529 | Y36: 9.890745047 | Z36: 0.146543861 | AA36: =Z36+EAFCS_ARP_CO2*'Reference plants'!CC5/1000 -> 0.6539715278
C37: GF-01 | E37: =Texts!B118 -> Coke Oven Gas | F37: 0.239 | G37: =44.01*F37/12.011 -> 0.8757297477 | H37: 19.685 | I37: =COG_DefEF/COG_Defncv -> 0.04448716016 | M37: Macedonia | N37: 818.9368355 | V37: Wire Rod | W37: 0.075 | X37: 2.768259514 | Y37: 9.858647191 | Z37: 0.1595892153 | AA37: =Z37+EAFCS_ARP_CO2*'Reference plants'!CI5/1000 -> 0.6517879583
C38: GF-02 | E38: =Texts!B119 -> Blast Furnace Gas | F38: 0.239 | G38: =44.01*F38/12.011 -> 0.8757297477 | H38: 3.185 | I38: =BFG_DefEF/BFG_Defncv -> 0.2749543949 | M38: Montenegro | N38: 373.0551774 | V38: Seamless Tubes | W38: 0.075 | X38: 6.265385104 | Y38: 14.12816324 | Z38: 0.35966652 | AA38: =Z38+EAFCS_ARP_CO2*'Reference plants'!CO5/1000 -> 0.9054828693
C39: GF-03 | E39: =Texts!B120 -> Smelting Reduction Gas | F39: 0.4287 | G39: =44.01*F39/12.011 -> 1.570817334 | H39: 7.66 | I39: =SRG_DefEF/SRG_Defncv -> 0.2050675371 | M39: Norway | N39: 4.880259384 | U39: Impacts | V39: CDQ | W39: 0 | X39: 1.4 | Y39: 1.4 | Z39: =X39*HPSteam_upCO2 -> 0.2982051934 | AA39: =Z39 -> 0.2982051934
C40: GF-04 | E40: =Texts!B121 -> BOF Gas | F40: 0.4662 | G40: =44.01*F40/12.011 -> 1.708222629 | H40: 9.19 | I40: =BOFG_DefEF/BOFG_Defncv -> 0.1858784145 | M40: Serbia | N40: 935.3814515 | V40: =Texts!B162 -> Ironmaking slag | W40: ='Reference plants'!$AA$21 -> 285.9444047 | X40: 435 | Y40: 2.175 | AA40: 0.55
C41: GF-05 | E41: =Texts!B122 -> Natural Gas | F41: 0.5495 | G41: =44.01*F41/12.011 -> 2.013445592 | H41: 35.92 | I41: =NG_DefEF/NG_Defncv -> 0.05605360778 | M41: Switzerland | N41: 28.29748796 | V41: =Texts!B169 -> DRI at blast furnace | Y41: 13.1 | AA41: 1.225
M42: Turkey | N42: 475.578809 | V42: =Texts!B170 -> Scrap at blast furnace | Y42: 13.25 | AA42: 1.27
D43: Materials | F43: C [t/t] | G43: CO2 [t/t] | H43: ncv [GJ/t] | I43: up CO2 [t/t] | J43: up En [GJ/t] | L43: C.I.S. | M43: C.I.S. | N43: 675.1818823 | V43: =Texts!B171 -> Scrap ratio at BOF | W43: ='Reference plants'!$AM$22 -> 0.1563084773 | Y43: =(BOF_ARP_En-EAF_ARP_En)/(1-BOFScrap_Ref) -> 13.17054718 | AA43: =(BOF_ARP_CO2-EAF_ARP_CO2)/(1-BOFScrap_Ref) -> 1.660518721
C44: Ma-01 | E44: =Texts!B137 -> EAF Electrodes | F44: 0.999 | G44: =44.01*F44/12.011 -> 3.660477063 | H44: 32.76 | M44: Azerbaijan | N44: 1040.553537 | V44: =Texts!B172 -> Hot metal ratio at EAF | Y44: =-Elec_upEn*0.35 -> -3.43 | AA44: =Y44/Elec_upEn*N$117/1000 -> -0.2032171441
C45: Ma-02 | E45: =Texts!B138 -> Ferro Chromium | F45: 0.065 | G45: 0.2381691783 | M45: Belarus | N45: 596.7262988 | V45: =Texts!B173 -> DRI ratio at EAF | Y45: =Elec_upEn*0.217 -> 2.1266 | AA45: =Y45/Elec_upEn*N$117/1000 -> 0.1259946293
C46: Ma-03 | E46: =Texts!B139 -> Ferro Manganese | F46: 0.075 | G46: 0.2748105903 | M46: Georgia | N46: 107.126995
C47: Ma-04 | E47: =Texts!B140 -> Pre-consumer scrap | F47: 0.001 | G47: 0.003664141204 | M47: Kazakhstan | N47: 998.7175409 | W47: BOF | Y47: EAF
C48: Ma-05 | E48: =Texts!B142 -> Limestone | F48: 0.12 | G48: 0.4396969445 | M48: Moldova | N48: 693.635849 | W48: Ratio | X48: kg/t steel | Y48: Ratio | Z48: kg/t steel
C49: Ma-06 | E49: =Texts!B143 -> Burnt Lime | F49: 0.0065 | G49: 0.02381691783 | I49: 1.05 | J49: 4.1 | M49: Russia | N49: 697.633315 | V49: =Texts!B174 -> Scrap ratio | W49: =IFERROR(X49/SUM(X$49:X$54),0) -> 0.09570075388 | X49: =IFERROR(1000*(SUM('CO2 Indicator'!AX69:AX70,'CO2 Indicator'!AX93)-'CO2 Indicator'!BA93)/BOF_Prod,0) -> 103.2158641 | Y49: =IFERROR(Z49/SUM(Z$49:Z$54),0) -> 0 | Z49: =IFERROR(1000*(SUM('CO2 Indicator'!BD69:BD70,'CO2 Indicator'!BD93)-'CO2 Indicator'!BG93)/EAF_Prod,0) -> 0
C50: Ma-07 | E50: =Texts!B144 -> Dolomite | F50: 0.13 | G50: 0.4763383565 | M50: Ukraine | N50: 435.6376327 | V50: =Texts!B175 -> BF hot metal ratio | W50: 0.9042992461 | X50: =IFERROR(1000*'CO2 Indicator'!AX11/BOF_Prod,0) -> 975.3113145 | Y50: 0 | Z50: =IFERROR(1000*'CO2 Indicator'!BD11/EAF_Prod,0) -> 0
C51: Ma-08 | E51: =Texts!B145 -> Dolime | F51: 0.0065 | G51: 0.02381691783 | I51: 1.05 | J51: 4.1 | M51: Uzbekistan | N51: 782.0115211 | V51: =Texts!B176 -> SR hot metal ratio | W51: 0 | X51: =IFERROR(1000*'CO2 Indicator'!AX12/BOF_Prod,0) -> 0 | Y51: 0 | Z51: =IFERROR(1000*'CO2 Indicator'!BD12/EAF_Prod,0) -> 0
C52: Ma-09 | E52: =Texts!B146 -> Fine Iron Ore | F52: 0.0005 | G52: 0.001832070602 | L52: North America | M52: North America | N52: 515.2318958 | V52: =Texts!B177 -> Cold iron ratio | W52: 0 | X52: =IFERROR(1000*'CO2 Indicator'!AX13/BOF_Prod,0) -> 0 | Y52: 0 | Z52: =IFERROR(1000*'CO2 Indicator'!BD13/EAF_Prod,0) -> 0
C53: Ma-10 | E53: =Texts!B147 -> Ground pellet feed | F53: 0.0005 | G53: =44.01*F53/12.011 -> 0.001832070602 | I53: =0.04*N117/1000 -> 0.02322481647 | J53: =0.04*Elec_upEn -> 0.392 | M53: Canada | N53: 203.4569083 | V53: =Texts!B178 -> Gas DRI ratio | W53: 0 | X53: =IFERROR(1000*('CO2 Indicator'!AX9+(GDRI_Prod>0)*'CO2 Indicator'!AX87)/BOF_Prod,0) -> 0 | Y53: 0 | Z53: =IFERROR(1000*('CO2 Indicator'!BD9+(GDRI_Prod>0)*'CO2 Indicator'!BD87)/EAF_Prod,0) -> 0
C54: Ma-11 | E54: =Texts!B148 -> Lump Ore | F54: 0.0015 | G54: 0.005496211806 | M54: Cuba | N54: 819.9323983 | V54: =Texts!B179 -> Coal DRI ratio | W54: 0 | X54: =IFERROR(1000*('CO2 Indicator'!AX10+(CDRI_Prod>0)*'CO2 Indicator'!AX86)/BOF_Prod,0) -> 0 | Y54: 0 | Z54: =IFERROR(1000*('CO2 Indicator'!BD10+(CDRI_Prod>0)*'CO2 Indicator'!BD86)/EAF_Prod,0) -> 0
M55: Dominican Republic | N55: 651.3140331
D56: Residues | F56: C [t/t] | G56: CO2 [t/t] | H56: ncv [GJ/t] | M56: El Salvador | N56: 299.5822079
C57: Res-01 | E57: =Texts!B152 -> Tar | F57: 0.925 | G57: =44.01*F57/12.011 -> 3.389330614 | H57: 37.67 | M57: Guatemala | N57: 359.5786925
C58: Res-02 | E58: =Texts!B153 -> Benzole | F58: 0.9185 | G58: =44.01*F58/12.011 -> 3.365513696 | H58: =(46040)/1000 -> 46.04 | M58: Honduras | N58: 362.5002043
C59: Res-03 | E59: =Texts!B154 -> Naphtalenic oil | F59: 0.845 | G59: =44.01*F59/12.011 -> 3.096199317 | H59: 42 | M59: Mexico | N59: 495.8426337
C60: Res-04 | E60: =Texts!B155 -> CDQ Dust | F60: 0.88 | G60: =44.01*F60/12.011 -> 3.224444259 | H60: =Coke_Defncv -> 30.135 | M60: Trinidad & Tobago | N60: 733.6873121
C61: Res-05 | E61: =Texts!B157 -> DRI screening fines | F61: 0.02 | G61: 0.07328282408 | M61: United States | N61: 561.8321659
C62: Res-06 | E62: =Texts!B158 -> BF gas dust | F62: 0.4 | G62: 1.465656482 | H62: 13.7 | L62: South America | M62: South America | N62: 161.2533093
C63: Res-07 | E63: =Texts!B159 -> BF gas sludge | F63: 0.4 | G63: 1.465656482 | H63: 13.7 | M63: Argentina | N63: 331.8180564
C64: Res-08 | E64: =Texts!B160 -> SR gas dust | F64: 0.4 | G64: 1.465656482 | H64: 13.7 | M64: Brazil | N64: 82.86592924
C65: Res-09 | E65: =Texts!B161 -> SR gas sludge | F65: 0.4 | G65: 1.465656482 | H65: 13.7 | M65: Chile | N65: 345.315562
C66: Res-13 | E66: =Texts!B165 -> Home scrap | F66: =Scrap_DefC -> 0.001 | G66: 0.003664141204 | M66: Colombia | N66: 142.9153618
C67: Res-14 | E67: =Texts!B166 -> Pig iron scrap | F67: 0.042 | G67: =44.01*F67/12.011 -> 0.1538939306 | M67: Ecuador | N67: 319.9185077
H68: Elec Equiv | I68: up CO2 | J68: up En | M68: Paraguay | N68: 0
D69: =Texts!C125 -> Utilities | H69: kWh/m3N | I69: t/unit | J69: GJ/unit | M69: Peru | N69: 208.7473632
C70: Ut-01 | E70: =Texts!C126 -> Electricity | J70: 9.8 | M70: Uruguay | N70: 120.8718743
C71: Ut-02 | E71: =Texts!C127 -> High Pressure Steam | I71: =J71*I$41 -> 0.2130037096 | J71: 3.8 | M71: Venezuela | N71: 228.9127316
C72: Ut-03 | E72: =Texts!C128 -> Low Pressure Steam | I72: =J72*I$41 -> 0.1939454829 | J72: 3.46 | M72: Africa | N72: 633.6100289
C73: Ut-04 | E73: =Texts!C129 -> Hot water | I73: 0.04764556661 | J73: 0.85 | M73: Algeria | N73: 609.6075815
C74: Ut-05 | E74: =Texts!C130 -> High Pressure Oxygen | H74: 0.71 | J74: =J$70*H74 -> 6.958 | M74: Angola | N74: 378.334008
C75: Ut-06 | E75: =Texts!C131 -> Low Pressure Oxygen | H75: 0.5 | J75: =J$70*H75 -> 4.9 | M75: Egypt | N75: 447.0681387
C76: Ut-07 | E76: =Texts!C132 -> Nitrogen | H76: 0.2 | J76: =J$70*H76 -> 1.96 | M76: Ghana | N76: 218.1851632
C77: Ut-08 | E77: =Texts!C133 -> Argon | H77: 0.2 | J77: =J$70*H77 -> 1.96 | M77: Kenya | N77: 263.6552347
C78: Ut-09 | E78: =Texts!C134 -> Compressed air | H78: 0.11 | J78: =J$70*H78 -> 1.078 | M78: Libya | N78: 902.3035539
C79: Ut-10 | E79: =Texts!C135 -> Hydrogen | M79: Mauritania | N79: 461.25968
M80: Morocco | N80: 781.6378006
M81: Nigeria | N81: 372.9997113
M82: South Africa | N82: 866.4078934
M83: Tunisia | N83: 498.4211901
L84: South America | M84: Uganda | N84: 461.25968
M85: Zaire | N85: 2.022456292
M86: Zimbabwe | N86: 647.3802012
M87: Middle East | N87: 684.4212084
M88: Iran | N88: 558.6466201
M89: Israel | N89: 757.6160705
M90: Jordan | N90: 627.7881297
M91: Qatar | N91: 596.6104878
M92: Saudi Arabia | N92: 745.1786941
M93: Syria | N93: 605.9096878
M94: United Arab Emirates | N94: 738.7778177
M95: Asia | N95: 709.8778512
L96: Middle East | M96: Bangladesh | N96: 576.6938499
M97: China | N97: 825.5586688
M98: Hong Kong | N98: 752.2426232
M99: India | N99: 926.4267033
M100: Indonesia | N100: 723.4715197
M101: Japan | N101: 428.0980204
M102: Korea | N102: 500.2287957
M103: Malaysia | N103: 609.9839165
M104: Mongolia | N104: 1469.17522
M105: Myanmar | N105: 355.7542977
M106: North Korea | N106: 517.9362547
M107: Pakistan | N107: 422.9296437
M108: Philippines | N108: 463.0577595
M109: Singapore | N109: 557.1290735
M110: Sri Lanka | N110: 429.6996247
M111: Taiwan (China) | N111: 797.4860378
M112: Thailand | N112: 532.2390081
M113: Vietnam | N113: 417.8645538
M114: Oceania | N114: 767.5300052
M115: Australia | N115: 870.8115552
M116: New Zealand | N116: 198.4373066
M117: World | N117: 580.6204117

Sheet Data checks
A1: =Texts!B10 -> Coke plant | B1: =Texts!$B$183 -> Unit | C1: =Texts!$B$294 -> Value | D1: Min | E1: Max | G1: =Texts!B15 -> Blast Furnace plant | H1: =Texts!$B$183 -> Unit | I1: =Texts!$B$294 -> Value | J1: Min | K1: Max | M1: =Texts!B17 -> BOF shop | N1: =Texts!$B$183 -> Unit | O1: =Texts!$B$294 -> Value | P1: Min | Q1: Max | S1: =Texts!B24 -> Cogging mill | T1: =Texts!$B$183 -> Unit | U1: =Texts!$B$294 -> Value | V1: Min | W1: Max | Z1: C | AA1: =Texts!B189 -> ncv | AB1: EF | AC1: Min | AD1: Max | AE1: =Texts!B190 -> Ash | AF1: =Texts!B191 -> Volatiles | AG1: C
A2: =Texts!B100 -> Coking coal | B2: kg/t | C2: ='CO2 Indicator spec'!H29 -> 1267.494364 | D2: =1220*(Coke_Prod>0) -> 1220 | E2: =1320*(Coke_Prod>0) -> 1320 | G2: =Texts!B286 -> Coke | H2: MJ/t | I2: =SUM('Energy Indicator spec'!AM25:AM28) -> 8700.335625 | M2: =Texts!B59 -> Hot metal (BF & SR) | N2: kg/t | O2: =SUM('CO2 Indicator spec'!AX11:AX12,'CO2 Indicator spec'!AX94) -> 975.3113145 | S2: =M18 -> Crude steel | T2: kg/t | U2: =IFERROR((Products!AL42+Products!AR42)/Products!AW42,0) -> 0 | Y2: =Texts!B96 -> Home Coke | Z2: =HomeCoke_C -> 0.88 | AA2: =HomeCoke_ncv -> 30.135 | AB2: =IF((AA2>0),44.01*Z2/(12.001*AA2),0) -> 0.1070891346 | AC2: =(AA2>0)*0.1 -> 0.1 | AD2: =(AA2>0)*0.11 -> 0.11 | AE2: =HomeCoke_Ash -> 0 | AF2: =HomeCoke_Vol -> 0 | AG2: =(AE2>0)*(AF2>0)*(1-AE2-0.047*AF2) -> 0
A3: =Texts!B118 -> Coke Oven Gas | B3: MJ/t | C3: ='Energy Indicator spec'!K47 -> 7652.189661 | D3: =7500*(Coke_Prod>0) -> 7500 | E3: =8500*(Coke_Prod>0) -> 8500 | G3: =Texts!B287 -> Injections | H3: MJ/t | I3: =SUM('Energy Indicator spec'!AM29:AM37) -> 5791.980842 | M3: =Texts!B292 -> DRI | N3: kg/t | O3: =SUM('CO2 Indicator spec'!AX9:AX10,'CO2 Indicator spec'!AX86) -> 0 | S3: =M19 -> Scrap | T3: kg/t | U3: =IFERROR(Residues!AN42/Products!AW42,0) -> 0 | Y3: =Texts!B97 -> Purchased coke | Z3: =PurchCoke_C -> 0.8535443768 | AA3: =PurchCoke_ncv -> 30.135 | AB3: =IF((AA3>0),44.01*Z3/(12.001*AA3),0) -> 0.1038696917 | AC3: =(AA3>0)*0.1 -> 0.1 | AD3: =(AA3>0)*0.11 -> 0.11 | AE3: =PurchCoke_Ash -> 0 | AF3: =PurchCoke_Vol -> 0 | AG3: =(AE3>0)*(AF3>0)*(1-AE3-0.047*AF3) -> 0
A4: =Texts!B279 -> Reaction heat | B4: MJ/t | C4: ='Energy Indicator spec'!I29-SUM('Energy Indicator spec'!L25,'Energy Indicator spec'!L47,'Energy Indicator spec'!L81:L85) -> 1650.996112 | D4: =1000*(Coke_Prod>0) -> 1000 | G4: =Texts!B119 -> Blast Furnace Gas | H4: MJ/t | I4: ='Energy Indicator spec'!AO48 -> 4556.509144 | M4: =Texts!B291 -> Net scrap use | N4: kg/t | O4: =SUM('CO2 Indicator spec'!AX69:AX70,'CO2 Indicator spec'!AX93)-'CO2 Indicator spec'!BA93 -> 103.2158641 | S4: Net use | T4: kg/t | U4: =U2-U3 -> 0 | V4: =1005*(U2>0) -> 0 | W4: =1030*(U2>0) -> 0 | Y4: =Texts!B98 -> Purchased nut coke | Z4: =NutCoke_C -> 0 | AA4: =NutCoke_ncv -> 0 | AB4: 0 | AC4: =(AA4>0)*0.1 -> 0 | AD4: =(AA4>0)*0.11 -> 0 | AE4: =NutCoke_Ash -> 0 | AF4: =NutCoke_Vol -> 0 | AG4: 0
A5: =Texts!B280 -> Carbon gap | B5: kg/t | C5: =12.011*('CO2 Indicator spec'!I29-SUM('CO2 Indicator spec'!L25,'CO2 Indicator spec'!L47,'CO2 Indicator spec'!L81:L85))/44.01 -> 26.45887911 | D5: =5*(Coke_Prod>0) -> 5 | G5: =Texts!B284 -> Dust & Sludge | H5: MJ/t | I5: =SUM('Energy Indicator spec'!AP87:AP88) -> 278.2005864 | M5: =Texts!B283 -> Ores & Pellets | N5: kg/t | O5: =SUM('CO2 Indicator spec'!AX8,'CO2 Indicator spec'!AX75:AX77) -> 23.50520488 | Y5: =Texts!B99 -> Coke breeze | Z5: =Breeze_C -> 0 | AA5: =Breeze_ncv -> 0 | AB5: 0 | AC5: =(AA5>0)*0.1 -> 0 | AD5: =(AA5>0)*0.11 -> 0 | AE5: =Breeze_Ash -> 0 | AF5: =Breeze_Vol -> 0 | AG5: 0
A6: =Texts!B233 -> C Balance | C6: ='CO2 Indicator'!K100 -> 1.027931667 | D6: =1*(Coke_Prod>0) -> 1 | E6: =1.05*(Coke_Prod>0) -> 1.05 | G6: =Texts!B288 -> Energy balance gap | H6: MJ/t | I6: =0.97*((SUM(I2:I3)-I5))/0.9-I4-2.03*I12 -> 10201.31868 | J6: =9800*(BFHM_Prod>0) -> 9800 | K6: =11000*(BFHM_Prod>0) -> 11000 | M6: =Texts!B289 -> Iron input | N6: kg/t | O6: =0.945*O2+0.93*O3+O4+0.65*O5 -> 1040.163439 | P6: =1015*(BOF_Prod>0) -> 1015 | Q6: =1100*(BOF_Prod>0) -> 1100 | S6: =Texts!B25 -> Billet Mill | T6: =Texts!$B$183 -> Unit | U6: =Texts!$B$294 -> Value | V6: Min | W6: Max | Y6: =Texts!B100 -> Coking coal | Z6: =CokingCoal_C -> 0.8198633795 | AA6: =CokingCoal_ncv -> 32.13 | AB6: 0.09357604714 | AC6: =(AA6>0)*0.09 -> 0.09 | AD6: =(AA6>0)*0.1 -> 0.1 | AE6: =CokingCoal_Ash -> 0 | AF6: =CokingCoal_vol -> 0 | AG6: 0
G7: =Texts!B233 -> C Balance | I7: ='CO2 Indicator'!AO100 -> 1.044681091 | J7: =0.98*(BFHM_Prod>0) -> 0.98 | K7: =1.02*(BFHM_Prod>0) -> 1.02 | M7: Coke | N7: kg/t | O7: =SUM('CO2 Indicator spec'!AX25:AX28) -> 0 | S7: =S2 -> Crude steel | T7: kg/t | U7: =SUM('CO2 Indicator spec'!BJ14:BJ15) -> 0 | Y7: =Texts!B101 -> Anthracite | Z7: =Anthracite_C -> 0.8447647598 | AA7: =Anthracite_ncv -> 30 | AB7: 0.1032638866 | AC7: =(AA7>0)*0.09 -> 0.09 | AD7: =(AA7>0)*0.1 -> 0.1 | AE7: =Anthracite_Ash -> 0 | AF7: =Anthracite_Vol -> 0 | AG7: 0
A8: =Texts!B11 -> Sinter plant | B8: =Texts!$B$183 -> Unit | C8: =Texts!$B$294 -> Value | D8: Min | E8: Max | G8: =Texts!B55 -> Bell Sinter | H8: kg/t | I8: ='CO2 Indicator spec'!AL7 -> 1266.383 | M8: =Texts!B121 -> BOF Gas | N8: MJ/t | O8: ='Energy Indicator spec'!BB50 -> 706.5138956 | Q8: =0.9*(BOF_Prod>0)*(0.045*O2+0.88*O7)*'Gas fuels'!M6/'Gas fuels'!M5 -> 793.8694353 | S8: =S3 -> Scrap | T8: kg/t | U8: ='CO2 Indicator spec'!BM$93 -> 0 | Y8: =Texts!B102 -> DRI coal | Z8: =DRICoal_C -> 0 | AA8: =DRICoal_ncv -> 0 | AB8: 0 | AC8: 0 | AD8: 0 | AE8: =DRICoal_Ash -> 0 | AF8: =DRICoal_Vol -> 0 | AG8: 0
A9: =Texts!B281 -> Solid fuels | B9: kg/t | C9: =IFERROR(1000*SUM('CO2 Indicator spec'!N25:N36)/'CO2 Indicator spec'!Q$6,0) -> 56.6942694 | G9: =Texts!B283 -> Ores & Pellets | H9: kg/t | I9: ='CO2 Indicator spec'!AL8+SUM('CO2 Indicator spec'!AL75:AL77) -> 335.8863105 | S9: Net use | T9: kg/t | U9: =U7-U8 -> 0 | V9: =1005*(U7>0) -> 0 | W9: =1030*(U7>0) -> 0 | Y9: =Texts!B103 -> BF injection Coal | Z9: =PCICoal_C -> 0.82630888 | AA9: =PCICoal_ncv -> 31.23 | AB9: 0.09702962849 | AC9: 0.09 | AD9: 0.1 | AE9: =PCICoal_Ash -> 0 | AF9: =PCICoal_Vol -> 0 | AG9: 0
A10: =Texts!B282 -> Carbonated fluxes | B10: kg/t | C10: =IFERROR(1000*SUM('CO2 Indicator spec'!N71,'CO2 Indicator spec'!N73)/'CO2 Indicator spec'!Q$6,0) -> 154.1667506 | D10: =100*(Bell_Sinter_Prod>0) -> 100 | E10: =180*(Bell_Sinter_Prod>0) -> 180 | G10: =Texts!B164 -> Scrap | H10: kg/t | I10: =SUM('CO2 Indicator spec'!AL69:AL70,'CO2 Indicator spec'!AL93) -> 0 | M10: =Texts!B19 -> EAF shop | N10: =Texts!$B$183 -> Unit | O10: =Texts!$B$294 -> Value | P10: Min | Q10: Max | Y10: =Texts!B104 -> Smelting reduction Coal | Z10: =SRCoal_C -> 0 | AA10: =SRCoal_ncv -> 0 | AB10: 0 | AC10: 0 | AD10: 0 | AE10: =SRCoal_Ash -> 0 | AF10: =SRCoal_Vol -> 0 | AG10: 0
A11: =Texts!B283 -> Ores & Pellets | B11: kg/t | C11: =IFERROR(1000*SUM('CO2 Indicator spec'!N8,'CO2 Indicator spec'!N75:N77)/'CO2 Indicator spec'!Q6,0) -> 844.5763825 | G11: =Texts!B289 -> Iron input | H11: kg/t | I11: =0.58*I8+0.64*I9+I10 -> 949.4693787 | J11: =940*(BFHM_Prod>0) -> 940 | K11: =960*(BFHM_Prod>0) -> 960 | M11: =M2 -> Hot metal (BF & SR) | N11: kg/t | O11: =SUM('CO2 Indicator spec'!BD11:BD12,'CO2 Indicator spec'!BD94) -> 0 | S11: =Texts!B26 -> Hot Strip Mill | T11: =Texts!$B$183 -> Unit | U11: =Texts!$B$294 -> Value | V11: Min | W11: Max | Y11: =Texts!B105 -> EAF Coal | Z11: =EAFCoal_C -> 0 | AA11: =EAFCoal_ncv -> 0 | AB11: 0 | AC11: =(AA11>0)*0.1 -> 0 | AD11: =(AA11>0)*0.11 -> 0 | AE11: =EAFCoal_Ash -> 0 | AF11: =EAFCoal_Vol -> 0 | AG11: 0
A12: =Texts!B284 -> Dust & Sludge | B12: kg/t | C12: =IFERROR(1000*SUM('CO2 Indicator spec'!N87:N90)/'CO2 Indicator spec'!Q6,0) -> 13.88491462 | G12: =Texts!B162 -> Ironmaking slag | H12: kg/t | I12: ='CO2 Indicator spec'!AO91 -> 276.7637472 | M12: =M3 -> DRI | N12: kg/t | O12: =SUM('CO2 Indicator spec'!BD9:BD10,'CO2 Indicator spec'!BD86) -> 0 | S12: =S7 -> Crude steel | T12: kg/t | U12: =SUM('CO2 Indicator spec'!BP14:BP15) -> 1030.48859 | Y12: =Texts!B106 -> Steam coal | Z12: =SteamCoal_C -> 0 | AA12: =SteamCoal_ncv -> 0 | AB12: 0 | AC12: 0 | AD12: =(AA12>0)*0.1 -> 0 | AE12: =SteamCoal_Ash -> 0 | AF12: =SteamCoal_Vol -> 0 | AG12: 0
A13: =Texts!B285 -> Mass balance | B13: kg/t | C13: =0.1*C9+0.56*C10+C11+0.6*C12 -> 944.9101385 | D13: =980*(Bell_Sinter_Prod>0) -> 980 | E13: =1020*(Bell_Sinter_Prod>0) -> 1020 | G13: =Texts!B290 -> Electricity & Steam | H13: MJ/t | I13: =SUM('Energy Indicator spec'!AN55:AN57) -> 1006.554878 | J13: =940*(BFHM_Prod>0) -> 940 | M13: =M4 -> Net scrap use | N13: kg/t | O13: =SUM('CO2 Indicator spec'!BD69:BD70,'CO2 Indicator spec'!BD93)-'CO2 Indicator spec'!BG93 -> 0 | S13: =S8 -> Scrap | T13: kg/t | U13: ='CO2 Indicator spec'!BS$93 -> 19.28165231 | Y13: =Texts!B107 -> Petroleum Coke | Z13: =PetCoke_C -> 0 | AA13: =PetCoke_ncv -> 0 | AB13: 0 | AC13: =(AA13>0)*0.1 -> 0 | AD13: =(AA13>0)*0.11 -> 0 | AE13: =PetCoke_Ash -> 0 | AF13: =PetCoke_Vol -> 0
M14: =M5 -> Ores & Pellets | N14: kg/t | O14: =SUM('CO2 Indicator spec'!BD75:BD77) -> 0 | S14: Net use | T14: kg/t | U14: =U12-U13 -> 1011.206937 | V14: =1005*(U12>0) -> 1005 | W14: =1030*(U12>0) -> 1030 | Y14: =Texts!B108 -> Heavy oil | Z14: =HFO_C -> 0 | AA14: =HFO_ncv -> 0 | AB14: 0 | AC14: =(AA14>0)*0.07 -> 0 | AD14: =(AA14>0)*0.08 -> 0
A15: =Texts!B13 -> Gas based DRI plant | B15: =Texts!$B$183 -> Unit | C15: =Texts!$B$294 -> Value | D15: Min | E15: Max | G15: =Texts!B16 -> Smelting Reduction plant | H15: =Texts!$B$183 -> Unit | I15: =Texts!$B$294 -> Value | J15: Min | K15: Max | M15: =M6 -> Iron input | N15: kg/t | O15: =0.945*O11+0.93*O12+O13+0.65*O14 -> 0 | P15: =1015*(EAF_Prod>0) -> 0 | Q15: =1100*(EAF_Prod>0) -> 0 | Y15: =Texts!B109 -> Light domestic oil | Z15: =LDO_C -> 0.7165 | AA15: =LDO_ncv -> 35.685 | AB15: 0.073631632 | AC15: =(AA15>0)*0.07 -> 0.07 | AD15: =(AA15>0)*0.08 -> 0.08
A16: =A11 -> Ores & Pellets | B16: kg/t | C16: =SUM('CO2 Indicator spec'!Z8,'CO2 Indicator spec'!Z75:Z77) -> 0 | D16: =1400*(GDRI_Prod>0) -> 0 | E16: =1500*(GDRI_Prod>0) -> 0 | G16: =G2 -> Coke | H16: MJ/t | I16: =SUM('Energy Indicator spec'!AS25:AS28) -> 0 | S16: =Texts!B27 -> Compact Strip Mill | T16: =Texts!$B$183 -> Unit | U16: =Texts!$B$294 -> Value | V16: Min | W16: Max | Y16: =Texts!B110 -> Diesel oil | Z16: =DO_C -> 0 | AA16: =DO_ncv -> 0 | AB16: =IF((AA16>0),44.01*Z16/(12.001*AA16),0) -> 0 | AC16: 0 | AD16: 0
G17: =G3 -> Injections | H17: MJ/t | I17: =SUM('Energy Indicator spec'!AS29:AS37) -> 0 | M17: =Texts!B245 -> Hot rolling mills | N17: =Texts!$B$183 -> Unit | O17: =Texts!$B$294 -> Value | P17: Min | Q17: Max | S17: =S12 -> Crude steel | T17: kg/t | U17: =SUM('CO2 Indicator spec'!BV14:BV15) -> 0 | Y17: =Texts!B158 -> BF gas dust | Z17: =BFDust_C -> 0.4 | AA17: =BFDust_ncv -> 15.068 | AB17: =IF((AA17>0),44.01*Z17/(12.001*AA17),0) -> 0.09735052828 | AC17: =(AA17>0)*0.1 -> 0.1 | AD17: =(AA17>0)*0.11 -> 0.11
A18: =Texts!B14 -> Coal based DRI plant | B18: =Texts!$B$183 -> Unit | C18: =Texts!$B$294 -> Value | D18: Min | E18: Max | G18: =Texts!B120 -> Smelting Reduction Gas | H18: MJ/t | I18: ='Energy Indicator spec'!AV49 -> 0 | M18: =Texts!B231 -> Crude steel | N18: kg/t | O18: =SUM('CO2 Indicator spec'!DF14:DF16) -> 1030.48859 | S18: =S13 -> Scrap | T18: kg/t | U18: ='CO2 Indicator spec'!BY$93 -> 0 | Y18: =Texts!B159 -> BF gas sludge | Z18: =BFSludge_C -> 0.4 | AA18: =BFSludge_ncv -> 14.963 | AB18: 0.09803366706 | AC18: =(AA18>0)*0.1 -> 0.1 | AD18: 0.11
A19: =A11 -> Ores & Pellets | B19: kg/t | C19: =SUM('CO2 Indicator spec'!AF8,'CO2 Indicator spec'!AF75:AF77) -> 0 | D19: =1400*(CDRI_Prod>0) -> 0 | E19: =1500*(CDRI_Prod>0) -> 0 | G19: =G5 -> Dust & Sludge | H19: MJ/t | I19: =SUM('Energy Indicator spec'!AV87:AV90) -> 0 | M19: =Texts!B164 -> Scrap | N19: kg/t | O19: ='CO2 Indicator spec'!DI93 -> 19.28165231 | S19: Net use | T19: kg/t | U19: =U17-U18 -> 0 | V19: =1005*(U17>0) -> 0 | W19: =1030*(U17>0) -> 0 | Y19: =Texts!B160 -> SR gas dust | Z19: =SRDust_C -> 0 | AA19: =SRDust_ncv -> 0 | AB19: 0 | AC19: =(AA19>0)*0.1 -> 0 | AD19: 0
G20: =G6 -> Energy balance gap | H20: MJ/t | I20: =0.97*((SUM(I16:I17)-I19))-I18-2.03*I25 -> 0 | J20: =9800*(SRHM_Prod>0) -> 0 | K20: =11000*(SRHM_Prod>0) -> 0 | M20: =Texts!B210 -> Net use | N20: kg/t | O20: =O18-O19 -> 1011.206937 | P20: =1005*(HR_Prod>0) -> 1005 | Q20: =1030*(HR_Prod>0) -> 1030 | Y20: =Texts!B161 -> SR gas sludge | Z20: =SRSludge_C -> 0 | AA20: =SRSludge_ncv -> 0 | AB20: 0 | AC20: =(AA20>0)*0.1 -> 0 | AD20: 0
G21: =G7 -> C Balance | I21: ='CO2 Indicator'!AU100 -> 0 | J21: =0.98*(SRHM_Prod>0) -> 0 | K21: =1.02*(SRHM_Prod>0) -> 0 | S21: =Texts!B28 -> Plate Mill | T21: =Texts!$B$183 -> Unit | U21: =Texts!$B$294 -> Value | V21: Min | W21: Max
G22: =G8 -> Bell Sinter | H22: kg/t | I22: ='CO2 Indicator spec'!AR7 -> 0 | M22: =Texts!B44 -> Lime plant | N22: =Texts!$B$183 -> Unit | O22: =Texts!$B$294 -> Value | P22: Min | Q22: Max | S22: =S17 -> Crude steel | T22: kg/t | U22: =SUM('CO2 Indicator spec'!CB14:CB15) -> 0
G23: =G9 -> Ores & Pellets | H23: kg/t | I23: =SUM('CO2 Indicator spec'!AR8,'CO2 Indicator spec'!AR75:AR77) -> 0 | M23: =Texts!B142 -> Limestone | N23: kg/t | O23: ='CO2 Indicator spec'!DL71 -> 0 | S23: =S18 -> Scrap | T23: kg/t | U23: ='CO2 Indicator spec'!CE$93 -> 0
G24: =G11 -> Iron input | H24: kg/t | I24: =0.58*I22+0.64*I23 -> 0 | J24: =940*(SRHM_Prod>0) -> 0 | K24: =960*(SRHM_Prod>0) -> 0 | M24: =Texts!B144 -> Dolomite | N24: kg/t | O24: ='CO2 Indicator spec'!DL73 -> 0 | S24: Net use | T24: kg/t | U24: =U22-U23 -> 0 | V24: =1005*(U22>0) -> 0 | W24: =1030*(U22>0) -> 0
G25: =G12 -> Ironmaking slag | H25: kg/t | I25: ='CO2 Indicator spec'!AU91 -> 0 | K25: =960*(SRHM_Prod>0) -> 0 | M25: =Texts!B293 -> Burnt fluxes | N25: kg/t | O25: =(0.56*O23+0.53*O24)/0.98 -> 0 | P25: =1000*(Lime_Prod>0) -> 0 | Q25: =1050*(Lime_Prod>0) -> 0
S26: =Texts!B29 -> Bar & Rod Mill | T26: =Texts!$B$183 -> Unit | U26: =Texts!$B$294 -> Value | V26: Min | W26: Max
S27: =S22 -> Crude steel | T27: kg/t | U27: =SUM('CO2 Indicator spec'!CH14:CH16) -> 0
S28: =S23 -> Scrap | T28: kg/t | U28: ='CO2 Indicator spec'!CK$93 -> 0
S29: Net use | T29: kg/t | U29: =U27-U28 -> 0 | V29: =1005*(U27>0) -> 0 | W29: =1030*(U27>0) -> 0
S31: =Texts!B30 -> Section Mill | T31: =Texts!$B$183 -> Unit | U31: =Texts!$B$294 -> Value | V31: Min | W31: Max
S32: =S27 -> Crude steel | T32: kg/t | U32: =SUM('CO2 Indicator spec'!CN14:CN16) -> 0
S33: =S28 -> Scrap | T33: kg/t | U33: ='CO2 Indicator spec'!CQ$93 -> 0
S34: Net use | T34: kg/t | U34: =U32-U33 -> 0 | V34: =1005*(U32>0) -> 0 | W34: =1030*(U32>0) -> 0
S36: =Texts!B31 -> Wire Mill | T36: =Texts!$B$183 -> Unit | U36: =Texts!$B$294 -> Value | V36: Min | W36: Max
S37: =S32 -> Crude steel | T37: kg/t | U37: =SUM('CO2 Indicator spec'!CT14:CT16) -> 0
S38: =S33 -> Scrap | T38: kg/t | U38: ='CO2 Indicator spec'!CW$93 -> 0
S39: Net use | T39: kg/t | U39: =U37-U38 -> 0 | V39: =1005*(U37>0) -> 0 | W39: =1030*(U37>0) -> 0
S41: =Texts!B32 -> Tube Mill | T41: =Texts!$B$183 -> Unit | U41: =Texts!$B$294 -> Value | V41: Min | W41: Max
S42: =S37 -> Crude steel | T42: kg/t | U42: =SUM('CO2 Indicator spec'!CZ14:CZ16) -> 0
S43: =S38 -> Scrap | T43: kg/t | U43: ='CO2 Indicator spec'!DC$93 -> 0
S44: Net use | T44: kg/t | U44: =U42-U43 -> 0 | V44: =1005*(U42>0) -> 0 | W44: =1030*(U42>0) -> 0

Sheet Facility Structure
B1: =Texts!B2&" :" -> Facility : | C1: Test facility | D1: 0 | L1: 2007
B2: =Texts!B3&" : "&Texts!B4 -> Reported period : from | C2: 2007-01-01
B3: =Texts!B5 -> to | C3: 2008-01-01 | F3: =Texts!B8 -> To display data forms click above | H3: =Texts!B296 -> Click above to unhide all data | J3: =Texts!B295 -> Click above to delete all data
B4: =Texts!B6&" :" -> Country : | C4: France | D4: 0
B5: =Texts!B7&" :" -> Language : | C5: English | D5: 0 | E5: ="Pr-"&Texts!B53 -> Pr-Products | I5: ="CF-"&Texts!B95 -> CF-Condensed Fuels | K5: ="GF-"&Texts!B117 -> GF-Gazeous Fuels | M5: ="Ma-"&Texts!B136 -> Ma-Miscellaneous materials | O5: ="Res-"&Texts!B151 -> Res-Residues
A6: =Texts!B9 -> Select existing plants | E6: =Texts!B52 -> Select existing categories | I6: =Texts!B52 -> Select existing categories | K6: =Texts!B52 -> Select existing categories | M6: =Texts!B52 -> Select existing categories | O6: =Texts!B52 -> Select existing categories
A7: TRUE | B7: ="01-"&Texts!B10 -> 01-Coke plant | C7: FALSE | D7: ="31-"&Texts!B33 -> 31-Pickling plant | E7: TRUE | F7: ="Pr-01-"&Texts!B54 -> Pr-01-Merchant Sinter | G7: TRUE | H7: ="Pr-19-"&Texts!B78 -> Pr-19-Hot rolled coils | I7: TRUE | J7: ="CF-01-"&Texts!B96 -> CF-01-Home Coke | K7: TRUE | L7: ="GF-01-"&Texts!B118 -> GF-01-Coke Oven Gas | M7: FALSE | N7: ="Ma-01-"&Texts!B137 -> Ma-01-EAF Electrodes | O7: TRUE | P7: ="Res-01-"&Texts!B152 -> Res-01-Tar
A8: TRUE | B8: ="02-"&Texts!B11 -> 02-Sinter plant | C8: FALSE | D8: ="32-"&Texts!B34 -> 32-Cold rolling Mill | E8: TRUE | F8: ="Pr-02-"&Texts!B56 -> Pr-02-Pellets | G8: FALSE | H8: ="Pr-20-"&Texts!B79 -> Pr-20-Heavy Plates | I8: TRUE | J8: ="CF-02-"&Texts!B97 -> CF-02-Purchased coke | K8: TRUE | L8: ="GF-02-"&Texts!B119 -> GF-02-Blast Furnace Gas | M8: FALSE | N8: ="Ma-02-"&Texts!B138 -> Ma-02-Ferro Chromium | O8: FALSE | P8: ="Res-02-"&Texts!B153 -> Res-02-Benzole
A9: FALSE | B9: ="03-"&Texts!B12 -> 03-Pellet plant | C9: FALSE | D9: ="33-"&Texts!B35 -> 33-Continuous Annealing plant | E9: TRUE | F9: ="Pr-03-"&Texts!B57 -> Pr-03-Gas based DRI | G9: FALSE | H9: ="Pr-21-"&Texts!B80 -> Pr-21-Bars & Rods | I9: FALSE | J9: ="CF-03-"&Texts!B98 -> CF-03-Purchased nut coke | K9: FALSE | L9: ="GF-03-"&Texts!B120 -> GF-03-Smelting Reduction Gas | M9: FALSE | N9: ="Ma-03-"&Texts!B139 -> Ma-03-Ferro Manganese | O9: FALSE | P9: ="Res-03-"&Texts!B154 -> Res-03-Naphtalenic oil
A10: FALSE | B10: ="04-"&Texts!B13 -> 04-Gas based DRI plant | C10: FALSE | D10: ="34-"&Texts!B36 -> 34-Batch Annealing plant | E10: FALSE | F10: ="Pr-04-"&Texts!B58 -> Pr-04-Coal based DRI | G10: FALSE | H10: ="Pr-22-"&Texts!B81 -> Pr-22-Sections | I10: FALSE | J10: ="CF-04-"&Texts!B99 -> CF-04-Coke breeze | K10: TRUE | L10: ="GF-04-"&Texts!B121 -> GF-04-BOF Gas | M10: TRUE | N10: ="Ma-04-"&Texts!B140 -> Ma-04-Pre-consumer scrap | O10: FALSE | P10: ="Res-04-"&Texts!B155 -> Res-04-CDQ Dust
A11: FALSE | B11: ="05-"&Texts!B14 -> 05-Coal based DRI plant | C11: FALSE | D11: ="41-"&Texts!B37 -> 41-Hot dip galvanising plant | E11: TRUE | F11: ="Pr-05-"&Texts!B60 -> Pr-05-Blast furnace Hot metal | G11: FALSE | H11: ="Pr-23-"&Texts!B82 -> Pr-23-Wire Rod | I11: TRUE | J11: ="CF-05-"&Texts!B100 -> CF-05-Coking coal | K11: TRUE | L11: ="GF-05-"&Texts!B122 -> GF-05-Natural Gas | M11: TRUE | N11: ="Ma-05-"&Texts!B141 -> Ma-05-Post-consumer scrap | O11: FALSE | P11: ="Res-05-"&Texts!B156 -> Res-05-Coke quenching breeze
A12: TRUE | B12: ="06-"&Texts!B15 -> 06-Blast Furnace plant | C12: FALSE | D12: ="42-"&Texts!B38 -> 42-Electro galvanising plant | E12: FALSE | F12: ="Pr-06-"&Texts!B61 -> Pr-06-Smelting reduction Hot metal | G12: FALSE | H12: ="Pr-24-"&Texts!B83 -> Pr-24-Seamless Tubes | I12: TRUE | J12: ="CF-06-"&Texts!B101 -> CF-06-Anthracite | K12: FALSE | L12: ="GF-06-"&Texts!B123 -> GF-06-Other Gas 1 | M12: TRUE | N12: ="Ma-06-"&Texts!B142 -> Ma-06-Limestone | O12: FALSE | P12: ="Res-06-"&Texts!B157 -> Res-06-DRI screening fines
A13: FALSE | B13: ="07-"&Texts!B16 -> 07-Smelting Reduction plant | C13: FALSE | D13: ="43-"&Texts!B39 -> 43-Tinplating plant | F13: ="Pr-07-"&Texts!B62 -> Pr-07-Cold iron | G13: FALSE | H13: ="Pr-25-"&Texts!B84 -> Pr-25-Pickled coils | I13: FALSE | J13: ="CF-07-"&Texts!B102 -> CF-07-DRI coal | K13: FALSE | L13: ="GF-07-"&Texts!B124 -> GF-07-Other Gas 2 | M13: TRUE | N13: ="Ma-07-"&Texts!B143 -> Ma-07-Burnt Lime | O13: TRUE | P13: ="Res-07-"&Texts!B158 -> Res-07-BF gas dust
A14: TRUE | B14: ="11-"&Texts!B17 -> 11-BOF shop | C14: FALSE | D14: ="44-"&Texts!B40 -> 44-Tin free plating plant | E14: TRUE | F14: ="Pr-08-"&Texts!B63 -> Pr-08-BOF Liquid Steel | G14: FALSE | H14: ="Pr-26-"&Texts!B85 -> Pr-26-Cold Rolled Coils | I14: TRUE | J14: ="CF-08-"&Texts!B103 -> CF-08-BF injection Coal | K14: ="Ut-"&Texts!B125 -> Ut-Utilities | M14: TRUE | N14: ="Ma-08-"&Texts!B144 -> Ma-08-Dolomite | O14: TRUE | P14: ="Res-08-"&Texts!B159 -> Res-08-BF gas sludge
A15: FALSE | B15: ="12-"&Texts!B19 -> 12-EAF shop | C15: FALSE | D15: ="45-"&Texts!B41 -> 45-Other metal coating plant | E15: FALSE | F15: ="Pr-09-"&Texts!B64 -> Pr-09-EAF Liquid Steel | G15: FALSE | H15: ="Pr-27-"&Texts!B86 -> Pr-27-Annealed Coils | I15: FALSE | J15: ="CF-09-"&Texts!B104 -> CF-09-Smelting reduction Coal | K15: =Texts!B52 -> Select existing categories | M15: FALSE | N15: ="Ma-09-"&Texts!B145 -> Ma-09-Dolime | O15: FALSE | P15: ="Res-09-"&Texts!B160 -> Res-09-SR gas dust
A16: TRUE | B16: ="13-"&Texts!B21 -> 13-Secondary metallurgy plant | C16: FALSE | D16: ="46-"&Texts!B42 -> 46-Organic coating plant | E16: TRUE | F16: ="Pr-10-"&Texts!B65 -> Pr-10-Ready to cast BOF steel | G16: FALSE | H16: ="Pr-28-"&Texts!B87 -> Pr-28-Hot Dip Galvanised Coils | I16: FALSE | J16: ="CF-10-"&Texts!B105 -> CF-10-EAF Coal | K16: TRUE | L16: ="Ut-01-"&Texts!B126 -> Ut-01-Electricity | M16: TRUE | N16: ="Ma-10-"&Texts!B146 -> Ma-10-Fine Iron Ore | O16: FALSE | P16: ="Res-10-"&Texts!B161 -> Res-10-SR gas sludge
A17: FALSE | B17: ="14-"&Texts!B22 -> 14-Ingot Casting plant | C17: FALSE | D17: ="51-"&Texts!B43 -> 51-Dust Treatment plant | E17: FALSE | F17: ="Pr-11-"&Texts!B66 -> Pr-11-Ready to cast EAF steel | G17: FALSE | H17: ="Pr-29-"&Texts!B88 -> Pr-29-Electrogalvanised Coils | I17: FALSE | J17: ="CF-11-"&Texts!B106 -> CF-11-Steam coal | K17: TRUE | L17: ="Ut-02-"&Texts!B127 -> Ut-02-High Pressure Steam | M17: FALSE | N17: ="Ma-11-"&Texts!B147 -> Ma-11-Ground pellet feed | O17: TRUE | P17: ="Res-11-"&Texts!B162 -> Res-11-Ironmaking slag
A18: TRUE | B18: ="15-"&Texts!B23 -> 15-Continuous casting plant | C18: FALSE | D18: ="52-"&Texts!B44 -> 52-Lime plant | E18: FALSE | F18: ="Pr-12-"&Texts!B67 -> Pr-12-BOF Ingots | G18: FALSE | H18: ="Pr-30-"&Texts!B89 -> Pr-30-Tin Plated Coils | I18: FALSE | J18: ="CF-12-"&Texts!B107 -> CF-12-Petroleum Coke | K18: FALSE | L18: ="Ut-03-"&Texts!B128 -> Ut-03-Low Pressure Steam | M18: TRUE | N18: ="Ma-12-"&Texts!B148 -> Ma-12-Lump Ore | O18: TRUE | P18: ="Res-12-"&Texts!B163 -> Res-12-Granulated slag
A19: FALSE | B19: ="21-"&Texts!B24 -> 21-Cogging mill | C19: FALSE | D19: ="53-"&Texts!B45 -> 53-Heat treatment plant | E19: FALSE | F19: ="Pr-13-"&Texts!B68 -> Pr-13-EAF Ingots | G19: FALSE | H19: ="Pr-31-"&Texts!B90 -> Pr-31-Tin Free Plated Coils | I19: FALSE | J19: ="CF-13-"&Texts!B108 -> CF-13-Heavy oil | K19: FALSE | L19: ="Ut-04-"&Texts!B129 -> Ut-04-Hot water | M19: FALSE | N19: ="Ma-13-"&Texts!B149 -> Ma-13-Other material 1 | O19: TRUE | P19: ="Res-13-"&Texts!B165 -> Res-13-Home scrap
A20: FALSE | B20: ="22-"&Texts!B25 -> 22-Billet Mill | C20: TRUE | D20: ="61-"&Texts!B46 -> 61-Boilers | E20: TRUE | F20: ="Pr-14-"&Texts!B69 -> Pr-14-Continuous casting BOF steel | G20: FALSE | H20: ="Pr-31-"&Texts!B91 -> Pr-31-Other metal coated Coils | I20: TRUE | J20: ="CF-14-"&Texts!B109 -> CF-14-Light domestic oil | K20: TRUE | L20: ="Ut-05-"&Texts!B130 -> Ut-05-High Pressure Oxygen | M20: FALSE | N20: ="Ma-14-"&Texts!B150 -> Ma-14-Other material 2 | O20: FALSE | P20: ="Res-14-"&Texts!B166 -> Res-14-Pig iron scrap
A21: TRUE | B21: ="23-"&Texts!B26 -> 23-Hot Strip Mill | C21: FALSE | D21: ="62-"&Texts!B47 -> 62-Power plant | E21: FALSE | F21: ="Pr-15-"&Texts!B70 -> Pr-15-Continuous casting EAF steel | G21: FALSE | H21: ="Pr-32-"&Texts!B92 -> Pr-32-Painted coils | I21: FALSE | J21: ="CF-15-"&Texts!B110 -> CF-15-Diesel oil | K21: TRUE | L21: ="Ut-06-"&Texts!B131 -> Ut-06-Low Pressure Oxygen | O21: FALSE | P21: ="Res-15-"&Texts!B167 -> Res-15-Other residue 1
A22: FALSE | B22: ="24-"&Texts!B27 -> 24-Compact Strip Mill | C22: FALSE | D22: ="63-"&Texts!B48 -> 63-Air separation unit | E22: FALSE | F22: ="Pr-16-"&Texts!B75 -> Pr-16-Roughed BOF ingots | G22: FALSE | H22: ="Pr-34-"&Texts!B93 -> Pr-34-Treated Dust DRI/HM | I22: FALSE | J22: ="CF-16-"&Texts!B111 -> CF-16-LPG | K22: TRUE | L22: ="Ut-07-"&Texts!B132 -> Ut-07-Nitrogen | O22: FALSE | P22: ="Res-16-"&Texts!B168 -> Res-16-Other residue 2
A23: FALSE | B23: ="25-"&Texts!B28 -> 25-Plate Mill | C23: FALSE | D23: ="64-"&Texts!B49 -> 64-Compressed Air plant | E23: FALSE | F23: ="Pr-17-"&Texts!B76 -> Pr-17-Roughed EAF ingots | G23: FALSE | H23: ="Pr-35-"&Texts!B94 -> Pr-35-Heat treated products | I23: FALSE | J23: ="CF-17-"&Texts!B112 -> CF-17-Charcoal | K23: TRUE | L23: ="Ut-08-"&Texts!B133 -> Ut-08-Argon
A24: FALSE | B24: ="26-"&Texts!B29 -> 26-Bar & Rod Mill | C24: FALSE | D24: ="71-"&Texts!B50 -> 71-Others | E24: FALSE | F24: ="Pr-18-"&Texts!B77 -> Pr-18-Rolled billets | I24: FALSE | J24: ="CF-18-"&Texts!B113 -> CF-18-Used Plastics | K24: TRUE | L24: ="Ut-09-"&Texts!B134 -> Ut-09-Compressed air
A25: FALSE | B25: ="27-"&Texts!B30 -> 27-Section Mill | C25: TRUE | D25: ="72-"&Texts!B51 -> 72-Flares | I25: FALSE | J25: ="CF-19-"&Texts!B114 -> CF-19-Used Tires | K25: FALSE | L25: ="Ut-10-"&Texts!B135 -> Ut-10-Hydrogen
A26: FALSE | B26: ="28-"&Texts!B31 -> 28-Wire Mill | I26: FALSE | J26: ="CF-20-"&Texts!B115 -> CF-20-Other condensed fuel 1
A27: FALSE | B27: ="39-"&Texts!B32 -> 39-Tube Mill | I27: FALSE | J27: ="CF-21-"&Texts!B116 -> CF-21-Other condensed fuel 2

Sheet Products
B1: =Texts!B180 -> Code | D1: Pr-01 | G1: Pr-02 | J1: Pr-03 | M1: Pr-04 | P1: Pr-05 | S1: Pr-06 | V1: Pr-07 | Y1: Pr-08 | AB1: Pr-09 | AE1: Pr-10 | AH1: Pr-11 | AK1: Pr-12 | AN1: Pr-13 | AQ1: Pr-14 | AT1: Pr-15 | AW1: Pr-16 | AZ1: Pr-17 | BC1: Pr-18 | BF1: Pr-19 | BI1: Pr-20 | BL1: Pr-21 | BO1: Pr-22 | BR1: Pr-23 | BU1: Pr-24 | BX1: Pr-25 | CA1: Pr-26 | CD1: Pr-27 | CG1: Pr-28 | CJ1: Pr-29 | CM1: Pr-30 | CP1: Pr-31 | CS1: Pr-32 | CV1: Pr-33 | CY1: Pr-34 | DB1: Pr-35
B2: =Texts!B182 -> Name | D2: =Texts!$B54 -> Merchant Sinter | G2: =Texts!$B56 -> Pellets | J2: =Texts!$B57 -> Gas based DRI | M2: =Texts!$B58 -> Coal based DRI | P2: =Texts!$B60 -> Blast furnace Hot metal | S2: =Texts!$B61 -> Smelting reduction Hot metal | V2: =Texts!$B62 -> Cold iron | Y2: =Texts!$B63 -> BOF Liquid Steel | AB2: =Texts!$B64 -> EAF Liquid Steel | AE2: =Texts!$B65 -> Ready to cast BOF steel | AH2: =Texts!$B66 -> Ready to cast EAF steel | AK2: =Texts!$B67 -> BOF Ingots | AN2: =Texts!$B68 -> EAF Ingots | AQ2: =Texts!$B69 -> Continuous casting BOF steel | AT2: =Texts!$B70 -> Continuous casting EAF steel | AW2: =Texts!$B75 -> Roughed BOF ingots | AZ2: =Texts!$B76 -> Roughed EAF ingots | BC2: =Texts!$B77 -> Rolled billets | BF2: =Texts!$B78 -> Hot rolled coils | BI2: =Texts!$B79 -> Heavy Plates | BL2: =Texts!$B80 -> Bars & Rods | BO2: =Texts!$B81 -> Sections | BR2: =Texts!$B82 -> Wire Rod | BU2: =Texts!$B83 -> Seamless Tubes | BX2: =Texts!$B84 -> Pickled coils | CA2: =Texts!$B85 -> Cold Rolled Coils | CD2: =Texts!$B86 -> Annealed Coils | CG2: =Texts!$B87 -> Hot Dip Galvanised Coils | CJ2: =Texts!$B88 -> Electrogalvanised Coils | CM2: =Texts!$B89 -> Tin Plated Coils | CP2: =Texts!$B90 -> Tin Free Plated Coils | CS2: =Texts!$B91 -> Other metal coated Coils | CV2: =Texts!$B92 -> Painted coils | CY2: =Texts!$B93 -> Treated Dust DRI/HM | DB2: =Texts!$B94 -> Heat treated products
B3: =Texts!B183 -> Unit | D3: t | G3: =Texts!$B252 -> t dry | J3: t | M3: t | P3: t | S3: t | V3: t | Y3: t | AB3: t | AE3: t | AH3: t | AK3: t | AN3: t | AQ3: t | AT3: t | AW3: t | AZ3: t | BC3: t | BF3: t | BI3: t | BL3: t | BO3: t | BR3: t | BU3: t | BX3: t | CA3: t | CD3: t | CG3: t | CJ3: t | CM3: t | CP3: t | CS3: t | CV3: t | CY3: t | DB3: t
A4: =Texts!B188 -> Material Characteristics | D4: Pr-01 | G4: Ma-14 | J4: =IF('Condensed fuels'!W29=0,"Pr-03","") -> Pr-03 | M4: =IF('Condensed fuels'!W29>0,"Pr-03","") ->  | P4: Pr-02 | S4: Pr-04 | Y4: Pr-05 | AB4: Pr-06 | AE4: =IF('Facility Structure'!A14,"Pr-07","") -> Pr-07 | AH4: =IF('Facility Structure'!A15,"Pr-07","") ->  | AK4: =IF(AE4="Pr-07","Pr-08","") -> Pr-08 | AN4: =IF(AH4="Pr-07","Pr-08","") ->  | AQ4: =IF(AK4="Pr-08","Pr-09","") -> Pr-09 | AT4: =IF(AN4="Pr-08","Pr-09","") ->  | AW4: =IF(AQ4="Pr-09","Pr-10","") -> Pr-10 | AZ4: =IF(AT4="Pr-09","Pr-10","") ->  | BC4: Pr-11 | BF4: Pr-12 | BI4: Pr-13 | BL4: Pr-14 | BO4: Pr-15 | BR4: Pr-16 | BU4: Pr-17 | BX4: Pr-18 | CA4: Pr-19 | CD4: Pr-20 | CG4: Pr-21 | CJ4: Pr-22 | CM4: Pr-23 | CP4: Pr-24 | CV4: Pr-25
A5: C | D5: 0 | E5: t/t | G5: 0.0001 | H5: t/t | J5: 0 | K5: t/t | M5: 0 | N5: t/t | P5: 0.047 | Q5: t/t | S5: 0 | T5: t/t | V5: 0 | W5: t/t | Y5: 0.0004 | Z5: t/t | AB5: 0 | AC5: t/t | AE5: 0.0004 | AF5: t/t | AH5: 0 | AI5: t/t | AK5: 0 | AL5: t/t | AN5: 0 | AO5: t/t | AQ5: 0.0004 | AR5: t/t | AT5: 0 | AU5: t/t | AW5: 0 | AX5: t/t | AZ5: 0 | BA5: t/t | BC5: 0 | BD5: t/t | BF5: 0.0004 | BG5: t/t | BI5: 0 | BJ5: t/t | BL5: 0 | BM5: t/t | BO5: 0 | BP5: t/t | BR5: 0 | BS5: t/t | BU5: 0 | BV5: t/t | BX5: 0 | BY5: t/t | CA5: 0 | CB5: t/t | CD5: 0 | CE5: t/t | CG5: 0 | CH5: t/t | CJ5: 0 | CK5: t/t | CM5: 0 | CN5: t/t | CP5: 0 | CQ5: t/t | CS5: 0 | CT5: t/t | CV5: 0 | CW5: t/t | CY5: 0 | CZ5: t/t | DB5: 0 | DC5: t/t
A6: =Texts!B189 -> ncv | E6: MJ/t | H6: MJ/t | K6: MJ/t | N6: MJ/t | Q6: MJ/t | T6: MJ/t | W6: MJ/t | Z6: MJ/t | AC6: MJ/t | AF6: MJ/t | AI6: MJ/t | AL6: MJ/t | AO6: MJ/t | AR6: MJ/t | AU6: MJ/t | AX6: MJ/t | BA6: MJ/t | BD6: MJ/t | BG6: MJ/t | BJ6: MJ/t | BM6: MJ/t | BP6: MJ/t | BS6: MJ/t | BV6: MJ/t | BY6: MJ/t | CB6: MJ/t | CE6: MJ/t | CH6: MJ/t | CK6: MJ/t | CN6: MJ/t | CQ6: MJ/t | CT6: MJ/t | CW6: MJ/t | CZ6: MJ/t | DC6: MJ/t
A7: =Texts!B190 -> Ash
A8: =Texts!B191 -> Volatiles
A9: =Texts!B192 -> Energy equivalent | D9: =IF(SUM(E26:E31)>0,Sinter_ARP_En*SUM(E30:E31)/SUM(E26:E31),0) -> 2.31637222 | E9: GJ/t | G9: =Pellet_ARP_En -> 1.7 | H9: GJ/t | J9: =GDRI_ARP_En -> 13.42854489 | K9: GJ/t | M9: =CDRI_ARP_En -> 15.3157082 | N9: GJ/t | P9: =BFHM_ARP_En -> 18.28309187 | Q9: GJ/t | S9: =SRHM_ARP_En -> 22.29639297 | T9: GJ/t | V9: =IF(T$68>0,S9,P9) -> 18.28309187 | W9: GJ/t | Z9: GJ/t | AC9: GJ/t | AF9: GJ/t | AI9: GJ/t | AL9: GJ/t | AO9: GJ/t | AR9: GJ/t | AU9: GJ/t | AX9: GJ/t | BA9: GJ/t | BD9: GJ/t | BF9: =HSM_ARP_En -> 20.63036071 | BG9: GJ/t | BI9: =Plate_ARP_En -> 0 | BJ9: GJ/t | BL9: =Bar_ARP_En -> 0 | BM9: GJ/t | BO9: =Section_ARP_En -> 0 | BP9: GJ/t | BR9: =Wire_ARP_En -> 0 | BS9: GJ/t | BU9: =Tube_ARP_En -> 0 | BV9: GJ/t | BY9: GJ/t | CB9: GJ/t | CE9: GJ/t | CH9: GJ/t | CK9: GJ/t | CN9: GJ/t | CQ9: GJ/t | CT9: GJ/t | CW9: GJ/t | CZ9: GJ/t | DC9: GJ/t
A10: =Texts!B193 -> CO2 Emission factor | D10: =44.01*IF(Sinter_C>0,Sinter_C,Sinter_DefC)/12.011 -> 0 | E10: t/t | G10: =44.01*IF(Pellet_C>0,Pellet_C,Pellets_C)/12.011 -> 0.0003664141204 | H10: t/t | J10: =44.01*IF(GDRI_C>0,GDRI_C,GDRI_DefC)/12.011 -> 0.0916035301 | K10: t/t | M10: =44.01*IF(CDRI_C>0,CDRI_C,CDRI_DefC)/12.011 -> 0.007328282408 | N10: t/t | P10: =44.01*IF(BFHM_C>0,BFHM_C,HM_DefC)/12.011 -> 0.1722146366 | Q10: t/t | S10: =44.01*IF(SRHM_C>0,SRHM_C,HM_DefC)/12.011 -> 0.1722146366 | T10: t/t | V10: =44.01*IF(BFHM_C>0,BFHM_C,HM_DefC)/12.011 -> 0.1722146366 | W10: t/t | Y10: =44.01*IF(BOFSteel_C>0,BOFSteel_C,Flat_DefC)/12.011 -> 0.001465656482 | Z10: t/t | AB10: =44.01*IF(EAFSteel_C>0,EAFSteel_C,Long_DefC)/12.011 -> 0.003664141204 | AC10: t/t | AE10: =44.01*IF(SM_BOFSteel_C>0,SM_BOFSteel_C,Flat_DefC)/12.011 -> 0.001465656482 | AF10: t/t | AH10: =44.01*IF(EAFSteel_C>0,EAFSteel_C,Long_DefC)/12.011 -> 0.003664141204 | AI10: t/t | AK10: =44.01*IF(BOFIngot_C>0,BOFIngot_C,Flat_DefC)/12.011 -> 0.001465656482 | AL10: t/t | AN10: =44.01*IF(EAFIngot_C>0,EAFIngot_C,Long_DefC)/12.011 -> 0.003664141204 | AO10: t/t | AQ10: =44.01*IF(CC_BOFSteel_C>0,CC_BOFSteel_C,Flat_DefC)/12.011 -> 0.001465656482 | AR10: t/t | AT10: =44.01*IF(CC_EAFSteel_C>0,CC_EAFSteel_C,Long_DefC)/12.011 -> 0.003664141204 | AU10: t/t | AW10: =44.01*IF(BOFSlab_C>0,BOFSlab_C,Flat_DefC)/12.011 -> 0.001465656482 | AX10: t/t | AZ10: =44.01*IF(CC_BOFSteel_C>0,CC_BOFSteel_C,Flat_DefC)/12.011 -> 0.001465656482 | BA10: t/t | BC10: =44.01*IF(CC_BOFSteel_C>0,CC_BOFSteel_C,Long_DefC)/12.011 -> 0.001465656482 | BD10: t/t | BF10: =44.01*IF(CC_BOFSteel_C>0,CC_BOFSteel_C,Flat_DefC)/12.011 -> 0.001465656482 | BG10: t/t | BI10: =44.01*IF(Plate_C>0,Plate_C,Long_DefC)/12.011 -> 0.003664141204 | BJ10: t/t | BL10: =44.01*IF(Bar_C>0,Bar_C,Long_DefC)/12.011 -> 0.003664141204 | BM10: t/t | BO10: =44.01*IF(Section_C>0,Section_C,Long_DefC)/12.011 -> 0.003664141204 | BP10: t/t | BR10: =44.01*IF(Wire_C>0,Wire_C,Long_DefC)/12.011 -> 0.003664141204 | BS10: t/t | BU10: =44.01*IF(Tube_C>0,Tube_C,Long_DefC)/12.011 -> 0.003664141204 | BV10: t/t | BX10: =44.01*IF(Pickled_C>0,Pickled_C,Flat_DefC)/12.011 -> 0.001465656482 | BY10: t/t | CA10: =44.01*IF(CRC_C>0,CRC_C,Flat_DefC)/12.011 -> 0.001465656482 | CB10: t/t | CD10: =44.01*IF(Annealed_C>0,Annealed_C,Flat_DefC)/12.011 -> 0.001465656482 | CE10: t/t | CG10: =44.01*IF(HDG_C>0,HDG_C,Flat_DefC)/12.011 -> 0.001465656482 | CH10: t/t | CJ10: =44.01*IF(EG_C>0,EG_C,Flat_DefC)/12.011 -> 0.001465656482 | CK10: t/t | CM10: =44.01*IF(TP_C>0,TP_C,Flat_DefC)/12.011 -> 0.001465656482 | CN10: t/t | CP10: =44.01*IF(TFP_C>0,TFP_C,Flat_DefC)/12.011 -> 0.001465656482 | CQ10: t/t | CS10: =44.01*IF(OMC_C>0,OMC_C,Flat_DefC)/12.011 -> 0.001465656482 | CT10: t/t | CV10: =44.01*IF(Paint_C>0,Paint_C,Flat_DefC)/12.011 -> 0.001465656482 | CW10: t/t | CY10: =44.01*IF(TDust_C>0,TDust_C,CDRI_DefC)/12.011 -> 0.007328282408 | CZ10: t/t | DB10: =44.01*IF(HTP_C>0,HTP_C,0.001)/12.011 -> 0.003664141204 | DC10: t/t
A11: =Texts!B193 -> CO2 Emission factor | E11: t/GJ | V11: =IF(T$68>0,S11,P11) -> 0
A12: =Texts!B194 -> Upstream CO2 | D12: =IF(SUM(E26:E31)>0,Sinter_ARP_CO2*SUM(E30:E31)/SUM(E26:E31),0) -> 0.2784000507 | E12: t/t | G12: =Pellet_ARP_CO2 -> 0.115 | H12: t/t | J12: =GDRI_ARP_CO2 -> 0.7841248378 | K12: t/t | M12: =CDRI_ARP_CO2 -> 1.768242948 | N12: t/t | P12: =BFHM_ARP_CO2 -> 1.914125518 | Q12: t/t | S12: =SRHM_ARP_CO2 -> 2.640024689 | T12: t/t | V12: 1.914125518 | W12: t/t | Z12: t/t | AC12: t/t | AF12: t/t | AI12: t/t | AL12: t/t | AO12: t/t | AR12: t/t | AU12: t/t | AW12: =BOF_ARP_CO2 -> 1.874387573 | AX12: t/t | AZ12: =BOF_ARP_CO2 -> 1.874387573 | BA12: t/t | BC12: =BOF_ARP_CO2 -> 1.874387573 | BD12: t/t | BF12: =HSM_ARP_CO2 -> 2.057503439 | BG12: t/t | BI12: =Plate_ARP_CO2 -> 0 | BJ12: t/t | BL12: =Bar_ARP_CO2 -> 0 | BM12: t/t | BO12: =Section_ARP_CO2 -> 0 | BP12: t/t | BR12: =Wire_ARP_CO2 -> 0 | BS12: t/t | BU12: =Tube_ARP_CO2 -> 0 | BV12: t/t | BY12: t/t | CB12: t/t | CE12: t/t | CH12: t/t | CK12: t/t | CN12: t/t | CQ12: t/t | CT12: t/t | CW12: t/t | CZ12: t/t | DC12: t/t
A14: =Texts!B195 -> Procurements | D14: =D3 -> t | G14: =G3 -> t dry | J14: =J3 -> t | M14: =M3 -> t | P14: =P3 -> t | S14: =S3 -> t | V14: =V3 -> t | Y14: =Y3 -> t | AB14: =AB3 -> t | AE14: =AE3 -> t | AH14: =AH3 -> t | AK14: =AK3 -> t | AN14: =AN3 -> t | AQ14: =AQ3 -> t | AT14: =AT3 -> t | AW14: =AW3 -> t | AZ14: =AZ3 -> t | BC14: =BC3 -> t | BF14: =BF3 -> t | BI14: =BI3 -> t | BL14: =BL3 -> t | BO14: =BO3 -> t | BR14: =BR3 -> t | BU14: =BU3 -> t | BX14: =BX3 -> t | CA14: =CA3 -> t | CD14: =CD3 -> t | CG14: =CG3 -> t | CJ14: =CJ3 -> t | CM14: =CM3 -> t | CP14: =CP3 -> t | CS14: =CS3 -> t | CV14: =CV3 -> t | CY14: =CY3 -> t | DB14: =DB3 -> t
A15: =Texts!B196 -> External Procurements | D15: 0 | G15: 1043458 | J15: 0 | M15: 0 | P15: 0 | S15: 0 | V15: 0 | Y15: 0 | AB15: 0 | AE15: 0 | AH15: 0 | AK15: 0 | AN15: 0 | AQ15: 0 | AT15: 0 | AW15: 0 | AZ15: 0 | BC15: 0 | BF15: 0 | BI15: 0 | BL15: 0 | BO15: 0 | BR15: 0 | BU15: 0 | BX15: 0 | CA15: 0 | CD15: 0 | CG15: 0 | CJ15: 0 | CM15: 0 | CP15: 0 | CS15: 0 | CV15: 0 | CY15: 0 | DB15: 0
A16: =Texts!B197 -> Reclaimed from stocks | D16: 243667 | G16: 92287 | J16: 0 | M16: 0 | P16: 0 | S16: 0 | V16: 0 | Y16: 0 | AB16: 0 | AE16: 0 | AH16: 0 | AK16: 0 | AN16: 0 | AQ16: 0 | AT16: 0 | AW16: 0 | AZ16: 0 | BC16: 0 | BF16: 0 | BI16: 0 | BL16: 0 | BO16: 0 | BR16: 0 | BU16: 0 | BX16: 0 | CA16: 0 | CD16: 0 | CG16: 0 | CJ16: 0 | CM16: 0 | CP16: 0 | CS16: 0 | CV16: 0 | CY16: 0 | DB16: 0
A17: =Texts!B198 -> Destinations | D17: =D14 -> t | G17: =G14 -> t dry | J17: =J14 -> t | M17: =M14 -> t | P17: =P14 -> t | S17: =S14 -> t | V17: =V14 -> t | Y17: =Y14 -> t | AB17: =AB14 -> t | AE17: =AE14 -> t | AH17: =AH14 -> t | AK17: =AK14 -> t | AN17: =AN14 -> t | AQ17: =AQ14 -> t | AT17: =AT14 -> t | AW17: =AW14 -> t | AZ17: =AZ14 -> t | BC17: =BC14 -> t | BF17: =BF14 -> t | BI17: =BI14 -> t | BL17: =BL14 -> t | BO17: =BO14 -> t | BR17: =BR14 -> t | BU17: =BU14 -> t | BX17: =BX14 -> t | CA17: =CA14 -> t | CD17: =CD14 -> t | CG17: =CG14 -> t | CJ17: =CJ14 -> t | CM17: =CM14 -> t | CP17: =CP14 -> t | CS17: =CS14 -> t | CV17: =CV14 -> t | CY17: =CY14 -> t | DB17: =DB14 -> t
A18: =Texts!B199 -> External power plants
A19: =Texts!B200 -> Other deliveries | D19: 0 | G19: 0 | J19: 0 | M19: 0 | P19: 0 | S19: 0 | V19: 0 | Y19: 0 | AB19: 0 | AE19: 0 | AH19: 0 | AK19: 0 | AN19: 0 | AQ19: 0 | AT19: 0 | AW19: 0 | AZ19: 0 | BC19: 0 | BF19: 4307877.7 | BI19: 0 | BL19: 0 | BO19: 0 | BR19: 0 | BU19: 0 | BX19: 0 | CA19: 0 | CD19: 0 | CG19: 0 | CJ19: 0 | CM19: 0 | CP19: 0 | CS19: 0 | CV19: 0 | CY19: 0 | DB19: 0
A20: =Texts!B201 -> Storage | D20: 0 | G20: 0 | J20: 0 | M20: 0 | P20: 103671 | S20: 0 | V20: 0 | Y20: 0 | AB20: 0 | AE20: 0 | AH20: 0 | AK20: 0 | AN20: 0 | AQ20: 1891038.707 | AT20: 0 | AW20: 0 | AZ20: 0 | BC20: 0 | BF20: 0 | BI20: 0 | BL20: 0 | BO20: 0 | BR20: 0 | BU20: 0 | BX20: 0 | CA20: 0 | CD20: 0 | CG20: 0 | CJ20: 0 | CM20: 0 | CP20: 0 | CS20: 0 | CV20: 0 | CY20: 0 | DB20: 0
A21: =Texts!B202 -> Losses & Inventory Gap
A22: =Texts!B203 -> Balance | D22: =SUM(D15:D16,D25:D69)-SUM(D18:D21,E25:E69) -> 16779.819 | G22: =SUM(G15:G16,G25:G69)-SUM(G18:G21,H25:H69) -> -17574 | J22: =SUM(J15:J16,J25:J69)-SUM(J18:J21,K25:K69) -> 0 | M22: =SUM(M15:M16,M25:M69)-SUM(M18:M21,N25:N69) -> 0 | P22: =SUM(P15:P16,P25:P69)-SUM(P18:P21,Q25:Q69) -> 0.2139999997 | S22: =SUM(S15:S16,S25:S69)-SUM(S18:S21,T25:T69) -> 0 | V22: =SUM(V15:V16,V25:V69)-SUM(V18:V21,W25:W69) -> 0 | Y22: =SUM(Y15:Y16,Y25:Y69)-SUM(Y18:Y21,Z25:Z69) -> 0 | AB22: =SUM(AB15:AB16,AB25:AB69)-SUM(AB18:AB21,AC25:AC69) -> 0 | AE22: =SUM(AE15:AE16,AE25:AE69)-SUM(AE18:AE21,AF25:AF69) -> 0 | AH22: =SUM(AH15:AH16,AH25:AH69)-SUM(AH18:AH21,AI25:AI69) -> 0 | AK22: =SUM(AK15:AK16,AK25:AK69)-SUM(AK18:AK21,AL25:AL69) -> 0 | AN22: =SUM(AN15:AN16,AN25:AN69)-SUM(AN18:AN21,AO25:AO69) -> 0 | AQ22: =SUM(AQ15:AQ16,AQ25:AQ69)-SUM(AQ18:AQ21,AR25:AR69) -> 0 | AT22: =SUM(AT15:AT16,AT25:AT69)-SUM(AT18:AT21,AU25:AU69) -> 0 | AW22: =SUM(AW15:AW16,AW25:AW69)-SUM(AW18:AW21,AX25:AX69) -> 0 | AZ22: =SUM(AZ15:AZ16,AZ25:AZ69)-SUM(AZ18:AZ21,BA25:BA69) -> 0 | BC22: =SUM(BC15:BC16,BC25:BC69)-SUM(BC18:BC21,BD25:BD69) -> 0 | BF22: =SUM(BF15:BF16,BF25:BF69)-SUM(BF18:BF21,BG25:BG69) -> 0 | BI22: =SUM(BI15:BI16,BI25:BI69)-SUM(BI18:BI21,BJ25:BJ69) -> 0 | BL22: =SUM(BL15:BL16,BL25:BL69)-SUM(BL18:BL21,BM25:BM69) -> 0 | BO22: =SUM(BO15:BO16,BO25:BO69)-SUM(BO18:BO21,BP25:BP69) -> 0 | BR22: =SUM(BR15:BR16,BR25:BR69)-SUM(BR18:BR21,BS25:BS69) -> 0 | BU22: =SUM(BU15:BU16,BU25:BU69)-SUM(BU18:BU21,BV25:BV69) -> 0 | BX22: =SUM(BX15:BX16,BX25:BX69)-SUM(BX18:BX21,BY25:BY69) -> 0 | CA22: =SUM(CA15:CA16,CA25:CA69)-SUM(CA18:CA21,CB25:CB69) -> 0 | CD22: =SUM(CD15:CD16,CD25:CD69)-SUM(CD18:CD21,CE25:CE69) -> 0 | CG22: =SUM(CG15:CG16,CG25:CG69)-SUM(CG18:CG21,CH25:CH69) -> 0 | CJ22: =SUM(CJ15:CJ16,CJ25:CJ69)-SUM(CJ18:CJ21,CK25:CK69) -> 0 | CM22: =SUM(CM15:CM16,CM25:CM69)-SUM(CM18:CM21,CN25:CN69) -> 0 | CP22: =SUM(CP15:CP16,CP25:CP69)-SUM(CP18:CP21,CQ25:CQ69) -> 0 | CS22: =SUM(CS15:CS16,CS25:CS69)-SUM(CS18:CS21,CT25:CT69) -> 0 | CV22: =SUM(CV15:CV16,CV25:CV69)-SUM(CV18:CV21,CW25:CW69) -> 0 | CY22: =SUM(CY15:CY16,CY25:CY69)-SUM(CY18:CY21,CZ25:CZ69) -> 0 | DB22: =SUM(DB15:DB16,DB25:DB69)-SUM(DB18:DB21,DC25:DC69) -> 0
D24: =Texts!$B204 -> Generation | E24: =Texts!$B205 -> Use | G24: =Texts!$B204 -> Generation | H24: =Texts!$B205 -> Use | J24: =Texts!$B204 -> Generation | K24: =Texts!$B205 -> Use | M24: =Texts!$B204 -> Generation | N24: =Texts!$B205 -> Use | P24: =Texts!$B204 -> Generation | Q24: =Texts!$B205 -> Use | S24: =Texts!$B204 -> Generation | T24: =Texts!$B205 -> Use | V24: =Texts!$B204 -> Generation | W24: =Texts!$B205 -> Use | Y24: =Texts!$B204 -> Generation | Z24: =Texts!$B205 -> Use | AB24: =Texts!$B204 -> Generation | AC24: =Texts!$B205 -> Use | AE24: =Texts!$B204 -> Generation | AF24: =Texts!$B205 -> Use | AH24: =Texts!$B204 -> Generation | AI24: =Texts!$B205 -> Use | AK24: =Texts!$B204 -> Generation | AL24: =Texts!$B205 -> Use | AN24: =Texts!$B204 -> Generation | AO24: =Texts!$B205 -> Use | AQ24: =Texts!$B204 -> Generation | AR24: =Texts!$B205 -> Use | AT24: =Texts!$B204 -> Generation | AU24: =Texts!$B205 -> Use | AW24: =Texts!$B204 -> Generation | AX24: =Texts!$B205 -> Use | AZ24: =Texts!$B204 -> Generation | BA24: =Texts!$B205 -> Use | BC24: =Texts!$B204 -> Generation | BD24: =Texts!$B205 -> Use | BF24: =Texts!$B204 -> Generation | BG24: =Texts!$B205 -> Use | BI24: =Texts!$B204 -> Generation | BJ24: =Texts!$B205 -> Use | BL24: =Texts!$B204 -> Generation | BM24: =Texts!$B205 -> Use | BO24: =Texts!$B204 -> Generation | BP24: =Texts!$B205 -> Use | BR24: =Texts!$B204 -> Generation | BS24: =Texts!$B205 -> Use | BU24: =Texts!$B204 -> Generation | BV24: =Texts!$B205 -> Use | BX24: =Texts!$B204 -> Generation | BY24: =Texts!$B205 -> Use | CA24: =Texts!$B204 -> Generation | CB24: =Texts!$B205 -> Use | CD24: =Texts!$B204 -> Generation | CE24: =Texts!$B205 -> Use | CG24: =Texts!$B204 -> Generation | CH24: =Texts!$B205 -> Use | CJ24: =Texts!$B204 -> Generation | CK24: =Texts!$B205 -> Use | CM24: =Texts!$B204 -> Generation | CN24: =Texts!$B205 -> Use | CP24: =Texts!$B204 -> Generation | CQ24: =Texts!$B205 -> Use | CS24: =Texts!$B204 -> Generation | CT24: =Texts!$B205 -> Use | CV24: =Texts!$B204 -> Generation | CW24: =Texts!$B205 -> Use | CY24: =Texts!$B204 -> Generation | CZ24: =Texts!$B205 -> Use | DB24: =Texts!$B204 -> Generation | DC24: =Texts!$B205 -> Use
A25: ="01-"&Texts!B10 -> 01-Coke plant | C25: 3 | D25: 0 | E25: 0 | G25: 0 | H25: 0 | J25: 0 | K25: 0 | M25: 0 | N25: 0 | P25: 0 | Q25: 0 | S25: 0 | T25: 0 | V25: 0 | W25: 0 | Y25: 0 | Z25: 0 | AB25: 0 | AC25: 0 | AE25: 0 | AF25: 0 | AH25: 0 | AI25: 0 | AK25: 0 | AL25: 0 | AN25: 0 | AO25: 0 | AQ25: 0 | AR25: 0 | AT25: 0 | AU25: 0 | AW25: 0 | AX25: 0 | AZ25: 0 | BA25: 0 | BC25: 0 | BD25: 0 | BF25: 0 | BG25: 0 | BI25: 0 | BJ25: 0 | BL25: 0 | BM25: 0 | BO25: 0 | BP25: 0 | BR25: 0 | BS25: 0 | BU25: 0 | BV25: 0 | BX25: 0 | BY25: 0 | CA25: 0 | CB25: 0 | CD25: 0 | CE25: 0 | CG25: 0 | CH25: 0 | CJ25: 0 | CK25: 0 | CM25: 0 | CN25: 0 | CP25: 0 | CQ25: 0 | CS25: 0 | CT25: 0 | CV25: 0 | CW25: 0 | CY25: 0 | CZ25: 0 | DB25: 0 | DC25: 0
A26: ="02-"&Texts!B11 -> 02-Sinter plant | C26: 4 | D26: 8188095 | E26: 465081.806 | G26: 0 | H26: 0 | J26: 0 | K26: 0 | M26: 0 | N26: 0 | P26: 0 | Q26: 0 | S26: 0 | T26: 0 | V26: 0 | W26: 0 | Y26: 0 | Z26: 0 | AB26: 0 | AC26: 0 | AE26: 0 | AF26: 0 | AH26: 0 | AI26: 0 | AK26: 0 | AL26: 0 | AN26: 0 | AO26: 0 | AQ26: 0 | AR26: 0 | AT26: 0 | AU26: 0 | AW26: 0 | AX26: 0 | AZ26: 0 | BA26: 0 | BC26: 0 | BD26: 0 | BF26: 0 | BG26: 0 | BI26: 0 | BJ26: 0 | BL26: 0 | BM26: 0 | BO26: 0 | BP26: 0 | BR26: 0 | BS26: 0 | BU26: 0 | BV26: 0 | BX26: 0 | BY26: 0 | CA26: 0 | CB26: 0 | CD26: 0 | CE26: 0 | CG26: 0 | CH26: 0 | CJ26: 0 | CK26: 0 | CM26: 0 | CN26: 0 | CP26: 0 | CQ26: 0 | CS26: 0 | CT26: 0 | CV26: 0 | CW26: 0 | CY26: 0 | CZ26: 0 | DB26: 0 | DC26: 0
A27: ="03-"&Texts!B12 -> 03-Pellet plant | D27: 0 | E27: 0 | G27: 0 | H27: 0 | J27: 0 | K27: 0 | M27: 0 | N27: 0 | P27: 0 | Q27: 0 | S27: 0 | T27: 0 | V27: 0 | W27: 0 | Y27: 0 | Z27: 0 | AB27: 0 | AC27: 0 | AE27: 0 | AF27: 0 | AH27: 0 | AI27: 0 | AK27: 0 | AL27: 0 | AN27: 0 | AO27: 0 | AQ27: 0 | AR27: 0 | AT27: 0 | AU27: 0 | AW27: 0 | AX27: 0 | AZ27: 0 | BA27: 0 | BC27: 0 | BD27: 0 | BF27: 0 | BG27: 0 | BI27: 0 | BJ27: 0 | BL27: 0 | BM27: 0 | BO27: 0 | BP27: 0 | BR27: 0 | BS27: 0 | BU27: 0 | BV27: 0 | BX27: 0 | BY27: 0 | CA27: 0 | CB27: 0 | CD27: 0 | CE27: 0 | CG27: 0 | CH27: 0 | CJ27: 0 | CK27: 0 | CM27: 0 | CN27: 0 | CP27: 0 | CQ27: 0 | CS27: 0 | CT27: 0 | CV27: 0 | CW27: 0 | CY27: 0 | CZ27: 0 | DB27: 0 | DC27: 0
A28: ="04-"&Texts!B13 -> 04-Gas based DRI plant | C28: 6 | D28: 0 | E28: 0 | G28: 0 | H28: 0 | J28: 0 | K28: 0 | N28: 0 | P28: 0 | Q28: 0 | S28: 0 | T28: 0 | V28: 0 | W28: 0 | Y28: 0 | Z28: 0 | AB28: 0 | AC28: 0 | AE28: 0 | AF28: 0 | AH28: 0 | AI28: 0 | AK28: 0 | AL28: 0 | AN28: 0 | AO28: 0 | AQ28: 0 | AR28: 0 | AT28: 0 | AU28: 0 | AW28: 0 | AX28: 0 | AZ28: 0 | BA28: 0 | BC28: 0 | BD28: 0 | BF28: 0 | BG28: 0 | BI28: 0 | BJ28: 0 | BL28: 0 | BM28: 0 | BO28: 0 | BP28: 0 | BR28: 0 | BS28: 0 | BU28: 0 | BV28: 0 | BX28: 0 | BY28: 0 | CA28: 0 | CB28: 0 | CD28: 0 | CE28: 0 | CG28: 0 | CH28: 0 | CJ28: 0 | CK28: 0 | CM28: 0 | CN28: 0 | CP28: 0 | CQ28: 0 | CS28: 0 | CT28: 0 | CV28: 0 | CW28: 0 | CY28: 0 | CZ28: 0 | DB28: 0 | DC28: 0
A29: ="05-"&Texts!B14 -> 05-Coal based DRI plant | D29: 0 | E29: 0 | G29: 0 | H29: 0 | K29: 0 | M29: 0 | N29: 0 | P29: 0 | Q29: 0 | S29: 0 | T29: 0 | V29: 0 | W29: 0 | Y29: 0 | Z29: 0 | AB29: 0 | AC29: 0 | AE29: 0 | AF29: 0 | AH29: 0 | AI29: 0 | AK29: 0 | AL29: 0 | AN29: 0 | AO29: 0 | AQ29: 0 | AR29: 0 | AT29: 0 | AU29: 0 | AW29: 0 | AX29: 0 | AZ29: 0 | BA29: 0 | BC29: 0 | BD29: 0 | BF29: 0 | BG29: 0 | BI29: 0 | BJ29: 0 | BL29: 0 | BM29: 0 | BO29: 0 | BP29: 0 | BR29: 0 | BS29: 0 | BU29: 0 | BV29: 0 | BX29: 0 | BY29: 0 | CA29: 0 | CB29: 0 | CD29: 0 | CE29: 0 | CG29: 0 | CH29: 0 | CJ29: 0 | CK29: 0 | CM29: 0 | CN29: 0 | CP29: 0 | CQ29: 0 | CS29: 0 | CT29: 0 | CV29: 0 | CW29: 0 | CY29: 0 | CZ29: 0 | DB29: 0 | DC29: 0
A30: ="06-"&Texts!B15 -> 06-Blast Furnace plant | C30: 5 | D30: 0 | E30: 7949900.375 | G30: 0 | H30: 1153319 | J30: 0 | K30: 0 | M30: 0 | N30: 0 | P30: 6277643 | Q30: 0 | S30: 0 | T30: 0 | V30: 0 | W30: 0 | Y30: 0 | Z30: 0 | AB30: 0 | AC30: 0 | AE30: 0 | AF30: 0 | AH30: 0 | AI30: 0 | AK30: 0 | AL30: 0 | AN30: 0 | AO30: 0 | AQ30: 0 | AR30: 0 | AT30: 0 | AU30: 0 | AW30: 0 | AX30: 0 | AZ30: 0 | BA30: 0 | BC30: 0 | BD30: 0 | BF30: 0 | BG30: 0 | BI30: 0 | BJ30: 0 | BL30: 0 | BM30: 0 | BO30: 0 | BP30: 0 | BR30: 0 | BS30: 0 | BU30: 0 | BV30: 0 | BX30: 0 | BY30: 0 | CA30: 0 | CB30: 0 | CD30: 0 | CE30: 0 | CG30: 0 | CH30: 0 | CJ30: 0 | CK30: 0 | CM30: 0 | CN30: 0 | CP30: 0 | CQ30: 0 | CS30: 0 | CT30: 0 | CV30: 0 | CW30: 0 | CY30: 0 | CZ30: 0 | DB30: 0 | DC30: 0
A31: ="07-"&Texts!B16 -> 07-Smelting Reduction plant | C31: 7 | D31: 0 | E31: 0 | G31: 0 | H31: 0 | J31: 0 | K31: 0 | M31: 0 | N31: 0 | P31: 0 | Q31: 0 | S31: 0 | T31: 0 | V31: 0 | W31: 0 | Y31: 0 | Z31: 0 | AB31: 0 | AC31: 0 | AE31: 0 | AF31: 0 | AH31: 0 | AI31: 0 | AK31: 0 | AL31: 0 | AN31: 0 | AO31: 0 | AQ31: 0 | AR31: 0 | AT31: 0 | AU31: 0 | AW31: 0 | AX31: 0 | AZ31: 0 | BA31: 0 | BC31: 0 | BD31: 0 | BF31: 0 | BG31: 0 | BI31: 0 | BJ31: 0 | BL31: 0 | BM31: 0 | BO31: 0 | BP31: 0 | BR31: 0 | BS31: 0 | BU31: 0 | BV31: 0 | BX31: 0 | BY31: 0 | CA31: 0 | CB31: 0 | CD31: 0 | CE31: 0 | CG31: 0 | CH31: 0 | CJ31: 0 | CK31: 0 | CM31: 0 | CN31: 0 | CP31: 0 | CQ31: 0 | CS31: 0 | CT31: 0 | CV31: 0 | CW31: 0 | CY31: 0 | CZ31: 0 | DB31: 0 | DC31: 0
A32: ="11-"&Texts!B17 -> 11-BOF shop | V32: 0
A33: ="11a-"&Texts!B18 -> 11a-BOF converter | C33: 8 | D33: 0 | E33: 0 | G33: 0 | H33: 0 | J33: 0 | K33: 0 | M33: 0 | N33: 0 | P33: 0 | Q33: 6173971.786 | S33: 0 | T33: 0 | V33: 0 | W33: 0 | Y33: 6388213.945 | Z33: 0 | AE33: 0 | AF33: 0 | AH33: 0 | AI33: 0 | AK33: 0 | AL33: 0 | AQ33: 0 | AR33: 0 | AW33: 0 | AX33: 0 | AZ33: 0 | BA33: 0 | BC33: 0 | BD33: 0 | BF33: 0 | BG33: 0 | BI33: 0 | BJ33: 0 | BL33: 0 | BM33: 0 | BO33: 0 | BP33: 0 | BR33: 0 | BS33: 0 | BU33: 0 | BV33: 0 | BX33: 0 | BY33: 0 | CA33: 0 | CB33: 0 | CD33: 0 | CE33: 0 | CG33: 0 | CH33: 0 | CJ33: 0 | CK33: 0 | CM33: 0 | CN33: 0 | CP33: 0 | CQ33: 0 | CS33: 0 | CT33: 0 | CV33: 0 | CW33: 0 | CY33: 0 | CZ33: 0 | DB33: 0 | DC33: 0
A34: ="11b-"&Texts!B21 -> 11b-Secondary metallurgy plant | D34: 0 | E34: 0 | G34: 0 | H34: 0 | J34: 0 | K34: 0 | M34: 0 | N34: 0 | P34: 0 | Q34: 0 | S34: 0 | T34: 0 | V34: 0 | W34: 0 | Y34: 0 | Z34: 6388213.945 | AE34: 6388213.945 | AF34: 0 | AH34: 0 | AI34: 0 | AK34: 0 | AL34: 0 | AQ34: 0 | AR34: 0 | AW34: 0 | AX34: 0 | AZ34: 0 | BA34: 0 | BC34: 0 | BD34: 0 | BF34: 0 | BG34: 0 | BI34: 0 | BJ34: 0 | BL34: 0 | BM34: 0 | BO34: 0 | BP34: 0 | BR34: 0 | BS34: 0 | BU34: 0 | BV34: 0 | BX34: 0 | BY34: 0 | CA34: 0 | CB34: 0 | CD34: 0 | CE34: 0 | CG34: 0 | CH34: 0 | CJ34: 0 | CK34: 0 | CM34: 0 | CN34: 0 | CP34: 0 | CQ34: 0 | CS34: 0 | CT34: 0 | CV34: 0 | CW34: 0 | CY34: 0 | CZ34: 0 | DB34: 0 | DC34: 0
A35: ="11c-"&Texts!B22 -> 11c-Ingot Casting plant | D35: 0 | E35: 0 | G35: 0 | H35: 0 | J35: 0 | K35: 0 | M35: 0 | N35: 0 | P35: 0 | Q35: 0 | S35: 0 | T35: 0 | V35: 0 | W35: 0 | Y35: 0 | Z35: 0 | AE35: 0 | AF35: 0 | AH35: 0 | AI35: 0 | AK35: 0 | AL35: 0 | AQ35: 0 | AR35: 0 | AW35: 0 | AX35: 0 | AZ35: 0 | BA35: 0 | BC35: 0 | BD35: 0 | BF35: 0 | BG35: 0 | BI35: 0 | BJ35: 0 | BL35: 0 | BM35: 0 | BO35: 0 | BP35: 0 | BR35: 0 | BS35: 0 | BU35: 0 | BV35: 0 | BX35: 0 | BY35: 0 | CA35: 0 | CB35: 0 | CD35: 0 | CE35: 0 | CG35: 0 | CH35: 0 | CJ35: 0 | CK35: 0 | CM35: 0 | CN35: 0 | CP35: 0 | CQ35: 0 | CS35: 0 | CT35: 0 | CV35: 0 | CW35: 0 | CY35: 0 | CZ35: 0 | DB35: 0 | DC35: 0
A36: ="11d-"&Texts!B23 -> 11d-Continuous casting plant | D36: 0 | E36: 0 | G36: 0 | H36: 0 | J36: 0 | K36: 0 | M36: 0 | N36: 0 | P36: 0 | Q36: 0 | S36: 0 | T36: 0 | V36: 0 | W36: 0 | Y36: 0 | Z36: 0 | AE36: 0 | AF36: 6388213.945 | AH36: 0 | AI36: 0 | AK36: 0 | AL36: 0 | AQ36: 6330257.523 | AR36: 0 | AW36: 0 | AX36: 0 | AZ36: 0 | BA36: 0 | BC36: 0 | BD36: 0 | BF36: 0 | BG36: 0 | BI36: 0 | BJ36: 0 | BL36: 0 | BM36: 0 | BO36: 0 | BP36: 0 | BR36: 0 | BS36: 0 | BU36: 0 | BV36: 0 | BX36: 0 | BY36: 0 | CA36: 0 | CB36: 0 | CD36: 0 | CE36: 0 | CG36: 0 | CH36: 0 | CJ36: 0 | CK36: 0 | CM36: 0 | CN36: 0 | CP36: 0 | CQ36: 0 | CS36: 0 | CT36: 0 | CV36: 0 | CW36: 0 | CY36: 0 | CZ36: 0 | DB36: 0 | DC36: 0
A37: ="12-"&Texts!B19 -> 12-EAF shop
A38: ="12a-"&Texts!B20 -> 12a-Electric arc furnace | C38: 9 | D38: 0 | E38: 0 | G38: 0 | H38: 0 | J38: 0 | K38: 0 | M38: 0 | N38: 0 | P38: 0 | Q38: 0 | S38: 0 | T38: 0 | V38: 0 | W38: 0 | AB38: 0 | AC38: 0 | AH38: 0 | AI38: 0 | AK38: 0 | AL38: 0 | AN38: 0 | AO38: 0 | AT38: 0 | AU38: 0 | AW38: 0 | AX38: 0 | AZ38: 0 | BA38: 0 | BC38: 0 | BD38: 0 | BF38: 0 | BG38: 0 | BI38: 0 | BJ38: 0 | BL38: 0 | BM38: 0 | BO38: 0 | BP38: 0 | BR38: 0 | BS38: 0 | BU38: 0 | BV38: 0 | BX38: 0 | BY38: 0 | CA38: 0 | CB38: 0 | CD38: 0 | CE38: 0 | CG38: 0 | CH38: 0 | CJ38: 0 | CK38: 0 | CM38: 0 | CN38: 0 | CP38: 0 | CQ38: 0 | CS38: 0 | CT38: 0 | CV38: 0 | CW38: 0 | CY38: 0 | CZ38: 0 | DB38: 0 | DC38: 0
A39: ="12b-"&Texts!B21 -> 12b-Secondary metallurgy plant | C39: 10 | D39: 0 | E39: 0 | G39: 0 | H39: 0 | J39: 0 | K39: 0 | M39: 0 | N39: 0 | P39: 0 | Q39: 0 | S39: 0 | T39: 0 | V39: 0 | W39: 0 | AB39: 0 | AC39: 0 | AH39: 0 | AI39: 0 | AN39: 0 | AO39: 0 | AT39: 0 | AU39: 0 | AW39: 0 | AX39: 0 | AZ39: 0 | BA39: 0 | BC39: 0 | BD39: 0 | BF39: 0 | BG39: 0 | BI39: 0 | BJ39: 0 | BL39: 0 | BM39: 0 | BO39: 0 | BP39: 0 | BR39: 0 | BS39: 0 | BU39: 0 | BV39: 0 | BX39: 0 | BY39: 0 | CA39: 0 | CB39: 0 | CD39: 0 | CE39: 0 | CG39: 0 | CH39: 0 | CJ39: 0 | CK39: 0 | CM39: 0 | CN39: 0 | CP39: 0 | CQ39: 0 | CS39: 0 | CT39: 0 | CV39: 0 | CW39: 0 | CY39: 0 | CZ39: 0 | DB39: 0 | DC39: 0
A40: ="12c-"&Texts!B22 -> 12c-Ingot Casting plant | C40: 11 | D40: 0 | E40: 0 | G40: 0 | H40: 0 | J40: 0 | K40: 0 | M40: 0 | N40: 0 | P40: 0 | Q40: 0 | S40: 0 | T40: 0 | V40: 0 | W40: 0 | AB40: 0 | AC40: 0 | AH40: 0 | AI40: 0 | AN40: 0 | AO40: 0 | AT40: 0 | AU40: 0 | AW40: 0 | AX40: 0 | AZ40: 0 | BA40: 0 | BC40: 0 | BD40: 0 | BF40: 0 | BG40: 0 | BI40: 0 | BJ40: 0 | BL40: 0 | BM40: 0 | BO40: 0 | BP40: 0 | BR40: 0 | BS40: 0 | BU40: 0 | BV40: 0 | BX40: 0 | BY40: 0 | CA40: 0 | CB40: 0 | CD40: 0 | CE40: 0 | CG40: 0 | CH40: 0 | CJ40: 0 | CK40: 0 | CM40: 0 | CN40: 0 | CP40: 0 | CQ40: 0 | CS40: 0 | CT40: 0 | CV40: 0 | CW40: 0 | CY40: 0 | CZ40: 0 | DB40: 0 | DC40: 0
A41: ="12d-"&Texts!B23 -> 12d-Continuous casting plant | C41: 12 | D41: 0 | E41: 0 | G41: 0 | H41: 0 | J41: 0 | K41: 0 | M41: 0 | N41: 0 | P41: 0 | Q41: 0 | S41: 0 | T41: 0 | V41: 0 | W41: 0 | AB41: 0 | AC41: 0 | AE41: 0 | AH41: 0 | AI41: 0 | AN41: 0 | AO41: 0 | AT41: 0 | AU41: 0 | AW41: 0 | AX41: 0 | AZ41: 0 | BA41: 0 | BC41: 0 | BD41: 0 | BF41: 0 | BG41: 0 | BI41: 0 | BJ41: 0 | BL41: 0 | BM41: 0 | BO41: 0 | BP41: 0 | BR41: 0 | BS41: 0 | BU41: 0 | BV41: 0 | BX41: 0 | BY41: 0 | CA41: 0 | CB41: 0 | CD41: 0 | CE41: 0 | CG41: 0 | CH41: 0 | CJ41: 0 | CK41: 0 | CM41: 0 | CN41: 0 | CP41: 0 | CQ41: 0 | CS41: 0 | CT41: 0 | CV41: 0 | CW41: 0 | CY41: 0 | CZ41: 0 | DB41: 0 | DC41: 0
A42: ="21-"&Texts!B24 -> 21-Cogging mill | C42: 13 | D42: 0 | E42: 0 | G42: 0 | H42: 0 | J42: 0 | K42: 0 | M42: 0 | N42: 0 | P42: 0 | Q42: 0 | S42: 0 | T42: 0 | V42: 0 | W42: 0 | Y42: 0 | Z42: 0 | AB42: 0 | AC42: 0 | AE42: 0 | AF42: 0 | AH42: 0 | AI42: 0 | AL42: 0 | AN42: 0 | AO42: 0 | AQ42: 0 | AR42: 0 | AT42: 0 | AU42: 0 | AW42: 0 | AX42: 0 | AZ42: 0 | BA42: 0 | BC42: 0 | BD42: 0 | BF42: 0 | BG42: 0 | BI42: 0 | BJ42: 0 | BL42: 0 | BM42: 0 | BO42: 0 | BP42: 0 | BR42: 0 | BS42: 0 | BU42: 0 | BV42: 0 | BX42: 0 | BY42: 0 | CA42: 0 | CB42: 0 | CD42: 0 | CE42: 0 | CG42: 0 | CH42: 0 | CJ42: 0 | CK42: 0 | CM42: 0 | CN42: 0 | CP42: 0 | CQ42: 0 | CS42: 0 | CT42: 0 | CV42: 0 | CW42: 0 | CY42: 0 | CZ42: 0 | DB42: 0 | DC42: 0
A43: ="22-"&Texts!B25 -> 22-Billet Mill | C43: 14 | D43: 0 | E43: 0 | G43: 0 | H43: 0 | J43: 0 | K43: 0 | M43: 0 | N43: 0 | P43: 0 | Q43: 0 | S43: 0 | T43: 0 | V43: 0 | W43: 0 | Y43: 0 | Z43: 0 | AB43: 0 | AC43: 0 | AE43: 0 | AF43: 0 | AH43: 0 | AI43: 0 | AK43: 0 | AL43: 0 | AN43: 0 | AO43: 0 | AQ43: 0 | AR43: 0 | AT43: 0 | AU43: 0 | AW43: 0 | AX43: 0 | AZ43: 0 | BA43: 0 | BC43: 0 | BD43: 0 | BF43: 0 | BG43: 0 | BI43: 0 | BJ43: 0 | BL43: 0 | BM43: 0 | BO43: 0 | BP43: 0 | BR43: 0 | BS43: 0 | BU43: 0 | BV43: 0 | BX43: 0 | BY43: 0 | CA43: 0 | CB43: 0 | CD43: 0 | CE43: 0 | CG43: 0 | CH43: 0 | CJ43: 0 | CK43: 0 | CM43: 0 | CN43: 0 | CP43: 0 | CQ43: 0 | CS43: 0 | CT43: 0 | CV43: 0 | CW43: 0 | CY43: 0 | CZ43: 0 | DB43: 0 | DC43: 0
A44: ="23-"&Texts!B26 -> 23-Hot Strip Mill | C44: 15 | D44: 0 | E44: 0 | G44: 0 | H44: 0 | J44: 0 | K44: 0 | M44: 0 | N44: 0 | P44: 0 | Q44: 0 | S44: 0 | T44: 0 | V44: 0 | W44: 0 | Y44: 0 | Z44: 0 | AB44: 0 | AC44: 0 | AE44: 0 | AF44: 0 | AH44: 0 | AI44: 0 | AK44: 0 | AL44: 0 | AN44: 0 | AO44: 0 | AQ44: 0 | AR44: 4439218.816 | AT44: 0 | AU44: 0 | AW44: 0 | AX44: 0 | AZ44: 0 | BA44: 0 | BC44: 0 | BD44: 0 | BF44: 4307877.7 | BG44: 0 | BI44: 0 | BJ44: 0 | BL44: 0 | BM44: 0 | BO44: 0 | BP44: 0 | BR44: 0 | BS44: 0 | BU44: 0 | BV44: 0 | BX44: 0 | BY44: 0 | CA44: 0 | CB44: 0 | CD44: 0 | CE44: 0 | CG44: 0 | CH44: 0 | CJ44: 0 | CK44: 0 | CM44: 0 | CN44: 0 | CP44: 0 | CQ44: 0 | CS44: 0 | CT44: 0 | CV44: 0 | CW44: 0 | CY44: 0 | CZ44: 0 | DB44: 0 | DC44: 0
A45: ="24-"&Texts!B27 -> 24-Compact Strip Mill | C45: 16 | D45: 0 | E45: 0 | G45: 0 | H45: 0 | J45: 0 | K45: 0 | M45: 0 | N45: 0 | P45: 0 | Q45: 0 | S45: 0 | T45: 0 | V45: 0 | W45: 0 | Y45: 0 | Z45: 0 | AB45: 0 | AC45: 0 | AE45: 0 | AF45: 0 | AH45: 0 | AI45: 0 | AK45: 0 | AL45: 0 | AN45: 0 | AO45: 0 | AQ45: 0 | AR45: 0 | AT45: 0 | AU45: 0 | AW45: 0 | AX45: 0 | AZ45: 0 | BA45: 0 | BC45: 0 | BD45: 0 | BF45: 0 | BG45: 0 | BI45: 0 | BJ45: 0 | BL45: 0 | BM45: 0 | BO45: 0 | BP45: 0 | BR45: 0 | BS45: 0 | BU45: 0 | BV45: 0 | BX45: 0 | BY45: 0 | CA45: 0 | CB45: 0 | CD45: 0 | CE45: 0 | CG45: 0 | CH45: 0 | CJ45: 0 | CK45: 0 | CM45: 0 | CN45: 0 | CP45: 0 | CQ45: 0 | CS45: 0 | CT45: 0 | CV45: 0 | CW45: 0 | CY45: 0 | CZ45: 0 | DB45: 0 | DC45: 0
A46: ="25-"&Texts!B28 -> 25-Plate Mill | C46: 17 | D46: 0 | E46: 0 | G46: 0 | H46: 0 | J46: 0 | K46: 0 | M46: 0 | N46: 0 | P46: 0 | Q46: 0 | S46: 0 | T46: 0 | V46: 0 | W46: 0 | Y46: 0 | Z46: 0 | AB46: 0 | AC46: 0 | AE46: 0 | AF46: 0 | AH46: 0 | AI46: 0 | AK46: 0 | AL46: 0 | AN46: 0 | AO46: 0 | AQ46: 0 | AR46: 0 | AT46: 0 | AU46: 0 | AW46: 0 | AX46: 0 | AZ46: 0 | BA46: 0 | BC46: 0 | BD46: 0 | BF46: 0 | BG46: 0 | BI46: 0 | BJ46: 0 | BL46: 0 | BM46: 0 | BO46: 0 | BP46: 0 | BR46: 0 | BS46: 0 | BU46: 0 | BV46: 0 | BX46: 0 | BY46: 0 | CA46: 0 | CB46: 0 | CD46: 0 | CE46: 0 | CG46: 0 | CH46: 0 | CJ46: 0 | CK46: 0 | CM46: 0 | CN46: 0 | CP46: 0 | CQ46: 0 | CS46: 0 | CT46: 0 | CV46: 0 | CW46: 0 | CY46: 0 | CZ46: 0 | DB46: 0 | DC46: 0
A47: ="26-"&Texts!B29 -> 26-Bar & Rod Mill | C47: 18 | D47: 0 | E47: 0 | G47: 0 | H47: 0 | J47: 0 | K47: 0 | M47: 0 | N47: 0 | P47: 0 | Q47: 0 | S47: 0 | T47: 0 | V47: 0 | W47: 0 | Y47: 0 | Z47: 0 | AB47: 0 | AC47: 0 | AE47: 0 | AF47: 0 | AH47: 0 | AI47: 0 | AK47: 0 | AL47: 0 | AN47: 0 | AO47: 0 | AQ47: 0 | AR47: 0 | AT47: 0 | AU47: 0 | AW47: 0 | AX47: 0 | AZ47: 0 | BA47: 0 | BC47: 0 | BD47: 0 | BF47: 0 | BG47: 0 | BI47: 0 | BJ47: 0 | BL47: 0 | BM47: 0 | BO47: 0 | BP47: 0 | BR47: 0 | BS47: 0 | BU47: 0 | BV47: 0 | BX47: 0 | BY47: 0 | CA47: 0 | CB47: 0 | CD47: 0 | CE47: 0 | CG47: 0 | CH47: 0 | CJ47: 0 | CK47: 0 | CM47: 0 | CN47: 0 | CP47: 0 | CQ47: 0 | CS47: 0 | CT47: 0 | CV47: 0 | CW47: 0 | CY47: 0 | CZ47: 0 | DB47: 0 | DC47: 0
A48: ="27-"&Texts!B30 -> 27-Section Mill | C48: 19 | D48: 0 | E48: 0 | G48: 0 | H48: 0 | J48: 0 | K48: 0 | M48: 0 | N48: 0 | P48: 0 | Q48: 0 | S48: 0 | T48: 0 | V48: 0 | W48: 0 | Y48: 0 | Z48: 0 | AB48: 0 | AC48: 0 | AE48: 0 | AF48: 0 | AH48: 0 | AI48: 0 | AK48: 0 | AL48: 0 | AN48: 0 | AO48: 0 | AQ48: 0 | AR48: 0 | AT48: 0 | AU48: 0 | AW48: 0 | AX48: 0 | AZ48: 0 | BA48: 0 | BC48: 0 | BD48: 0 | BF48: 0 | BG48: 0 | BI48: 0 | BJ48: 0 | BL48: 0 | BM48: 0 | BO48: 0 | BP48: 0 | BR48: 0 | BS48: 0 | BU48: 0 | BV48: 0 | BX48: 0 | BY48: 0 | CA48: 0 | CB48: 0 | CD48: 0 | CE48: 0 | CG48: 0 | CH48: 0 | CJ48: 0 | CK48: 0 | CM48: 0 | CN48: 0 | CP48: 0 | CQ48: 0 | CS48: 0 | CT48: 0 | CV48: 0 | CW48: 0 | CY48: 0 | CZ48: 0 | DB48: 0 | DC48: 0
A49: ="28-"&Texts!B31 -> 28-Wire Mill | C49: 20 | D49: 0 | E49: 0 | G49: 0 | H49: 0 | J49: 0 | K49: 0 | M49: 0 | N49: 0 | P49: 0 | Q49: 0 | S49: 0 | T49: 0 | V49: 0 | W49: 0 | Y49: 0 | Z49: 0 | AB49: 0 | AC49: 0 | AE49: 0 | AF49: 0 | AH49: 0 | AI49: 0 | AK49: 0 | AL49: 0 | AN49: 0 | AO49: 0 | AQ49: 0 | AR49: 0 | AT49: 0 | AU49: 0 | AW49: 0 | AX49: 0 | AZ49: 0 | BA49: 0 | BC49: 0 | BD49: 0 | BF49: 0 | BG49: 0 | BI49: 0 | BJ49: 0 | BL49: 0 | BM49: 0 | BO49: 0 | BP49: 0 | BR49: 0 | BS49: 0 | BU49: 0 | BV49: 0 | BX49: 0 | BY49: 0 | CA49: 0 | CB49: 0 | CD49: 0 | CE49: 0 | CG49: 0 | CH49: 0 | CJ49: 0 | CK49: 0 | CM49: 0 | CN49: 0 | CP49: 0 | CQ49: 0 | CS49: 0 | CT49: 0 | CV49: 0 | CW49: 0 | CY49: 0 | CZ49: 0 | DB49: 0 | DC49: 0
A50: ="29-"&Texts!B32 -> 29-Tube Mill | C50: 21 | D50: 0 | E50: 0 | G50: 0 | H50: 0 | J50: 0 | K50: 0 | M50: 0 | N50: 0 | P50: 0 | Q50: 0 | S50: 0 | T50: 0 | V50: 0 | W50: 0 | Y50: 0 | Z50: 0 | AB50: 0 | AC50: 0 | AE50: 0 | AF50: 0 | AH50: 0 | AI50: 0 | AK50: 0 | AL50: 0 | AN50: 0 | AO50: 0 | AQ50: 0 | AR50: 0 | AT50: 0 | AU50: 0 | AW50: 0 | AX50: 0 | AZ50: 0 | BA50: 0 | BC50: 0 | BD50: 0 | BF50: 0 | BG50: 0 | BI50: 0 | BJ50: 0 | BL50: 0 | BM50: 0 | BO50: 0 | BP50: 0 | BR50: 0 | BS50: 0 | BU50: 0 | BV50: 0 | BX50: 0 | BY50: 0 | CA50: 0 | CB50: 0 | CD50: 0 | CE50: 0 | CG50: 0 | CH50: 0 | CJ50: 0 | CK50: 0 | CM50: 0 | CN50: 0 | CP50: 0 | CQ50: 0 | CS50: 0 | CT50: 0 | CV50: 0 | CW50: 0 | CY50: 0 | CZ50: 0 | DB50: 0 | DC50: 0
A51: ="31-"&Texts!B33 -> 31-Pickling plant | C51: 22 | D51: 0 | E51: 0 | G51: 0 | H51: 0 | J51: 0 | K51: 0 | M51: 0 | N51: 0 | P51: 0 | Q51: 0 | S51: 0 | T51: 0 | V51: 0 | W51: 0 | Y51: 0 | Z51: 0 | AB51: 0 | AC51: 0 | AE51: 0 | AF51: 0 | AH51: 0 | AI51: 0 | AK51: 0 | AL51: 0 | AN51: 0 | AO51: 0 | AQ51: 0 | AR51: 0 | AT51: 0 | AU51: 0 | AW51: 0 | AX51: 0 | AZ51: 0 | BA51: 0 | BC51: 0 | BD51: 0 | BF51: 0 | BG51: 0 | BI51: 0 | BJ51: 0 | BL51: 0 | BM51: 0 | BO51: 0 | BP51: 0 | BR51: 0 | BS51: 0 | BU51: 0 | BV51: 0 | BX51: 0 | BY51: 0 | CA51: 0 | CB51: 0 | CD51: 0 | CE51: 0 | CG51: 0 | CH51: 0 | CJ51: 0 | CK51: 0 | CM51: 0 | CN51: 0 | CP51: 0 | CQ51: 0 | CS51: 0 | CT51: 0 | CV51: 0 | CW51: 0 | CY51: 0 | CZ51: 0 | DB51: 0 | DC51: 0
A52: ="32-"&Texts!B34 -> 32-Cold rolling Mill | C52: 23 | D52: 0 | E52: 0 | G52: 0 | H52: 0 | J52: 0 | K52: 0 | M52: 0 | N52: 0 | P52: 0 | Q52: 0 | S52: 0 | T52: 0 | V52: 0 | W52: 0 | Y52: 0 | Z52: 0 | AB52: 0 | AC52: 0 | AE52: 0 | AF52: 0 | AH52: 0 | AI52: 0 | AK52: 0 | AL52: 0 | AN52: 0 | AO52: 0 | AQ52: 0 | AR52: 0 | AT52: 0 | AU52: 0 | AW52: 0 | AX52: 0 | AZ52: 0 | BA52: 0 | BC52: 0 | BD52: 0 | BF52: 0 | BG52: 0 | BI52: 0 | BJ52: 0 | BL52: 0 | BM52: 0 | BO52: 0 | BP52: 0 | BR52: 0 | BS52: 0 | BU52: 0 | BV52: 0 | BX52: 0 | BY52: 0 | CA52: 0 | CB52: 0 | CD52: 0 | CE52: 0 | CG52: 0 | CH52: 0 | CJ52: 0 | CK52: 0 | CM52: 0 | CN52: 0 | CP52: 0 | CQ52: 0 | CS52: 0 | CT52: 0 | CV52: 0 | CW52: 0 | CY52: 0 | CZ52: 0 | DB52: 0 | DC52: 0
A53: ="33-"&Texts!B35 -> 33-Continuous Annealing plant | C53: 24 | D53: 0 | E53: 0 | G53: 0 | H53: 0 | J53: 0 | K53: 0 | M53: 0 | N53: 0 | P53: 0 | Q53: 0 | S53: 0 | T53: 0 | V53: 0 | W53: 0 | Y53: 0 | Z53: 0 | AB53: 0 | AC53: 0 | AE53: 0 | AF53: 0 | AH53: 0 | AI53: 0 | AK53: 0 | AL53: 0 | AN53: 0 | AO53: 0 | AQ53: 0 | AR53: 0 | AT53: 0 | AU53: 0 | AW53: 0 | AX53: 0 | AZ53: 0 | BA53: 0 | BC53: 0 | BD53: 0 | BF53: 0 | BG53: 0 | BI53: 0 | BJ53: 0 | BL53: 0 | BM53: 0 | BO53: 0 | BP53: 0 | BR53: 0 | BS53: 0 | BU53: 0 | BV53: 0 | BX53: 0 | BY53: 0 | CA53: 0 | CB53: 0 | CD53: 0 | CE53: 0 | CG53: 0 | CH53: 0 | CJ53: 0 | CK53: 0 | CM53: 0 | CN53: 0 | CP53: 0 | CQ53: 0 | CS53: 0 | CT53: 0 | CV53: 0 | CW53: 0 | CY53: 0 | CZ53: 0 | DB53: 0 | DC53: 0
A54: ="34-"&Texts!B36 -> 34-Batch Annealing plant | C54: 25 | D54: 0 | E54: 0 | G54: 0 | H54: 0 | J54: 0 | K54: 0 | M54: 0 | N54: 0 | P54: 0 | Q54: 0 | S54: 0 | T54: 0 | V54: 0 | W54: 0 | Y54: 0 | Z54: 0 | AB54: 0 | AC54: 0 | AE54: 0 | AF54: 0 | AH54: 0 | AI54: 0 | AK54: 0 | AL54: 0 | AN54: 0 | AO54: 0 | AQ54: 0 | AR54: 0 | AT54: 0 | AU54: 0 | AW54: 0 | AX54: 0 | AZ54: 0 | BA54: 0 | BC54: 0 | BD54: 0 | BF54: 0 | BG54: 0 | BI54: 0 | BJ54: 0 | BL54: 0 | BM54: 0 | BO54: 0 | BP54: 0 | BR54: 0 | BS54: 0 | BU54: 0 | BV54: 0 | BX54: 0 | BY54: 0 | CA54: 0 | CB54: 0 | CD54: 0 | CE54: 0 | CG54: 0 | CH54: 0 | CJ54: 0 | CK54: 0 | CM54: 0 | CN54: 0 | CP54: 0 | CQ54: 0 | CS54: 0 | CT54: 0 | CV54: 0 | CW54: 0 | CY54: 0 | CZ54: 0 | DB54: 0 | DC54: 0
A55: ="41-"&Texts!B37 -> 41-Hot dip galvanising plant | C55: 27 | D55: 0 | E55: 0 | G55: 0 | H55: 0 | J55: 0 | K55: 0 | M55: 0 | N55: 0 | P55: 0 | Q55: 0 | S55: 0 | T55: 0 | V55: 0 | W55: 0 | Y55: 0 | Z55: 0 | AB55: 0 | AC55: 0 | AE55: 0 | AF55: 0 | AH55: 0 | AI55: 0 | AK55: 0 | AL55: 0 | AN55: 0 | AO55: 0 | AQ55: 0 | AR55: 0 | AT55: 0 | AU55: 0 | AW55: 0 | AX55: 0 | AZ55: 0 | BA55: 0 | BC55: 0 | BD55: 0 | BF55: 0 | BG55: 0 | BI55: 0 | BJ55: 0 | BL55: 0 | BM55: 0 | BO55: 0 | BP55: 0 | BR55: 0 | BS55: 0 | BU55: 0 | BV55: 0 | BX55: 0 | BY55: 0 | CA55: 0 | CB55: 0 | CD55: 0 | CE55: 0 | CG55: 0 | CH55: 0 | CJ55: 0 | CK55: 0 | CM55: 0 | CN55: 0 | CP55: 0 | CQ55: 0 | CS55: 0 | CT55: 0 | CV55: 0 | CW55: 0 | CY55: 0 | CZ55: 0 | DB55: 0 | DC55: 0
A56: ="42-"&Texts!B38 -> 42-Electro galvanising plant | C56: 28 | D56: 0 | E56: 0 | G56: 0 | H56: 0 | J56: 0 | K56: 0 | M56: 0 | N56: 0 | P56: 0 | Q56: 0 | S56: 0 | T56: 0 | V56: 0 | W56: 0 | Y56: 0 | Z56: 0 | AB56: 0 | AC56: 0 | AE56: 0 | AF56: 0 | AH56: 0 | AI56: 0 | AK56: 0 | AL56: 0 | AN56: 0 | AO56: 0 | AQ56: 0 | AR56: 0 | AT56: 0 | AU56: 0 | AW56: 0 | AX56: 0 | AZ56: 0 | BA56: 0 | BC56: 0 | BD56: 0 | BF56: 0 | BG56: 0 | BI56: 0 | BJ56: 0 | BL56: 0 | BM56: 0 | BO56: 0 | BP56: 0 | BR56: 0 | BS56: 0 | BU56: 0 | BV56: 0 | BX56: 0 | BY56: 0 | CA56: 0 | CB56: 0 | CD56: 0 | CE56: 0 | CG56: 0 | CH56: 0 | CJ56: 0 | CK56: 0 | CM56: 0 | CN56: 0 | CP56: 0 | CQ56: 0 | CS56: 0 | CT56: 0 | CV56: 0 | CW56: 0 | CY56: 0 | CZ56: 0 | DB56: 0 | DC56: 0
A57: ="43-"&Texts!B39 -> 43-Tinplating plant | C57: 29 | D57: 0 | E57: 0 | G57: 0 | H57: 0 | J57: 0 | K57: 0 | M57: 0 | N57: 0 | P57: 0 | Q57: 0 | S57: 0 | T57: 0 | V57: 0 | W57: 0 | Y57: 0 | Z57: 0 | AB57: 0 | AC57: 0 | AE57: 0 | AF57: 0 | AH57: 0 | AI57: 0 | AK57: 0 | AL57: 0 | AN57: 0 | AO57: 0 | AQ57: 0 | AR57: 0 | AT57: 0 | AU57: 0 | AW57: 0 | AX57: 0 | AZ57: 0 | BA57: 0 | BC57: 0 | BD57: 0 | BF57: 0 | BG57: 0 | BI57: 0 | BJ57: 0 | BL57: 0 | BM57: 0 | BO57: 0 | BP57: 0 | BR57: 0 | BS57: 0 | BU57: 0 | BV57: 0 | BX57: 0 | BY57: 0 | CA57: 0 | CB57: 0 | CD57: 0 | CE57: 0 | CG57: 0 | CH57: 0 | CJ57: 0 | CK57: 0 | CM57: 0 | CN57: 0 | CP57: 0 | CQ57: 0 | CS57: 0 | CT57: 0 | CV57: 0 | CW57: 0 | CY57: 0 | CZ57: 0 | DB57: 0 | DC57: 0
A58: ="45-"&Texts!B40 -> 45-Tin free plating plant | C58: 30 | D58: 0 | E58: 0 | G58: 0 | H58: 0 | J58: 0 | K58: 0 | M58: 0 | N58: 0 | P58: 0 | Q58: 0 | S58: 0 | T58: 0 | V58: 0 | W58: 0 | Y58: 0 | Z58: 0 | AB58: 0 | AC58: 0 | AE58: 0 | AF58: 0 | AH58: 0 | AI58: 0 | AK58: 0 | AL58: 0 | AN58: 0 | AO58: 0 | AQ58: 0 | AR58: 0 | AT58: 0 | AU58: 0 | AW58: 0 | AX58: 0 | AZ58: 0 | BA58: 0 | BC58: 0 | BD58: 0 | BF58: 0 | BG58: 0 | BI58: 0 | BJ58: 0 | BL58: 0 | BM58: 0 | BO58: 0 | BP58: 0 | BR58: 0 | BS58: 0 | BU58: 0 | BV58: 0 | BX58: 0 | BY58: 0 | CA58: 0 | CB58: 0 | CD58: 0 | CE58: 0 | CG58: 0 | CH58: 0 | CJ58: 0 | CK58: 0 | CM58: 0 | CN58: 0 | CP58: 0 | CQ58: 0 | CS58: 0 | CT58: 0 | CV58: 0 | CW58: 0 | CY58: 0 | CZ58: 0 | DB58: 0 | DC58: 0
A59: ="46-"&Texts!B41 -> 46-Other metal coating plant | C59: 31
A60: ="47-"&Texts!B42 -> 47-Organic coating plant | C60: 31 | D60: 0 | E60: 0 | G60: 0 | H60: 0 | J60: 0 | K60: 0 | M60: 0 | N60: 0 | P60: 0 | Q60: 0 | S60: 0 | T60: 0 | V60: 0 | W60: 0 | Y60: 0 | Z60: 0 | AB60: 0 | AC60: 0 | AE60: 0 | AF60: 0 | AH60: 0 | AI60: 0 | AK60: 0 | AL60: 0 | AN60: 0 | AO60: 0 | AQ60: 0 | AR60: 0 | AT60: 0 | AU60: 0 | AW60: 0 | AX60: 0 | AZ60: 0 | BA60: 0 | BC60: 0 | BD60: 0 | BF60: 0 | BG60: 0 | BI60: 0 | BJ60: 0 | BL60: 0 | BM60: 0 | BO60: 0 | BP60: 0 | BR60: 0 | BS60: 0 | BU60: 0 | BV60: 0 | BX60: 0 | BY60: 0 | CA60: 0 | CB60: 0 | CD60: 0 | CE60: 0 | CG60: 0 | CH60: 0 | CJ60: 0 | CK60: 0 | CM60: 0 | CN60: 0 | CP60: 0 | CQ60: 0 | CS60: 0 | CT60: 0 | CV60: 0 | CW60: 0 | CY60: 0 | CZ60: 0 | DB60: 0 | DC60: 0
A61: ="51-"&Texts!B43 -> 51-Dust Treatment plant | C61: 35
A62: ="52-"&Texts!B44 -> 52-Lime plant | C62: 32 | D62: 0 | E62: 0 | G62: 0 | H62: 0 | J62: 0 | K62: 0 | M62: 0 | N62: 0 | P62: 0 | Q62: 0 | S62: 0 | T62: 0 | V62: 0 | W62: 0 | Y62: 0 | Z62: 0 | AB62: 0 | AC62: 0 | AE62: 0 | AF62: 0 | AH62: 0 | AI62: 0 | AK62: 0 | AL62: 0 | AN62: 0 | AO62: 0 | AQ62: 0 | AR62: 0 | AT62: 0 | AU62: 0 | AW62: 0 | AX62: 0 | AZ62: 0 | BA62: 0 | BC62: 0 | BD62: 0 | BF62: 0 | BG62: 0 | BI62: 0 | BJ62: 0 | BL62: 0 | BM62: 0 | BO62: 0 | BP62: 0 | BR62: 0 | BS62: 0 | BU62: 0 | BV62: 0 | BX62: 0 | BY62: 0 | CA62: 0 | CB62: 0 | CD62: 0 | CE62: 0 | CG62: 0 | CH62: 0 | CJ62: 0 | CK62: 0 | CM62: 0 | CN62: 0 | CP62: 0 | CQ62: 0 | CS62: 0 | CT62: 0 | CV62: 0 | CW62: 0 | CY62: 0 | CZ62: 0 | DB62: 0 | DC62: 0
A63: ="53-"&Texts!B45 -> 53-Heat treatment plant
A64: ="61-"&Texts!B46 -> 61-Boilers | C64: 44 | D64: 0 | E64: 0 | G64: 0 | H64: 0 | J64: 0 | K64: 0 | M64: 0 | N64: 0 | P64: 0 | Q64: 0 | S64: 0 | T64: 0 | V64: 0 | W64: 0 | Y64: 0 | Z64: 0 | AB64: 0 | AC64: 0 | AE64: 0 | AF64: 0 | AH64: 0 | AI64: 0 | AK64: 0 | AL64: 0 | AN64: 0 | AO64: 0 | AQ64: 0 | AR64: 0 | AT64: 0 | AU64: 0 | AW64: 0 | AX64: 0 | AZ64: 0 | BA64: 0 | BC64: 0 | BD64: 0 | BF64: 0 | BG64: 0 | BI64: 0 | BJ64: 0 | BL64: 0 | BM64: 0 | BO64: 0 | BP64: 0 | BR64: 0 | BS64: 0 | BU64: 0 | BV64: 0 | BX64: 0 | BY64: 0 | CA64: 0 | CB64: 0 | CD64: 0 | CE64: 0 | CG64: 0 | CH64: 0 | CJ64: 0 | CK64: 0 | CM64: 0 | CN64: 0 | CP64: 0 | CQ64: 0 | CS64: 0 | CT64: 0 | CV64: 0 | CW64: 0 | CY64: 0 | CZ64: 0 | DB64: 0 | DC64: 0
A65: ="62-"&Texts!B47 -> 62-Power plant | C65: 43 | D65: 0 | E65: 0 | G65: 0 | H65: 0 | J65: 0 | K65: 0 | M65: 0 | N65: 0 | P65: 0 | Q65: 0 | S65: 0 | T65: 0 | V65: 0 | W65: 0 | Y65: 0 | Z65: 0 | AB65: 0 | AC65: 0 | AE65: 0 | AF65: 0 | AH65: 0 | AI65: 0 | AK65: 0 | AL65: 0 | AN65: 0 | AO65: 0 | AQ65: 0 | AR65: 0 | AT65: 0 | AU65: 0 | AW65: 0 | AX65: 0 | AZ65: 0 | BA65: 0 | BC65: 0 | BD65: 0 | BF65: 0 | BG65: 0 | BI65: 0 | BJ65: 0 | BL65: 0 | BM65: 0 | BO65: 0 | BP65: 0 | BR65: 0 | BS65: 0 | BU65: 0 | BV65: 0 | BX65: 0 | BY65: 0 | CA65: 0 | CB65: 0 | CD65: 0 | CE65: 0 | CG65: 0 | CH65: 0 | CJ65: 0 | CK65: 0 | CM65: 0 | CN65: 0 | CP65: 0 | CQ65: 0 | CS65: 0 | CT65: 0 | CV65: 0 | CW65: 0 | CY65: 0 | CZ65: 0 | DB65: 0 | DC65: 0
A66: ="63-"&Texts!B48 -> 63-Air separation unit | C66: 45 | D66: 0 | E66: 0 | G66: 0 | H66: 0 | J66: 0 | K66: 0 | M66: 0 | N66: 0 | P66: 0 | Q66: 0 | S66: 0 | T66: 0 | V66: 0 | W66: 0 | Y66: 0 | Z66: 0 | AB66: 0 | AC66: 0 | AE66: 0 | AF66: 0 | AH66: 0 | AI66: 0 | AK66: 0 | AL66: 0 | AN66: 0 | AO66: 0 | AQ66: 0 | AR66: 0 | AT66: 0 | AU66: 0 | AW66: 0 | AX66: 0 | AZ66: 0 | BA66: 0 | BC66: 0 | BD66: 0 | BF66: 0 | BG66: 0 | BI66: 0 | BJ66: 0 | BL66: 0 | BM66: 0 | BO66: 0 | BP66: 0 | BR66: 0 | BS66: 0 | BU66: 0 | BV66: 0 | BX66: 0 | BY66: 0 | CA66: 0 | CB66: 0 | CD66: 0 | CE66: 0 | CG66: 0 | CH66: 0 | CJ66: 0 | CK66: 0 | CM66: 0 | CN66: 0 | CP66: 0 | CQ66: 0 | CS66: 0 | CT66: 0 | CV66: 0 | CW66: 0 | CY66: 0 | CZ66: 0 | DB66: 0 | DC66: 0
A67: ="64-"&Texts!B49 -> 64-Compressed Air plant | C67: 46 | D67: 0 | E67: 0 | G67: 0 | H67: 0 | J67: 0 | K67: 0 | M67: 0 | N67: 0 | P67: 0 | Q67: 0 | S67: 0 | T67: 0 | V67: 0 | W67: 0 | Y67: 0 | Z67: 0 | AB67: 0 | AC67: 0 | AE67: 0 | AF67: 0 | AH67: 0 | AI67: 0 | AK67: 0 | AL67: 0 | AN67: 0 | AO67: 0 | AQ67: 0 | AR67: 0 | AT67: 0 | AU67: 0 | AW67: 0 | AX67: 0 | AZ67: 0 | BA67: 0 | BC67: 0 | BD67: 0 | BF67: 0 | BG67: 0 | BI67: 0 | BJ67: 0 | BL67: 0 | BM67: 0 | BO67: 0 | BP67: 0 | BR67: 0 | BS67: 0 | BU67: 0 | BV67: 0 | BX67: 0 | BY67: 0 | CA67: 0 | CB67: 0 | CD67: 0 | CE67: 0 | CG67: 0 | CH67: 0 | CJ67: 0 | CK67: 0 | CM67: 0 | CN67: 0 | CP67: 0 | CQ67: 0 | CS67: 0 | CT67: 0 | CV67: 0 | CW67: 0 | CY67: 0 | CZ67: 0 | DB67: 0 | DC67: 0
A68: ="71-"&Texts!B50 -> 71-Others | C68: 57 | D68: 0 | E68: 0 | G68: 0 | H68: 0 | J68: 0 | K68: 0 | M68: 0 | N68: 0 | P68: 0 | Q68: 0 | S68: 0 | T68: 0 | V68: 0 | W68: 0 | Y68: 0 | Z68: 0 | AB68: 0 | AC68: 0 | AE68: 0 | AF68: 0 | AH68: 0 | AI68: 0 | AK68: 0 | AL68: 0 | AN68: 0 | AO68: 0 | AQ68: 0 | AR68: 0 | AT68: 0 | AU68: 0 | AW68: 0 | AX68: 0 | AZ68: 0 | BA68: 0 | BC68: 0 | BD68: 0 | BF68: 0 | BG68: 0 | BI68: 0 | BJ68: 0 | BL68: 0 | BM68: 0 | BO68: 0 | BP68: 0 | BR68: 0 | BS68: 0 | BU68: 0 | BV68: 0 | BX68: 0 | BY68: 0 | CA68: 0 | CB68: 0 | CD68: 0 | CE68: 0 | CG68: 0 | CH68: 0 | CJ68: 0 | CK68: 0 | CM68: 0 | CN68: 0 | CP68: 0 | CQ68: 0 | CS68: 0 | CT68: 0 | CV68: 0 | CW68: 0 | CY68: 0 | CZ68: 0 | DB68: 0 | DC68: 0
A69: ="72-"&Texts!B51 -> 72-Flares | C69: 51
AE70: =IF(AE39>SMet_Yield*SUM(Z39,AC39),Texts!$B278,"") ->  | AK70: =IF(OR(AK35>IC_Yield*AF35,AK40>IC_Yield*AF40),Texts!$B278,"") ->  | AN70: =IF(OR(AN35>IC_Yield*AL35,AN40>IC_Yield*AL40),Texts!$B278,"") ->  | AQ70: =IF(AQ41>CC_Yield*AF41,Texts!$B278,"") ->  | AT70: =IF(AT41>CC_Yield*AL41,Texts!$B278,"") ->  | AW70: =IF((AW42>0),IF(AND(AW42>(AW71/1.03),AW42<(AW71/1.005)),"",Texts!$B277),"") ->  | AZ70: =IF((AZ42>0),IF(AND(AZ42>(AZ71/1.03),AZ42<(AZ71/1.005)),"",Texts!$B277),"") ->  | BC70: =IF((BC43>0),IF(AND(BC43>(BC71/1.03),BC43<(BC71/1.005)),"",Texts!$B277),"") ->  | BF70: =IF((SUM(BF44:BF45)>0),IF(AND(SUM(BF44:BF45)>(BF71/1.03),SUM(BF44:BF45)<(BF71/1.005)),"",Texts!$B277),"") ->  | BI70: =IF((BI46>0),IF(AND(BI46>(BI71/1.03),BI46<(BI71/1.005)),"",Texts!$B277),"") ->  | BL70: =IF((BL47>0),IF(AND(BL47>(BL71/1.03),BL47<(BL71/1.005)),"",Texts!$B277),"") ->  | BO70: =IF((BO48>0),IF(AND(BO48>(BO71/1.03),BO48<(BO71/1.005)),"",Texts!$B277),"") ->  | BR70: =IF((BR49>0),IF(AND(BR49>(BR71/1.03),BR49<(BR71/1.005)),"",Texts!$B277),"") ->  | BU70: =IF((BU50>0),IF(AND(BU50>(BU71/1.03),BU50<(BU71/1.005)),"",Texts!$B277),"") ->  | BX70: =IF(BX51>BG51,Texts!$B278,"") ->  | CA70: =IF(CA52>BY52,Texts!$B278,"") ->  | CD70: =IF(OR(CD53>CB53,CD54>CB54),Texts!$B278,"") ->  | CG70: =IF(CG55>SUM(BY55,CB55),Texts!$B278,"") ->  | CJ70: =IF(CJ56>CE56,Texts!$B278,"") ->  | CM70: =IF(CM57>CE57,Texts!$B278,"") ->  | CP70: =IF(CP58>CE58,Texts!$B278,"") ->  | CS70: =IF(CS59>SUM(BY59,CB59,CE59),Texts!$B278,"") ->  | CV70: =IF(CV60>SUM(CH60,CK60,CN60,CQ60,CT60),Texts!$B278,"") -> 
AW71: =($AL42+$AR42-Residues!$AN42) -> 0 | AZ71: =($AL42+$AR42-Residues!$AN42) -> 0 | BC71: =($AL43+$AR43+$AX43-Residues!$AN43) -> 0 | BF71: =($AL44+$AR44+$AX44-Residues!$AN44) -> 4356155.816 | BI71: =($AL46+$AR46+$AX46-Residues!$AN46) -> 0 | BL71: =($AL47+$AR47+$AX47-Residues!$AN47) -> 0 | BO71: =($AL48+$AR48+$AX48-Residues!$AN48) -> 0 | BR71: =($AL49+$AR49+$AX49-Residues!$AN49) -> 0 | BU71: =($AL50+$AR50+$AX50-Residues!$AN50) -> 0
BF72: =($AL45+$AR45+$AX45-Residues!$AN45) -> 0

Sheet Condensed fuels
B1: =Texts!B180 -> Code | D1: CF-01 | G1: CF-02 | J1: CF-03 | M1: CF-04 | P1: CF-05 | S1: CF-06 | V1: CF-07 | Y1: CF-08 | AB1: CF-09 | AE1: CF-10 | AH1: CF-11 | AK1: CF-12 | AN1: CF-13 | AQ1: CF-14 | AT1: CF-15 | AW1: CF-16 | AZ1: CF-17 | BC1: CF-18 | BF1: CF-19 | BI1: CF-20 | BL1: CF-21
B2: =Texts!B182 -> Name | D2: =Texts!$B96 -> Home Coke | G2: =Texts!$B97 -> Purchased coke | J2: =Texts!$B98 -> Purchased nut coke | M2: =Texts!$B99 -> Coke breeze | P2: =Texts!$B100 -> Coking coal | S2: =Texts!$B101 -> Anthracite | V2: =Texts!$B102 -> DRI coal | Y2: =Texts!$B103 -> BF injection Coal | AB2: =Texts!$B104 -> Smelting reduction Coal | AE2: =Texts!$B105 -> EAF Coal | AH2: =Texts!$B106 -> Steam coal | AK2: =Texts!$B107 -> Petroleum Coke | AN2: =Texts!$B108 -> Heavy oil | AQ2: =Texts!$B109 -> Light domestic oil | AT2: =Texts!$B110 -> Diesel oil | AW2: =Texts!$B111 -> LPG | AZ2: =Texts!$B112 -> Charcoal | BC2: =Texts!$B113 -> Used Plastics | BF2: =Texts!$B114 -> Used Tires | BI2: =Texts!$B115 -> Other condensed fuel 1 | BL2: =Texts!$B116 -> Other condensed fuel 2
B3: =Texts!B183 -> Unit | D3: =Texts!$B252 -> t dry | G3: =Texts!$B252 -> t dry | J3: =Texts!$B252 -> t dry | M3: =Texts!$B252 -> t dry | P3: =Texts!$B252 -> t dry | S3: =Texts!$B252 -> t dry | V3: =Texts!$B252 -> t dry | Y3: =Texts!$B252 -> t dry | AB3: =Texts!$B252 -> t dry | AE3: =Texts!$B252 -> t dry | AH3: =Texts!$B252 -> t dry | AK3: =Texts!$B252 -> t dry | AN3: t | AQ3: m3 | AT3: m3 | AW3: GJ ncv | AZ3: =Texts!$B252 -> t dry | BC3: =Texts!$B252 -> t dry | BF3: =Texts!$B252 -> t dry | BI3: =Texts!$B252 -> t dry | BL3: =Texts!$B252 -> t dry
A4: =Texts!B188 -> Material Characteristics | D4: CF-01a | G4: CF-01b | J4: CF-01c | M4: CF-02 | P4: CF-03 | S4: CF-04 | V4: CF-06 | Y4: CF-05 | AB4: CF-06 | AE4: CF-07 | AH4: CF-06 | AK4: CF-08 | AN4: CF-09 | AQ4: CF-10 | AT4: CF-11 | AW4: CF-12 | AZ4: CF-13 | BC4: CF-16 | BF4: CF-17
A5: C | D5: 0.88 | E5: t/t | G5: 0.8535443768 | H5: t/t | J5: 0 | K5: t/t | M5: 0 | N5: t/t | P5: 0.8198633795 | Q5: t/t | S5: 0.8447647598 | T5: t/t | V5: 0 | W5: t/t | Y5: 0.82630888 | Z5: t/t | AB5: 0 | AC5: t/t | AE5: 0 | AF5: t/t | AH5: 0 | AI5: t/t | AK5: 0 | AL5: t/t | AN5: 0 | AO5: t/t | AQ5: 0.7165 | AR5: ="t/"&LDO_unit -> t/m3 | AT5: 0 | AU5: ="t/"&DO_Unit -> t/m3 | AW5: 0 | AX5: t/GJ ncv | AZ5: 0 | BA5: t/t | BC5: 0 | BD5: t/t | BF5: 0 | BG5: t/t | BJ5: t/t | BM5: t/t
A6: =Texts!B189 -> ncv | D6: 30.135 | E6: GJ/t | G6: 30.135 | H6: GJ/t | J6: 0 | K6: GJ/t | M6: 0 | N6: GJ/t | P6: 32.13 | Q6: GJ/t | S6: 30 | T6: GJ/t | V6: 0 | W6: GJ/t | Y6: 31.23 | Z6: GJ/t | AB6: 0 | AC6: GJ/t | AE6: 0 | AF6: GJ/t | AH6: 0 | AI6: GJ/t | AK6: 0 | AL6: GJ/t | AN6: 0 | AO6: GJ/t | AQ6: 35.685 | AR6: ="GJ/"&LDO_unit -> GJ/m3 | AT6: 0 | AU6: ="GJ/"&DO_Unit -> GJ/m3 | AW6: 0 | AX6: GJ/GJ ncv | AZ6: 0 | BA6: GJ/t | BC6: 0 | BD6: GJ/t | BF6: 0 | BG6: GJ/t | BJ6: GJ/t | BM6: GJ/t
A7: =Texts!B190 -> Ash | E7: t/t | H7: t/t | K7: t/t | N7: t/t | Q7: t/t | T7: t/t | W7: t/t | Z7: t/t | AC7: t/t | AF7: t/t | AI7: t/t | AL7: t/t | AO7: t/t | AR7: ="t/"&LDO_unit -> t/m3 | AU7: ="t/"&DO_Unit -> t/m3 | AX7: t/GJ ncv | BA7: t/t | BD7: t/t | BG7: t/t | BJ7: t/t | BM7: t/t
A8: =Texts!B191 -> Volatiles | E8: t/t | H8: t/t | K8: t/t | N8: t/t | Q8: t/t | T8: t/t | W8: t/t | Z8: t/t | AC8: t/t | AF8: t/t | AI8: t/t | AL8: t/t | AO8: t/t | AR8: ="t/"&LDO_unit -> t/m3 | AU8: ="t/"&DO_Unit -> t/m3 | AX8: t/GJ ncv | BA8: t/t | BD8: t/t | BG8: t/t | BJ8: t/t | BM8: t/t
A9: =Texts!B192 -> Energy equivalent | D9: =Coke_ARP_En -> 5.719116828 | E9: GJ/t | G9: =Coke_ARP_En -> 5.719116828 | H9: GJ/t | J9: =Coke_ARP_En -> 5.719116828 | K9: GJ/t | M9: =Coke_ARP_En -> 5.719116828 | N9: GJ/t | Q9: GJ/t | T9: GJ/t | W9: GJ/t | Z9: GJ/t | AC9: GJ/t | AE9: =Coke_ARP_En -> 5.719116828 | AF9: GJ/t | AI9: GJ/t | AL9: GJ/t | AN9: =HFO_UpEn -> 0 | AO9: GJ/t | AQ9: =IF(LDO_unit="t",1,85)*LDO_upEn -> 0 | AR9: ="GJ/"&LDO_unit -> GJ/m3 | AT9: =IF(DO_Unit="t",1,85)*LDO_upEn -> 0 | AU9: ="GJ/"&DO_Unit -> GJ/m3 | AX9: GJ/t | BA9: GJ/t | BD9: GJ/t | BG9: GJ/t | BJ9: GJ/t | BM9: GJ/t
A10: =Texts!B193 -> CO2 Emission factor | D10: =44.01*IF(HomeCoke_C>0,HomeCoke_C,Coke_DefC)/12.011 -> 3.224444259 | E10: t/t | G10: =44.01*IF(PurchCoke_C>0,PurchCoke_C,Coke_DefC)/12.011 -> 3.12750712 | H10: t/t | J10: =44.01*IF(NutCoke_C>0,NutCoke_C,Coke_DefC)/12.011 -> 3.224444259 | K10: t/t | M10: =44.01*IF(Breeze_C>0,Breeze_C,Breeze_DefC)/12.011 -> 3.114520023 | N10: t/t | P10: =44.01*IF(CokingCoal_C>0,CokingCoal_C,CokingCoal_DefC)/12.011 -> 3.00409519 | Q10: t/t | S10: =44.01*IF(Anthracite_C>0,Anthracite_C,Anthracite_DefC)/12.011 -> 3.095337364 | T10: t/t | V10: =44.01*IF(DRICoal_C>0,DRICoal_C,DRICoal_DefC)/12.011 -> 2.894671551 | W10: t/t | Y10: =44.01*IF(PCICoal_C>0,PCICoal_C,PCICoal_DefC)/12.011 -> 3.027712414 | Z10: t/t | AB10: =44.01*IF(SRCoal_C>0,SRCoal_C,SRCoal_DefC)/12.011 -> 2.931312963 | AC10: t/t | AE10: =44.01*IF(EAFCoal_C>0,EAFCoal_C,EAFCoal_DefC)/12.011 -> 3.371009908 | AF10: t/t | AH10: =44.01*IF(SteamCoal_C>0,SteamCoal_C,SteamCoal_DefC)/12.011 -> 2.381691783 | AI10: t/t | AK10: =44.01*IF(PetCoke_C>0,PetCoke_C,PetCoke_DefC)/12.011 -> 3.114520023 | AL10: t/t | AN10: =44.01*IF(HFO_C>0,HFO_C,HFO_DefC)/12.011 -> 3.169482141 | AO10: t/t | AQ10: =44.01*IF(LDO_C>0,LDO_C,IF(LDO_unit="t",1,0.85)*LDO_DefC)/12.011 -> 2.625357173 | AR10: ="t/"&LDO_unit -> t/m3 | AT10: =44.01*IF(LDO_C>0,LDO_C,IF(LDO_unit="t",1,0.85)*LDO_DefC)/12.011 -> 2.625357173 | AU10: ="t/"&DO_Unit -> t/m3 | AW10: =44.01*IF(LPG_C>0,LPG_C,LPG_DefC)/12.011 -> 3.011191241 | AX10: t/GJ ncv | AZ10: =44.01*IF(Charcoal_C>0,Charcoal_C,Charcoal_DefC)/12.011 -> 2.638181667 | BA10: t/t | BC10: =44.01*IF(Plastic_C>0,Plastic_C,Plastic_DefC)/12.011 -> 2.638181667 | BD10: t/t | BF10: =44.01*IF(Tire_C>0,Tire_C,Tire_DefC)/12.011 -> 2.198484722 | BG10: t/t | BI10: =44.01*OCF1_C/12.011 -> 0 | BJ10: t/t | BL10: =44.01*OCF2_C/12.011 -> 0 | BM10: t/t
A11: =Texts!B193 -> CO2 Emission factor | D11: =IFERROR(HomeCoke_EF/HomeCoke_ncv,HomeCoke_EF/Coke_Defncv) -> 0.1069999754 | E11: t/GJ | G11: =IFERROR(PurchCoke_EF/PurchCoke_ncv,PurchCoke_EF/Coke_Defncv) -> 0.1037832129 | H11: t/GJ | J11: =IFERROR(NutCoke_EF/NutCoke_ncv,NutCoke_EF/Coke_Defncv) -> 0.1069999754 | K11: t/GJ | M11: =IFERROR(Breeze_EF/Breeze_ncv,Breeze_EF/Coke_Defncv) -> 0.103352249 | N11: t/GJ | P11: =IFERROR(CokingCoal_EF/CokingCoal_ncv,CokingCoal_EF/CokingCoal_Defncv) -> 0.09349813851 | Q11: t/GJ | S11: =IFERROR(Anthracite_EF/Anthracite_ncv,Anthracite_EF/Anthracite_Defncv) -> 0.1031779121 | T11: t/GJ | V11: =IFERROR(DRICoal_EF/DRICoal_ncv,DRICoal_EF/DRICoal_Defncv) -> 0.09879425089 | W11: t/GJ | Y11: =IFERROR(PCICoal_EF/PCICoal_ncv,PCICoal_EF/PCICoal_Defncv) -> 0.09694884452 | Z11: t/GJ | AB11: =IFERROR(SRCoal_EF/SRCoal_ncv,SRCoal_EF/SRCoal_Defncv) -> 0.09413336426 | AC11: t/GJ | AE11: =IFERROR(EAFCoal_EF/EAFCoal_ncv,EAFCoal_EF/Coke_Defncv) -> 0.1118636107 | AF11: t/GJ | AH11: =IFERROR(SteamCoal_EF/SteamCoal_ncv,SteamCoal_EF/SteamCoal_Defncv) -> 0.09413801512 | AI11: t/GJ | AK11: =IFERROR(PetCoke_EF/PetCoke_ncv,PetCoke_EF/PetCoke_Defncv) -> 0.09752685215 | AL11: t/GJ | AN11: =IFERROR(HFO_EF/HFO_ncv,HFO_EF/HFO_Defncv) -> 0.07954529154 | AO11: t/GJ | AQ11: =IFERROR(LDO_EF/LDO_ncv,LDO_EF/(IF(LDO_unit="t",1,0.85)*LDO_Defncv)) -> 0.0735703285 | AR11: t/GJ | AT11: =IFERROR(LDO_EF/LDO_ncv,LDO_EF/(IF(LDO_unit="t",1,0.85)*LDO_Defncv)) -> 0.0735703285 | AU11: t/GJ | AW11: =IFERROR(LPG_EF/LPG_ncv,LPG_DefEF/LPG_Defncv) -> 0.06541801524 | AX11: t/GJ ncv | AZ11: =IFERROR(Charcoal_EF/Charcoal_ncv,Charcoal_EF/Charcoal_Defncv) -> 0.1403288121 | BA11: t/GJ | BC11: =IFERROR(Plastic_EF/Plastic_ncv,Plastic_EF/Plastic_Defncv) -> 0.05735177537 | BD11: t/GJ | BF11: =IFERROR(Tire_EF/Tire_ncv,Tire_EF/Tire_Defncv) -> 0.06281384921 | BG11: t/GJ | BI11: =IFERROR(OCF1_EF/OCF1_ncv,0) -> 0 | BJ11: t/GJ | BL11: =IFERROR(OCF2_EF/OCF2_ncv,0) -> 0 | BM11: t/GJ
A12: =Texts!B194 -> Upstream CO2 | D12: =Coke_ARP_CO2 -> 0.2699337189 | E12: t/t | G12: =Coke_ARP_CO2 -> 0.2699337189 | H12: t/t | J12: =Coke_ARP_CO2 -> 0.2699337189 | K12: t/t | M12: =Coke_ARP_CO2 -> 0.2699337189 | N12: t/t | Q12: t/t | T12: t/t | W12: t/t | Z12: t/t | AC12: t/t | AE12: =Coke_ARP_CO2 -> 0.2699337189 | AF12: t/t | AI12: t/t | AK12: =PetCoke_upCO2 -> 0 | AL12: t/t | AN12: =HFO_upCO2 -> 0 | AO12: t/t | AQ12: =IF(LDO_unit="m3",0.85,1)*LDO_upCO2 -> 0 | AR12: ="t/"&LDO_unit -> t/m3 | AT12: =IF(DO_Unit="m3",0.85,1)*LDO_upCO2 -> 0 | AU12: ="t/"&DO_Unit -> t/m3 | AW12: =LPG_upCO2 -> 0 | AX12: t/t | BA12: t/t | BD12: t/t | BG12: t/t | BJ12: t/t | BM12: t/t
A14: =Texts!B195 -> Procurements | D14: =D3 -> t dry | G14: =G3 -> t dry | J14: =J3 -> t dry | M14: =M3 -> t dry | P14: =P3 -> t dry | S14: =S3 -> t dry | V14: =V3 -> t dry | Y14: =Y3 -> t dry | AB14: =AB3 -> t dry | AE14: =AE3 -> t dry | AH14: =AH3 -> t dry | AK14: =AK3 -> t dry | AN14: =AN3 -> t | AQ14: =AQ3 -> m3 | AT14: =AT3 -> m3 | AW14: =AW3 -> GJ ncv | AZ14: =AZ3 -> t dry | BC14: =BC3 -> t dry | BF14: =BF3 -> t dry | BI14: =BI3 -> t dry | BL14: =BL3 -> t dry
A15: =Texts!B196 -> External Procurements | D15: 0 | G15: 551080.6853 | J15: 0 | M15: 0 | P15: 1674594.165 | S15: 397903.4097 | V15: 0 | Y15: 1180617.3 | AB15: 0 | AE15: 0 | AH15: 0 | AK15: 0 | AN15: 0 | AQ15: 6108.8 | AT15: 0 | AW15: 0 | AZ15: 0 | BC15: 0 | BF15: 0
A16: =Texts!B197 -> Reclaimed from stocks | D16: 38400.46605 | G16: 33973.76906 | J16: 0 | M16: 0 | P16: 70850.57149 | S16: 0 | V16: 0 | Y16: 0 | AB16: 0 | AE16: 0 | AH16: 0 | AK16: 0 | AN16: 0 | AQ16: 0 | AT16: 0 | AW16: 0 | AZ16: 0 | BC16: 0 | BF16: 0
A17: =Texts!B198 -> Destinations | D17: =D14 -> t dry | G17: =G14 -> t dry | J17: =J14 -> t dry | M17: =M14 -> t dry | P17: =P14 -> t dry | S17: =S14 -> t dry | V17: =V14 -> t dry | Y17: =Y14 -> t dry | AB17: =AB14 -> t dry | AE17: =AE14 -> t dry | AH17: =AH14 -> t dry | AK17: =AK14 -> t dry | AN17: =AN14 -> t | AQ17: =AQ14 -> m3 | AT17: =AT14 -> m3 | AW17: =AW14 -> GJ ncv | AZ17: =AZ14 -> t dry | BC17: =BC14 -> t dry | BF17: =BF14 -> t dry | BI17: =BI14 -> t dry | BL17: =BL14 -> t dry
A18: =Texts!B199 -> External power plants
A19: =Texts!B200 -> Other deliveries | D19: 0 | G19: 0 | J19: 0 | M19: 0 | P19: 0 | S19: 0 | V19: 0 | Y19: 0 | AB19: 0 | AE19: 0 | AH19: 0 | AK19: 0 | AN19: 0 | AQ19: 0 | AT19: 0 | AW19: 0 | AZ19: 0 | BC19: 0 | BF19: 0
A20: =Texts!B201 -> Storage | D20: 0 | G20: 0 | J20: 0 | M20: 0 | P20: 0 | S20: 83138.30116 | V20: 0 | Y20: 9504.427715 | AB20: 0 | AE20: 0 | AH20: 0 | AK20: 0 | AN20: 0 | AQ20: 0 | AT20: 0 | AW20: 0 | AZ20: 0 | BC20: 0 | BF20: 0
A21: =Texts!B202 -> Losses & Inventory Gap
A22: =Texts!B203 -> Balance | D22: =SUM(D15:E16,D25:D69)-SUM(D18:E21,E25:E69) -> 31179.38855 | G22: =SUM(G15:H16,G25:G69)-SUM(G18:H21,H25:H69) -> 13676.65986 | J22: =SUM(J15:K16,J25:J69)-SUM(J18:K21,K25:K69) -> 0 | M22: =SUM(M15:N16,M25:M69)-SUM(M18:N21,N25:N69) -> 0 | P22: =SUM(P15:Q16,P25:P69)-SUM(P18:Q21,Q25:Q69) -> -2440.13151 | S22: =SUM(S15:T16,S25:S69)-SUM(S18:T21,T25:T69) -> -4276.84586 | V22: =SUM(V15:W16,V25:V69)-SUM(V18:W21,W25:W69) -> 0 | Y22: =SUM(Y15:Z16,Y25:Y69)-SUM(Y18:Z21,Z25:Z69) -> 6848.127285 | AB22: =SUM(AB15:AC16,AB25:AB69)-SUM(AB18:AC21,AC25:AC69) -> 0 | AE22: =SUM(AE15:AF16,AE25:AE69)-SUM(AE18:AF21,AF25:AF69) -> 0 | AH22: =SUM(AH15:AI16,AH25:AH69)-SUM(AH18:AI21,AI25:AI69) -> 0 | AK22: =SUM(AK15:AL16,AK25:AK69)-SUM(AK18:AL21,AL25:AL69) -> 0 | AN22: =SUM(AN15:AO16,AN25:AN69)-SUM(AN18:AO21,AO25:AO69) -> 0 | AQ22: =SUM(AQ15:AR16,AQ25:AQ69)-SUM(AQ18:AR21,AR25:AR69) -> 2590.757 | AT22: =SUM(AT15:AU16,AT25:AT69)-SUM(AT18:AU21,AU25:AU69) -> 0 | AW22: =SUM(AW15:AX16,AW25:AW69)-SUM(AW18:AX21,AX25:AX69) -> 0 | AZ22: =SUM(AZ15:BA16,AZ25:AZ69)-SUM(AZ18:BA21,BA25:BA69) -> 0 | BC22: =SUM(BC15:BD16,BC25:BC69)-SUM(BC18:BD21,BD25:BD69) -> 0 | BF22: =SUM(BF15:BG16,BF25:BF69)-SUM(BF18:BG21,BG25:BG69) -> 0 | BI22: =SUM(BI15:BJ16,BI25:BI69)-SUM(BI18:BJ21,BJ25:BJ69) -> 0 | BL22: =SUM(BL15:BM16,BL25:BL69)-SUM(BL18:BM21,BM25:BM69) -> 0
D24: =Texts!$B204 -> Generation | E24: =Texts!$B205 -> Use | G24: =Texts!$B204 -> Generation | H24: =Texts!$B205 -> Use | J24: =Texts!$B204 -> Generation | K24: =Texts!$B205 -> Use | M24: =Texts!$B204 -> Generation | N24: =Texts!$B205 -> Use | P24: =Texts!$B204 -> Generation | Q24: =Texts!$B205 -> Use | S24: =Texts!$B204 -> Generation | T24: =Texts!$B205 -> Use | V24: =Texts!$B204 -> Generation | W24: =Texts!$B205 -> Use | Y24: =Texts!$B204 -> Generation | Z24: =Texts!$B205 -> Use | AB24: =Texts!$B204 -> Generation | AC24: =Texts!$B205 -> Use | AE24: =Texts!$B204 -> Generation | AF24: =Texts!$B205 -> Use | AH24: =Texts!$B204 -> Generation | AI24: =Texts!$B205 -> Use | AK24: =Texts!$B204 -> Generation | AL24: =Texts!$B205 -> Use | AN24: =Texts!$B204 -> Generation | AO24: =Texts!$B205 -> Use | AQ24: =Texts!$B204 -> Generation | AR24: =Texts!$B205 -> Use | AT24: =Texts!$B204 -> Generation | AU24: =Texts!$B205 -> Use | AW24: =Texts!$B204 -> Generation | AX24: =Texts!$B205 -> Use | AZ24: =Texts!$B204 -> Generation | BA24: =Texts!$B205 -> Use | BC24: =Texts!$B204 -> Generation | BD24: =Texts!$B205 -> Use | BF24: =Texts!$B204 -> Generation | BG24: =Texts!$B205 -> Use | BI24: =Texts!$B204 -> Generation | BJ24: =Texts!$B205 -> Use | BL24: =Texts!$B204 -> Generation | BM24: =Texts!$B205 -> Use
A25: ="01-"&Texts!B10 -> 01-Coke plant | C25: 3 | D25: 1379008 | E25: 0 | G25: 0 | H25: 0 | J25: 0 | K25: 0 | M25: 0 | N25: 0 | P25: 0 | Q25: 1747884.868 | S25: 0 | T25: 0 | V25: 0 | W25: 0 | Y25: 0 | Z25: 0 | AB25: 0 | AC25: 0 | AE25: 0 | AF25: 0 | AH25: 0 | AI25: 0 | AK25: 0 | AL25: 0 | AN25: 0 | AO25: 0 | AQ25: 0 | AR25: 3518.043 | AT25: 0 | AU25: 0 | AW25: 0 | AX25: 0 | AZ25: 0 | BA25: 0 | BC25: 0 | BD25: 0 | BF25: 0 | BG25: 0 | BJ25: 0
A26: ="02-"&Texts!B11 -> 02-Sinter plant | C26: 4 | D26: 0 | E26: 110479.1535 | G26: 0 | H26: 34696.9559 | J26: 0 | K26: 0 | M26: 0 | N26: 0 | P26: 0 | Q26: 0 | S26: 0 | T26: 319041.9544 | V26: 0 | W26: 0 | Y26: 0 | Z26: 0 | AB26: 0 | AC26: 0 | AE26: 0 | AF26: 0 | AH26: 0 | AI26: 0 | AK26: 0 | AL26: 0 | AN26: 0 | AO26: 0 | AQ26: 0 | AR26: 0 | AT26: 0 | AU26: 0 | AW26: 0 | AX26: 0 | AZ26: 0 | BA26: 0 | BC26: 0 | BD26: 0 | BF26: 0 | BG26: 0 | BJ26: 0
A27: ="03-"&Texts!B12 -> 03-Pellet plant | D27: 0 | E27: 0 | G27: 0 | H27: 0 | J27: 0 | K27: 0 | M27: 0 | N27: 0 | P27: 0 | Q27: 0 | S27: 0 | T27: 0 | V27: 0 | W27: 0 | Y27: 0 | Z27: 0 | AB27: 0 | AC27: 0 | AE27: 0 | AF27: 0 | AH27: 0 | AI27: 0 | AK27: 0 | AL27: 0 | AN27: 0 | AO27: 0 | AQ27: 0 | AR27: 0 | AT27: 0 | AU27: 0 | AW27: 0 | AX27: 0 | AZ27: 0 | BA27: 0 | BC27: 0 | BD27: 0 | BF27: 0 | BG27: 0 | BJ27: 0
A28: ="04-"&Texts!B13 -> 04-Gas based DRI plant | C28: 6 | D28: 0 | E28: 0 | G28: 0 | H28: 0 | J28: 0 | K28: 0 | M28: 0 | N28: 0 | P28: 0 | Q28: 0 | S28: 0 | T28: 0 | V28: 0 | W28: 0 | Y28: 0 | Z28: 0 | AB28: 0 | AC28: 0 | AE28: 0 | AF28: 0 | AH28: 0 | AI28: 0 | AK28: 0 | AL28: 0 | AN28: 0 | AO28: 0 | AQ28: 0 | AR28: 0 | AT28: 0 | AU28: 0 | AW28: 0 | AX28: 0 | AZ28: 0 | BA28: 0 | BC28: 0 | BD28: 0 | BF28: 0 | BG28: 0 | BJ28: 0
A29: ="05-"&Texts!B14 -> 05-Coal based DRI plant | D29: 0 | E29: 0 | G29: 0 | H29: 0 | J29: 0 | K29: 0 | M29: 0 | N29: 0 | P29: 0 | Q29: 0 | S29: 0 | T29: 0 | V29: 0 | W29: 0 | Y29: 0 | Z29: 0 | AB29: 0 | AE29: 0 | AF29: 0 | AH29: 0 | AK29: 0 | AL29: 0 | AN29: 0 | AO29: 0 | AQ29: 0 | AR29: 0 | AT29: 0 | AU29: 0 | AW29: 0 | AX29: 0 | AZ29: 0 | BA29: 0 | BC29: 0 | BD29: 0 | BF29: 0 | BG29: 0 | BJ29: 0
A30: ="06-"&Texts!B15 -> 06-Blast Furnace plant | C30: 5 | D30: 0 | E30: 1275749.924 | G30: 0 | H30: 536680.8386 | J30: 0 | K30: 0 | M30: 0 | N30: 0 | P30: 0 | Q30: 0 | S30: 0 | T30: 0 | V30: 0 | W30: 0 | Y30: 0 | Z30: 1164264.745 | AB30: 0 | AC30: 0 | AE30: 0 | AF30: 0 | AH30: 0 | AI30: 0 | AK30: 0 | AL30: 0 | AN30: 0 | AO30: 0 | AQ30: 0 | AR30: 0 | AT30: 0 | AU30: 0 | AW30: 0 | AX30: 0 | AZ30: 0 | BA30: 0 | BC30: 0 | BD30: 0 | BF30: 0 | BG30: 0 | BJ30: 0
A31: ="07-"&Texts!B16 -> 07-Smelting Reduction plant | C31: 7 | D31: 0 | E31: 0 | G31: 0 | H31: 0 | J31: 0 | K31: 0 | M31: 0 | N31: 0 | P31: 0 | Q31: 0 | S31: 0 | T31: 0 | V31: 0 | Y31: 0 | Z31: 0 | AB31: 0 | AC31: 0 | AE31: 0 | AF31: 0 | AH31: 0 | AK31: 0 | AL31: 0 | AN31: 0 | AO31: 0 | AQ31: 0 | AR31: 0 | AT31: 0 | AU31: 0 | AW31: 0 | AX31: 0 | AZ31: 0 | BA31: 0 | BC31: 0 | BD31: 0 | BF31: 0 | BG31: 0 | BJ31: 0
A32: ="11-"&Texts!B17 -> 11-BOF shop
A33: ="11a-"&Texts!B18 -> 11a-BOF converter | C33: 8 | D33: 0 | E33: 0 | G33: 0 | H33: 0 | J33: 0 | K33: 0 | M33: 0 | N33: 0 | P33: 0 | Q33: 0 | S33: 0 | T33: 0 | V33: 0 | W33: 0 | Y33: 0 | Z33: 0 | AB33: 0 | AC33: 0 | AE33: 0 | AF33: 0 | AH33: 0 | AI33: 0 | AK33: 0 | AL33: 0 | AN33: 0 | AO33: 0 | AQ33: 0 | AR33: 0 | AT33: 0 | AU33: 0 | AW33: 0 | AX33: 0 | AZ33: 0 | BA33: 0 | BC33: 0 | BD33: 0 | BF33: 0 | BG33: 0 | BJ33: 0
A34: ="11b-"&Texts!B21 -> 11b-Secondary metallurgy plant | D34: 0 | E34: 0 | G34: 0 | H34: 0 | J34: 0 | K34: 0 | M34: 0 | N34: 0 | P34: 0 | Q34: 0 | S34: 0 | T34: 0 | V34: 0 | W34: 0 | Y34: 0 | Z34: 0 | AB34: 0 | AC34: 0 | AE34: 0 | AF34: 0 | AH34: 0 | AI34: 0 | AK34: 0 | AL34: 0 | AN34: 0 | AO34: 0 | AQ34: 0 | AR34: 0 | AT34: 0 | AU34: 0 | AW34: 0 | AX34: 0 | AZ34: 0 | BA34: 0 | BC34: 0 | BD34: 0 | BF34: 0 | BG34: 0 | BJ34: 0
A35: ="11c-"&Texts!B22 -> 11c-Ingot Casting plant | D35: 0 | E35: 0 | G35: 0 | H35: 0 | J35: 0 | K35: 0 | M35: 0 | N35: 0 | P35: 0 | Q35: 0 | S35: 0 | T35: 0 | V35: 0 | W35: 0 | Y35: 0 | Z35: 0 | AB35: 0 | AC35: 0 | AE35: 0 | AF35: 0 | AH35: 0 | AI35: 0 | AK35: 0 | AL35: 0 | AN35: 0 | AO35: 0 | AQ35: 0 | AR35: 0 | AT35: 0 | AU35: 0 | AW35: 0 | AX35: 0 | AZ35: 0 | BA35: 0 | BC35: 0 | BD35: 0 | BF35: 0 | BG35: 0 | BJ35: 0
A36: ="11d-"&Texts!B23 -> 11d-Continuous casting plant | D36: 0 | E36: 0 | G36: 0 | H36: 0 | J36: 0 | K36: 0 | M36: 0 | N36: 0 | P36: 0 | Q36: 0 | S36: 0 | T36: 0 | V36: 0 | W36: 0 | Y36: 0 | Z36: 0 | AB36: 0 | AC36: 0 | AE36: 0 | AF36: 0 | AH36: 0 | AI36: 0 | AK36: 0 | AL36: 0 | AN36: 0 | AO36: 0 | AQ36: 0 | AR36: 0 | AT36: 0 | AU36: 0 | AW36: 0 | AX36: 0 | AZ36: 0 | BA36: 0 | BC36: 0 | BD36: 0 | BF36: 0 | BG36: 0 | BJ36: 0
A37: ="12-"&Texts!B19 -> 12-EAF shop
A38: ="12a-"&Texts!B20 -> 12a-Electric arc furnace | C38: 9 | D38: 0 | E38: 0 | G38: 0 | H38: 0 | J38: 0 | K38: 0 | M38: 0 | N38: 0 | P38: 0 | Q38: 0 | S38: 0 | T38: 0 | V38: 0 | W38: 0 | Y38: 0 | Z38: 0 | AB38: 0 | AC38: 0 | AE38: 0 | AF38: 0 | AH38: 0 | AI38: 0 | AK38: 0 | AL38: 0 | AN38: 0 | AO38: 0 | AQ38: 0 | AR38: 0 | AT38: 0 | AU38: 0 | AW38: 0 | AX38: 0 | AZ38: 0 | BA38: 0 | BC38: 0 | BD38: 0 | BF38: 0 | BG38: 0 | BJ38: 0
A39: ="12b-"&Texts!B21 -> 12b-Secondary metallurgy plant | C39: 10 | D39: 0 | E39: 0 | G39: 0 | H39: 0 | J39: 0 | K39: 0 | M39: 0 | N39: 0 | P39: 0 | Q39: 0 | S39: 0 | T39: 0 | V39: 0 | W39: 0 | Y39: 0 | Z39: 0 | AB39: 0 | AC39: 0 | AE39: 0 | AF39: 0 | AH39: 0 | AI39: 0 | AK39: 0 | AL39: 0 | AN39: 0 | AO39: 0 | AQ39: 0 | AR39: 0 | AT39: 0 | AU39: 0 | AW39: 0 | AX39: 0 | AZ39: 0 | BA39: 0 | BC39: 0 | BD39: 0 | BF39: 0 | BG39: 0 | BJ39: 0
A40: ="12c-"&Texts!B22 -> 12c-Ingot Casting plant | C40: 11 | D40: 0 | E40: 0 | G40: 0 | H40: 0 | J40: 0 | K40: 0 | M40: 0 | N40: 0 | P40: 0 | Q40: 0 | S40: 0 | T40: 0 | V40: 0 | W40: 0 | Y40: 0 | Z40: 0 | AB40: 0 | AC40: 0 | AE40: 0 | AF40: 0 | AH40: 0 | AI40: 0 | AK40: 0 | AL40: 0 | AN40: 0 | AO40: 0 | AQ40: 0 | AR40: 0 | AT40: 0 | AU40: 0 | AW40: 0 | AX40: 0 | AZ40: 0 | BA40: 0 | BC40: 0 | BD40: 0 | BF40: 0 | BG40: 0 | BJ40: 0
A41: ="12d-"&Texts!B23 -> 12d-Continuous casting plant | C41: 12 | D41: 0 | E41: 0 | G41: 0 | H41: 0 | J41: 0 | K41: 0 | M41: 0 | N41: 0 | P41: 0 | Q41: 0 | S41: 0 | T41: 0 | V41: 0 | W41: 0 | Y41: 0 | Z41: 0 | AB41: 0 | AC41: 0 | AE41: 0 | AF41: 0 | AH41: 0 | AI41: 0 | AK41: 0 | AL41: 0 | AN41: 0 | AO41: 0 | AQ41: 0 | AR41: 0 | AT41: 0 | AU41: 0 | AW41: 0 | AX41: 0 | AZ41: 0 | BA41: 0 | BC41: 0 | BD41: 0 | BF41: 0 | BG41: 0 | BJ41: 0
A42: ="21-"&Texts!B24 -> 21-Cogging mill | C42: 13 | D42: 0 | E42: 0 | G42: 0 | H42: 0 | J42: 0 | K42: 0 | M42: 0 | N42: 0 | P42: 0 | Q42: 0 | S42: 0 | T42: 0 | V42: 0 | W42: 0 | Y42: 0 | Z42: 0 | AB42: 0 | AC42: 0 | AE42: 0 | AF42: 0 | AH42: 0 | AI42: 0 | AK42: 0 | AL42: 0 | AN42: 0 | AO42: 0 | AQ42: 0 | AR42: 0 | AT42: 0 | AU42: 0 | AW42: 0 | AX42: 0 | AZ42: 0 | BA42: 0 | BC42: 0 | BD42: 0 | BF42: 0 | BG42: 0 | BJ42: 0
A43: ="22-"&Texts!B25 -> 22-Billet Mill | C43: 14 | D43: 0 | E43: 0 | G43: 0 | H43: 0 | J43: 0 | K43: 0 | M43: 0 | N43: 0 | P43: 0 | Q43: 0 | S43: 0 | T43: 0 | V43: 0 | W43: 0 | Y43: 0 | Z43: 0 | AB43: 0 | AC43: 0 | AE43: 0 | AF43: 0 | AH43: 0 | AI43: 0 | AK43: 0 | AL43: 0 | AN43: 0 | AO43: 0 | AQ43: 0 | AR43: 0 | AT43: 0 | AU43: 0 | AW43: 0 | AX43: 0 | AZ43: 0 | BA43: 0 | BC43: 0 | BD43: 0 | BF43: 0 | BG43: 0 | BJ43: 0
A44: ="23-"&Texts!B26 -> 23-Hot Strip Mill | C44: 15 | D44: 0 | E44: 0 | G44: 0 | H44: 0 | J44: 0 | K44: 0 | M44: 0 | N44: 0 | P44: 0 | Q44: 0 | S44: 0 | T44: 0 | V44: 0 | W44: 0 | Y44: 0 | Z44: 0 | AB44: 0 | AC44: 0 | AE44: 0 | AF44: 0 | AH44: 0 | AI44: 0 | AK44: 0 | AL44: 0 | AN44: 0 | AO44: 0 | AQ44: 0 | AR44: 0 | AT44: 0 | AU44: 0 | AW44: 0 | AX44: 0 | AZ44: 0 | BA44: 0 | BC44: 0 | BD44: 0 | BF44: 0 | BG44: 0 | BJ44: 0
A45: ="24-"&Texts!B27 -> 24-Compact Strip Mill | C45: 16 | D45: 0 | E45: 0 | G45: 0 | H45: 0 | J45: 0 | K45: 0 | M45: 0 | N45: 0 | P45: 0 | Q45: 0 | S45: 0 | T45: 0 | V45: 0 | W45: 0 | Y45: 0 | Z45: 0 | AB45: 0 | AC45: 0 | AE45: 0 | AF45: 0 | AH45: 0 | AI45: 0 | AK45: 0 | AL45: 0 | AN45: 0 | AO45: 0 | AQ45: 0 | AR45: 0 | AT45: 0 | AU45: 0 | AW45: 0 | AX45: 0 | AZ45: 0 | BA45: 0 | BC45: 0 | BD45: 0 | BF45: 0 | BG45: 0 | BJ45: 0
A46: ="25-"&Texts!B28 -> 25-Plate Mill | C46: 17 | D46: 0 | E46: 0 | G46: 0 | H46: 0 | J46: 0 | K46: 0 | M46: 0 | N46: 0 | P46: 0 | Q46: 0 | S46: 0 | T46: 0 | V46: 0 | W46: 0 | Y46: 0 | Z46: 0 | AB46: 0 | AC46: 0 | AE46: 0 | AF46: 0 | AH46: 0 | AI46: 0 | AK46: 0 | AL46: 0 | AN46: 0 | AO46: 0 | AQ46: 0 | AR46: 0 | AT46: 0 | AU46: 0 | AW46: 0 | AX46: 0 | AZ46: 0 | BA46: 0 | BC46: 0 | BD46: 0 | BF46: 0 | BG46: 0 | BJ46: 0
A47: ="26-"&Texts!B29 -> 26-Bar & Rod Mill | C47: 18 | D47: 0 | E47: 0 | G47: 0 | H47: 0 | J47: 0 | K47: 0 | M47: 0 | N47: 0 | P47: 0 | Q47: 0 | S47: 0 | T47: 0 | V47: 0 | W47: 0 | Y47: 0 | Z47: 0 | AB47: 0 | AC47: 0 | AE47: 0 | AF47: 0 | AH47: 0 | AI47: 0 | AK47: 0 | AL47: 0 | AN47: 0 | AO47: 0 | AQ47: 0 | AR47: 0 | AT47: 0 | AU47: 0 | AW47: 0 | AX47: 0 | AZ47: 0 | BA47: 0 | BC47: 0 | BD47: 0 | BF47: 0 | BG47: 0 | BJ47: 0
A48: ="27-"&Texts!B30 -> 27-Section Mill | C48: 19 | D48: 0 | E48: 0 | G48: 0 | H48: 0 | J48: 0 | K48: 0 | M48: 0 | N48: 0 | P48: 0 | Q48: 0 | S48: 0 | T48: 0 | V48: 0 | W48: 0 | Y48: 0 | Z48: 0 | AB48: 0 | AC48: 0 | AE48: 0 | AF48: 0 | AH48: 0 | AI48: 0 | AK48: 0 | AL48: 0 | AN48: 0 | AO48: 0 | AQ48: 0 | AR48: 0 | AT48: 0 | AU48: 0 | AW48: 0 | AX48: 0 | AZ48: 0 | BA48: 0 | BC48: 0 | BD48: 0 | BF48: 0 | BG48: 0 | BJ48: 0
A49: ="28-"&Texts!B31 -> 28-Wire Mill | C49: 20 | D49: 0 | E49: 0 | G49: 0 | H49: 0 | J49: 0 | K49: 0 | M49: 0 | N49: 0 | P49: 0 | Q49: 0 | S49: 0 | T49: 0 | V49: 0 | W49: 0 | Y49: 0 | Z49: 0 | AB49: 0 | AC49: 0 | AE49: 0 | AF49: 0 | AH49: 0 | AI49: 0 | AK49: 0 | AL49: 0 | AN49: 0 | AO49: 0 | AQ49: 0 | AR49: 0 | AT49: 0 | AU49: 0 | AW49: 0 | AX49: 0 | AZ49: 0 | BA49: 0 | BC49: 0 | BD49: 0 | BF49: 0 | BG49: 0 | BJ49: 0
A50: ="29-"&Texts!B32 -> 29-Tube Mill | C50: 21 | D50: 0 | E50: 0 | G50: 0 | H50: 0 | J50: 0 | K50: 0 | M50: 0 | N50: 0 | P50: 0 | Q50: 0 | S50: 0 | T50: 0 | V50: 0 | W50: 0 | Y50: 0 | Z50: 0 | AB50: 0 | AC50: 0 | AE50: 0 | AF50: 0 | AH50: 0 | AI50: 0 | AK50: 0 | AL50: 0 | AN50: 0 | AO50: 0 | AQ50: 0 | AR50: 0 | AT50: 0 | AU50: 0 | AW50: 0 | AX50: 0 | AZ50: 0 | BA50: 0 | BC50: 0 | BD50: 0 | BF50: 0 | BG50: 0 | BJ50: 0
A51: ="31-"&Texts!B33 -> 31-Pickling plant | C51: 22 | D51: 0 | E51: 0 | G51: 0 | H51: 0 | J51: 0 | K51: 0 | M51: 0 | N51: 0 | P51: 0 | Q51: 0 | S51: 0 | T51: 0 | V51: 0 | W51: 0 | Y51: 0 | Z51: 0 | AB51: 0 | AC51: 0 | AE51: 0 | AF51: 0 | AH51: 0 | AI51: 0 | AK51: 0 | AL51: 0 | AN51: 0 | AO51: 0 | AQ51: 0 | AR51: 0 | AT51: 0 | AU51: 0 | AW51: 0 | AX51: 0 | AZ51: 0 | BA51: 0 | BC51: 0 | BD51: 0 | BF51: 0 | BG51: 0 | BJ51: 0
A52: ="32-"&Texts!B34 -> 32-Cold rolling Mill | C52: 23 | D52: 0 | E52: 0 | G52: 0 | H52: 0 | J52: 0 | K52: 0 | M52: 0 | N52: 0 | P52: 0 | Q52: 0 | S52: 0 | T52: 0 | V52: 0 | W52: 0 | Y52: 0 | Z52: 0 | AB52: 0 | AC52: 0 | AE52: 0 | AF52: 0 | AH52: 0 | AI52: 0 | AK52: 0 | AL52: 0 | AN52: 0 | AO52: 0 | AQ52: 0 | AR52: 0 | AT52: 0 | AU52: 0 | AW52: 0 | AX52: 0 | AZ52: 0 | BA52: 0 | BC52: 0 | BD52: 0 | BF52: 0 | BG52: 0 | BJ52: 0
A53: ="33-"&Texts!B35 -> 33-Continuous Annealing plant | C53: 24 | D53: 0 | E53: 0 | G53: 0 | H53: 0 | J53: 0 | K53: 0 | M53: 0 | N53: 0 | P53: 0 | Q53: 0 | S53: 0 | T53: 0 | V53: 0 | W53: 0 | Y53: 0 | Z53: 0 | AB53: 0 | AC53: 0 | AE53: 0 | AF53: 0 | AH53: 0 | AI53: 0 | AK53: 0 | AL53: 0 | AN53: 0 | AO53: 0 | AQ53: 0 | AR53: 0 | AT53: 0 | AU53: 0 | AW53: 0 | AX53: 0 | AZ53: 0 | BA53: 0 | BC53: 0 | BD53: 0 | BF53: 0 | BG53: 0 | BJ53: 0
A54: ="34-"&Texts!B36 -> 34-Batch Annealing plant | C54: 25 | D54: 0 | E54: 0 | G54: 0 | H54: 0 | J54: 0 | K54: 0 | M54: 0 | N54: 0 | P54: 0 | Q54: 0 | S54: 0 | T54: 0 | V54: 0 | W54: 0 | Y54: 0 | Z54: 0 | AB54: 0 | AC54: 0 | AE54: 0 | AF54: 0 | AH54: 0 | AI54: 0 | AK54: 0 | AL54: 0 | AN54: 0 | AO54: 0 | AQ54: 0 | AR54: 0 | AT54: 0 | AU54: 0 | AW54: 0 | AX54: 0 | AZ54: 0 | BA54: 0 | BC54: 0 | BD54: 0 | BF54: 0 | BG54: 0 | BJ54: 0
A55: ="41-"&Texts!B37 -> 41-Hot dip galvanising plant | C55: 27 | D55: 0 | E55: 0 | G55: 0 | H55: 0 | J55: 0 | K55: 0 | M55: 0 | N55: 0 | P55: 0 | Q55: 0 | S55: 0 | T55: 0 | V55: 0 | W55: 0 | Y55: 0 | Z55: 0 | AB55: 0 | AC55: 0 | AE55: 0 | AF55: 0 | AH55: 0 | AI55: 0 | AK55: 0 | AL55: 0 | AN55: 0 | AO55: 0 | AQ55: 0 | AR55: 0 | AT55: 0 | AU55: 0 | AW55: 0 | AX55: 0 | AZ55: 0 | BA55: 0 | BC55: 0 | BD55: 0 | BF55: 0 | BG55: 0 | BJ55: 0
A56: ="42-"&Texts!B38 -> 42-Electro galvanising plant | C56: 28 | D56: 0 | E56: 0 | G56: 0 | H56: 0 | J56: 0 | K56: 0 | M56: 0 | N56: 0 | P56: 0 | Q56: 0 | S56: 0 | T56: 0 | V56: 0 | W56: 0 | Y56: 0 | Z56: 0 | AB56: 0 | AC56: 0 | AE56: 0 | AF56: 0 | AH56: 0 | AI56: 0 | AK56: 0 | AL56: 0 | AN56: 0 | AO56: 0 | AQ56: 0 | AR56: 0 | AT56: 0 | AU56: 0 | AW56: 0 | AX56: 0 | AZ56: 0 | BA56: 0 | BC56: 0 | BD56: 0 | BF56: 0 | BG56: 0 | BJ56: 0
A57: ="43-"&Texts!B39 -> 43-Tinplating plant | C57: 29 | D57: 0 | E57: 0 | G57: 0 | H57: 0 | J57: 0 | K57: 0 | M57: 0 | N57: 0 | P57: 0 | Q57: 0 | S57: 0 | T57: 0 | V57: 0 | W57: 0 | Y57: 0 | Z57: 0 | AB57: 0 | AC57: 0 | AE57: 0 | AF57: 0 | AH57: 0 | AI57: 0 | AK57: 0 | AL57: 0 | AN57: 0 | AO57: 0 | AQ57: 0 | AR57: 0 | AT57: 0 | AU57: 0 | AW57: 0 | AX57: 0 | AZ57: 0 | BA57: 0 | BC57: 0 | BD57: 0 | BF57: 0 | BG57: 0 | BJ57: 0
A58: ="45-"&Texts!B40 -> 45-Tin free plating plant | C58: 30 | D58: 0 | E58: 0 | G58: 0 | H58: 0 | J58: 0 | K58: 0 | M58: 0 | N58: 0 | P58: 0 | Q58: 0 | S58: 0 | T58: 0 | V58: 0 | W58: 0 | Y58: 0 | Z58: 0 | AB58: 0 | AC58: 0 | AE58: 0 | AF58: 0 | AH58: 0 | AI58: 0 | AK58: 0 | AL58: 0 | AN58: 0 | AO58: 0 | AQ58: 0 | AR58: 0 | AT58: 0 | AU58: 0 | AW58: 0 | AX58: 0 | AZ58: 0 | BA58: 0 | BC58: 0 | BD58: 0 | BF58: 0 | BG58: 0 | BJ58: 0
A59: ="46-"&Texts!B41 -> 46-Other metal coating plant | C59: 31
A60: ="47-"&Texts!B42 -> 47-Organic coating plant | C60: 31 | D60: 0 | E60: 0 | G60: 0 | H60: 0 | J60: 0 | K60: 0 | M60: 0 | N60: 0 | P60: 0 | Q60: 0 | S60: 0 | T60: 0 | V60: 0 | W60: 0 | Y60: 0 | Z60: 0 | AB60: 0 | AC60: 0 | AE60: 0 | AF60: 0 | AH60: 0 | AI60: 0 | AK60: 0 | AL60: 0 | AN60: 0 | AO60: 0 | AQ60: 0 | AR60: 0 | AT60: 0 | AU60: 0 | AW60: 0 | AX60: 0 | AZ60: 0 | BA60: 0 | BC60: 0 | BD60: 0 | BF60: 0 | BG60: 0 | BJ60: 0
A61: ="51-"&Texts!B43 -> 51-Dust Treatment plant | C61: 35
A62: ="52-"&Texts!B44 -> 52-Lime plant | C62: 32 | D62: 0 | E62: 0 | G62: 0 | H62: 0 | J62: 0 | K62: 0 | M62: 0 | N62: 0 | P62: 0 | Q62: 0 | S62: 0 | T62: 0 | V62: 0 | W62: 0 | Y62: 0 | Z62: 0 | AB62: 0 | AC62: 0 | AE62: 0 | AF62: 0 | AH62: 0 | AI62: 0 | AK62: 0 | AL62: 0 | AN62: 0 | AO62: 0 | AQ62: 0 | AR62: 0 | AT62: 0 | AU62: 0 | AW62: 0 | AX62: 0 | AZ62: 0 | BA62: 0 | BC62: 0 | BD62: 0 | BF62: 0 | BG62: 0 | BJ62: 0
A63: ="53-"&Texts!B45 -> 53-Heat treatment plant
A64: ="61-"&Texts!B46 -> 61-Boilers | C64: 44 | D64: 0 | E64: 0 | G64: 0 | H64: 0 | J64: 0 | K64: 0 | M64: 0 | N64: 0 | P64: 0 | Q64: 0 | S64: 0 | T64: 0 | V64: 0 | Y64: 0 | Z64: 0 | AB64: 0 | AE64: 0 | AF64: 0 | AH64: 0 | AI64: 0 | AK64: 0 | AL64: 0 | AN64: 0 | AO64: 0 | AQ64: 0 | AR64: 0 | AT64: 0 | AU64: 0 | AW64: 0 | AX64: 0 | AZ64: 0 | BA64: 0 | BC64: 0 | BD64: 0 | BF64: 0 | BG64: 0 | BJ64: 0
A65: ="62-"&Texts!B47 -> 62-Power plant | C65: 43 | D65: 0 | E65: 0 | G65: 0 | H65: 0 | J65: 0 | K65: 0 | M65: 0 | N65: 0 | P65: 0 | Q65: 0 | S65: 0 | T65: 0 | V65: 0 | W65: 0 | Y65: 0 | Z65: 0 | AB65: 0 | AC65: 0 | AE65: 0 | AF65: 0 | AH65: 0 | AI65: 0 | AK65: 0 | AL65: 0 | AN65: 0 | AO65: 0 | AQ65: 0 | AR65: 0 | AT65: 0 | AU65: 0 | AW65: 0 | AX65: 0 | AZ65: 0 | BA65: 0 | BC65: 0 | BD65: 0 | BF65: 0 | BG65: 0 | BJ65: 0
A66: ="63-"&Texts!B48 -> 63-Air separation unit | C66: 45 | D66: 0 | E66: 0 | G66: 0 | H66: 0 | J66: 0 | K66: 0 | M66: 0 | N66: 0 | P66: 0 | Q66: 0 | S66: 0 | T66: 0 | V66: 0 | W66: 0 | Y66: 0 | Z66: 0 | AB66: 0 | AC66: 0 | AE66: 0 | AF66: 0 | AH66: 0 | AI66: 0 | AK66: 0 | AL66: 0 | AN66: 0 | AO66: 0 | AQ66: 0 | AR66: 0 | AT66: 0 | AU66: 0 | AW66: 0 | AX66: 0 | AZ66: 0 | BA66: 0 | BC66: 0 | BD66: 0 | BF66: 0 | BG66: 0 | BJ66: 0
A67: ="64-"&Texts!B49 -> 64-Compressed Air plant | C67: 46 | D67: 0 | E67: 0 | G67: 0 | H67: 0 | J67: 0 | K67: 0 | M67: 0 | N67: 0 | P67: 0 | Q67: 0 | S67: 0 | T67: 0 | V67: 0 | W67: 0 | Y67: 0 | Z67: 0 | AB67: 0 | AC67: 0 | AE67: 0 | AF67: 0 | AH67: 0 | AI67: 0 | AK67: 0 | AL67: 0 | AN67: 0 | AO67: 0 | AQ67: 0 | AR67: 0 | AT67: 0 | AU67: 0 | AW67: 0 | AX67: 0 | AZ67: 0 | BA67: 0 | BC67: 0 | BD67: 0 | BF67: 0 | BG67: 0 | BJ67: 0
A68: ="71-"&Texts!B50 -> 71-Others | C68: 57 | D68: 0 | E68: 0 | G68: 0 | H68: 0 | J68: 0 | K68: 0 | M68: 0 | N68: 0 | P68: 0 | Q68: 0 | S68: 0 | T68: 0 | V68: 0 | W68: 0 | Y68: 0 | Z68: 0 | AB68: 0 | AC68: 0 | AE68: 0 | AF68: 0 | AH68: 0 | AI68: 0 | AK68: 0 | AL68: 0 | AN68: 0 | AO68: 0 | AQ68: 0 | AR68: 0 | AT68: 0 | AU68: 0 | AW68: 0 | AX68: 0 | AZ68: 0 | BA68: 0 | BC68: 0 | BD68: 0 | BF68: 0 | BG68: 0 | BJ68: 0
A69: ="72-"&Texts!B51 -> 72-Flares | C69: 51

Sheet Gas fuels
B1: =Texts!B180 -> Code | D1: GF-01 | G1: GF-02 | J1: GF-03 | M1: GF-04 | P1: GF-05 | S1: GF-06 | V1: GF-07
B2: =Texts!B182 -> Name | D2: =Texts!$B118 -> Coke Oven Gas | G2: =Texts!$B119 -> Blast Furnace Gas | J2: =Texts!$B120 -> Smelting Reduction Gas | M2: =Texts!$B121 -> BOF Gas | P2: =Texts!$B122 -> Natural Gas | S2: =Texts!$B123 -> Other Gas 1 | V2: =Texts!$B124 -> Other Gas 2
B3: =Texts!B183 -> Unit | D3: GJ ncv | G3: GJ ncv | J3: GJ ncv | M3: GJ ncv | P3: GJ ncv | S3: GJ ncv | V3: GJ ncv
A4: =Texts!B188 -> Material Characteristics | D4: GF-01 | G4: GF-02 | J4: GF-03 | M4: GF-04 | P4: GF-05 | S4: GF-06
A5: C | D5: 0.238907024 | E5: kg/m3N | G5: 0.238998215 | H5: kg/m3N | J5: 0 | K5: kg/m3N | M5: 0.466207281 | N5: kg/m3N | P5: 0.549642308 | Q5: kg/m3N | S5: 0 | T5: kg/m3N | V5: 0 | W5: kg/m3N
A6: =Texts!B189 -> ncv | D6: 18.05533162 | E6: MJ/m3N | G6: 3.266397581 | H6: MJ/m3N | J6: 0 | K6: MJ/m3N | M6: 9.369789791 | N6: MJ/m3N | P6: 37.15 | Q6: MJ/m3N | S6: 0 | T6: MJ/m3N | W6: MJ/m3N
A7: =Texts!B190 -> Ash
A8: =Texts!B191 -> Volatiles
A9: =Texts!B192 -> Energy equivalent | E9: MJ/t | H9: MJ/t | K9: MJ/t | N9: MJ/t | Q9: MJ/t | T9: MJ/t | W9: MJ/t
A10: =Texts!B193 -> CO2 Emission factor | D10: =IF(AND(D5>0,D6>0),44.01*D5/12.011/IF(OR(D3="GJ ncv",D3="GJ PCI"),D6,1),D87) -> 0.04848368831 | E10: ="t/"&D3 -> t/GJ ncv | G10: =IF(AND(G5>0,G6>0),44.01*G5/12.011/IF(OR(G3="GJ ncv",G3="GJ PCI"),G6,1),G87) -> 0.2681006171 | H10: ="t/"&G3 -> t/GJ ncv | J10: =IF(AND(J5>0,J6>0),44.01*J5/12.011/IF(OR(J3="GJ ncv",J3="GJ PCI"),J6,1),J87) -> 0.2135788317 | K10: ="t/"&J3 -> t/GJ ncv | M10: =IF(AND(M5>0,M6>0),44.01*M5/12.011/IF(OR(M3="GJ ncv",M3="GJ PCI"),M6,1),M87) -> 0.1823145819 | N10: ="t/"&M3 -> t/GJ ncv | P10: =IF(AND(P5>0,P6>0),44.01*P5/12.011/IF(OR(P3="GJ ncv",P3="GJ PCI"),P6,1),P87) -> 0.05421176388 | Q10: ="t/"&P3 -> t/GJ ncv | S10: =IF(AND(S5>0,S6>0),44.01*S5/12.011/IF(OR(S3="GJ ncv",S3="GJ PCI"),S6,1),S87) -> 0.05606910767 | T10: ="t/"&S3 -> t/GJ ncv | V10: =IF(AND(V5>0,V6>0),44.01*V5/12.011/IF(OR(V3="GJ ncv",V3="GJ PCI"),V6,1),V87) -> 0.05606910767 | W10: ="t/"&V3 -> t/GJ ncv
A11: =Texts!B193 -> CO2 Emission factor | D11: =IFERROR(IF(COG_Unit="103.m3n",COG_EF/COG_ncv,COG_EF),0) -> 0.04848368831 | E11: t/GJ | G11: =IFERROR(IF(BFG_Unit="103.m3n",BFG_EF/BFG_ncv,BFG_EF),0) -> 0.2681006171 | H11: t/GJ | J11: =IFERROR(IF(SRG_Unit="103.m3n",SRG_EF/SRG_ncv,SRG_EF),0) -> 0.2135788317 | K11: t/GJ | M11: =IFERROR(IF(BOFG_Unit="103.m3n",BOFG_EF/BOFG_ncv,BOFG_EF),0) -> 0.1823145819 | N11: t/GJ | P11: =IFERROR(IF(NG_Unit="103.m3n",NG_EF/NG_ncv,NG_EF),0) -> 0.05421176388 | Q11: t/GJ | S11: =IFERROR(IF(ogf1_Unit="103.m3n",ogf1_EF/ogf1_ncv,ogf1_EF),0) -> 0 | T11: t/GJ | V11: =IFERROR(IF(ogf2_Unit="103.m3n",ogf2_EF/ogf2_ncv,ogf2_EF),0) -> 0 | W11: t/GJ
A12: =Texts!B194 -> Upstream CO2 | E12: kg/t | H12: kg/t | K12: kg/t | N12: kg/t | Q12: kg/t | T12: kg/t | W12: kg/t
A14: =Texts!B195 -> Procurements | D14: =D3 -> GJ ncv | G14: =G3 -> GJ ncv | J14: =J3 -> GJ ncv | M14: =M3 -> GJ ncv | P14: =P3 -> GJ ncv | S14: =S3 -> GJ ncv | V14: =V3 -> GJ ncv
A15: =Texts!B196 -> External Procurements | D15: 0 | G15: 0 | J15: 0 | M15: 0 | P15: 821060.8644 | S15: 0
A16: =Texts!B197 -> Reclaimed from stocks | D16: 0 | G16: 0 | J16: 0 | M16: 0 | P16: 0 | S16: 0
A17: =Texts!B198 -> Destinations | D17: =D14 -> GJ ncv | G17: =G14 -> GJ ncv | J17: =J14 -> GJ ncv | M17: =M14 -> GJ ncv | P17: =P14 -> GJ ncv | S17: =S14 -> GJ ncv | V17: =V14 -> GJ ncv
A18: =Texts!B199 -> External power plants | D18: 1413509.994 | G18: 12344934.05 | J18: 0 | M18: 1679929.721 | P18: 0 | S18: 0
A19: =Texts!B200 -> Other deliveries | D19: 1124730.302 | G19: 1985748.336 | J19: 0 | M19: 330548.801 | P19: 193817.123 | S19: 0
A20: =Texts!B201 -> Storage | D20: 0 | G20: 0 | J20: 0 | M20: 0 | P20: 0 | S20: 0
A21: =Texts!B202 -> Losses & Inventory Gap
A22: =Texts!B203 -> Balance | D22: =SUM(D15:D16,D25:D69)-SUM(D18:D21,E25:E69) -> 857638.454 | G22: =SUM(G15:G16,G25:G69)-SUM(G18:G21,H25:H69) -> 331663.923 | J22: =SUM(J15:K16,J25:J69)-SUM(J18:K21,K25:K69) -> 0 | M22: =SUM(M15:M16,M25:M69)-SUM(M18:M21,N25:N69) -> 0 | P22: =SUM(P15:P16,P25:P69)-SUM(P18:P21,Q25:Q69) -> 87265.6674 | S22: =SUM(S15:S16,S25:S69)-SUM(S18:S21,T25:T69) -> 0 | V22: =SUM(V15:V16,V25:V69)-SUM(V18:V21,W25:W69) -> 0
D24: =Texts!$B204 -> Generation | E24: =Texts!$B205 -> Use | G24: =Texts!$B204 -> Generation | H24: =Texts!$B205 -> Use | J24: =Texts!$B204 -> Generation | K24: =Texts!$B205 -> Use | M24: =Texts!$B204 -> Generation | N24: =Texts!$B205 -> Use | P24: =Texts!$B204 -> Generation | Q24: =Texts!$B205 -> Use | S24: =Texts!$B204 -> Generation | T24: =Texts!$B205 -> Use | V24: =Texts!$B204 -> Generation | W24: =Texts!$B205 -> Use
A25: ="01-"&Texts!B10 -> 01-Coke plant | C25: 3 | D25: 10552430.76 | E25: 675104.28 | G25: 0 | H25: 3068092.175 | J25: 0 | K25: 0 | M25: 0 | N25: 759422.022 | P25: 0 | Q25: 0 | S25: 0 | T25: 0
A26: ="02-"&Texts!B11 -> 02-Sinter plant | C26: 4 | D26: 0 | E26: 417135.414 | G26: 0 | H26: 0 | J26: 0 | K26: 0 | M26: 0 | N26: 0 | P26: 0 | Q26: 0 | S26: 0 | T26: 0
A27: ="03-"&Texts!B12 -> 03-Pellet plant | D27: 0 | E27: 0 | G27: 0 | H27: 0 | J27: 0 | K27: 0 | M27: 0 | N27: 0 | P27: 0 | Q27: 0 | S27: 0 | T27: 0
A28: ="04-"&Texts!B13 -> 04-Gas based DRI plant | C28: 6 | D28: 0 | E28: 0 | G28: 0 | H28: 0 | J28: 0 | K28: 0 | M28: 0 | N28: 0 | P28: 0 | Q28: 0 | S28: 0 | T28: 0
A29: ="05-"&Texts!B14 -> 05-Coal based DRI plant | D29: 0 | E29: 0 | G29: 0 | H29: 0 | J29: 0 | K29: 0 | M29: 0 | N29: 0 | P29: 0 | Q29: 0 | S29: 0 | T29: 0
A30: ="06-"&Texts!B15 -> 06-Blast Furnace plant | C30: 5 | D30: 0 | E30: 1628469.113 | G30: 28604137.73 | H30: 9573659.036 | J30: 0 | K30: 0 | M30: 0 | N30: 0 | P30: 0 | Q30: 121208.86 | S30: 0 | T30: 0
A31: ="07-"&Texts!B16 -> 07-Smelting Reduction plant | C31: 7 | D31: 0 | E31: 0 | G31: 0 | H31: 0 | J31: 0 | K31: 0 | M31: 0 | N31: 0 | P31: 0 | Q31: 0 | S31: 0 | T31: 0
A32: ="11-"&Texts!B17 -> 11-BOF shop
A33: ="11a-"&Texts!B18 -> 11a-BOF converter | C33: 8 | D33: 0 | E33: 341433.487 | G33: 0 | H33: 0 | J33: 0 | K33: 0 | M33: 4472414.903 | N33: 0 | P33: 0 | Q33: 51079.32 | S33: 0 | T33: 0
A34: ="11b-"&Texts!B21 -> 11b-Secondary metallurgy plant | D34: 0 | E34: 0 | G34: 0 | H34: 0 | J34: 0 | K34: 0 | M34: 0 | N34: 0 | P34: 0 | Q34: 0 | S34: 0 | T34: 0
A35: ="11c-"&Texts!B22 -> 11c-Ingot Casting plant | D35: 0 | E35: 0 | G35: 0 | H35: 0 | J35: 0 | K35: 0 | M35: 0 | N35: 0 | P35: 0 | Q35: 0 | S35: 0 | T35: 0
A36: ="11d-"&Texts!B23 -> 11d-Continuous casting plant | D36: 0 | E36: 0 | G36: 0 | H36: 0 | J36: 0 | K36: 0 | M36: 0 | N36: 0 | P36: 0 | Q36: 209208.588 | S36: 0 | T36: 0
A37: ="12-"&Texts!B19 -> 12-EAF shop
A38: ="12a-"&Texts!B20 -> 12a-Electric arc furnace | C38: 9 | D38: 0 | E38: 0 | G38: 0 | H38: 0 | J38: 0 | K38: 0 | M38: 0 | N38: 0 | P38: 0 | Q38: 0 | S38: 0 | T38: 0
A39: ="12b-"&Texts!B21 -> 12b-Secondary metallurgy plant | C39: 10 | D39: 0 | E39: 0 | G39: 0 | H39: 0 | J39: 0 | K39: 0 | M39: 0 | N39: 0 | P39: 0 | Q39: 0 | S39: 0 | T39: 0
A40: ="12c-"&Texts!B22 -> 12c-Ingot Casting plant | C40: 11 | D40: 0 | E40: 0 | G40: 0 | H40: 0 | J40: 0 | K40: 0 | M40: 0 | N40: 0 | P40: 0 | Q40: 0 | S40: 0 | T40: 0
A41: ="12d-"&Texts!B23 -> 12d-Continuous casting plant | C41: 12 | D41: 0 | E41: 0 | G41: 0 | H41: 0 | J41: 0 | K41: 0 | M41: 0 | N41: 0 | P41: 0 | Q41: 0 | S41: 0 | T41: 0
A42: ="21-"&Texts!B24 -> 21-Cogging mill | C42: 13 | D42: 0 | E42: 0 | G42: 0 | H42: 0 | J42: 0 | K42: 0 | M42: 0 | N42: 0 | P42: 0 | Q42: 0 | S42: 0 | T42: 0
A43: ="22-"&Texts!B25 -> 22-Billet Mill | C43: 14 | D43: 0 | E43: 0 | G43: 0 | H43: 0 | J43: 0 | K43: 0 | M43: 0 | N43: 0 | P43: 0 | Q43: 0 | S43: 0 | T43: 0
A44: ="23-"&Texts!B26 -> 23-Hot Strip Mill | C44: 15 | D44: 0 | E44: 3919674.501 | G44: 0 | H44: 377808.555 | J44: 0 | K44: 0 | M44: 0 | N44: 1612735.567 | P44: 0 | Q44: 158481.306 | S44: 0 | T44: 0
A45: ="24-"&Texts!B27 -> 24-Compact Strip Mill | C45: 16 | D45: 0 | E45: 0 | G45: 0 | H45: 0 | J45: 0 | K45: 0 | M45: 0 | N45: 0 | P45: 0 | Q45: 0 | S45: 0 | T45: 0
A46: ="25-"&Texts!B28 -> 25-Plate Mill | C46: 17 | D46: 0 | E46: 0 | G46: 0 | H46: 0 | J46: 0 | K46: 0 | M46: 0 | N46: 0 | P46: 0 | Q46: 0 | S46: 0 | T46: 0
A47: ="26-"&Texts!B29 -> 26-Bar & Rod Mill | C47: 18 | D47: 0 | E47: 0 | G47: 0 | H47: 0 | J47: 0 | K47: 0 | M47: 0 | N47: 0 | P47: 0 | Q47: 0 | S47: 0 | T47: 0
A48: ="27-"&Texts!B30 -> 27-Section Mill | C48: 19 | D48: 0 | E48: 0 | G48: 0 | H48: 0 | J48: 0 | K48: 0 | M48: 0 | N48: 0 | P48: 0 | Q48: 0 | S48: 0 | T48: 0
A49: ="28-"&Texts!B31 -> 28-Wire Mill | C49: 20 | D49: 0 | E49: 0 | G49: 0 | H49: 0 | J49: 0 | K49: 0 | M49: 0 | N49: 0 | P49: 0 | Q49: 0 | S49: 0 | T49: 0
A50: ="29-"&Texts!B32 -> 29-Tube Mill | C50: 21 | D50: 0 | E50: 0 | G50: 0 | H50: 0 | J50: 0 | K50: 0 | M50: 0 | N50: 0 | P50: 0 | Q50: 0 | S50: 0 | T50: 0
A51: ="31-"&Texts!B33 -> 31-Pickling plant | C51: 22 | D51: 0 | E51: 0 | G51: 0 | H51: 0 | J51: 0 | K51: 0 | M51: 0 | N51: 0 | P51: 0 | Q51: 0 | S51: 0 | T51: 0
A52: ="32-"&Texts!B34 -> 32-Cold rolling Mill | C52: 23 | D52: 0 | E52: 0 | G52: 0 | H52: 0 | J52: 0 | K52: 0 | M52: 0 | N52: 0 | P52: 0 | Q52: 0 | S52: 0 | T52: 0
A53: ="33-"&Texts!B35 -> 33-Continuous Annealing plant | C53: 24 | D53: 0 | E53: 0 | G53: 0 | H53: 0 | J53: 0 | K53: 0 | M53: 0 | N53: 0 | P53: 0 | Q53: 0 | S53: 0 | T53: 0
A54: ="34-"&Texts!B36 -> 34-Batch Annealing plant | C54: 25 | D54: 0 | E54: 0 | G54: 0 | H54: 0 | J54: 0 | K54: 0 | M54: 0 | N54: 0 | P54: 0 | Q54: 0 | S54: 0 | T54: 0
A55: ="41-"&Texts!B37 -> 41-Hot dip galvanising plant | C55: 27 | D55: 0 | E55: 0 | G55: 0 | H55: 0 | J55: 0 | K55: 0 | M55: 0 | N55: 0 | P55: 0 | Q55: 0 | S55: 0 | T55: 0
A56: ="42-"&Texts!B38 -> 42-Electro galvanising plant | C56: 28 | D56: 0 | E56: 0 | G56: 0 | H56: 0 | J56: 0 | K56: 0 | M56: 0 | N56: 0 | P56: 0 | Q56: 0 | S56: 0 | T56: 0
A57: ="43-"&Texts!B39 -> 43-Tinplating plant | C57: 29 | D57: 0 | E57: 0 | G57: 0 | H57: 0 | J57: 0 | K57: 0 | M57: 0 | N57: 0 | P57: 0 | Q57: 0 | S57: 0 | T57: 0
A58: ="45-"&Texts!B40 -> 45-Tin free plating plant | C58: 30 | D58: 0 | E58: 0 | G58: 0 | H58: 0 | J58: 0 | K58: 0 | M58: 0 | N58: 0 | P58: 0 | Q58: 0 | S58: 0 | T58: 0
A59: ="46-"&Texts!B41 -> 46-Other metal coating plant | C59: 31
A60: ="47-"&Texts!B42 -> 47-Organic coating plant | C60: 31 | D60: 0 | E60: 0 | G60: 0 | H60: 0 | J60: 0 | K60: 0 | M60: 0 | N60: 0 | P60: 0 | Q60: 0 | S60: 0 | T60: 0
A61: ="51-"&Texts!B43 -> 51-Dust Treatment plant | C61: 35
A62: ="52-"&Texts!B44 -> 52-Lime plant | C62: 32 | D62: 0 | E62: 0 | G62: 0 | H62: 0 | J62: 0 | K62: 0 | M62: 0 | N62: 0 | P62: 0 | Q62: 0 | S62: 0 | T62: 0
A63: ="53-"&Texts!B45 -> 53-Heat treatment plant
A64: ="61-"&Texts!B46 -> 61-Boilers | C64: 44 | D64: 0 | E64: 0 | G64: 0 | H64: 0 | J64: 0 | K64: 0 | M64: 0 | N64: 0 | P64: 0 | Q64: 0 | S64: 0 | T64: 0
A65: ="62-"&Texts!B47 -> 62-Power plant | C65: 43 | D65: 0 | E65: 0 | G65: 0 | H65: 0 | J65: 0 | K65: 0 | M65: 0 | N65: 0 | P65: 0 | Q65: 0 | S65: 0 | T65: 0
A66: ="63-"&Texts!B48 -> 63-Air separation unit | C66: 45 | D66: 0 | E66: 0 | G66: 0 | H66: 0 | J66: 0 | K66: 0 | M66: 0 | N66: 0 | P66: 0 | Q66: 0 | S66: 0 | T66: 0
A67: ="64-"&Texts!B49 -> 64-Compressed Air plant | C67: 46 | D67: 0 | E67: 0 | G67: 0 | H67: 0 | J67: 0 | K67: 0 | M67: 0 | N67: 0 | P67: 0 | Q67: 0 | S67: 0 | T67: 0
A68: ="71-"&Texts!B50 -> 71-Others | C68: 57 | D68: 0 | E68: 0 | G68: 0 | H68: 0 | J68: 0 | K68: 0 | M68: 0 | N68: 0 | P68: 0 | Q68: 0 | S68: 0 | T68: 0
A69: ="72-"&Texts!B51 -> 72-Flares | C69: 51 | D69: 0 | E69: 174735.215 | G69: 0 | H69: 922231.655 | J69: 0 | K69: 0 | M69: 0 | N69: 89778.792 | P69: 0 | Q69: 0 | S69: 0 | T69: 0
A71: =Texts!B207 -> Gas Component analysis
A72: CO (Vol. %) | D72: 6 | G72: 22.15 | J72: 48 | M72: 78 | P72: 0 | S72: 0 | V72: 0
A73: CO2 (Vol %) | D73: 2 | G73: 22.45 | J73: 32 | M73: 9 | P73: 1.43 | S73: 1.43 | V73: 1.43
A74: H2 (Vol %) | D74: 61 | G74: 3.6 | J74: 12 | M74: 2 | P74: 0 | S74: 0 | V74: 0
A75: O2 (Vol %) | D75: 0 | P75: 0 | S75: 0 | V75: 0
A76: N2 (Vol %) | D76: 2 | G76: 51.8 | J76: 8 | M76: 11 | P76: 0.98 | S76: 0.98 | V76: 0.98
A77: CH4 (Vol %) | D77: 25 | P77: 94.42 | S77: 94.42 | V77: 94.42
A78: C2H4 (Vol %) | D78: 2 | P78: 0 | S78: 0 | V78: 0
A79: C2H6 (Vol %) | D79: 1.15 | P79: 2.86 | S79: 2.86 | V79: 2.86
A80: C3H8 (Vol %) | D80: 0 | P80: 0.25 | S80: 0.25 | V80: 0.25
A81: C4H10 (Vol %) | D81: 0 | P81: 0.05 | S81: 0.05 | V81: 0.05
A82: C5H12 (Vol %) | D82: 0.85 | P82: 0.01 | S82: 0.01 | V82: 0.01
A83: Benzole (g/m3N) | D83: 6 | P83: 0 | S83: 0 | V83: 0
A84: S (g/m3N) | D84: 0.3 | P84: 0 | S84: 0 | V84: 0
A85: ncv (MJ/m3N) | D85: =IF(D6>0,D6,((12625*D72+10789*D74+35793*D77+59031*D78+63700*D79+91190*D80+118540*D81+145545*D82)/100+(40574*D83+16160*D84)/1000)/1000) -> 18.05533162 | G85: =IF(G6>0,G6,((12625*G72+10789*G74+35793*G77+59031*G78+63700*G79+91190*G80+118540*G81+145545*G82)/100+(40574*G83+16160*G84)/1000)/1000) -> 3.266397581 | J85: =IF(J6>0,J6,((12625*J72+10789*J74+35793*J77+59031*J78+63700*J79+91190*J80+118540*J81+145545*J82)/100+(40574*J83+16160*J84)/1000)/1000) -> 7.35468 | M85: =IF(M6>0,M6,((12625*M72+10789*M74+35793*M77+59031*M78+63700*M79+91190*M80+118540*M81+145545*M82)/100+(40574*M83+16160*M84)/1000)/1000) -> 9.369789791 | P85: =IF(P6>0,P6,((12625*P72+10789*P74+35793*P77+59031*P78+63700*P79+91190*P80+118540*P81+145545*P82)/100+(40574*P83+16160*P84)/1000)/1000) -> 37.15 | S85: =IF(S6>0,S6,((12625*S72+10789*S74+35793*S77+59031*S78+63700*S79+91190*S80+118540*S81+145545*S82)/100+(40574*S83+16160*S84)/1000)/1000) -> 35.9193701 | V85: =IF(V6>0,V6,((12625*V72+10789*V74+35793*V77+59031*V78+63700*V79+91190*V80+118540*V81+145545*V82)/100+(40574*V83+16160*V84)/1000)/1000) -> 35.9193701
A86: gcv (MJ/m3N) | D86: =IF(D6>0,1.125*D6,((12625*D72+12752*D74+39721*D77+62958*D78+69592*D79+99045*D80+128359*D81+157327*D82)/100+(42265*D83+17533*D84)/1000)/1000) -> 20.31224807 | G86: =IF(G6>0,1.125*G6,((12625*G72+12752*G74+39721*G77+62958*G78+69592*G79+99045*G80+128359*G81+157327*G82)/100+(42265*G83+17533*G84)/1000)/1000) -> 3.674697279 | J86: =IF(J6>0,1.125*J6,((12625*J72+12752*J74+39721*J77+62958*J78+69592*J79+99045*J80+128359*J81+157327*J82)/100+(42265*J83+17533*J84)/1000)/1000) -> 7.59024 | M86: =IF(M6>0,1.125*M6,((12625*M72+12752*M74+39721*M77+62958*M78+69592*M79+99045*M80+128359*M81+157327*M82)/100+(42265*M83+17533*M84)/1000)/1000) -> 10.54101351 | P86: =IF(P6>0,1.125*P6,((12625*P72+12752*P74+39721*P77+62958*P78+69592*P79+99045*P80+128359*P81+157327*P82)/100+(42265*P83+17533*P84)/1000)/1000) -> 41.79375 | S86: =IF(S6>0,1.125*S6,((12625*S72+12752*S74+39721*S77+62958*S78+69592*S79+99045*S80+128359*S81+157327*S82)/100+(42265*S83+17533*S84)/1000)/1000) -> 39.8224241 | V86: =IF(V6>0,1.125*V6,((12625*V72+12752*V74+39721*V77+62958*V78+69592*V79+99045*V80+128359*V81+157327*V82)/100+(42265*V83+17533*V84)/1000)/1000) -> 39.8224241
A87: ="CO2 eq. (t/"&D3&")" -> CO2 eq. (t/GJ ncv) | D87: =IF(D85>0,44.01*D88/IF(LEFT(D3,2)="GJ",D85,1)/12.011,0) -> 0.04848368831 | G87: =IF(G85>0,44.01*G88/IF(LEFT(G3,2)="GJ",G85,1)/12.011,0) -> 0.2681006171 | J87: =IF(J85>0,44.01*J88/IF(LEFT(J3,2)="GJ",J85,1)/12.011,0) -> 0.2135788317 | M87: =IF(M85>0,44.01*M88/IF(LEFT(M3,2)="GJ",M85,1)/12.011,0) -> 0.1823145819 | P87: =IF(P85>0,44.01*P88/IF(LEFT(P3,2)="GJ",P85,1)/12.011,0) -> 0.05421176388 | S87: =IF(S85>0,44.01*S88/IF(LEFT(S3,2)="GJ",S85,1)/12.011,0) -> 0.05606910767 | V87: =IF(V85>0,44.01*V88/IF(LEFT(V3,2)="GJ",V85,1)/12.011,0) -> 0.05606910767
A88: C (kg/m3N) | D88: =IF(D5>0,D5,12.011*(D72+D73+D77+2*(D78+D79)+3*D80+4*D81+5*D82)/22.414/100+12.011*D83/(12.011+1.008)/1000) -> 0.238907024 | G88: =IF(G5>0,G5,12.011*(G72+G73+G77+2*(G78+G79)+3*G80+4*G81+5*G82)/22.414/100+12.011*G83/(12.011+1.008)/1000) -> 0.238998215 | J88: =IF(J5>0,J5,12.011*(J72+J73+J77+2*(J78+J79)+3*J80+4*J81+5*J82)/22.414/100+12.011*J83/(12.011+1.008)/1000) -> 0.4286963505 | M88: =IF(M5>0,M5,12.011*(M72+M73+M77+2*(M78+M79)+3*M80+4*M81+5*M82)/22.414/100+12.011*M83/(12.011+1.008)/1000) -> 0.466207281 | P88: =IF(P5>0,P5,12.011*(P72+P73+P77+2*(P78+P79)+3*P80+4*P81+5*P82)/22.414/100+12.011*P83/(12.011+1.008)/1000) -> 0.549642308 | S88: =IF(S5>0,S5,12.011*(S72+S73+S77+2*(S78+S79)+3*S80+4*S81+5*S82)/22.414/100+12.011*S83/(12.011+1.008)/1000) -> 0.5496423084 | V88: =IF(V5>0,V5,12.011*(V72+V73+V77+2*(V78+V79)+3*V80+4*V81+5*V82)/22.414/100+12.011*V83/(12.011+1.008)/1000) -> 0.5496423084

Sheet Utilities
B1: =Texts!B180 -> Code | D1: Ut-01 | G1: Ut-02 | J1: Ut-03 | M1: Ut-04 | P1: Ut-05 | S1: Ut-06 | V1: Ut-07 | Y1: Ut-08 | AB1: Ut-09 | AE1: Ut-10
B2: =Texts!B182 -> Name | D2: =Texts!$B126 -> Electricity | G2: =Texts!$B127 -> High Pressure Steam | J2: =Texts!$B128 -> Low Pressure Steam | M2: =Texts!$B129 -> Hot water | P2: =Texts!$B130 -> High Pressure Oxygen | S2: =Texts!$B131 -> Low Pressure Oxygen | V2: =Texts!$B132 -> Nitrogen | Y2: =Texts!$B133 -> Argon | AB2: =Texts!$B134 -> Compressed air | AE2: =Texts!$B135 -> Hydrogen
B3: =Texts!B183 -> Unit | D3: MWh | G3: t | J3: t | M3: t | P3: 103.m3N | S3: 103.m3N | V3: 103.m3N | Y3: 103.m3N | AB3: 103.m3N | AE3: 103.m3N
A4: =Texts!B188 -> Material Characteristics | D4: Ut-01 | G4: Ut-02 | J4: Ut-03 | M4: Ut-04 | P4: Ut-05 | S4: Ut-06 | V4: Ut-07 | Y4: Ut-08 | AB4: Ut-09 | AE4: Ut-10
A5: C | E5: t/t | H5: t/t | K5: t/t | N5: t/t | Q5: t/t | T5: t/t | W5: t/t | Z5: t/t | AC5: t/t | AF5: t/t
A6: =Texts!B189 -> ncv | E6: MJ/t | H6: MJ/t | K6: MJ/t | N6: MJ/t | Q6: MJ/t | T6: MJ/t | W6: MJ/t | Z6: MJ/t | AC6: MJ/t | AF6: MJ/t
A7: =Texts!B190 -> Ash
A8: =Texts!B191 -> Volatiles
A9: =Texts!B192 -> Energy equivalent | D9: =Elec_upEn -> 9.8 | E9: GJ/MWh | G9: =HPSteam_upEn -> 3.8 | H9: GJ/t | J9: =LPSteam_upEn -> 3.46 | K9: GJ/t | M9: =HWater_upEn -> 0.85 | N9: GJ/t | P9: =HPO2_ElEq -> 0.71 | Q9: kWh/103.m3N | S9: =LPO2_ElEq -> 0.5 | T9: kWh/103.m3N | V9: =N2_ElEq -> 0.2 | W9: kWh/103.m3N | Y9: =Ar_ElEq -> 0.2 | Z9: kWh/103.m3N | AB9: =CAir_ElEq -> 0.11 | AC9: kWh/103.m3N | AE9: =H2_upEn -> 0 | AF9: GJ/103.m3N
A10: =Texts!B193 -> CO2 Emission factor
A11: =Texts!B193 -> CO2 Emission factor
A12: =Texts!B194 -> Upstream CO2 | D12: =IF(VLOOKUP(Country,El_EqCO2,2,FALSE)>0,VLOOKUP(Country,El_EqCO2,2,FALSE),900)/1000 -> 0.07202865479 | E12: t/MWh | G12: =HPSteam_upCO2 -> 0.2130037096 | H12: t/t | J12: =LPSteam_upCO2 -> 0.1939454829 | K12: t/t | M12: =HWater_upEn*NG_DefEF/NG_Defncv -> 0.04764556661 | N12: kg/t | P12: =HPO2_ElEq*Elec_upCO2 -> 0.0511403449 | Q12: t/103.m3N | S12: =LPO2_ElEq*Elec_upCO2 -> 0.03601432739 | T12: t/103.m3N | V12: =N2_ElEq*Elec_upCO2 -> 0.01440573096 | W12: t/103.m3N | Y12: =Ar_ElEq*Elec_upCO2 -> 0.01440573096 | Z12: t/103.m3N | AB12: =CAir_ElEq*Elec_upCO2 -> 0.007923152027 | AC12: t/103.m3N | AE12: =H2_upEn*NG_DefEF -> 0 | AF12: t/103.m3N
A14: =Texts!B195 -> Procurements | D14: =D3 -> MWh | G14: =G3 -> t | J14: =J3 -> t | M14: =M3 -> t | P14: =P3 -> 103.m3N | S14: =S3 -> 103.m3N | V14: =V3 -> 103.m3N | Y14: =Y3 -> 103.m3N | AB14: =AB3 -> 103.m3N | AE14: =AE3 -> 103.m3N
A15: =Texts!B196 -> External Procurements | D15: 1629079.382 | G15: 13752 | J15: 0 | M15: 0 | P15: 348372.2771 | S15: 260130.0938 | V15: 203017.43 | Y15: 2038.819 | AB15: 348798.699 | AE15: 0
A16: =Texts!B197 -> Reclaimed from stocks | D16: 0 | G16: 0 | J16: 0 | M16: 0 | P16: 0 | S16: 0 | V16: 0 | Y16: 0 | AB16: 0 | AE16: 0
A17: =Texts!B198 -> Destinations | D17: =D14 -> MWh | G17: =G14 -> t | J17: =J14 -> t | M17: =M14 -> t | P17: =P14 -> 103.m3N | S17: =S14 -> 103.m3N | V17: =V14 -> 103.m3N | Y17: =Y14 -> 103.m3N | AB17: =AB14 -> 103.m3N | AE17: =AE14 -> 103.m3N
A18: =Texts!B199 -> External power plants | D18: 0 | G18: 0 | J18: 0 | M18: 0 | P18: 0 | S18: 0 | V18: 53.457 | Y18: 0 | AB18: 0 | AE18: 0
A19: =Texts!B200 -> Other deliveries | D19: 106863.465 | G19: 0 | J19: 0 | M19: 0 | P19: 2199.886 | S19: 0 | V19: 235.825 | Y19: 0 | AB19: 0 | AE19: 0
A20: =Texts!B201 -> Storage | D20: 0 | G20: 0 | J20: 0 | M20: 0 | P20: 0 | S20: 0 | V20: 0 | Y20: 0 | AB20: 0 | AE20: 0
A21: =Texts!B202 -> Losses & Inventory Gap
A22: =Texts!B203 -> Balance | D22: =SUM(D15:D16,D25:D69)-SUM(D18:D21,E25:E69) -> 83621.94 | G22: =SUM(G15:G16,G25:G69)-SUM(G18:G21,H25:H69) -> -352880 | J22: =SUM(J15:J16,J25:J69)-SUM(J18:J21,K25:K69) -> 0 | M22: =SUM(M15:M16,M25:M69)-SUM(M18:M21,N25:N69) -> 0 | P22: =SUM(P15:P16,P25:P69)-SUM(P18:P21,Q25:Q69) -> 2720.139 | S22: =SUM(S15:S16,S25:S69)-SUM(S18:S21,T25:T69) -> 0 | V22: =SUM(V15:V16,V25:V69)-SUM(V18:V21,W25:W69) -> -53.457 | Y22: =SUM(Y15:Y16,Y25:Y69)-SUM(Y18:Y21,Z25:Z69) -> 1.364 | AB22: =SUM(AB15:AB16,AB25:AB69)-SUM(AB18:AB21,AC25:AC69) -> 1706 | AE22: =SUM(AE15:AE16,AE25:AE69)-SUM(AE18:AE21,AF25:AF69) -> 0
D24: =Texts!$B204 -> Generation | E24: =Texts!$B205 -> Use | G24: =Texts!$B204 -> Generation | H24: =Texts!$B205 -> Use | J24: =Texts!$B204 -> Generation | K24: =Texts!$B205 -> Use | M24: =Texts!$B204 -> Generation | N24: =Texts!$B205 -> Use | P24: =Texts!$B204 -> Generation | Q24: =Texts!$B205 -> Use | S24: =Texts!$B204 -> Generation | T24: =Texts!$B205 -> Use | V24: =Texts!$B204 -> Generation | W24: =Texts!$B205 -> Use | Y24: =Texts!$B204 -> Generation | Z24: =Texts!$B205 -> Use | AB24: =Texts!$B204 -> Generation | AC24: =Texts!$B205 -> Use | AE24: =Texts!$B204 -> Generation | AF24: =Texts!$B205 -> Use
A25: ="01-"&Texts!B10 -> 01-Coke plant | C25: 3 | D25: 0 | E25: 52832.918 | G25: 0 | H25: 112617 | J25: 0 | K25: 0 | M25: 0 | N25: 0 | P25: 0 | Q25: 1518.753 | S25: 0 | T25: 0 | V25: 0 | W25: 7479.322 | Y25: 0 | Z25: 0 | AB25: 0 | AC25: 10090 | AE25: 0 | AF25: 0
A26: ="02-"&Texts!B11 -> 02-Sinter plant | C26: 4 | D26: 0 | E26: 252670.0313 | G26: 0 | H26: 1600 | J26: 0 | K26: 0 | M26: 0 | N26: 0 | P26: 0 | Q26: 0 | S26: 0 | T26: 0 | V26: 0 | W26: 0 | Y26: 0 | Z26: 0 | AB26: 0 | AC26: 15580 | AE26: 0 | AF26: 0
A27: ="03-"&Texts!B12 -> 03-Pellet plant | D27: 0 | E27: 0 | G27: 0 | H27: 0 | J27: 0 | K27: 0 | M27: 0 | N27: 0 | P27: 0 | Q27: 0 | S27: 0 | T27: 0 | V27: 0 | W27: 0 | Y27: 0 | Z27: 0 | AB27: 0 | AC27: 0 | AE27: 0 | AF27: 0
A28: ="04-"&Texts!B13 -> 04-Gas based DRI plant | C28: 6 | D28: 0 | E28: 0 | G28: 0 | H28: 0 | J28: 0 | K28: 0 | M28: 0 | N28: 0 | P28: 0 | Q28: 0 | S28: 0 | T28: 0 | V28: 0 | W28: 0 | Y28: 0 | Z28: 0 | AB28: 0 | AC28: 0 | AE28: 0 | AF28: 0
A29: ="05-"&Texts!B14 -> 05-Coal based DRI plant | D29: 0 | E29: 0 | G29: 0 | H29: 0 | J29: 0 | K29: 0 | M29: 0 | N29: 0 | P29: 0 | Q29: 0 | S29: 0 | T29: 0 | V29: 0 | W29: 0 | Y29: 0 | Z29: 0 | AB29: 0 | AC29: 0 | AE29: 0 | AF29: 0
A30: ="06-"&Texts!B15 -> 06-Blast Furnace plant | C30: 5 | D30: 91320.832 | E30: 634044.7537 | G30: 0 | H30: 27672 | J30: 0 | K30: 0 | M30: 0 | N30: 0 | P30: 0 | Q30: 160.805 | S30: 0 | T30: 260130.0938 | V30: 0 | W30: 131741.739 | Y30: 0 | Z30: 0 | AB30: 0 | AC30: 124320.328 | AE30: 0 | AF30: 0
A31: ="07-"&Texts!B16 -> 07-Smelting Reduction plant | C31: 7 | D31: 0 | E31: 0 | G31: 0 | H31: 0 | J31: 0 | K31: 0 | M31: 0 | N31: 0 | P31: 0 | Q31: 0 | S31: 0 | T31: 0 | V31: 0 | W31: 0 | Y31: 0 | Z31: 0 | AB31: 0 | AC31: 0 | AE31: 0 | AF31: 0
A32: ="11-"&Texts!B17 -> 11-BOF shop
A33: ="11a-"&Texts!B18 -> 11a-BOF converter | C33: 8 | D33: 0 | E33: 128020.719 | G33: 0 | H33: 183346 | J33: 0 | K33: 0 | M33: 0 | N33: 0 | P33: 0 | Q33: 333073.5391 | S33: 0 | T33: 0 | V33: 0 | W33: 62320.78 | Y33: 0 | Z33: 1871.463 | AB33: 0 | AC33: 105983.371 | AE33: 0 | AF33: 0
A34: ="11b-"&Texts!B21 -> 11b-Secondary metallurgy plant | D34: 0 | E34: 0 | G34: 0 | H34: 0 | J34: 0 | K34: 0 | M34: 0 | N34: 0 | P34: 0 | Q34: 0 | S34: 0 | T34: 0 | V34: 0 | W34: 0 | Y34: 0 | Z34: 0 | AB34: 0 | AC34: 0 | AE34: 0 | AF34: 0
A35: ="11c-"&Texts!B22 -> 11c-Ingot Casting plant | D35: 0 | E35: 0 | G35: 0 | H35: 0 | J35: 0 | K35: 0 | M35: 0 | N35: 0 | P35: 0 | Q35: 0 | S35: 0 | T35: 0 | V35: 0 | W35: 0 | Y35: 0 | Z35: 0 | AB35: 0 | AC35: 0 | AE35: 0 | AF35: 0
A36: ="11d-"&Texts!B23 -> 11d-Continuous casting plant | D36: 0 | E36: 105703.21 | G36: 0 | H36: 6097 | J36: 0 | K36: 0 | M36: 0 | N36: 0 | P36: 0 | Q36: 8675.155 | S36: 0 | T36: 0 | V36: 0 | W36: 634.978 | Y36: 0 | Z36: 165.992 | AB36: 0 | AC36: 28744 | AE36: 0 | AF36: 0
A37: ="12-"&Texts!B19 -> 12-EAF shop
A38: ="12a-"&Texts!B20 -> 12a-Electric arc furnace | C38: 9 | D38: 0 | E38: 0 | G38: 0 | H38: 0 | J38: 0 | K38: 0 | M38: 0 | N38: 0 | P38: 0 | Q38: 0 | S38: 0 | T38: 0 | V38: 0 | W38: 0 | Y38: 0 | Z38: 0 | AB38: 0 | AC38: 0 | AE38: 0 | AF38: 0
A39: ="12b-"&Texts!B21 -> 12b-Secondary metallurgy plant | C39: 10 | D39: 0 | E39: 0 | G39: 0 | H39: 0 | J39: 0 | K39: 0 | M39: 0 | N39: 0 | P39: 0 | Q39: 0 | S39: 0 | T39: 0 | V39: 0 | W39: 0 | Y39: 0 | Z39: 0 | AB39: 0 | AC39: 0 | AE39: 0 | AF39: 0
A40: ="12c-"&Texts!B22 -> 12c-Ingot Casting plant | C40: 11 | D40: 0 | E40: 0 | G40: 0 | H40: 0 | J40: 0 | K40: 0 | M40: 0 | N40: 0 | P40: 0 | Q40: 0 | S40: 0 | T40: 0 | V40: 0 | W40: 0 | Y40: 0 | Z40: 0 | AB40: 0 | AC40: 0 | AE40: 0 | AF40: 0
A41: ="12d-"&Texts!B23 -> 12d-Continuous casting plant | C41: 12 | D41: 0 | E41: 0 | G41: 0 | H41: 0 | J41: 0 | K41: 0 | M41: 0 | N41: 0 | P41: 0 | Q41: 0 | S41: 0 | T41: 0 | V41: 0 | W41: 0 | Y41: 0 | Z41: 0 | AB41: 0 | AC41: 0 | AE41: 0 | AF41: 0
A42: ="21-"&Texts!B24 -> 21-Cogging mill | C42: 13 | D42: 0 | E42: 0 | G42: 0 | H42: 0 | J42: 0 | K42: 0 | M42: 0 | N42: 0 | P42: 0 | Q42: 0 | S42: 0 | T42: 0 | V42: 0 | W42: 0 | Y42: 0 | Z42: 0 | AB42: 0 | AC42: 0 | AE42: 0 | AF42: 0
A43: ="22-"&Texts!B25 -> 22-Billet Mill | C43: 14 | D43: 0 | E43: 0 | G43: 0 | H43: 0 | J43: 0 | K43: 0 | M43: 0 | N43: 0 | P43: 0 | Q43: 0 | S43: 0 | T43: 0 | V43: 0 | W43: 0 | Y43: 0 | Z43: 0 | AB43: 0 | AC43: 0 | AE43: 0 | AF43: 0
A44: ="23-"&Texts!B26 -> 23-Hot Strip Mill | C44: 15 | D44: 0 | E44: 356643.177 | G44: 0 | H44: 35300 | J44: 0 | K44: 0 | M44: 0 | N44: 0 | P44: 0 | Q44: 24 | S44: 0 | T44: 0 | V44: 0 | W44: 604.786 | Y44: 0 | Z44: 0 | AB44: 0 | AC44: 62375 | AE44: 0 | AF44: 0
A45: ="24-"&Texts!B27 -> 24-Compact Strip Mill | C45: 16 | D45: 0 | E45: 0 | G45: 0 | H45: 0 | J45: 0 | K45: 0 | M45: 0 | N45: 0 | P45: 0 | Q45: 0 | S45: 0 | T45: 0 | V45: 0 | W45: 0 | Y45: 0 | Z45: 0 | AB45: 0 | AC45: 0 | AE45: 0 | AF45: 0
A46: ="25-"&Texts!B28 -> 25-Plate Mill | C46: 17 | D46: 0 | E46: 0 | G46: 0 | H46: 0 | J46: 0 | K46: 0 | M46: 0 | N46: 0 | P46: 0 | Q46: 0 | S46: 0 | T46: 0 | V46: 0 | W46: 0 | Y46: 0 | Z46: 0 | AB46: 0 | AC46: 0 | AE46: 0 | AF46: 0
A47: ="26-"&Texts!B29 -> 26-Bar & Rod Mill | C47: 18 | D47: 0 | E47: 0 | G47: 0 | H47: 0 | J47: 0 | K47: 0 | M47: 0 | N47: 0 | P47: 0 | Q47: 0 | S47: 0 | T47: 0 | V47: 0 | W47: 0 | Y47: 0 | Z47: 0 | AB47: 0 | AC47: 0 | AE47: 0 | AF47: 0
A48: ="27-"&Texts!B30 -> 27-Section Mill | C48: 19 | D48: 0 | E48: 0 | G48: 0 | H48: 0 | J48: 0 | K48: 0 | M48: 0 | N48: 0 | P48: 0 | Q48: 0 | S48: 0 | T48: 0 | V48: 0 | W48: 0 | Y48: 0 | Z48: 0 | AB48: 0 | AC48: 0 | AE48: 0 | AF48: 0
A49: ="28-"&Texts!B31 -> 28-Wire Mill | C49: 20 | D49: 0 | E49: 0 | G49: 0 | H49: 0 | J49: 0 | K49: 0 | M49: 0 | N49: 0 | P49: 0 | Q49: 0 | S49: 0 | T49: 0 | V49: 0 | W49: 0 | Y49: 0 | Z49: 0 | AB49: 0 | AC49: 0 | AE49: 0 | AF49: 0
A50: ="29-"&Texts!B32 -> 29-Tube Mill | C50: 21 | D50: 0 | E50: 0 | G50: 0 | H50: 0 | J50: 0 | K50: 0 | M50: 0 | N50: 0 | P50: 0 | Q50: 0 | S50: 0 | T50: 0 | V50: 0 | W50: 0 | Y50: 0 | Z50: 0 | AB50: 0 | AC50: 0 | AE50: 0 | AF50: 0
A51: ="31-"&Texts!B33 -> 31-Pickling plant | C51: 22 | D51: 0 | E51: 0 | G51: 0 | H51: 0 | J51: 0 | K51: 0 | M51: 0 | N51: 0 | P51: 0 | Q51: 0 | S51: 0 | T51: 0 | V51: 0 | W51: 0 | Y51: 0 | Z51: 0 | AB51: 0 | AC51: 0 | AE51: 0 | AF51: 0
A52: ="32-"&Texts!B34 -> 32-Cold rolling Mill | C52: 23 | D52: 0 | E52: 0 | G52: 0 | H52: 0 | J52: 0 | K52: 0 | M52: 0 | N52: 0 | P52: 0 | Q52: 0 | S52: 0 | T52: 0 | V52: 0 | W52: 0 | Y52: 0 | Z52: 0 | AB52: 0 | AC52: 0 | AE52: 0 | AF52: 0
A53: ="33-"&Texts!B35 -> 33-Continuous Annealing plant | C53: 24 | D53: 0 | E53: 0 | G53: 0 | H53: 0 | J53: 0 | K53: 0 | M53: 0 | N53: 0 | P53: 0 | Q53: 0 | S53: 0 | T53: 0 | V53: 0 | W53: 0 | Y53: 0 | Z53: 0 | AB53: 0 | AC53: 0 | AE53: 0 | AF53: 0
A54: ="34-"&Texts!B36 -> 34-Batch Annealing plant | C54: 25 | D54: 0 | E54: 0 | G54: 0 | H54: 0 | J54: 0 | K54: 0 | M54: 0 | N54: 0 | P54: 0 | Q54: 0 | S54: 0 | T54: 0 | V54: 0 | W54: 0 | Y54: 0 | Z54: 0 | AB54: 0 | AC54: 0 | AE54: 0 | AF54: 0
A55: ="41-"&Texts!B37 -> 41-Hot dip galvanising plant | C55: 27 | D55: 0 | E55: 0 | G55: 0 | H55: 0 | J55: 0 | K55: 0 | M55: 0 | N55: 0 | P55: 0 | Q55: 0 | S55: 0 | T55: 0 | V55: 0 | W55: 0 | Y55: 0 | Z55: 0 | AB55: 0 | AC55: 0 | AE55: 0 | AF55: 0
A56: ="42-"&Texts!B38 -> 42-Electro galvanising plant | C56: 28 | D56: 0 | E56: 0 | G56: 0 | H56: 0 | J56: 0 | K56: 0 | M56: 0 | N56: 0 | P56: 0 | Q56: 0 | S56: 0 | T56: 0 | V56: 0 | W56: 0 | Y56: 0 | Z56: 0 | AB56: 0 | AC56: 0 | AE56: 0 | AF56: 0
A57: ="43-"&Texts!B39 -> 43-Tinplating plant | C57: 29 | D57: 0 | E57: 0 | G57: 0 | H57: 0 | J57: 0 | K57: 0 | M57: 0 | N57: 0 | P57: 0 | Q57: 0 | S57: 0 | T57: 0 | V57: 0 | W57: 0 | Y57: 0 | Z57: 0 | AB57: 0 | AC57: 0 | AE57: 0 | AF57: 0
A58: ="45-"&Texts!B40 -> 45-Tin free plating plant | C58: 30 | D58: 0 | E58: 0 | G58: 0 | H58: 0 | J58: 0 | K58: 0 | M58: 0 | N58: 0 | P58: 0 | Q58: 0 | S58: 0 | T58: 0 | V58: 0 | W58: 0 | Y58: 0 | Z58: 0 | AB58: 0 | AC58: 0 | AE58: 0 | AF58: 0
A59: ="46-"&Texts!B41 -> 46-Other metal coating plant | C59: 31
A60: ="47-"&Texts!B42 -> 47-Organic coating plant | C60: 31 | D60: 0 | E60: 0 | G60: 0 | H60: 0 | J60: 0 | K60: 0 | M60: 0 | N60: 0 | P60: 0 | Q60: 0 | S60: 0 | T60: 0 | V60: 0 | W60: 0 | Y60: 0 | Z60: 0 | AB60: 0 | AC60: 0 | AE60: 0 | AF60: 0
A61: ="51-"&Texts!B43 -> 51-Dust Treatment plant | C61: 35
A62: ="52-"&Texts!B44 -> 52-Lime plant | C62: 32 | D62: 0 | E62: 0 | G62: 0 | H62: 0 | J62: 0 | K62: 0 | M62: 0 | N62: 0 | P62: 0 | Q62: 0 | S62: 0 | T62: 0 | V62: 0 | W62: 0 | Y62: 0 | Z62: 0 | AB62: 0 | AC62: 0 | AE62: 0 | AF62: 0
A63: ="53-"&Texts!B45 -> 53-Heat treatment plant
A64: ="61-"&Texts!B46 -> 61-Boilers | C64: 44 | D64: 0 | E64: 0 | G64: 0 | H64: 0 | J64: 0 | K64: 0 | M64: 0 | N64: 0 | P64: 0 | Q64: 0 | S64: 0 | T64: 0 | V64: 0 | W64: 0 | Y64: 0 | Z64: 0 | AB64: 0 | AC64: 0 | AE64: 0 | AF64: 0
A65: ="62-"&Texts!B47 -> 62-Power plant | C65: 43 | D65: 0 | E65: 0 | G65: 0 | H65: 0 | J65: 0 | K65: 0 | M65: 0 | N65: 0 | P65: 0 | Q65: 0 | S65: 0 | T65: 0 | V65: 0 | W65: 0 | Y65: 0 | Z65: 0 | AB65: 0 | AC65: 0 | AE65: 0 | AF65: 0
A66: ="63-"&Texts!B48 -> 63-Air separation unit | C66: 45 | D66: 0 | E66: 0 | G66: 0 | H66: 0 | J66: 0 | K66: 0 | M66: 0 | N66: 0 | P66: 0 | Q66: 0 | S66: 0 | T66: 0 | V66: 0 | W66: 0 | Y66: 0 | Z66: 0 | AB66: 0 | AC66: 0 | AE66: 0 | AF66: 0
A67: ="64-"&Texts!B49 -> 64-Compressed Air plant | C67: 46 | D67: 0 | E67: 0 | G67: 0 | H67: 0 | J67: 0 | K67: 0 | M67: 0 | N67: 0 | P67: 0 | Q67: 0 | S67: 0 | T67: 0 | V67: 0 | W67: 0 | Y67: 0 | Z67: 0 | AB67: 0 | AC67: 0 | AE67: 0 | AF67: 0
A68: ="71-"&Texts!B50 -> 71-Others | C68: 57 | D68: 0 | E68: 0 | G68: 0 | H68: 0 | J68: 0 | K68: 0 | M68: 0 | N68: 0 | P68: 0 | Q68: 0 | S68: 0 | T68: 0 | V68: 0 | W68: 0 | Y68: 0 | Z68: 0 | AB68: 0 | AC68: 0 | AE68: 0 | AF68: 0
A69: ="72-"&Texts!B51 -> 72-Flares | C69: 51

Sheet Materials
B1: =Texts!B180 -> Code | D1: Ma-01 | G1: Ma-02 | J1: Ma-03 | M1: Ma-04 | P1: Ma-05 | S1: Ma-06 | V1: Ma-07 | Y1: Ma-08 | AB1: Ma-09 | AE1: Ma-10 | AH1: Ma-11 | AK1: Ma-12 | AN1: Ma-13 | AQ1: Ma-14
B2: =Texts!B182 -> Name | D2: =Texts!$B137 -> EAF Electrodes | G2: =Texts!$B138 -> Ferro Chromium | J2: =Texts!$B139 -> Ferro Manganese | M2: =Texts!$B140 -> Pre-consumer scrap | P2: =Texts!$B141 -> Post-consumer scrap | S2: =Texts!$B142 -> Limestone | V2: =Texts!$B143 -> Burnt Lime | Y2: =Texts!$B144 -> Dolomite | AB2: =Texts!$B145 -> Dolime | AE2: =Texts!$B146 -> Fine Iron Ore | AH2: =Texts!$B147 -> Ground pellet feed | AK2: =Texts!$B148 -> Lump Ore | AN2: =Texts!$B149 -> Other material 1 | AQ2: =Texts!$B150 -> Other material 2
B3: =Texts!B183 -> Unit | D3: t | G3: t | J3: t | M3: t | P3: t | S3: =Texts!$B252 -> t dry | V3: t | Y3: =Texts!$B252 -> t dry | AB3: t | AE3: =Texts!$B252 -> t dry | AH3: =Texts!$B252 -> t dry | AK3: =Texts!$B252 -> t dry | AN3: =Texts!$B252 -> t dry | AQ3: =Texts!$B252 -> t dry
A4: =Texts!B188 -> Material Characteristics | D4: Ma-01 | G4: Ma-03 | J4: Ma-04 | M4: Ma-06 | P4: Ma-07 | S4: Ma-08 | V4: Ma-09 | Y4: Ma-10 | AB4: Ma-11 | AE4: Ma-12 | AK4: Ma-13 | AN4: Ma-15
A5: C | D5: 0 | E5: t/t | G5: 0 | H5: t/t | J5: 0 | K5: t/t | M5: 0.001 | N5: t/t | P5: 0.001 | Q5: t/t | S5: 0.1188081878 | T5: t/t | V5: 0.0065 | W5: t/t | Y5: 0.13 | Z5: t/t | AB5: 0 | AC5: t/t | AE5: 0.0005 | AF5: t/t | AI5: t/t | AK5: 0.0005 | AL5: t/t | AN5: 0 | AO5: t/t | AR5: t/t
A6: =Texts!B189 -> ncv
A7: =Texts!B190 -> Ash
A8: =Texts!B191 -> Volatiles
A9: =Texts!B192 -> Energy equivalent | E9: GJ/t | H9: GJ/t | K9: GJ/t | N9: GJ/t | Q9: GJ/t | T9: GJ/t | V9: =Lime_upEn -> 4.1 | W9: GJ/t | Z9: GJ/t | AB9: =Dolime_upEn -> 4.1 | AC9: GJ/t | AF9: GJ/t | AH9: =PelletFeed_upEn -> 0.392 | AI9: GJ/t | AL9: GJ/t | AO9: GJ/t | AR9: GJ/t
A10: =Texts!B193 -> CO2 Emission factor | D10: =44.01*IF(Electrode_C>0,Electrode_C,Electrode_DefC)/12.011 -> 3.660477063 | E10: t/t | G10: =44.01*IF(FeCr_C>0,FeCr_C,FeCr_DefC)/12.011 -> 0.2381691783 | H10: t/t | J10: =44.01*IF(FeMn_C>0,FeMn_C,FeMn_DefC)/12.011 -> 0.2748105903 | K10: t/t | M10: =44.01*IF(PreConScrap_C>0,PreConScrap_C,Scrap_DefC)/12.011 -> 0.003664141204 | N10: t/t | P10: =44.01*IF(PostConScrap_C>0,PostConScrap_C,Scrap_DefC)/12.011 -> 0.003664141204 | Q10: t/t | S10: =44.01*IF(Limestone_C>0,Limestone_C,Limestone_DefC)/12.011 -> 0.4353299763 | T10: t/t | V10: =44.01*IF(Lime_C>0,Lime_C,Lime_DefC)/12.011 -> 0.02381691783 | W10: t/t | Y10: =44.01*IF(Dolomite_C>0,Dolomite_C,Dolomite_DefC)/12.011 -> 0.4763383565 | Z10: t/t | AB10: =44.01*IF(Dolime_C>0,Dolime_C,Dolime_DefC)/12.011 -> 0.02381691783 | AC10: t/t | AE10: =44.01*IF(FineOre_C>0,FineOre_C,FineOre_DefC)/12.011 -> 0.001832070602 | AF10: t/t | AH10: =44.01*IF(PelletFeed_C>0,PelletFeed_C,FineOre_DefC)/12.011 -> 0.001832070602 | AI10: t/t | AK10: =44.01*IF(LumpOre_C>0,LumpOre_C,LumpOre_DefC)/12.011 -> 0.001832070602 | AL10: t/t | AN10: =44.01*OM1_C/12.011 -> 0 | AO10: t/t | AQ10: =44.01*OM2_C/12.011 -> 0 | AR10: t/t
A11: =Texts!B193 -> CO2 Emission factor | E11: t/GJ
A12: =Texts!B194 -> Upstream CO2 | D12: =Electrode_up_CO2 -> 0 | E12: t/t | G12: =FeCr_upCO2 -> 0 | H12: t/t | J12: =FeMn_upCO2 -> 0 | K12: t/t | N12: t/t | Q12: t/t | T12: t/t | V12: =Lime_upCO2 -> 1.05 | W12: t/t | Z12: t/t | AB12: =Dolime_upCO2 -> 1.05 | AC12: t/t | AF12: t/t | AH12: =0.05*Elec_upCO2 -> 0.003601432739 | AI12: t/t | AL12: t/t | AO12: t/t | AR12: t/t
A14: =Texts!B195 -> Procurements | D14: =D3 -> t | G14: =G3 -> t | J14: =J3 -> t | M14: =M3 -> t | P14: =P3 -> t | S14: =S3 -> t dry | V14: =V3 -> t | Y14: =Y3 -> t dry | AB14: =AB3 -> t | AE14: =AE3 -> t dry | AH14: =AH3 -> t dry | AK14: =AK3 -> t dry | AN14: =AN3 -> t dry | AQ14: =AQ3 -> t dry
A15: =Texts!B196 -> External Procurements | M15: 399379 | P15: 170941 | S15: 1257819.09 | V15: 303612.18 | Y15: 80730 | AB15: 0 | AE15: 7065101 | AH15: 0 | AK15: 1262007 | AN15: 0
A16: =Texts!B197 -> Reclaimed from stocks | M16: 0 | P16: 0 | S16: 4512.91 | V16: 153.46 | Y16: 0 | AB16: 0 | AE16: 0 | AH16: 0 | AK16: 50184 | AN16: 0
A17: =Texts!B198 -> Destinations | D17: =D14 -> t | G17: =G14 -> t | J17: =J14 -> t | M17: =M14 -> t | P17: =P14 -> t | S17: =S14 -> t dry | V17: =V14 -> t | Y17: =Y14 -> t dry | AB17: =AB14 -> t | AE17: =AE14 -> t dry | AH17: =AH14 -> t dry | AK17: =AK14 -> t dry | AN17: =AN14 -> t dry | AQ17: =AQ14 -> t dry
A18: =Texts!B199 -> External power plants | D18: 0 | G18: 0 | J18: 0 | AQ18: 0
A19: =Texts!B200 -> Other deliveries | M19: 0 | P19: 0 | S19: 0 | V19: 2681.72 | Y19: 0 | AB19: 0 | AE19: 0 | AH19: 0 | AK19: 0 | AN19: 0
A20: =Texts!B201 -> Storage | M20: 0 | P20: 0 | S20: 0 | V20: 0 | Y20: 0 | AB20: 0 | AE20: 50117 | AH20: 0 | AK20: 0 | AN20: 0
A21: =Texts!B202 -> Losses & Inventory Gap
A22: =Texts!B203 -> Balance | D22: =SUM(D15:D16,D25:D69)-SUM(D18:D21,E25:E69) -> 0 | G22: =SUM(G15:G16,G25:G69)-SUM(G18:G21,H25:H69) -> 0 | J22: =SUM(J15:J16,J25:J69)-SUM(J18:J21,K25:K69) -> 0 | M22: =SUM(M15:M16,M25:M69)-SUM(M18:M21,N25:N69) -> 0 | P22: =SUM(P15:P16,P25:P69)-SUM(P18:P21,Q25:Q69) -> 0 | S22: =SUM(S15:S16,S25:S69)-SUM(S18:S21,T25:T69) -> 0 | V22: =SUM(V15:V16,V25:V69)-SUM(V18:V21,W25:W69) -> 31405.92 | Y22: =SUM(Y15:Y16,Y25:Y69)-SUM(Y18:Y21,Z25:Z69) -> 0 | AB22: =SUM(AB15:AB16,AB25:AB69)-SUM(AB18:AB21,AC25:AC69) -> 0 | AE22: =SUM(AE15:AE16,AE25:AE69)-SUM(AE18:AE21,AF25:AF69) -> 291038 | AH22: =SUM(AH15:AH16,AH25:AH69)-SUM(AH18:AH21,AI25:AI69) -> 0 | AK22: =SUM(AK15:AK16,AK25:AK69)-SUM(AK18:AK21,AL25:AL69) -> 16616 | AN22: =SUM(AN15:AN16,AN25:AN69)-SUM(AN18:AN21,AO25:AO69) -> 0 | AQ22: =SUM(AQ15:AQ16,AQ25:AQ69)-SUM(AQ18:AQ21,AR25:AR69) -> 0
D24: =Texts!$B204 -> Generation | E24: =Texts!$B205 -> Use | G24: =Texts!$B204 -> Generation | H24: =Texts!$B205 -> Use | J24: =Texts!$B204 -> Generation | K24: =Texts!$B205 -> Use | M24: =Texts!$B204 -> Generation | N24: =Texts!$B205 -> Use | P24: =Texts!$B204 -> Generation | Q24: =Texts!$B205 -> Use | S24: =Texts!$B204 -> Generation | T24: =Texts!$B205 -> Use | V24: =Texts!$B204 -> Generation | W24: =Texts!$B205 -> Use | Y24: =Texts!$B204 -> Generation | Z24: =Texts!$B205 -> Use | AB24: =Texts!$B204 -> Generation | AC24: =Texts!$B205 -> Use | AE24: =Texts!$B204 -> Generation | AF24: =Texts!$B205 -> Use | AH24: =Texts!$B204 -> Generation | AI24: =Texts!$B205 -> Use | AK24: =Texts!$B204 -> Generation | AL24: =Texts!$B205 -> Use | AN24: =Texts!$B204 -> Generation | AO24: =Texts!$B205 -> Use | AQ24: =Texts!$B204 -> Generation | AR24: =Texts!$B205 -> Use
A25: ="01-"&Texts!B10 -> 01-Coke plant | C25: 3 | D25: 0 | E25: 0 | G25: 0 | H25: 0 | J25: 0 | K25: 0 | M25: 0 | N25: 0 | P25: 0 | Q25: 0 | S25: 0 | T25: 0 | V25: 0 | W25: 0 | Y25: 0 | Z25: 0 | AB25: 0 | AC25: 0 | AE25: 0 | AF25: 0 | AH25: 0 | AI25: 0 | AK25: 0 | AL25: 0 | AN25: 0 | AO25: 0
A26: ="02-"&Texts!B11 -> 02-Sinter plant | C26: 4 | D26: 0 | E26: 0 | G26: 0 | H26: 0 | J26: 0 | K26: 0 | M26: 0 | N26: 0 | P26: 0 | Q26: 0 | S26: 0 | T26: 1262332 | V26: 0 | W26: 20788 | Y26: 0 | Z26: 0 | AB26: 0 | AC26: 0 | AE26: 0 | AF26: 6723946 | AH26: 0 | AI26: 0 | AK26: 0 | AL26: 191525.6543 | AN26: 0 | AO26: 0
A27: ="03-"&Texts!B12 -> 03-Pellet plant | D27: 0 | E27: 0 | G27: 0 | H27: 0 | J27: 0 | K27: 0 | M27: 0 | N27: 0 | P27: 0 | Q27: 0 | S27: 0 | T27: 0 | V27: 0 | W27: 0 | Y27: 0 | Z27: 0 | AB27: 0 | AC27: 0 | AE27: 0 | AF27: 0 | AH27: 0 | AI27: 0 | AK27: 0 | AL27: 0 | AN27: 0 | AO27: 0
A28: ="04-"&Texts!B13 -> 04-Gas based DRI plant | C28: 6 | D28: 0 | E28: 0 | G28: 0 | H28: 0 | J28: 0 | K28: 0 | M28: 0 | N28: 0 | P28: 0 | Q28: 0 | S28: 0 | T28: 0 | V28: 0 | W28: 0 | Y28: 0 | Z28: 0 | AB28: 0 | AC28: 0 | AE28: 0 | AF28: 0 | AH28: 0 | AI28: 0 | AK28: 0 | AL28: 0 | AN28: 0 | AO28: 0
A29: ="05-"&Texts!B14 -> 05-Coal based DRI plant | D29: 0 | E29: 0 | G29: 0 | H29: 0 | J29: 0 | K29: 0 | M29: 0 | N29: 0 | P29: 0 | Q29: 0 | S29: 0 | T29: 0 | V29: 0 | W29: 0 | Y29: 0 | Z29: 0 | AB29: 0 | AC29: 0 | AE29: 0 | AF29: 0 | AH29: 0 | AI29: 0 | AK29: 0 | AL29: 0 | AN29: 0 | AO29: 0
A30: ="06-"&Texts!B15 -> 06-Blast Furnace plant | C30: 5 | D30: 0 | E30: 0 | G30: 0 | H30: 0 | J30: 0 | K30: 0 | M30: 0 | N30: 0 | P30: 0 | Q30: 0 | S30: 0 | T30: 0 | V30: 0 | W30: 0 | Y30: 0 | Z30: 0 | AB30: 0 | AC30: 0 | AE30: 0 | AF30: 0 | AH30: 0 | AI30: 0 | AK30: 0 | AL30: 955255.3457 | AN30: 0 | AO30: 0
A31: ="07-"&Texts!B16 -> 07-Smelting Reduction plant | C31: 7 | D31: 0 | E31: 0 | G31: 0 | H31: 0 | J31: 0 | K31: 0 | M31: 0 | N31: 0 | P31: 0 | Q31: 0 | S31: 0 | T31: 0 | V31: 0 | W31: 0 | Y31: 0 | Z31: 0 | AB31: 0 | AC31: 0 | AE31: 0 | AF31: 0 | AH31: 0 | AI31: 0 | AK31: 0 | AL31: 0 | AN31: 0 | AO31: 0
A32: ="11-"&Texts!B17 -> 11-BOF shop
A33: ="11a-"&Texts!B18 -> 11a-BOF converter | C33: 8 | D33: 0 | E33: 0 | G33: 0 | H33: 0 | J33: 0 | K33: 0 | M33: 0 | N33: 399379 | P33: 0 | Q33: 170941 | S33: 0 | T33: 0 | V33: 0 | W33: 248890 | Y33: 0 | Z33: 80730 | AB33: 0 | AC33: 0 | AE33: 0 | AF33: 0 | AH33: 0 | AI33: 0 | AK33: 0 | AL33: 148794 | AN33: 0 | AO33: 0
A34: ="11b-"&Texts!B21 -> 11b-Secondary metallurgy plant | D34: 0 | E34: 0 | G34: 0 | H34: 0 | J34: 0 | K34: 0 | M34: 0 | N34: 0 | P34: 0 | Q34: 0 | S34: 0 | T34: 0 | V34: 0 | W34: 0 | Y34: 0 | Z34: 0 | AB34: 0 | AC34: 0 | AE34: 0 | AF34: 0 | AH34: 0 | AI34: 0 | AK34: 0 | AL34: 0 | AN34: 0 | AO34: 0
A35: ="11c-"&Texts!B22 -> 11c-Ingot Casting plant | D35: 0 | E35: 0 | G35: 0 | H35: 0 | J35: 0 | K35: 0 | M35: 0 | N35: 0 | P35: 0 | Q35: 0 | S35: 0 | T35: 0 | V35: 0 | W35: 0 | Y35: 0 | Z35: 0 | AB35: 0 | AC35: 0 | AE35: 0 | AF35: 0 | AH35: 0 | AI35: 0 | AK35: 0 | AL35: 0 | AN35: 0 | AO35: 0
A36: ="11d-"&Texts!B23 -> 11d-Continuous casting plant | D36: 0 | E36: 0 | G36: 0 | H36: 0 | J36: 0 | K36: 0 | M36: 0 | N36: 0 | P36: 0 | Q36: 0 | S36: 0 | T36: 0 | V36: 0 | W36: 0 | Y36: 0 | Z36: 0 | AB36: 0 | AC36: 0 | AE36: 0 | AF36: 0 | AH36: 0 | AI36: 0 | AK36: 0 | AL36: 0 | AN36: 0 | AO36: 0
A37: ="12-"&Texts!B19 -> 12-EAF shop
A38: ="12a-"&Texts!B20 -> 12a-Electric arc furnace | C38: 9 | D38: 0 | E38: 0 | G38: 0 | H38: 0 | J38: 0 | K38: 0 | M38: 0 | N38: 0 | P38: 0 | Q38: 0 | S38: 0 | T38: 0 | V38: 0 | W38: 0 | Y38: 0 | Z38: 0 | AB38: 0 | AC38: 0 | AE38: 0 | AF38: 0 | AH38: 0 | AI38: 0 | AK38: 0 | AL38: 0 | AN38: 0 | AO38: 0
A39: ="12b-"&Texts!B21 -> 12b-Secondary metallurgy plant | C39: 10 | D39: 0 | E39: 0 | G39: 0 | H39: 0 | J39: 0 | K39: 0 | M39: 0 | N39: 0 | P39: 0 | Q39: 0 | S39: 0 | T39: 0 | V39: 0 | W39: 0 | Y39: 0 | Z39: 0 | AB39: 0 | AC39: 0 | AE39: 0 | AF39: 0 | AH39: 0 | AI39: 0 | AK39: 0 | AL39: 0 | AN39: 0 | AO39: 0
A40: ="12c-"&Texts!B22 -> 12c-Ingot Casting plant | C40: 11 | D40: 0 | E40: 0 | G40: 0 | H40: 0 | J40: 0 | K40: 0 | M40: 0 | N40: 0 | P40: 0 | Q40: 0 | S40: 0 | T40: 0 | V40: 0 | W40: 0 | Y40: 0 | Z40: 0 | AB40: 0 | AC40: 0 | AE40: 0 | AF40: 0 | AH40: 0 | AI40: 0 | AK40: 0 | AL40: 0 | AN40: 0 | AO40: 0
A41: ="12d-"&Texts!B23 -> 12d-Continuous casting plant | C41: 12 | D41: 0 | E41: 0 | G41: 0 | H41: 0 | J41: 0 | K41: 0 | M41: 0 | N41: 0 | P41: 0 | Q41: 0 | S41: 0 | T41: 0 | V41: 0 | W41: 0 | Y41: 0 | Z41: 0 | AB41: 0 | AC41: 0 | AE41: 0 | AF41: 0 | AH41: 0 | AI41: 0 | AK41: 0 | AL41: 0 | AN41: 0 | AO41: 0
A42: ="21-"&Texts!B24 -> 21-Cogging mill | C42: 13 | D42: 0 | E42: 0 | G42: 0 | H42: 0 | J42: 0 | K42: 0 | M42: 0 | N42: 0 | P42: 0 | Q42: 0 | S42: 0 | T42: 0 | V42: 0 | W42: 0 | Y42: 0 | Z42: 0 | AB42: 0 | AC42: 0 | AE42: 0 | AF42: 0 | AH42: 0 | AI42: 0 | AK42: 0 | AL42: 0 | AN42: 0 | AO42: 0
A43: ="22-"&Texts!B25 -> 22-Billet Mill | C43: 14 | D43: 0 | E43: 0 | G43: 0 | H43: 0 | J43: 0 | K43: 0 | M43: 0 | N43: 0 | P43: 0 | Q43: 0 | S43: 0 | T43: 0 | V43: 0 | W43: 0 | Y43: 0 | Z43: 0 | AB43: 0 | AC43: 0 | AE43: 0 | AF43: 0 | AH43: 0 | AI43: 0 | AK43: 0 | AL43: 0 | AN43: 0 | AO43: 0
A44: ="23-"&Texts!B26 -> 23-Hot Strip Mill | C44: 15 | D44: 0 | E44: 0 | G44: 0 | H44: 0 | J44: 0 | K44: 0 | M44: 0 | N44: 0 | P44: 0 | Q44: 0 | S44: 0 | T44: 0 | V44: 0 | W44: 0 | Y44: 0 | Z44: 0 | AB44: 0 | AC44: 0 | AE44: 0 | AF44: 0 | AH44: 0 | AI44: 0 | AK44: 0 | AL44: 0 | AN44: 0 | AO44: 0
A45: ="24-"&Texts!B27 -> 24-Compact Strip Mill | C45: 16 | D45: 0 | E45: 0 | G45: 0 | H45: 0 | J45: 0 | K45: 0 | M45: 0 | N45: 0 | P45: 0 | Q45: 0 | S45: 0 | T45: 0 | V45: 0 | W45: 0 | Y45: 0 | Z45: 0 | AB45: 0 | AC45: 0 | AE45: 0 | AF45: 0 | AH45: 0 | AI45: 0 | AK45: 0 | AL45: 0 | AN45: 0 | AO45: 0
A46: ="25-"&Texts!B28 -> 25-Plate Mill | C46: 17 | D46: 0 | E46: 0 | G46: 0 | H46: 0 | J46: 0 | K46: 0 | M46: 0 | N46: 0 | P46: 0 | Q46: 0 | S46: 0 | T46: 0 | V46: 0 | W46: 0 | Y46: 0 | Z46: 0 | AB46: 0 | AC46: 0 | AE46: 0 | AF46: 0 | AH46: 0 | AI46: 0 | AK46: 0 | AL46: 0 | AN46: 0 | AO46: 0
A47: ="26-"&Texts!B29 -> 26-Bar & Rod Mill | C47: 18 | D47: 0 | E47: 0 | G47: 0 | H47: 0 | J47: 0 | K47: 0 | M47: 0 | N47: 0 | P47: 0 | Q47: 0 | S47: 0 | T47: 0 | V47: 0 | W47: 0 | Y47: 0 | Z47: 0 | AB47: 0 | AC47: 0 | AE47: 0 | AF47: 0 | AH47: 0 | AI47: 0 | AK47: 0 | AL47: 0 | AN47: 0 | AO47: 0
A48: ="27-"&Texts!B30 -> 27-Section Mill | C48: 19 | D48: 0 | E48: 0 | G48: 0 | H48: 0 | J48: 0 | K48: 0 | M48: 0 | N48: 0 | P48: 0 | Q48: 0 | S48: 0 | T48: 0 | V48: 0 | W48: 0 | Y48: 0 | Z48: 0 | AB48: 0 | AC48: 0 | AE48: 0 | AF48: 0 | AH48: 0 | AI48: 0 | AK48: 0 | AL48: 0 | AN48: 0 | AO48: 0
A49: ="28-"&Texts!B31 -> 28-Wire Mill | C49: 20 | D49: 0 | E49: 0 | G49: 0 | H49: 0 | J49: 0 | K49: 0 | M49: 0 | N49: 0 | P49: 0 | Q49: 0 | S49: 0 | T49: 0 | V49: 0 | W49: 0 | Y49: 0 | Z49: 0 | AB49: 0 | AC49: 0 | AE49: 0 | AF49: 0 | AH49: 0 | AI49: 0 | AK49: 0 | AL49: 0 | AN49: 0 | AO49: 0
A50: ="29-"&Texts!B32 -> 29-Tube Mill | C50: 21 | D50: 0 | E50: 0 | G50: 0 | H50: 0 | J50: 0 | K50: 0 | M50: 0 | N50: 0 | P50: 0 | Q50: 0 | S50: 0 | T50: 0 | V50: 0 | W50: 0 | Y50: 0 | Z50: 0 | AB50: 0 | AC50: 0 | AE50: 0 | AF50: 0 | AH50: 0 | AI50: 0 | AK50: 0 | AL50: 0 | AN50: 0 | AO50: 0
A51: ="31-"&Texts!B33 -> 31-Pickling plant | C51: 22 | D51: 0 | E51: 0 | G51: 0 | H51: 0 | J51: 0 | K51: 0 | M51: 0 | N51: 0 | P51: 0 | Q51: 0 | S51: 0 | T51: 0 | V51: 0 | W51: 0 | Y51: 0 | Z51: 0 | AB51: 0 | AC51: 0 | AE51: 0 | AF51: 0 | AH51: 0 | AI51: 0 | AK51: 0 | AL51: 0 | AN51: 0 | AO51: 0
A52: ="32-"&Texts!B34 -> 32-Cold rolling Mill | C52: 23 | D52: 0 | E52: 0 | G52: 0 | H52: 0 | J52: 0 | K52: 0 | M52: 0 | N52: 0 | P52: 0 | Q52: 0 | S52: 0 | T52: 0 | V52: 0 | W52: 0 | Y52: 0 | Z52: 0 | AB52: 0 | AC52: 0 | AE52: 0 | AF52: 0 | AH52: 0 | AI52: 0 | AK52: 0 | AL52: 0 | AN52: 0 | AO52: 0
A53: ="33-"&Texts!B35 -> 33-Continuous Annealing plant | C53: 24 | D53: 0 | E53: 0 | G53: 0 | H53: 0 | J53: 0 | K53: 0 | M53: 0 | N53: 0 | P53: 0 | Q53: 0 | S53: 0 | T53: 0 | V53: 0 | W53: 0 | Y53: 0 | Z53: 0 | AB53: 0 | AC53: 0 | AE53: 0 | AF53: 0 | AH53: 0 | AI53: 0 | AK53: 0 | AL53: 0 | AN53: 0 | AO53: 0
A54: ="34-"&Texts!B36 -> 34-Batch Annealing plant | C54: 25 | D54: 0 | E54: 0 | G54: 0 | H54: 0 | J54: 0 | K54: 0 | M54: 0 | N54: 0 | P54: 0 | Q54: 0 | S54: 0 | T54: 0 | V54: 0 | W54: 0 | Y54: 0 | Z54: 0 | AB54: 0 | AC54: 0 | AE54: 0 | AF54: 0 | AH54: 0 | AI54: 0 | AK54: 0 | AL54: 0 | AN54: 0 | AO54: 0
A55: ="41-"&Texts!B37 -> 41-Hot dip galvanising plant | C55: 27 | D55: 0 | E55: 0 | G55: 0 | H55: 0 | J55: 0 | K55: 0 | M55: 0 | N55: 0 | P55: 0 | Q55: 0 | S55: 0 | T55: 0 | V55: 0 | W55: 0 | Y55: 0 | Z55: 0 | AB55: 0 | AC55: 0 | AE55: 0 | AF55: 0 | AH55: 0 | AI55: 0 | AK55: 0 | AL55: 0 | AN55: 0 | AO55: 0
A56: ="42-"&Texts!B38 -> 42-Electro galvanising plant | C56: 28 | D56: 0 | E56: 0 | G56: 0 | H56: 0 | J56: 0 | K56: 0 | M56: 0 | N56: 0 | P56: 0 | Q56: 0 | S56: 0 | T56: 0 | V56: 0 | W56: 0 | Y56: 0 | Z56: 0 | AB56: 0 | AC56: 0 | AE56: 0 | AF56: 0 | AH56: 0 | AI56: 0 | AK56: 0 | AL56: 0 | AN56: 0 | AO56: 0
A57: ="43-"&Texts!B39 -> 43-Tinplating plant | C57: 29 | D57: 0 | E57: 0 | G57: 0 | H57: 0 | J57: 0 | K57: 0 | M57: 0 | N57: 0 | P57: 0 | Q57: 0 | S57: 0 | T57: 0 | V57: 0 | W57: 0 | Y57: 0 | Z57: 0 | AB57: 0 | AC57: 0 | AE57: 0 | AF57: 0 | AH57: 0 | AI57: 0 | AK57: 0 | AL57: 0 | AN57: 0 | AO57: 0
A58: ="45-"&Texts!B40 -> 45-Tin free plating plant | C58: 30 | D58: 0 | E58: 0 | G58: 0 | H58: 0 | J58: 0 | K58: 0 | M58: 0 | N58: 0 | P58: 0 | Q58: 0 | S58: 0 | T58: 0 | V58: 0 | W58: 0 | Y58: 0 | Z58: 0 | AB58: 0 | AC58: 0 | AE58: 0 | AF58: 0 | AH58: 0 | AI58: 0 | AK58: 0 | AL58: 0 | AN58: 0 | AO58: 0
A59: ="46-"&Texts!B41 -> 46-Other metal coating plant | C59: 31
A60: ="47-"&Texts!B42 -> 47-Organic coating plant | C60: 31 | D60: 0 | E60: 0 | G60: 0 | H60: 0 | J60: 0 | K60: 0 | M60: 0 | N60: 0 | P60: 0 | Q60: 0 | S60: 0 | T60: 0 | V60: 0 | W60: 0 | Y60: 0 | Z60: 0 | AB60: 0 | AC60: 0 | AE60: 0 | AF60: 0 | AH60: 0 | AI60: 0 | AK60: 0 | AL60: 0 | AN60: 0 | AO60: 0
A61: ="51-"&Texts!B43 -> 51-Dust Treatment plant | C61: 35
A62: ="52-"&Texts!B44 -> 52-Lime plant | C62: 32 | D62: 0 | E62: 0 | G62: 0 | H62: 0 | J62: 0 | K62: 0 | M62: 0 | N62: 0 | P62: 0 | Q62: 0 | S62: 0 | T62: 0 | V62: 0 | W62: 0 | Y62: 0 | Z62: 0 | AB62: 0 | AC62: 0 | AE62: 0 | AF62: 0 | AH62: 0 | AI62: 0 | AK62: 0 | AL62: 0 | AN62: 0 | AO62: 0
A63: ="53-"&Texts!B45 -> 53-Heat treatment plant
A64: ="61-"&Texts!B46 -> 61-Boilers | C64: 44 | D64: 0 | E64: 0 | G64: 0 | H64: 0 | J64: 0 | K64: 0 | M64: 0 | N64: 0 | P64: 0 | Q64: 0 | S64: 0 | T64: 0 | V64: 0 | W64: 0 | Y64: 0 | Z64: 0 | AB64: 0 | AC64: 0 | AE64: 0 | AF64: 0 | AH64: 0 | AI64: 0 | AK64: 0 | AL64: 0 | AN64: 0 | AO64: 0
A65: ="62-"&Texts!B47 -> 62-Power plant | C65: 43 | D65: 0 | E65: 0 | G65: 0 | H65: 0 | J65: 0 | K65: 0 | M65: 0 | N65: 0 | P65: 0 | Q65: 0 | S65: 0 | T65: 0 | V65: 0 | W65: 0 | Y65: 0 | Z65: 0 | AB65: 0 | AC65: 0 | AE65: 0 | AF65: 0 | AH65: 0 | AI65: 0 | AK65: 0 | AL65: 0 | AN65: 0 | AO65: 0
A66: ="63-"&Texts!B48 -> 63-Air separation unit | C66: 45 | D66: 0 | E66: 0 | G66: 0 | H66: 0 | J66: 0 | K66: 0 | M66: 0 | N66: 0 | P66: 0 | Q66: 0 | S66: 0 | T66: 0 | V66: 0 | W66: 0 | Y66: 0 | Z66: 0 | AB66: 0 | AC66: 0 | AE66: 0 | AF66: 0 | AH66: 0 | AI66: 0 | AK66: 0 | AL66: 0 | AN66: 0 | AO66: 0
A67: ="64-"&Texts!B49 -> 64-Compressed Air plant | C67: 46 | D67: 0 | E67: 0 | G67: 0 | H67: 0 | J67: 0 | K67: 0 | M67: 0 | N67: 0 | P67: 0 | Q67: 0 | S67: 0 | T67: 0 | V67: 0 | W67: 0 | Y67: 0 | Z67: 0 | AB67: 0 | AC67: 0 | AE67: 0 | AF67: 0 | AH67: 0 | AI67: 0 | AK67: 0 | AL67: 0 | AN67: 0 | AO67: 0
A68: ="71-"&Texts!B50 -> 71-Others | C68: 57 | D68: 0 | E68: 0 | G68: 0 | H68: 0 | J68: 0 | K68: 0 | M68: 0 | N68: 0 | P68: 0 | Q68: 0 | S68: 0 | T68: 0 | V68: 0 | W68: 0 | Y68: 0 | Z68: 0 | AB68: 0 | AC68: 0 | AE68: 0 | AF68: 0 | AH68: 0 | AI68: 0 | AK68: 0 | AL68: 0 | AN68: 0 | AO68: 0
A69: ="72-"&Texts!B51 -> 72-Flares | C69: 51

Sheet Residues
B1: =Texts!B180 -> Code | D1: Res-01 | G1: Res-02 | J1: Res-03 | M1: Res-04 | P1: Res-05 | S1: Res-06 | V1: Res-07 | Y1: Res-08 | AB1: Res-09 | AE1: Res-10 | AH1: Res-11 | AK1: Res-12 | AN1: Res-13 | AQ1: Res-14 | AT1: Res-15 | AW1: Res-16
B2: =Texts!B182 -> Name | D2: =Texts!$B152 -> Tar | G2: =Texts!$B153 -> Benzole | J2: =Texts!$B154 -> Naphtalenic oil | M2: =Texts!$B155 -> CDQ Dust | P2: =Texts!$B156 -> Coke quenching breeze | S2: =Texts!$B157 -> DRI screening fines | V2: =Texts!$B158 -> BF gas dust | Y2: =Texts!$B159 -> BF gas sludge | AB2: =Texts!$B160 -> SR gas dust | AE2: =Texts!$B161 -> SR gas sludge | AH2: =Texts!$B162 -> Ironmaking slag | AK2: =Texts!$B163 -> Granulated slag | AN2: =Texts!$B165 -> Home scrap | AQ2: =Texts!$B166 -> Pig iron scrap | AT2: =Texts!$B167 -> Other residue 1 | AW2: =Texts!$B168 -> Other residue 2
B3: =Texts!B183 -> Unit | D3: t | G3: t | J3: m3 | M3: t | P3: =Texts!$B252 -> t dry | S3: t | V3: =Texts!$B252 -> t dry | Y3: =Texts!$B252 -> t dry | AB3: =Texts!$B252 -> t dry | AE3: =Texts!$B252 -> t dry | AH3: =Texts!$B252 -> t dry | AK3: =Texts!$B252 -> t dry | AN3: t | AQ3: t | AT3: t | AW3: t
A4: =Texts!B188 -> Material Characteristics | D4: Res-01 | G4: Res-02 | J4: Res-03 | M4: Res-04 | P4: Res-05 | S4: Res-09 | V4: Res-06 | Y4: Res-07 | AB4: Res-10 | AK4: Res-08 | AN4: Res-13
A5: C | D5: 0.911 | E5: t/t | G5: 0 | H5: t/t | J5: 0 | K5: t/m3 | M5: 0 | N5: t/t | P5: 0 | Q5: t/t | S5: 0 | T5: t/t | V5: 0.4 | W5: t/t | Y5: 0.4 | Z5: t/t | AB5: 0 | AC5: t/t | AF5: t/t | AH5: 0 | AI5: t/t | AK5: 0 | AL5: t/t | AN5: 0.0004 | AO5: t/t | AR5: t/t | AU5: t/t | AX5: t/t
A6: =Texts!B189 -> ncv | D6: 37.251 | E6: GJ/t | G6: 0 | H6: GJ/t | J6: 0 | K6: GJ/m3 | M6: 0 | N6: GJ/t | P6: 0 | Q6: GJ/t | S6: 0 | T6: GJ/t | V6: 15.068 | W6: GJ/t | Y6: 14.963 | Z6: GJ/t | AB6: 0 | AC6: GJ/t | AF6: GJ/t | AH6: 0 | AI6: GJ/t | AK6: 0 | AL6: GJ/t | AO6: GJ/t | AR6: GJ/t | AU6: GJ/t | AX6: GJ/t
A7: =Texts!B190 -> Ash
A8: =Texts!B191 -> Volatiles
A9: =Texts!B192 -> Energy equivalent | E9: MJ/t | H9: MJ/t | K9: MJ/m3 | N9: MJ/t | Q9: MJ/t | T9: MJ/t | W9: MJ/t | Z9: MJ/t | AC9: MJ/t | AF9: MJ/t | AI9: MJ/t | AL9: MJ/t | AO9: MJ/t | AR9: MJ/t | AU9: MJ/t | AX9: MJ/t
A10: =Texts!B193 -> CO2 Emission factor | D10: =44.01*IF(Tar_C>0,Tar_C,Tar_DefC)/12.011 -> 3.338032637 | E10: t/t | G10: =44.01*IF(Benzole_C>0,Benzole_C,Benzole_DefC)/12.011 -> 3.365513696 | H10: t/t | J10: =44.01*IF(NaphtOil_C>0,NaphtOil_C,NaphtOil_DefC)/12.011 -> 3.096199317 | K10: t/m3 | M10: =44.01*IF(CDQDust_C>0,CDQDust_C,CDQDust_DefC)/12.011 -> 3.224444259 | N10: t/t | P10: =44.01*IF(QBreeze_C>0,QBreeze_C,Breeze_DefC)/12.011 -> 3.114520023 | Q10: t/t | S10: =44.01*IF(DRIFines_C>0,DRIFines_C,DRIFines_DefC)/12.011 -> 0.07328282408 | T10: t/t | V10: =44.01*IF(BFDust_C>0,BFDust_C,BFDust_DefC)/12.011 -> 1.465656482 | W10: t/t | Y10: =44.01*IF(BFSludge_C>0,BFSludge_C,BFSludge_DefC)/12.011 -> 1.465656482 | Z10: t/t | AB10: =44.01*IF(SRDust_C>0,SRDust_C,SRDust_DefC)/12.011 -> 1.465656482 | AC10: t/t | AE10: =44.01*IF(SRSludge_C>0,SRSludge_C,SRSludge_DefC)/12.011 -> 1.465656482 | AF10: t/t | AH10: =44.01*IF(SRSludge_C>0,SRSludge_C,SRSludge_DefC)/12.011 -> 1.465656482 | AI10: t/t | AK10: =44.01*IF(Slag_C>0,Slag_C,0)/12.011 -> 0 | AL10: t/t | AN10: =44.01*IF(HomeScrap_C>0,HomeScrap_C,Scrap_DefC)/12.011 -> 0.001465656482 | AO10: t/t | AQ10: =44.01*IF(PigScrap_C>0,PigScrap_C,HM_DefC)/12.011 -> 0.1722146366 | AR10: t/t | AT10: =44.01*OR1_C/12.011 -> 0 | AU10: t/t | AW10: =44.01*OR2_C/12.011 -> 0 | AX10: t/t
A11: =Texts!B193 -> CO2 Emission factor | D11: =IFERROR(Tar_EF/Tar_ncv,Tar_EF/Tar_Defncv) -> 0.08960920879 | E11: t/GJ | G11: =IFERROR(Benzole_EF/Benzole_ncv,Benzole_EF/Benzole_Defncv) -> 0.07309977619 | H11: t/GJ | J11: =IFERROR(NaphtOil_EF/NaphtOil_ncv,NaphtOil_EF/NaphtOil_Defncv) -> 0.07371903136 | K11: t/GJ | M11: =IFERROR(CDQDust_EF/CDQDust_ncv,CDQDust_EF/CDQDust_Defncv) -> 0.1069999754 | N11: t/GJ | P11: =IFERROR(QBreeze_EF/QBreeze_ncv,QBreeze_EF/Breeze_Defncv) -> 0.1040775279 | Q11: t/GJ | S11: =IFERROR(Tar_EF/Tar_ncv,Tar_EF/Tar_Defncv) -> 0.08960920879 | T11: t/GJ | V11: =IFERROR(BFDust_EF/BFDust_ncv,BFDust_EF/BFDust_Defncv) -> 0.09726947714 | W11: t/GJ | Y11: =IFERROR(BFSludge_EF/BFSludge_ncv,BFSludge_EF/BFSludge_Defncv) -> 0.09795204715 | Z11: t/GJ | AB11: =IFERROR(SRDust_EF/SRDust_ncv,SRDust_EF/SRDust_Defncv) -> 0.1069822249 | AC11: t/GJ | AE11: =IFERROR(SRSludge_EF/SRSludge_ncv,SRSludge_EF/SRSludge_Defncv) -> 0.1069822249 | AF11: t/GJ
A12: =Texts!B194 -> Upstream CO2 | E12: kg/t | H12: kg/t | K12: kg/m3 | N12: kg/t | Q12: kg/t | T12: kg/t | W12: kg/t | Z12: kg/t | AC12: kg/t | AF12: kg/t | AI12: kg/t | AK12: =Assumptions!#REF! ->  | AL12: kg/t | AO12: kg/t | AR12: kg/t | AU12: kg/t | AX12: kg/t
A14: =Texts!B195 -> Procurements | D14: =D3 -> t | G14: =G3 -> t | J14: =J3 -> m3 | M14: =M3 -> t | P14: =P3 -> t dry | S14: =S3 -> t | V14: =V3 -> t dry | Y14: =Y3 -> t dry | AB14: =AB3 -> t dry | AE14: =AE3 -> t dry | AH14: =AH3 -> t dry | AK14: =AK3 -> t dry | AN14: =AN3 -> t | AQ14: =AQ3 -> t | AT14: =AT3 -> t | AW14: =AW3 -> t
A15: =Texts!B196 -> External Procurements | D15: 0 | G15: 0 | J15: 0 | M15: 0 | P15: 0 | S15: 0 | V15: 0 | Y15: 0 | AB15: 0 | AE15: 0 | AH15: 0 | AK15: 0 | AN15: 0
A16: =Texts!B197 -> Reclaimed from stocks | D16: 0 | G16: 0 | J16: 0 | M16: 0 | P16: 0 | S16: 0 | V16: 0 | Y16: 2440 | AB16: 0 | AE16: 0 | AH16: 0 | AK16: 0 | AN16: 0
A17: =Texts!B198 -> Destinations | D17: =D14 -> t | G17: =G14 -> t | J17: =J14 -> m3 | M17: =M14 -> t | P17: =P14 -> t dry | S17: =S14 -> t | V17: =V14 -> t dry | Y17: =Y14 -> t dry | AB17: =AB14 -> t dry | AE17: =AE14 -> t dry | AH17: =AH14 -> t dry | AK17: =AK14 -> t dry | AN17: =AN14 -> t | AQ17: =AQ14 -> t | AT17: =AT14 -> t | AW17: =AW14 -> t
A18: =Texts!B199 -> External power plants
A19: =Texts!B200 -> Other deliveries | D19: 46215 | G19: 0 | J19: 0 | M19: 0 | P19: 0 | S19: 0 | V19: 0 | Y19: 0 | AB19: 0 | AE19: 0 | AH19: 0 | AK19: 1430812 | AN19: 0
A20: =Texts!B201 -> Storage | D20: 1407 | G20: 0 | J20: 0 | M20: 0 | P20: 0 | S20: 0 | V20: 2835 | Y20: 0 | AB20: 0 | AE20: 0 | AH20: 0 | AK20: 0 | AN20: 0
A21: =Texts!B202 -> Losses & Inventory Gap
A22: =Texts!B203 -> Balance | D22: =SUM(D15:D16,D25:D69)-SUM(D18:D21,E25:E69) -> 0 | G22: =SUM(G15:G16,G25:G69)-SUM(G18:G21,H25:H69) -> 0 | J22: =SUM(J15:J16,J25:J69)-SUM(J18:J21,K25:K69) -> 0 | M22: =SUM(M15:M16,M25:M69)-SUM(M18:M21,N25:N69) -> 0 | P22: =SUM(P15:P16,P25:P69)-SUM(P18:P21,Q25:Q69) -> 0 | S22: =SUM(S15:S16,S25:S69)-SUM(S18:S21,T25:T69) -> 0 | V22: =SUM(V15:V16,V25:V69)-SUM(V18:V21,W25:W69) -> 8469 | Y22: =SUM(Y15:Y16,Y25:Y69)-SUM(Y18:Y21,Z25:Z69) -> -6287 | AB22: =SUM(AB15:AB16,AB25:AB69)-SUM(AB18:AB21,AC25:AC69) -> 0 | AE22: =SUM(AE15:AE16,AE25:AE69)-SUM(AE18:AE21,AF25:AF69) -> 0 | AH22: =SUM(AH15:AH16,AH25:AH69)-SUM(AH18:AH21,AI25:AI69) -> 1737424 | AK22: =SUM(AK15:AK16,AK25:AK69)-SUM(AK18:AK21,AL25:AL69) -> 0 | AN22: =SUM(AN15:AN16,AN25:AN69)-SUM(AN18:AN21,AO25:AO69) -> 0 | AQ22: =SUM(AQ15:AQ16,AQ25:AQ69)-SUM(AQ18:AQ21,AR25:AR69) -> 0 | AT22: =SUM(AT15:AT16,AT25:AT69)-SUM(AT18:AT21,AU25:AU69) -> 0 | AW22: =SUM(AW15:AW16,AW25:AW69)-SUM(AW18:AW21,AX25:AX69) -> 0
D24: =Texts!$B204 -> Generation | E24: =Texts!$B205 -> Use | G24: =Texts!$B204 -> Generation | H24: =Texts!$B205 -> Use | J24: =Texts!$B204 -> Generation | K24: =Texts!$B205 -> Use | M24: =Texts!$B204 -> Generation | N24: =Texts!$B205 -> Use | P24: =Texts!$B204 -> Generation | Q24: =Texts!$B205 -> Use | S24: =Texts!$B204 -> Generation | T24: =Texts!$B205 -> Use | V24: =Texts!$B204 -> Generation | W24: =Texts!$B205 -> Use | Y24: =Texts!$B204 -> Generation | Z24: =Texts!$B205 -> Use | AB24: =Texts!$B204 -> Generation | AC24: =Texts!$B205 -> Use | AE24: =Texts!$B204 -> Generation | AF24: =Texts!$B205 -> Use | AH24: =Texts!$B204 -> Generation | AI24: =Texts!$B205 -> Use | AK24: =Texts!$B204 -> Generation | AL24: =Texts!$B205 -> Use | AN24: =Texts!$B204 -> Generation | AO24: =Texts!$B205 -> Use | AQ24: =Texts!$B204 -> Generation | AR24: =Texts!$B205 -> Use | AT24: =Texts!$B204 -> Generation | AU24: =Texts!$B205 -> Use | AW24: =Texts!$B204 -> Generation | AX24: =Texts!$B205 -> Use
A25: ="01-"&Texts!B10 -> 01-Coke plant | C25: 3 | D25: 47622 | E25: 0 | G25: 0 | H25: 0 | J25: 0 | K25: 0 | M25: 0 | N25: 0 | P25: 0 | Q25: 0 | S25: 0 | T25: 0 | V25: 0 | W25: 0 | Y25: 0 | Z25: 0 | AB25: 0 | AC25: 0 | AE25: 0 | AF25: 0 | AH25: 0 | AI25: 0 | AK25: 0 | AL25: 0 | AN25: 0 | AO25: 0
A26: ="02-"&Texts!B11 -> 02-Sinter plant | C26: 4 | D26: 0 | E26: 0 | G26: 0 | H26: 0 | J26: 0 | K26: 0 | M26: 0 | N26: 0 | P26: 0 | Q26: 0 | S26: 0 | T26: 0 | V26: 0 | W26: 52752 | Y26: 0 | Z26: 60939 | AB26: 0 | AC26: 0 | AE26: 0 | AF26: 0 | AH26: 0 | AI26: 0 | AK26: 0 | AL26: 0 | AN26: 0 | AO26: 0
A27: ="03-"&Texts!B12 -> 03-Pellet plant | D27: 0 | E27: 0 | G27: 0 | H27: 0 | J27: 0 | K27: 0 | M27: 0 | N27: 0 | P27: 0 | Q27: 0 | S27: 0 | T27: 0 | V27: 0 | W27: 0 | Y27: 0 | Z27: 0 | AB27: 0 | AC27: 0 | AE27: 0 | AF27: 0 | AH27: 0 | AI27: 0 | AK27: 0 | AL27: 0 | AN27: 0 | AO27: 0
A28: ="04-"&Texts!B13 -> 04-Gas based DRI plant | C28: 6 | D28: 0 | E28: 0 | G28: 0 | H28: 0 | J28: 0 | K28: 0 | M28: 0 | N28: 0 | P28: 0 | Q28: 0 | S28: 0 | T28: 0 | V28: 0 | W28: 0 | Y28: 0 | Z28: 0 | AB28: 0 | AC28: 0 | AE28: 0 | AF28: 0 | AH28: 0 | AI28: 0 | AK28: 0 | AL28: 0 | AN28: 0 | AO28: 0
A29: ="05-"&Texts!B14 -> 05-Coal based DRI plant | D29: 0 | E29: 0 | G29: 0 | H29: 0 | J29: 0 | K29: 0 | M29: 0 | N29: 0 | P29: 0 | Q29: 0 | S29: 0 | T29: 0 | V29: 0 | W29: 0 | Y29: 0 | Z29: 0 | AB29: 0 | AC29: 0 | AE29: 0 | AF29: 0 | AH29: 0 | AI29: 0 | AK29: 0 | AL29: 0 | AN29: 0 | AO29: 0
A30: ="06-"&Texts!B15 -> 06-Blast Furnace plant | C30: 5 | D30: 0 | E30: 0 | G30: 0 | H30: 0 | J30: 0 | K30: 0 | M30: 0 | N30: 0 | P30: 0 | Q30: 0 | S30: 0 | T30: 0 | V30: 64056 | W30: 0 | Y30: 52212 | Z30: 0 | AB30: 0 | AC30: 0 | AE30: 0 | AF30: 0 | AH30: 1737424 | AI30: 0 | AK30: 1430812 | AL30: 0 | AN30: 0 | AO30: 0
A31: ="07-"&Texts!B16 -> 07-Smelting Reduction plant | C31: 7 | D31: 0 | E31: 0 | G31: 0 | H31: 0 | J31: 0 | K31: 0 | M31: 0 | N31: 0 | P31: 0 | Q31: 0 | S31: 0 | T31: 0 | V31: 0 | W31: 0 | Y31: 0 | Z31: 0 | AB31: 0 | AC31: 0 | AE31: 0 | AF31: 0 | AH31: 0 | AI31: 0 | AK31: 0 | AL31: 0 | AN31: 0 | AO31: 0
A32: ="11-"&Texts!B17 -> 11-BOF shop
A33: ="11a-"&Texts!B18 -> 11a-BOF converter | C33: 8 | D33: 0 | E33: 0 | G33: 0 | H33: 0 | J33: 0 | K33: 0 | M33: 0 | N33: 0 | P33: 0 | Q33: 0 | S33: 0 | T33: 0 | V33: 0 | W33: 0 | Y33: 0 | Z33: 0 | AB33: 0 | AC33: 0 | AE33: 0 | AF33: 0 | AH33: 0 | AI33: 0 | AK33: 0 | AL33: 0 | AN33: 90750 | AO33: 173813
A34: ="11b-"&Texts!B21 -> 11b-Secondary metallurgy plant | D34: 0 | E34: 0 | G34: 0 | H34: 0 | J34: 0 | K34: 0 | M34: 0 | N34: 0 | P34: 0 | Q34: 0 | S34: 0 | T34: 0 | V34: 0 | W34: 0 | Y34: 0 | Z34: 0 | AB34: 0 | AC34: 0 | AE34: 0 | AF34: 0 | AH34: 0 | AI34: 0 | AK34: 0 | AL34: 0 | AN34: 0 | AO34: 0
A35: ="11c-"&Texts!B22 -> 11c-Ingot Casting plant | D35: 0 | E35: 0 | G35: 0 | H35: 0 | J35: 0 | K35: 0 | M35: 0 | N35: 0 | P35: 0 | Q35: 0 | S35: 0 | T35: 0 | V35: 0 | W35: 0 | Y35: 0 | Z35: 0 | AB35: 0 | AC35: 0 | AE35: 0 | AF35: 0 | AH35: 0 | AI35: 0 | AK35: 0 | AL35: 0 | AN35: 0 | AO35: 0
A36: ="11d-"&Texts!B23 -> 11d-Continuous casting plant | D36: 0 | E36: 0 | G36: 0 | H36: 0 | J36: 0 | K36: 0 | M36: 0 | N36: 0 | P36: 0 | Q36: 0 | S36: 0 | T36: 0 | V36: 0 | W36: 0 | Y36: 0 | Z36: 0 | AB36: 0 | AC36: 0 | AE36: 0 | AF36: 0 | AH36: 0 | AI36: 0 | AK36: 0 | AL36: 0 | AN36: 0 | AO36: 0
A37: ="12-"&Texts!B19 -> 12-EAF shop
A38: ="12a-"&Texts!B20 -> 12a-Electric arc furnace | C38: 9 | D38: 0 | E38: 0 | G38: 0 | H38: 0 | J38: 0 | K38: 0 | M38: 0 | N38: 0 | P38: 0 | Q38: 0 | S38: 0 | T38: 0 | V38: 0 | W38: 0 | Y38: 0 | Z38: 0 | AB38: 0 | AC38: 0 | AE38: 0 | AF38: 0 | AH38: 0 | AI38: 0 | AK38: 0 | AL38: 0 | AN38: 0 | AO38: 0
A39: ="12b-"&Texts!B21 -> 12b-Secondary metallurgy plant | C39: 10 | D39: 0 | E39: 0 | G39: 0 | H39: 0 | J39: 0 | K39: 0 | M39: 0 | N39: 0 | P39: 0 | Q39: 0 | S39: 0 | T39: 0 | V39: 0 | W39: 0 | Y39: 0 | Z39: 0 | AB39: 0 | AC39: 0 | AE39: 0 | AF39: 0 | AH39: 0 | AI39: 0 | AK39: 0 | AL39: 0 | AN39: 0 | AO39: 0
A40: ="12c-"&Texts!B22 -> 12c-Ingot Casting plant | C40: 11 | D40: 0 | E40: 0 | G40: 0 | H40: 0 | J40: 0 | K40: 0 | M40: 0 | N40: 0 | P40: 0 | Q40: 0 | S40: 0 | T40: 0 | V40: 0 | W40: 0 | Y40: 0 | Z40: 0 | AB40: 0 | AC40: 0 | AE40: 0 | AF40: 0 | AH40: 0 | AI40: 0 | AK40: 0 | AL40: 0 | AN40: 0 | AO40: 0
A41: ="12d-"&Texts!B23 -> 12d-Continuous casting plant | C41: 12 | D41: 0 | E41: 0 | G41: 0 | H41: 0 | J41: 0 | K41: 0 | M41: 0 | N41: 0 | P41: 0 | Q41: 0 | S41: 0 | T41: 0 | V41: 0 | W41: 0 | Y41: 0 | Z41: 0 | AB41: 0 | AC41: 0 | AE41: 0 | AF41: 0 | AH41: 0 | AI41: 0 | AK41: 0 | AL41: 0 | AN41: 0 | AO41: 0
A42: ="21-"&Texts!B24 -> 21-Cogging mill | C42: 13 | D42: 0 | E42: 0 | G42: 0 | H42: 0 | J42: 0 | K42: 0 | M42: 0 | N42: 0 | P42: 0 | Q42: 0 | S42: 0 | T42: 0 | V42: 0 | W42: 0 | Y42: 0 | Z42: 0 | AB42: 0 | AC42: 0 | AE42: 0 | AF42: 0 | AH42: 0 | AI42: 0 | AK42: 0 | AL42: 0 | AN42: 0 | AO42: 0
A43: ="22-"&Texts!B25 -> 22-Billet Mill | C43: 14 | D43: 0 | E43: 0 | G43: 0 | H43: 0 | J43: 0 | K43: 0 | M43: 0 | N43: 0 | P43: 0 | Q43: 0 | S43: 0 | T43: 0 | V43: 0 | W43: 0 | Y43: 0 | Z43: 0 | AB43: 0 | AC43: 0 | AE43: 0 | AF43: 0 | AH43: 0 | AI43: 0 | AK43: 0 | AL43: 0 | AN43: 0 | AO43: 0
A44: ="23-"&Texts!B26 -> 23-Hot Strip Mill | C44: 15 | D44: 0 | E44: 0 | G44: 0 | H44: 0 | J44: 0 | K44: 0 | M44: 0 | N44: 0 | P44: 0 | Q44: 0 | S44: 0 | T44: 0 | V44: 0 | W44: 0 | Y44: 0 | Z44: 0 | AB44: 0 | AC44: 0 | AE44: 0 | AF44: 0 | AH44: 0 | AI44: 0 | AK44: 0 | AL44: 0 | AN44: 83063 | AO44: 0
A45: ="24-"&Texts!B27 -> 24-Compact Strip Mill | C45: 16 | D45: 0 | E45: 0 | G45: 0 | H45: 0 | J45: 0 | K45: 0 | M45: 0 | N45: 0 | P45: 0 | Q45: 0 | S45: 0 | T45: 0 | V45: 0 | W45: 0 | Y45: 0 | Z45: 0 | AB45: 0 | AC45: 0 | AE45: 0 | AF45: 0 | AH45: 0 | AI45: 0 | AK45: 0 | AL45: 0 | AN45: 0 | AO45: 0
A46: ="25-"&Texts!B28 -> 25-Plate Mill | C46: 17 | D46: 0 | E46: 0 | G46: 0 | H46: 0 | J46: 0 | K46: 0 | M46: 0 | N46: 0 | P46: 0 | Q46: 0 | S46: 0 | T46: 0 | V46: 0 | W46: 0 | Y46: 0 | Z46: 0 | AB46: 0 | AC46: 0 | AE46: 0 | AF46: 0 | AH46: 0 | AI46: 0 | AK46: 0 | AL46: 0 | AN46: 0 | AO46: 0
A47: ="26-"&Texts!B29 -> 26-Bar & Rod Mill | C47: 18 | D47: 0 | E47: 0 | G47: 0 | H47: 0 | J47: 0 | K47: 0 | M47: 0 | N47: 0 | P47: 0 | Q47: 0 | S47: 0 | T47: 0 | V47: 0 | W47: 0 | Y47: 0 | Z47: 0 | AB47: 0 | AC47: 0 | AE47: 0 | AF47: 0 | AH47: 0 | AI47: 0 | AK47: 0 | AL47: 0 | AN47: 0 | AO47: 0
A48: ="27-"&Texts!B30 -> 27-Section Mill | C48: 19 | D48: 0 | E48: 0 | G48: 0 | H48: 0 | J48: 0 | K48: 0 | M48: 0 | N48: 0 | P48: 0 | Q48: 0 | S48: 0 | T48: 0 | V48: 0 | W48: 0 | Y48: 0 | Z48: 0 | AB48: 0 | AC48: 0 | AE48: 0 | AF48: 0 | AH48: 0 | AI48: 0 | AK48: 0 | AL48: 0 | AN48: 0 | AO48: 0
A49: ="28-"&Texts!B31 -> 28-Wire Mill | C49: 20 | D49: 0 | E49: 0 | G49: 0 | H49: 0 | J49: 0 | K49: 0 | M49: 0 | N49: 0 | P49: 0 | Q49: 0 | S49: 0 | T49: 0 | V49: 0 | W49: 0 | Y49: 0 | Z49: 0 | AB49: 0 | AC49: 0 | AE49: 0 | AF49: 0 | AH49: 0 | AI49: 0 | AK49: 0 | AL49: 0 | AN49: 0 | AO49: 0
A50: ="29-"&Texts!B32 -> 29-Tube Mill | C50: 21 | D50: 0 | E50: 0 | G50: 0 | H50: 0 | J50: 0 | K50: 0 | M50: 0 | N50: 0 | P50: 0 | Q50: 0 | S50: 0 | T50: 0 | V50: 0 | W50: 0 | Y50: 0 | Z50: 0 | AB50: 0 | AC50: 0 | AE50: 0 | AF50: 0 | AH50: 0 | AI50: 0 | AK50: 0 | AL50: 0 | AN50: 0 | AO50: 0
A51: ="31-"&Texts!B33 -> 31-Pickling plant | C51: 22 | D51: 0 | E51: 0 | G51: 0 | H51: 0 | J51: 0 | K51: 0 | M51: 0 | N51: 0 | P51: 0 | Q51: 0 | S51: 0 | T51: 0 | V51: 0 | W51: 0 | Y51: 0 | Z51: 0 | AB51: 0 | AC51: 0 | AE51: 0 | AF51: 0 | AH51: 0 | AI51: 0 | AK51: 0 | AL51: 0 | AN51: 0 | AO51: 0
A52: ="32-"&Texts!B34 -> 32-Cold rolling Mill | C52: 23 | D52: 0 | E52: 0 | G52: 0 | H52: 0 | J52: 0 | K52: 0 | M52: 0 | N52: 0 | P52: 0 | Q52: 0 | S52: 0 | T52: 0 | V52: 0 | W52: 0 | Y52: 0 | Z52: 0 | AB52: 0 | AC52: 0 | AE52: 0 | AF52: 0 | AH52: 0 | AI52: 0 | AK52: 0 | AL52: 0 | AN52: 0 | AO52: 0
A53: ="33-"&Texts!B35 -> 33-Continuous Annealing plant | C53: 24 | D53: 0 | E53: 0 | G53: 0 | H53: 0 | J53: 0 | K53: 0 | M53: 0 | N53: 0 | P53: 0 | Q53: 0 | S53: 0 | T53: 0 | V53: 0 | W53: 0 | Y53: 0 | Z53: 0 | AB53: 0 | AC53: 0 | AE53: 0 | AF53: 0 | AH53: 0 | AI53: 0 | AK53: 0 | AL53: 0 | AN53: 0 | AO53: 0
A54: ="34-"&Texts!B36 -> 34-Batch Annealing plant | C54: 25 | D54: 0 | E54: 0 | G54: 0 | H54: 0 | J54: 0 | K54: 0 | M54: 0 | N54: 0 | P54: 0 | Q54: 0 | S54: 0 | T54: 0 | V54: 0 | W54: 0 | Y54: 0 | Z54: 0 | AB54: 0 | AC54: 0 | AE54: 0 | AF54: 0 | AH54: 0 | AI54: 0 | AK54: 0 | AL54: 0 | AN54: 0 | AO54: 0
A55: ="41-"&Texts!B37 -> 41-Hot dip galvanising plant | C55: 27 | D55: 0 | E55: 0 | G55: 0 | H55: 0 | J55: 0 | K55: 0 | M55: 0 | N55: 0 | P55: 0 | Q55: 0 | S55: 0 | T55: 0 | V55: 0 | W55: 0 | Y55: 0 | Z55: 0 | AB55: 0 | AC55: 0 | AE55: 0 | AF55: 0 | AH55: 0 | AI55: 0 | AK55: 0 | AL55: 0 | AN55: 0 | AO55: 0
A56: ="42-"&Texts!B38 -> 42-Electro galvanising plant | C56: 28 | D56: 0 | E56: 0 | G56: 0 | H56: 0 | J56: 0 | K56: 0 | M56: 0 | N56: 0 | P56: 0 | Q56: 0 | S56: 0 | T56: 0 | V56: 0 | W56: 0 | Y56: 0 | Z56: 0 | AB56: 0 | AC56: 0 | AE56: 0 | AF56: 0 | AH56: 0 | AI56: 0 | AK56: 0 | AL56: 0 | AN56: 0 | AO56: 0
A57: ="43-"&Texts!B39 -> 43-Tinplating plant | C57: 29 | D57: 0 | E57: 0 | G57: 0 | H57: 0 | J57: 0 | K57: 0 | M57: 0 | N57: 0 | P57: 0 | Q57: 0 | S57: 0 | T57: 0 | V57: 0 | W57: 0 | Y57: 0 | Z57: 0 | AB57: 0 | AC57: 0 | AE57: 0 | AF57: 0 | AH57: 0 | AI57: 0 | AK57: 0 | AL57: 0 | AN57: 0 | AO57: 0
A58: ="45-"&Texts!B40 -> 45-Tin free plating plant | C58: 30 | D58: 0 | E58: 0 | G58: 0 | H58: 0 | J58: 0 | K58: 0 | M58: 0 | N58: 0 | P58: 0 | Q58: 0 | S58: 0 | T58: 0 | V58: 0 | W58: 0 | Y58: 0 | Z58: 0 | AB58: 0 | AC58: 0 | AE58: 0 | AF58: 0 | AH58: 0 | AI58: 0 | AK58: 0 | AL58: 0 | AN58: 0 | AO58: 0
A59: ="46-"&Texts!B41 -> 46-Other metal coating plant | C59: 31
A60: ="47-"&Texts!B42 -> 47-Organic coating plant | C60: 31 | D60: 0 | E60: 0 | G60: 0 | H60: 0 | J60: 0 | K60: 0 | M60: 0 | N60: 0 | P60: 0 | Q60: 0 | S60: 0 | T60: 0 | V60: 0 | W60: 0 | Y60: 0 | Z60: 0 | AB60: 0 | AC60: 0 | AE60: 0 | AF60: 0 | AH60: 0 | AI60: 0 | AK60: 0 | AL60: 0 | AN60: 0 | AO60: 0
A61: ="51-"&Texts!B43 -> 51-Dust Treatment plant | C61: 35
A62: ="52-"&Texts!B44 -> 52-Lime plant | C62: 32 | D62: 0 | E62: 0 | G62: 0 | H62: 0 | J62: 0 | K62: 0 | M62: 0 | N62: 0 | P62: 0 | Q62: 0 | S62: 0 | T62: 0 | V62: 0 | W62: 0 | Y62: 0 | Z62: 0 | AB62: 0 | AC62: 0 | AE62: 0 | AF62: 0 | AH62: 0 | AI62: 0 | AK62: 0 | AL62: 0 | AN62: 0 | AO62: 0
A63: ="53-"&Texts!B45 -> 53-Heat treatment plant
A64: ="61-"&Texts!B46 -> 61-Boilers | C64: 44 | D64: 0 | E64: 0 | G64: 0 | H64: 0 | J64: 0 | K64: 0 | M64: 0 | N64: 0 | P64: 0 | Q64: 0 | S64: 0 | T64: 0 | V64: 0 | W64: 0 | Y64: 0 | Z64: 0 | AB64: 0 | AC64: 0 | AE64: 0 | AF64: 0 | AH64: 0 | AI64: 0 | AK64: 0 | AL64: 0 | AN64: 0 | AO64: 0
A65: ="62-"&Texts!B47 -> 62-Power plant | C65: 43 | D65: 0 | E65: 0 | G65: 0 | H65: 0 | J65: 0 | K65: 0 | M65: 0 | N65: 0 | P65: 0 | Q65: 0 | S65: 0 | T65: 0 | V65: 0 | W65: 0 | Y65: 0 | Z65: 0 | AB65: 0 | AC65: 0 | AE65: 0 | AF65: 0 | AH65: 0 | AI65: 0 | AK65: 0 | AL65: 0 | AN65: 0 | AO65: 0
A66: ="63-"&Texts!B48 -> 63-Air separation unit | C66: 45 | D66: 0 | E66: 0 | G66: 0 | H66: 0 | J66: 0 | K66: 0 | M66: 0 | N66: 0 | P66: 0 | Q66: 0 | S66: 0 | T66: 0 | V66: 0 | W66: 0 | Y66: 0 | Z66: 0 | AB66: 0 | AC66: 0 | AE66: 0 | AF66: 0 | AH66: 0 | AI66: 0 | AK66: 0 | AL66: 0 | AN66: 0 | AO66: 0
A67: ="64-"&Texts!B49 -> 64-Compressed Air plant | C67: 46 | D67: 0 | E67: 0 | G67: 0 | H67: 0 | J67: 0 | K67: 0 | M67: 0 | N67: 0 | P67: 0 | Q67: 0 | S67: 0 | T67: 0 | V67: 0 | W67: 0 | Y67: 0 | Z67: 0 | AB67: 0 | AC67: 0 | AE67: 0 | AF67: 0 | AH67: 0 | AI67: 0 | AK67: 0 | AL67: 0 | AN67: 0 | AO67: 0
A68: ="71-"&Texts!B50 -> 71-Others | C68: 57 | D68: 0 | E68: 0 | G68: 0 | H68: 0 | J68: 0 | K68: 0 | M68: 0 | N68: 0 | P68: 0 | Q68: 0 | S68: 0 | T68: 0 | V68: 0 | W68: 0 | Y68: 0 | Z68: 0 | AB68: 0 | AC68: 0 | AE68: 0 | AF68: 0 | AH68: 0 | AI68: 0 | AK68: 0 | AL68: 0 | AN68: 0 | AO68: 0
A69: ="72-"&Texts!B51 -> 72-Flares | C69: 51

Sheet Facility Balance
A1: ='Facility Structure'!$B1 -> Facility : | C1: =Facility_Name -> Test facility
A2: =Texts!$B3&" : " -> Reported period : | C2: =Begin_Date -> 2007-01-01 | D2: ='Facility Structure'!$B3 -> to | E2: =End_Date -> 2008-01-01
O3: =Texts!$B258&" (t)" -> CO2 emissions (t) | R3: =Texts!$B213 -> Energy balance (GJ ncv)
A4: =Texts!$B180 -> Code | B4: =Texts!$B181 -> Category | C4: =Texts!$B182 -> Name | F4: Unit | G4: =Texts!$B196 -> External Procurements | H4: =Texts!$B197 -> Reclaimed from stocks | I4: =Texts!$B208 -> Total inputs | J4: =Texts!B199 -> External power plants | K4: =Texts!$B200 -> Other deliveries | L4: =Texts!$B201 -> Storage | M4: =Texts!$B209 -> Total outputs | N4: =Texts!$B210 -> Net use | O4: =Texts!$B211 -> Direct CO2 | P4: =Texts!$B212 -> Indirect CO2 | Q4: =Texts!$B253 -> Total | R4: =Texts!B265 -> Direct energy | S4: =Texts!B266 -> Indirect energy | T4: =Texts!$B253 -> Total
B5: ="Pr-"&Texts!$B53 -> Pr-Products
A6: Pr-01 | C6: =Texts!$B54 -> Merchant Sinter | F6: =Products!D$3 -> t | G6: =Products!D$15 -> 0 | H6: =Products!D$16 -> 243667 | I6: =SUM(G6:H6) -> 243667 | J6: =Products!D$18 -> 0 | K6: =Products!D$19 -> 0 | L6: =Products!D$20 -> 0 | M6: =SUM(J6:L6) -> 0 | N6: =I6-M6 -> 243667 | O6: =(Sinter_EF*N6) -> 0 | P6: =IFERROR(($N6>0)*Sinter_ARP_CO2*$N6*Bell_Sinter_Prod/Sinter_Prod,0) -> 67836.90514 | Q6: =SUM(O6:P6) -> 67836.90514 | S6: =IFERROR(($N6>0)*Sinter_ARP_En*$N6*Bell_Sinter_Prod/Sinter_Prod,0) -> 564423.4698 | T6: =SUM(R6:S6) -> 564423.4698
A7: Pr-02 | C7: =Texts!$B56 -> Pellets | F7: =Products!G$3 -> t dry | G7: =Products!G$15 -> 1043458 | H7: =Products!G$16 -> 92287 | I7: =SUM(G7:H7) -> 1135745 | J7: =Products!G$18 -> 0 | K7: =Products!G$19 -> 0 | L7: =Products!G$20 -> 0 | M7: =SUM(J7:L7) -> 0 | N7: =I7-M7 -> 1135745 | O7: =(Pellet_EF*N7) -> 416.1530052 | P7: =($N7>0)*Pellet_ARP_CO2*$N7 -> 130610.675 | Q7: 131026.828 | S7: =($N7>0)*Pellet_ARP_En*$N7 -> 1930766.5 | T7: =SUM(R7:S7) -> 1930766.5
A8: Pr-03 | C8: =Texts!$B57 -> Gas based DRI | F8: =Products!J$3 -> t | G8: =Products!J$15 -> 0 | H8: =Products!J$16 -> 0 | I8: 0 | J8: =Products!J$18 -> 0 | K8: =Products!J$19 -> 0 | L8: =Products!J$20 -> 0 | M8: 0 | N8: 0 | O8: =(GDRI_EF*N8) -> 0 | P8: =($N8>0)*GDRI_ARP_CO2*$N8 -> 0 | Q8: 0 | S8: =($N8>0)*GDRI_ARP_En*$N8 -> 0 | T8: 0
A9: Pr-04 | C9: =Texts!$B58 -> Coal based DRI | F9: =Products!M$3 -> t | G9: =Products!M$15 -> 0 | H9: =Products!M$16 -> 0 | I9: 0 | J9: =Products!M$18 -> 0 | K9: =Products!M$19 -> 0 | L9: =Products!M$20 -> 0 | M9: 0 | N9: 0 | O9: =(CDRI_EF*N9) -> 0 | P9: =($N9>0)*CDRI_ARP_CO2*$N9 -> 0 | Q9: 0 | S9: =($N9>0)*CDRI_ARP_En*$N9 -> 0 | T9: 0
A10: Pr-05 | C10: =Texts!$B60 -> Blast furnace Hot metal | F10: =Products!P$3 -> t | G10: =Products!P$15 -> 0 | H10: =Products!P$16 -> 0 | I10: 0 | J10: =Products!P$18 -> 0 | K10: =Products!P$19 -> 0 | L10: =Products!P$20 -> 103671 | M10: 103671 | N10: -103671 | O10: =(BFHM_EF*N10) -> -17853.66359 | P10: =($N10>0)*BFHM_ARP_CO2*$N10 -> 0 | Q10: -17853.66359 | S10: =($N10>0)*BFHM_ARP_En*$N10 -> 0 | T10: 0
A11: Pr-06 | C11: =Texts!$B61 -> Smelting reduction Hot metal | F11: =Products!S$3 -> t | G11: =Products!S$15 -> 0 | H11: =Products!S$16 -> 0 | I11: 0 | J11: =Products!S$18 -> 0 | K11: =Products!S$19 -> 0 | L11: =Products!S$20 -> 0 | M11: 0 | N11: 0 | O11: =(SRHM_EF*N11) -> 0 | P11: =($N11>0)*SRHM_ARP_CO2*$N11 -> 0 | Q11: 0 | S11: =($N11>0)*SRHM_ARP_En*$N11 -> 0 | T11: 0
A12: Pr-07 | C12: =Texts!$B62 -> Cold iron | F12: =Products!S$3 -> t | G12: =Products!V$15 -> 0 | H12: =Products!V$16 -> 0 | I12: =SUM(G12:H12) -> 0 | J12: =Products!V$18 -> 0 | K12: =Products!V$19 -> 0 | L12: =Products!V$20 -> 0 | M12: =SUM(J12:L12) -> 0 | N12: =I12-M12 -> 0 | O12: =(CIron_EF*N12) -> 0 | P12: =($N12>0)*up_CIron*$N12 -> 0 | Q12: =SUM(O12:P12) -> 0 | S12: =($N12>0)*EnEq_CIron*$N12 -> 0 | T12: =SUM(R12:S12) -> 0
A13: Pr-08 | C13: =Texts!$B63 -> BOF Liquid Steel | F13: =Products!Y$3 -> t | G13: =Products!Y$15 -> 0 | H13: =Products!Y$16 -> 0 | I13: 0 | J13: =Products!Y$18 -> 0 | K13: =Products!Y$19 -> 0 | L13: =Products!Y$20 -> 0 | M13: 0 | N13: 0 | O13: =(BOFSteel_EF*N13) -> 0 | Q13: 0 | T13: 0
A14: Pr-09 | C14: =Texts!$B64 -> EAF Liquid Steel | F14: =Products!AB$3 -> t | G14: =Products!AB$15 -> 0 | H14: =Products!AB$16 -> 0 | I14: 0 | J14: =Products!AB$18 -> 0 | K14: =Products!AB$19 -> 0 | L14: =Products!AB$20 -> 0 | M14: 0 | N14: 0 | O14: =(EAFSteel_EF*N14) -> 0 | Q14: 0 | T14: 0
A15: Pr-10 | C15: =Texts!$B65 -> Ready to cast BOF steel | F15: =Products!AE$3 -> t | G15: =Products!AE$15 -> 0 | H15: =Products!AE$16 -> 0 | I15: 0 | J15: =Products!AE$18 -> 0 | K15: =Products!AE$19 -> 0 | L15: =Products!AE$20 -> 0 | M15: 0 | N15: 0 | O15: =(SM_BOFSteel_EF*N15) -> 0 | Q15: 0 | T15: 0
A16: Pr-11 | C16: =Texts!$B66 -> Ready to cast EAF steel | F16: =Products!AH$3 -> t | G16: =Products!AH$15 -> 0 | H16: =Products!AH$16 -> 0 | I16: =SUM(G16:H16) -> 0 | J16: =Products!AH$18 -> 0 | K16: =Products!AH$19 -> 0 | L16: =Products!AH$20 -> 0 | M16: =SUM(J16:L16) -> 0 | N16: =I16-M16 -> 0 | O16: =(SM_EAFSteel_EF*N16) -> 0 | Q16: =SUM(O16:P16) -> 0 | T16: =SUM(R16:S16) -> 0
A17: Pr-12 | C17: =Texts!$B67 -> BOF Ingots | F17: =Products!AK$3 -> t | G17: =Products!AK$15 -> 0 | H17: =Products!AK$16 -> 0 | I17: 0 | J17: =Products!AK$18 -> 0 | K17: =Products!AK$19 -> 0 | L17: =Products!D$20 -> 0 | M17: 0 | N17: 0 | O17: =(BOFIngot_EF*N17) -> 0 | Q17: 0 | T17: 0
A18: Pr-13 | C18: =Texts!$B68 -> EAF Ingots | F18: =Products!AN$3 -> t | G18: =Products!AN$15 -> 0 | H18: =Products!AN$16 -> 0 | I18: =SUM(G18:H18) -> 0 | J18: =Products!AN$18 -> 0 | K18: =Products!AN$19 -> 0 | L18: =Products!D$20 -> 0 | M18: =SUM(J18:L18) -> 0 | N18: =I18-M18 -> 0 | O18: =(EAFIngot_EF*N18) -> 0 | Q18: =SUM(O18:P18) -> 0 | T18: =SUM(R18:S18) -> 0
A19: Pr-14 | C19: =Texts!$B69 -> Continuous casting BOF steel | F19: =Products!AQ$3 -> t | G19: =Products!AQ$15 -> 0 | H19: =Products!AQ$16 -> 0 | I19: 0 | J19: =Products!AQ$18 -> 0 | K19: =Products!AQ$19 -> 0 | L19: =Products!AQ$20 -> 1891038.707 | M19: 1891038.707 | N19: -1891038.707 | O19: =(CC_BOFSteel_EF*N19) -> -2771.613138 | Q19: -2771.613138 | T19: 0
A20: Pr-15 | C20: =Texts!$B70 -> Continuous casting EAF steel | F20: =Products!AT$3 -> t | G20: =Products!AT$15 -> 0 | H20: =Products!AT$16 -> 0 | I20: =SUM(G20:H20) -> 0 | J20: =Products!AT$18 -> 0 | K20: =Products!AT$19 -> 0 | L20: =Products!AT$20 -> 0 | M20: =SUM(J20:L20) -> 0 | N20: =I20-M20 -> 0 | O20: =(CC_EAFSteel_EF*N20) -> 0 | Q20: =SUM(O20:P20) -> 0 | T20: =SUM(R20:S20) -> 0
A21: Pr-16 | C21: =Texts!$B75 -> Roughed BOF ingots | F21: =Products!AW$3 -> t | G21: =Products!AW$15 -> 0 | H21: =Products!AW$16 -> 0 | I21: 0 | J21: =Products!AW$18 -> 0 | K21: =Products!AW$19 -> 0 | L21: =Products!AW$20 -> 0 | M21: 0 | N21: 0 | O21: =(BOFSlab_EF*N21) -> 0 | Q21: 0 | T21: 0
A22: Pr-17 | C22: =Texts!$B76 -> Roughed EAF ingots | F22: =Products!AW$3 -> t | G22: =Products!AW$15 -> 0 | H22: =Products!AW$16 -> 0 | I22: =SUM(G22:H22) -> 0 | J22: =Products!AW$18 -> 0 | K22: =Products!AW$19 -> 0 | L22: =Products!AW$20 -> 0 | M22: =SUM(J22:L22) -> 0 | N22: =I22-M22 -> 0 | O22: =(EAFSlab_EF*N22) -> 0 | Q22: =SUM(O22:P22) -> 0 | T22: =SUM(R22:S22) -> 0
A23: Pr-18 | C23: =Texts!$B77 -> Rolled billets | F23: =Products!BC$3 -> t | G23: =Products!BC$15 -> 0 | H23: =Products!BC$16 -> 0 | I23: 0 | J23: =Products!BC$18 -> 0 | K23: =Products!BC$19 -> 0 | L23: =Products!BC$20 -> 0 | M23: 0 | N23: 0 | O23: =(Billet_EF*N23) -> 0 | Q23: 0 | T23: 0
A24: Pr-19 | C24: =Texts!$B78 -> Hot rolled coils | F24: =Products!BF$3 -> t | G24: =Products!BF$15 -> 0 | H24: =Products!BF$16 -> 0 | I24: 0 | J24: =Products!BF$18 -> 0 | K24: =Products!BF$19 -> 4307877.7 | L24: =Products!BF$20 -> 0 | M24: 4307877.7 | N24: -4307877.7 | O24: =(HRC_EF*N24) -> -6313.868873 | Q24: -6313.868873 | T24: 0
A25: Pr-20 | C25: =Texts!$B79 -> Heavy Plates | F25: =Products!BI$3 -> t | G25: =Products!BI$15 -> 0 | H25: =Products!BI$16 -> 0 | I25: 0 | J25: =Products!BI$18 -> 0 | K25: =Products!BI$19 -> 0 | L25: =Products!BI$20 -> 0 | M25: 0 | N25: 0 | O25: =(Plate_EF*N25) -> 0 | Q25: 0 | T25: 0
A26: Pr-21 | C26: =Texts!$B80 -> Bars & Rods | F26: =Products!BL$3 -> t | G26: =Products!BL$15 -> 0 | H26: =Products!BL$16 -> 0 | I26: 0 | J26: =Products!BL$18 -> 0 | K26: =Products!BL$19 -> 0 | L26: =Products!BL$20 -> 0 | M26: 0 | N26: 0 | O26: =(Bar_EF*N26) -> 0 | Q26: 0 | T26: 0
A27: Pr-22 | C27: =Texts!$B81 -> Sections | F27: =Products!BO$3 -> t | G27: =Products!BO$15 -> 0 | H27: =Products!BO$16 -> 0 | I27: 0 | J27: =Products!BO$18 -> 0 | K27: =Products!BO$19 -> 0 | L27: =Products!BO$20 -> 0 | M27: 0 | N27: 0 | O27: =(Section_Ef*N27) -> 0 | Q27: 0 | T27: 0
A28: Pr-23 | C28: =Texts!$B82 -> Wire Rod | F28: =Products!$BR$3 -> t | G28: =Products!$BR$15 -> 0 | H28: =Products!$BR$16 -> 0 | I28: 0 | J28: =Products!$BR$18 -> 0 | K28: =Products!$BR$19 -> 0 | L28: =Products!$BR$20 -> 0 | M28: 0 | N28: 0 | O28: =(Wire_Ef*N28) -> 0 | Q28: 0 | T28: 0
A29: Pr-24 | C29: =Texts!$B83 -> Seamless Tubes | F29: =Products!$BU$3 -> t | G29: =Products!$BU$15 -> 0 | H29: =Products!$BU$16 -> 0 | I29: 0 | J29: =Products!$BU$18 -> 0 | K29: =Products!$BU$19 -> 0 | L29: =Products!$BU$20 -> 0 | M29: 0 | N29: 0 | O29: =(Tube_EF*N29) -> 0 | Q29: 0 | T29: 0
A30: Pr-25 | C30: =Texts!$B84 -> Pickled coils | F30: =Products!$BX$3 -> t | G30: =Products!$BX$15 -> 0 | H30: =Products!$BX$16 -> 0 | I30: 0 | J30: =Products!$BX$18 -> 0 | K30: =Products!$BX$19 -> 0 | L30: =Products!$BX$20 -> 0 | M30: 0 | N30: 0 | O30: =(Pickled_EF*N30) -> 0 | Q30: 0 | T30: 0
A31: Pr-26 | C31: =Texts!$B85 -> Cold Rolled Coils | F31: =Products!$CA$3 -> t | G31: =Products!$CA$15 -> 0 | H31: =Products!$CA$16 -> 0 | I31: 0 | J31: =Products!$CA$18 -> 0 | K31: =Products!$CA$19 -> 0 | L31: =Products!$CA$20 -> 0 | M31: 0 | N31: 0 | O31: =(CRC_EF*N31) -> 0 | Q31: 0 | T31: 0
A32: Pr-27 | C32: =Texts!$B86 -> Annealed Coils | F32: =Products!$CD$3 -> t | G32: =Products!$CD$15 -> 0 | H32: =Products!$CD$16 -> 0 | I32: 0 | J32: =Products!$CD$18 -> 0 | K32: =Products!$CD$19 -> 0 | L32: =Products!$CD$20 -> 0 | M32: 0 | N32: 0 | O32: =(Annealed_EF*N32) -> 0 | Q32: 0 | T32: 0
A33: Pr-28 | C33: =Texts!$B87 -> Hot Dip Galvanised Coils | F33: =Products!$CG$3 -> t | G33: =Products!$CG$15 -> 0 | H33: =Products!$CG$16 -> 0 | I33: 0 | J33: =Products!$CG$18 -> 0 | K33: =Products!$CG$19 -> 0 | L33: =Products!$CG$20 -> 0 | M33: 0 | N33: 0 | O33: =(HDG_EF*N33) -> 0 | Q33: 0 | T33: 0
A34: Pr-29 | C34: =Texts!$B88 -> Electrogalvanised Coils | F34: =Products!$CJ$3 -> t | G34: =Products!$CJ$15 -> 0 | H34: =Products!$CJ$16 -> 0 | I34: 0 | J34: =Products!$CJ$18 -> 0 | K34: =Products!$CJ$19 -> 0 | L34: =Products!$CJ$20 -> 0 | M34: 0 | N34: 0 | O34: =(EG_EF*N34) -> 0 | Q34: 0 | T34: 0
A35: Pr-30 | C35: =Texts!$B89 -> Tin Plated Coils | F35: =Products!$CM$3 -> t | G35: =Products!$CM$15 -> 0 | H35: =Products!$CM$16 -> 0 | I35: 0 | J35: =Products!$CM$18 -> 0 | K35: =Products!$CM$19 -> 0 | L35: =Products!$CM$20 -> 0 | M35: 0 | N35: 0 | O35: =(TP_EF*N35) -> 0 | Q35: 0 | T35: 0
A36: Pr-31 | C36: =Texts!$B90 -> Tin Free Plated Coils | F36: =Products!CP$3 -> t | G36: =Products!CP$15 -> 0 | H36: =Products!CP$16 -> 0 | I36: 0 | J36: =Products!CP$18 -> 0 | K36: =Products!CP$19 -> 0 | L36: =Products!CP$20 -> 0 | M36: 0 | N36: 0 | O36: =(TFP_EF*N36) -> 0 | Q36: 0 | T36: 0
A37: Pr-32 | C37: =Texts!$B91 -> Other metal coated Coils | F37: =Products!CS$3 -> t | G37: =Products!CS$15 -> 0 | H37: =Products!CS$16 -> 0 | I37: =SUM(G37:H37) -> 0 | J37: =Products!CS$18 -> 0 | K37: =Products!CS$19 -> 0 | L37: =Products!CS$20 -> 0 | M37: =SUM(J37:L37) -> 0 | N37: =I37-M37 -> 0 | O37: =(OMC_EF*N37) -> 0 | Q37: 0 | T37: 0
A38: Pr-33 | C38: =Texts!$B92 -> Painted coils | F38: =Products!CV$3 -> t | G38: =Products!CV$15 -> 0 | H38: =Products!CV$16 -> 0 | I38: 0 | J38: =Products!CV$18 -> 0 | K38: =Products!CV$19 -> 0 | L38: =Products!CV$20 -> 0 | M38: 0 | N38: 0 | O38: =(Paint_EF*N38) -> 0 | Q38: 0 | T38: 0
A39: Pr-34 | C39: =Texts!$B93 -> Treated Dust DRI/HM | F39: =Products!CY$3 -> t | G39: =Products!CY$15 -> 0 | H39: =Products!CY$16 -> 0 | I39: 0 | J39: =Products!CY$18 -> 0 | K39: =Products!CY$19 -> 0 | L39: =Products!CY$20 -> 0 | M39: 0 | N39: 0 | O39: =(TDust_EF*N39) -> 0 | Q39: 0 | T39: 0
A40: Pr-35 | C40: =Texts!$B94 -> Heat treated products | F40: =Products!DB$3 -> t | G40: =Products!DB$15 -> 0 | H40: =Products!DB$16 -> 0 | I40: =SUM(G40:H40) -> 0 | J40: =Products!DB$18 -> 0 | K40: =Products!DB$19 -> 0 | L40: =Products!DB$20 -> 0 | M40: =SUM(J40:L40) -> 0 | N40: =I40-M40 -> 0 | O40: =(HTP_EF*N40) -> 0 | Q40: 0 | T40: 0
B41: ="CF-"&Texts!$B95 -> CF-Condensed Fuels
A42: CF-01 | C42: =Texts!$B96 -> Home Coke | F42: ='Condensed fuels'!D$3 -> t dry | G42: ='Condensed fuels'!D$15 -> 0 | H42: ='Condensed fuels'!D$16 -> 38400.46605 | I42: =SUM(G42:H42) -> 38400.46605 | J42: ='Condensed fuels'!D$18 -> 0 | K42: ='Condensed fuels'!D$19 -> 0 | L42: ='Condensed fuels'!D$20 -> 0 | M42: =SUM(J42:L42) -> 0 | N42: =I42-M42 -> 38400.46605 | O42: =(HomeCoke_EF*$N42) -> 123820.1623 | P42: =(N42>0)*Coke_ARP_CO2*N42 -> 10365.58061 | Q42: =SUM(O42:P42) -> 134185.7429 | R42: =IF(HomeCoke_ncv>0,HomeCoke_ncv,Coke_Defncv)*$N42 -> 1157198.044 | S42: =(N42>0)*Coke_ARP_En*N42 -> 219616.7516 | T42: =SUM(R42:S42) -> 1376814.796
A43: CF-02 | C43: =Texts!$B97 -> Purchased coke | F43: ='Condensed fuels'!G$3 -> t dry | G43: ='Condensed fuels'!G$15 -> 551080.6853 | H43: ='Condensed fuels'!G$16 -> 33973.76906 | I43: =SUM(G43:H43) -> 585054.4544 | J43: ='Condensed fuels'!G$18 -> 0 | K43: ='Condensed fuels'!G$19 -> 0 | L43: ='Condensed fuels'!G$20 -> 0 | M43: =SUM(J43:L43) -> 0 | N43: =I43-M43 -> 585054.4544 | O43: =(PurchCoke_EF*$N43) -> 1829761.972 | P43: =(N43>0)*Coke_ARP_CO2*N43 -> 157925.9246 | Q43: 1987687.896 | R43: =IF(PurchCoke_ncv>0,PurchCoke_ncv,Coke_Defncv)*$N43 -> 17630615.98 | S43: =(N43>0)*Coke_ARP_En*N43 -> 3345994.775 | T43: 20976610.76
A44: CF-03 | C44: =Texts!$B98 -> Purchased nut coke | F44: ='Condensed fuels'!J$3 -> t dry | G44: ='Condensed fuels'!J$15 -> 0 | H44: ='Condensed fuels'!J$16 -> 0 | I44: 0 | J44: ='Condensed fuels'!J$18 -> 0 | K44: ='Condensed fuels'!J$19 -> 0 | L44: ='Condensed fuels'!J$20 -> 0 | M44: 0 | N44: 0 | O44: =(NutCoke_EF*$N44) -> 0 | P44: =(N44>0)*Coke_ARP_CO2*N44 -> 0 | Q44: 0 | R44: =IF(NutCoke_ncv>0,NutCoke_ncv,Coke_Defncv)*$N44 -> 0 | S44: =(N44>0)*Coke_ARP_En*N44 -> 0 | T44: 0
A45: CF-04 | C45: =Texts!$B99 -> Coke breeze | F45: ='Condensed fuels'!M$3 -> t dry | G45: ='Condensed fuels'!M$15 -> 0 | H45: ='Condensed fuels'!M$16 -> 0 | I45: 0 | J45: ='Condensed fuels'!M$18 -> 0 | K45: ='Condensed fuels'!M$19 -> 0 | L45: ='Condensed fuels'!M$20 -> 0 | M45: 0 | N45: 0 | O45: =(Breeze_EF*$N45) -> 0 | P45: =(N45>0)*Coke_ARP_CO2*N45 -> 0 | Q45: 0 | R45: =IF(Breeze_ncv>0,Breeze_ncv,Breeze_Defncv)*$N45 -> 0 | S45: =(N45>0)*Coke_ARP_En*N45 -> 0 | T45: 0
A46: CF-05 | C46: =Texts!$B100 -> Coking coal | F46: ='Condensed fuels'!P$3 -> t dry | G46: ='Condensed fuels'!P$15 -> 1674594.165 | H46: ='Condensed fuels'!P$16 -> 70850.57149 | I46: 1745444.736 | J46: ='Condensed fuels'!P$18 -> 0 | K46: ='Condensed fuels'!P$19 -> 0 | L46: ='Condensed fuels'!P$20 -> 0 | M46: 0 | N46: 1745444.736 | O46: =(CokingCoal_EF*$N46) -> 5243482.138 | Q46: 5243482.138 | R46: =IF(CokingCoal_ncv>0,CokingCoal_ncv,CokingCoal_Defncv)*$N46 -> 56081139.38 | T46: 56081139.38
A47: CF-06 | C47: =Texts!$B101 -> Anthracite | F47: ='Condensed fuels'!S$3 -> t dry | G47: ='Condensed fuels'!S$15 -> 397903.4097 | H47: ='Condensed fuels'!S$16 -> 0 | I47: 397903.4097 | J47: ='Condensed fuels'!S$18 -> 0 | K47: ='Condensed fuels'!S$19 -> 0 | L47: ='Condensed fuels'!S$20 -> 83138.30116 | M47: 83138.30116 | N47: 314765.1085 | O47: =(Anthracite_EF*$N47) -> 974304.2013 | Q47: 974304.2013 | R47: =IF(HomeCoke_ncv>0,HomeCoke_ncv,Anthracite_Defncv)*$N47 -> 9485446.546 | T47: 9485446.546
A48: CF-07 | C48: =Texts!$B102 -> DRI coal | F48: ='Condensed fuels'!V$3 -> t dry | G48: ='Condensed fuels'!V$15 -> 0 | H48: ='Condensed fuels'!V$16 -> 0 | I48: 0 | J48: ='Condensed fuels'!V$18 -> 0 | K48: ='Condensed fuels'!V$19 -> 0 | L48: ='Condensed fuels'!V$20 -> 0 | M48: 0 | N48: 0 | O48: =(DRICoal_EF*$N48) -> 0 | Q48: 0 | R48: =IF(DRICoal_ncv>0,DRICoal_ncv,DRICoal_Defncv)*$N48 -> 0 | T48: 0
A49: CF-08 | C49: =Texts!$B103 -> BF injection Coal | F49: ='Condensed fuels'!Y$3 -> t dry | G49: ='Condensed fuels'!Y$15 -> 1180617.3 | H49: ='Condensed fuels'!Y$16 -> 0 | I49: 1180617.3 | J49: ='Condensed fuels'!Y$18 -> 0 | K49: ='Condensed fuels'!Y$19 -> 0 | L49: ='Condensed fuels'!Y$20 -> 9504.427715 | M49: 9504.427715 | N49: 1171112.872 | O49: =(PCICoal_EF*$N49) -> 3545792.982 | Q49: 3545792.982 | R49: =IF(PCICoal_ncv>0,PCICoal_ncv,PCICoal_Defncv)*$N49 -> 36573855 | T49: 36573855
A50: CF-09 | C50: =Texts!$B104 -> Smelting reduction Coal | F50: ='Condensed fuels'!AB$3 -> t dry | G50: ='Condensed fuels'!AB$15 -> 0 | H50: ='Condensed fuels'!AB$16 -> 0 | I50: 0 | J50: ='Condensed fuels'!AB$18 -> 0 | K50: ='Condensed fuels'!AB$19 -> 0 | L50: ='Condensed fuels'!AB$20 -> 0 | M50: 0 | N50: 0 | O50: =(SRCoal_EF*$N50) -> 0 | Q50: 0 | R50: =IF(SRCoal_ncv>0,SRCoal_ncv,SRCoal_Defncv)*$N50 -> 0 | T50: 0
A51: CF-10 | C51: =Texts!$B105 -> EAF Coal | F51: ='Condensed fuels'!AE$3 -> t dry | G51: ='Condensed fuels'!AE$15 -> 0 | H51: ='Condensed fuels'!AE$16 -> 0 | I51: 0 | J51: ='Condensed fuels'!AE$18 -> 0 | K51: ='Condensed fuels'!AE$19 -> 0 | L51: ='Condensed fuels'!AE$20 -> 0 | M51: 0 | N51: 0 | O51: =(EAFCoal_EF*$N51) -> 0 | P51: =Coke_ARP_CO2*N51 -> 0 | Q51: 0 | R51: =IF(EAFCoal_ncv>0,EAFCoal_ncv,EAFCoal_Defncv)*$N51 -> 0 | S51: =(N51>0)*Coke_ARP_En*N51 -> 0 | T51: 0
A52: CF-11 | C52: =Texts!$B106 -> Steam coal | F52: ='Condensed fuels'!AH$3 -> t dry | G52: ='Condensed fuels'!AH$15 -> 0 | H52: ='Condensed fuels'!AH$16 -> 0 | I52: 0 | J52: ='Condensed fuels'!AH$18 -> 0 | K52: ='Condensed fuels'!AH$19 -> 0 | L52: ='Condensed fuels'!AH$20 -> 0 | M52: 0 | N52: 0 | O52: =(SteamCoal_EF*$N52) -> 0 | Q52: 0 | R52: =IF(SteamCoal_ncv>0,SteamCoal_ncv,SteamCoal_Defncv)*$N52 -> 0 | S52: =IF(SteamCoal_ncv>0,SteamCoal_ncv,SteamCoal_Defncv)*$N52 -> 0 | T52: 0
A53: CF-12 | C53: =Texts!$B107 -> Petroleum Coke | F53: ='Condensed fuels'!AK$3 -> t dry | G53: ='Condensed fuels'!AK$15 -> 0 | H53: ='Condensed fuels'!AK$16 -> 0 | I53: 0 | J53: ='Condensed fuels'!AK$18 -> 0 | K53: ='Condensed fuels'!AK$19 -> 0 | L53: ='Condensed fuels'!AK$20 -> 0 | M53: 0 | N53: 0 | O53: =(PetCoke_EF*$N53) -> 0 | P53: =PetCoke_upCO2*M53 -> 0 | Q53: 0 | R53: =IF(PetCoke_ncv>0,PetCoke_ncv,PetCoke_Defncv)*$N53 -> 0 | T53: 0
A54: CF-13 | C54: =Texts!$B108 -> Heavy oil | F54: ='Condensed fuels'!AN$3 -> t | G54: ='Condensed fuels'!AN$15 -> 0 | H54: ='Condensed fuels'!AN$16 -> 0 | I54: 0 | J54: ='Condensed fuels'!AN$18 -> 0 | K54: ='Condensed fuels'!AN$19 -> 0 | L54: ='Condensed fuels'!AN$20 -> 0 | M54: 0 | N54: 0 | O54: =(HFO_EF*$N54) -> 0 | P54: =HFO_upCO2*N54 -> 0 | Q54: 0 | R54: =IF(HFO_ncv>0,HFO_ncv,HFO_Defncv)*$N54 -> 0 | T54: 0
A55: CF-14 | C55: =Texts!$B109 -> Light domestic oil | F55: ='Condensed fuels'!AQ$3 -> m3 | G55: ='Condensed fuels'!AQ$15 -> 6108.8 | H55: ='Condensed fuels'!AQ$16 -> 0 | I55: 6108.8 | J55: ='Condensed fuels'!AQ$18 -> 0 | K55: ='Condensed fuels'!AQ$19 -> 0 | L55: ='Condensed fuels'!AQ$20 -> 0 | M55: 0 | N55: 6108.8 | O55: =(LDO_EF*$N55) -> 16037.7819 | P55: =IF(LDO_unit="t",1,0.85)*LDO_upCO2*N55 -> 0 | Q55: 16037.7819 | R55: =IF(LDO_unit="t",1,0.85)*IF(LDO_ncv>0,LDO_ncv,LDO_Defncv)*$N55 -> 185293.6488 | T55: 185293.6488
A56: CF-15 | C56: =Texts!$B110 -> Diesel oil | F56: ='Condensed fuels'!AT$3 -> m3 | G56: ='Condensed fuels'!AT$15 -> 0 | H56: ='Condensed fuels'!AT$16 -> 0 | I56: 0 | J56: ='Condensed fuels'!AT$18 -> 0 | K56: ='Condensed fuels'!AT$19 -> 0 | L56: ='Condensed fuels'!AT$20 -> 0 | M56: 0 | N56: 0 | O56: =(DO_EF*$N56) -> 0 | P56: =IF(DO_Unit="t",1,0.85)*LDO_upCO2*N56 -> 0 | Q56: 0 | R56: =IF(DO_Unit="t",1,0.85)*IF(DO_ncv>0,DO_ncv,LDO_Defncv)*$N56 -> 0 | T56: 0
A57: CF-16 | C57: =Texts!$B111 -> LPG | F57: ='Condensed fuels'!AW$3 -> GJ ncv | G57: ='Condensed fuels'!AW$15 -> 0 | H57: ='Condensed fuels'!AW$16 -> 0 | I57: 0 | J57: ='Condensed fuels'!AW$18 -> 0 | K57: ='Condensed fuels'!AW$19 -> 0 | L57: ='Condensed fuels'!AW$20 -> 0 | M57: 0 | N57: 0 | O57: =(LPG_EF*$N57) -> 0 | P57: =LPG_upCO2*N57 -> 0 | Q57: 0 | R57: =IF(LPG_ncv>0,LPG_ncv,LPG_Defncv)*$N57 -> 0 | T57: 0
A58: CF-17 | C58: =Texts!$B112 -> Charcoal | F58: ='Condensed fuels'!AZ$3 -> t dry | G58: ='Condensed fuels'!AZ$15 -> 0 | H58: ='Condensed fuels'!AZ$16 -> 0 | I58: 0 | J58: ='Condensed fuels'!AZ$18 -> 0 | K58: ='Condensed fuels'!AZ$19 -> 0 | L58: ='Condensed fuels'!AZ$20 -> 0 | M58: 0 | N58: 0 | O58: =(Charcoal_EF*$N58) -> 0 | Q58: 0 | R58: =IF(Charcoal_ncv>0,Charcoal_ncv,Charcoal_Defncv)*$N58 -> 0 | T58: 0
A59: CF-18 | C59: =Texts!$B113 -> Used Plastics | F59: ='Condensed fuels'!$BC$3 -> t dry | G59: ='Condensed fuels'!$BC$15 -> 0 | H59: ='Condensed fuels'!$BC$16 -> 0 | I59: 0 | J59: ='Condensed fuels'!$BC$18 -> 0 | K59: ='Condensed fuels'!$BC$19 -> 0 | L59: ='Condensed fuels'!$BC$20 -> 0 | M59: 0 | N59: 0 | O59: =(Plastic_EF*$N59) -> 0 | Q59: 0 | R59: =IF(Plastic_ncv>0,Plastic_ncv,Plastic_Defncv)*$N59 -> 0 | T59: 0
A60: CF-19 | C60: =Texts!$B114 -> Used Tires | F60: ='Condensed fuels'!$BF$3 -> t dry | G60: ='Condensed fuels'!$BF$15 -> 0 | H60: ='Condensed fuels'!$BF$16 -> 0 | I60: 0 | J60: ='Condensed fuels'!$BF$18 -> 0 | K60: ='Condensed fuels'!$BF$19 -> 0 | L60: ='Condensed fuels'!$BF$20 -> 0 | M60: 0 | N60: 0 | O60: =(Tire_EF*$N60) -> 0 | Q60: 0 | R60: =IF(Tire_ncv>0,Tire_ncv,Tire_Defncv)*$N60 -> 0 | T60: 0
A61: CF-20 | C61: =Texts!$B115 -> Other condensed fuel 1 | F61: ='Condensed fuels'!$BI$3 -> t dry | G61: ='Condensed fuels'!$BI$15 -> 0 | H61: ='Condensed fuels'!$BI$16 -> 0 | I61: =SUM(G61:H61) -> 0 | J61: ='Condensed fuels'!$BI$18 -> 0 | K61: ='Condensed fuels'!$BI$19 -> 0 | L61: ='Condensed fuels'!$BI$20 -> 0 | M61: =SUM(J61:L61) -> 0 | N61: =I61-M61 -> 0 | O61: =(OCF1_EF*$N61) -> 0 | Q61: 0 | R61: =IF(OCF1_ncv>0,OCF1_ncv,0)*$N61 -> 0 | S61: =IF(OCF1_ncv>0,OCF1_ncv,0)*$N61 -> 0 | T61: 0
A62: CF-21 | C62: =Texts!$B116 -> Other condensed fuel 2 | F62: ='Condensed fuels'!$BL$3 -> t dry | G62: ='Condensed fuels'!$BL$15 -> 0 | H62: ='Condensed fuels'!$BL$16 -> 0 | I62: =SUM(G62:H62) -> 0 | J62: ='Condensed fuels'!$BL$18 -> 0 | K62: ='Condensed fuels'!$BL$19 -> 0 | L62: ='Condensed fuels'!$BL$20 -> 0 | M62: =SUM(J62:L62) -> 0 | N62: =I62-M62 -> 0 | O62: =(OCF2_EF*$N62) -> 0 | Q62: 0 | R62: =IF(OCF2_ncv>0,OCF2_ncv,0)*$N62 -> 0 | S62: =IF(OCF2_ncv>0,OCF2_ncv,0)*$N62 -> 0 | T62: 0
B63: ="GF-"&Texts!$B117 -> GF-Gazeous Fuels
A64: GF-01 | C64: =Texts!$B118 -> Coke Oven Gas | F64: ='Gas fuels'!D$3 -> GJ ncv | G64: ='Gas fuels'!D$15 -> 0 | H64: ='Gas fuels'!D$16 -> 0 | I64: =SUM(G64:H64) -> 0 | J64: ='Gas fuels'!D$18 -> 1413509.994 | K64: ='Gas fuels'!D$19 -> 1124730.302 | L64: ='Gas fuels'!D$20 -> 0 | M64: =SUM(J64:L64) -> 2538240.296 | N64: =I64-M64 -> -2538240.296 | O64: =(N64>0)*(COG_EF*$N64) -> 0 | Q64: =SUM(O64:P64) -> 0 | R64: =IF(LEFT(COG_Unit,2)="GJ",1,COG_ncv)*$N64 -> -2538240.296 | T64: =SUM(R64:S64) -> -2538240.296
A65: GF-02 | C65: =Texts!$B119 -> Blast Furnace Gas | F65: ='Gas fuels'!G$3 -> GJ ncv | G65: ='Gas fuels'!G$15 -> 0 | H65: ='Gas fuels'!G$16 -> 0 | I65: 0 | J65: ='Gas fuels'!G$18 -> 12344934.05 | K65: ='Gas fuels'!G$19 -> 1985748.336 | L65: ='Gas fuels'!G$20 -> 0 | M65: 14330682.39 | N65: -14330682.39 | O65: =(N65>0)*(BFG_EF*$N65) -> 0 | Q65: 0 | R65: =IF(LEFT(BFG_Unit,2)="GJ",1,BFG_ncv)*$N65 -> -14330682.39 | T65: -14330682.39
A66: GF-03 | C66: =Texts!$B120 -> Smelting Reduction Gas | F66: ='Gas fuels'!J$3 -> GJ ncv | G66: ='Gas fuels'!J$15 -> 0 | H66: ='Gas fuels'!J$16 -> 0 | I66: 0 | J66: ='Gas fuels'!J$18 -> 0 | K66: ='Gas fuels'!J$19 -> 0 | L66: ='Gas fuels'!J$20 -> 0 | M66: 0 | N66: 0 | O66: =(N66>0)*(SRG_EF*$N66) -> 0 | Q66: 0 | R66: =IF(LEFT(SRG_Unit,2)="GJ",1,SRG_ncv)*$N66 -> 0 | T66: 0
A67: GF-04 | C67: =Texts!$B121 -> BOF Gas | F67: ='Gas fuels'!M$3 -> GJ ncv | G67: ='Gas fuels'!M$15 -> 0 | H67: ='Gas fuels'!M$16 -> 0 | I67: 0 | J67: ='Gas fuels'!M$18 -> 1679929.721 | K67: ='Gas fuels'!M$19 -> 330548.801 | L67: ='Gas fuels'!M$20 -> 0 | M67: 2010478.522 | N67: -2010478.522 | O67: =(N67>0)*(BOFG_EF*$N67) -> 0 | Q67: 0 | R67: =IF(LEFT(BOFG_Unit,2)="GJ",1,BOFG_ncv)*$N67 -> -2010478.522 | T67: -2010478.522
A68: GF-05 | C68: =Texts!$B122 -> Natural Gas | F68: ='Gas fuels'!P$3 -> GJ ncv | G68: ='Gas fuels'!P$15 -> 821060.8644 | H68: ='Gas fuels'!P$16 -> 0 | I68: 821060.8644 | J68: ='Gas fuels'!P$18 -> 0 | K68: ='Gas fuels'!P$19 -> 193817.123 | L68: ='Gas fuels'!P$20 -> 0 | M68: 193817.123 | N68: 627243.7414 | O68: =(NG_EF*$N68) -> 34003.9896 | Q68: 34003.9896 | R68: =IF(LEFT(NG_Unit,2)="GJ",1,NG_ncv)*$N68 -> 627243.7414 | T68: 627243.7414
A69: GF-06 | C69: =Texts!$B123 -> Other Gas 1 | F69: ='Gas fuels'!S$3 -> GJ ncv | G69: ='Gas fuels'!S$15 -> 0 | H69: ='Gas fuels'!S$16 -> 0 | I69: 0 | J69: ='Gas fuels'!S$18 -> 0 | K69: ='Gas fuels'!S$19 -> 0 | L69: ='Gas fuels'!S$20 -> 0 | M69: 0 | N69: 0 | O69: =(OG1_EF*$N69) -> 0 | Q69: 0 | R69: =IF(LEFT(OG1_Unit,2)="GJ",1,OG1_ncv)*$N69 -> 0 | T69: 0
